Workbook

Sheet Figure 1a
A1: Figure 1a | E1: Notes: SEC curve is plotted with lines of "ml" and "mAU" values. SDS-PAGE figure is from the left two lanes of this raw gel
A3: Chrom.1 | C3: parameter1 | D3: parameter2
A4: Run Log | P4: lane1 | Q4: lane2
A5: ml | B5: Logbook | C5: ml | D5: mAU
A6: -0.740947 | B6: Method Settings | C6: -0.740947 | D6: -0.175514
A7: -0.740847 | B7: Equilibration | C7: -0.740282 | D7: 0.209921
A8: -0.008629 | B8: Sample Application | C8: -0.739616 | D8: 0.213208
A9: 1.49529 | B9: SEC ELution | C9: -0.73895 | D9: 0.215544
C10: -0.738284 | D10: 0.216359
C11: -0.737618 | D11: 0.217837
C12: -0.736952 | D12: 0.219029
C13: -0.736287 | D13: 0.22069
C14: -0.735621 | D14: 0.221562
C15: -0.734955 | D15: 0.222278
C16: -0.734289 | D16: 0.223357
C17: -0.733623 | D17: 0.347212
C18: -0.732957 | D18: 1.175041
C19: -0.732292 | D19: 1.628587
C20: -0.731626 | D20: 1.628472
C21: -0.73096 | D21: 1.627515
C22: -0.730294 | D22: 1.626466
C23: -0.729628 | D23: 1.627147
C24: -0.728962 | D24: 1.627187
C25: -0.728296 | D25: 1.626508
C26: -0.727631 | D26: 1.62568
C27: -0.726965 | D27: 1.625394
C28: -0.726299 | D28: 1.625198
C29: -0.725633 | D29: 1.62501
C30: -0.724967 | D30: 1.624459
C31: -0.724301 | D31: 1.623567
C32: -0.723636 | D32: 1.622995
C33: -0.72297 | D33: 1.622099
C34: -0.722304 | D34: 1.621663
C35: -0.721638 | D35: 1.620898
C36: -0.720972 | D36: 1.619967
C37: -0.720306 | D37: 1.619247
C38: -0.719641 | D38: 1.618892
C39: -0.718975 | D39: 1.617715
C40: -0.718309 | D40: 0.933895
C41: -0.717643 | D41: -0.000519
C42: -0.716977 | D42: -0.001587
C43: -0.716311 | D43: -0.001933
C44: -0.715646 | D44: -0.001616
C45: -0.71498 | D45: -0.000715
C46: -0.714314 | D46: 0.001667
C47: -0.713648 | D47: 0.00482
C48: -0.712982 | D48: 0.007912
C49: -0.712316 | D49: 0.011162
C50: -0.71165 | D50: 0.015224
C51: -0.710985 | D51: 0.020187
C52: -0.710319 | D52: 0.025578
C53: -0.709653 | D53: 0.031793
C54: -0.708987 | D54: 0.038951
C55: -0.708321 | D55: 0.047268
C56: -0.707655 | D56: 0.056303
C57: -0.70699 | D57: 0.064547
C58: -0.706324 | D58: 0.071341
C59: -0.705658 | D59: 0.076751
C60: -0.704992 | D60: 0.080503
C61: -0.704326 | D61: 0.082869
C62: -0.70366 | D62: 0.084131
C63: -0.702995 | D63: 0.085
C64: -0.702329 | D64: 0.084476
C65: -0.701663 | D65: 0.082767
C66: -0.700997 | D66: 0.080228
C67: -0.700331 | D67: 0.076153
C68: -0.699665 | D68: 0.071933
C69: -0.699 | D69: 0.067693
C70: -0.698334 | D70: 0.063194
C71: -0.697668 | D71: 0.0586
C72: -0.697002 | D72: 0.053458
C73: -0.696336 | D73: 0.047769
C74: -0.69567 | D74: 0.042829
C75: -0.695005 | D75: 0.038629
C76: -0.694339 | D76: 0.035044
C77: -0.693673 | D77: 0.031402
C78: -0.693007 | D78: 0.027535
C79: -0.692341 | D79: 0.023905
C80: -0.691675 | D80: 0.020469
C81: -0.691009 | D81: 0.016248
C82: -0.690344 | D82: 0.011716
C83: -0.689678 | D83: 0.007078
C84: -0.689012 | D84: 0.001878
C85: -0.688346 | D85: -0.002607
C86: -0.68768 | D86: -0.007415
C87: -0.687014 | D87: -0.012892
C88: -0.686349 | D88: -0.018225
C89: -0.685683 | D89: -0.022398
C90: -0.685017 | D90: -0.025852
C91: -0.684351 | D91: -0.030816
C92: -0.683685 | D92: -0.035765
C93: -0.683019 | D93: -0.040533
C94: -0.682354 | D94: -0.04652
C95: -0.681688 | D95: -0.051794
C96: -0.681022 | D96: -0.056971
C97: -0.680356 | D97: -0.062676
C98: -0.67969 | D98: -0.067299
C99: -0.679024 | D99: -0.071832
C100: -0.678359 | D100: -0.077117
C101: -0.677693 | D101: -0.083813
C102: -0.677027 | D102: -0.090908
C103: -0.676361 | D103: -0.098666
C104: -0.675695 | D104: -0.1076
C105: -0.675029 | D105: -0.115891
C106: -0.674363 | D106: -0.124842
C107: -0.673698 | D107: -0.132765
C108: -0.673032 | D108: -0.139188
C109: -0.672366 | D109: -0.14454
C110: -0.6717 | D110: -0.149556
C111: -0.671034 | D111: -0.153216
C112: -0.670368 | D112: -0.155414
C113: -0.669703 | D113: -0.15665
C114: -0.669037 | D114: -0.156632
C115: -0.668371 | D115: -0.155064
C116: -0.667705 | D116: -0.153606
C117: -0.667039 | D117: -0.151149
C118: -0.666373 | D118: -0.148256
C119: -0.665708 | D119: -0.145515
C120: -0.665042 | D120: -0.142759
C121: -0.664376 | D121: -0.139559
C122: -0.66371 | D122: -0.136111
C123: -0.663044 | D123: -0.133559
C124: -0.662378 | D124: -0.130759
C125: -0.661713 | D125: -0.128658
C126: -0.661047 | D126: -0.126595
C127: -0.660381 | D127: -0.124823
C128: -0.659715 | D128: -0.123559
C129: -0.659049 | D129: -0.122627
C130: -0.658383 | D130: -0.122526
C131: -0.657718 | D131: -0.121718
C132: -0.657052 | D132: -0.120324
C133: -0.656386 | D133: -0.11897
C134: -0.65572 | D134: -0.117863
C135: -0.655054 | D135: -0.116018
C136: -0.654388 | D136: -0.113878
C137: -0.653722 | D137: -0.111371
C138: -0.653057 | D138: -0.109586
C139: -0.652391 | D139: -0.108119
C140: -0.651725 | D140: -0.107981
C141: -0.651059 | D141: -0.10617
C142: -0.650393 | D142: -0.105033
C143: -0.649727 | D143: -0.103939
C144: -0.649062 | D144: -0.103117
C145: -0.648396 | D145: -0.103153
C146: -0.64773 | D146: -0.104613
C147: -0.647064 | D147: -0.106422
C148: -0.646398 | D148: -0.110284
C149: -0.645732 | D149: -0.114114
C150: -0.645067 | D150: -0.117002
C151: -0.644401 | D151: -0.121058
C152: -0.643735 | D152: -0.124892
C153: -0.643069 | D153: -0.128828
C154: -0.642403 | D154: -0.132216
C155: -0.641737 | D155: -0.137778
C156: -0.641072 | D156: -0.14298
C157: -0.640406 | D157: -0.147998
C158: -0.63974 | D158: -0.153589
C159: -0.639074 | D159: -0.159023
C160: -0.638408 | D160: -0.164183
C161: -0.637742 | D161: -0.169598
C162: -0.637076 | D162: -0.17545
C163: -0.636411 | D163: -0.180837
C164: -0.635745 | D164: -0.187073
C165: -0.635079 | D165: -0.192601
C166: -0.634413 | D166: -0.19806
C167: -0.633747 | D167: -0.203635
C168: -0.633081 | D168: -0.210119
C169: -0.632416 | D169: -0.215342
C170: -0.63175 | D170: -0.220441
C171: -0.631084 | D171: -0.224811
C172: -0.630418 | D172: -0.228134
C173: -0.629752 | D173: -0.231316
C174: -0.629086 | D174: -0.233761
C175: -0.628421 | D175: -0.235412
C176: -0.627755 | D176: -0.235834
C177: -0.627089 | D177: -0.235423
C178: -0.626423 | D178: -0.232697
C179: -0.625757 | D179: -0.22678
C180: -0.625091 | D180: -0.218331
C181: -0.624426 | D181: -0.207558
C182: -0.62376 | D182: -0.195088
C183: -0.623094 | D183: -0.179782
C184: -0.622428 | D184: -0.159721
C185: -0.621762 | D185: -0.137348
C186: -0.621096 | D186: -0.112653
C187: -0.620431 | D187: -0.084567
C188: -0.619765 | D188: -0.053737
C189: -0.619099 | D189: -0.019808
C190: -0.618433 | D190: 0.017451
C191: -0.617767 | D191: 0.056641
C192: -0.617101 | D192: 0.099735
C193: -0.616435 | D193: 0.144478
C194: -0.61577 | D194: 0.192703
C195: -0.615104 | D195: 0.242871
C196: -0.614438 | D196: 0.295321
C197: -0.613772 | D197: 0.350253
C198: -0.613106 | D198: 0.408132
C199: -0.61244 | D199: 0.469422
C200: -0.611775 | D200: 0.531389
C201: -0.611109 | D201: 0.597347
... 4299 more rows

Sheet Figure 1b
A1: Figure 1b | C1: 0 min | E1: 20 min | K1: 0 min | L1: 20 min | S1: lane1 | T1: lane2 | X1: superoxide/per min | Y1: stddev/min
C2: 0.121 | E2: 0.405 | K2: 0.121 | L2: 0.405 | M2: =L2-K2 -> 0.284 | N2: =M2-0.0112 -> 0.2728 | W2: 500 | X2: 13.25611326 | Y2: 0.6604130316
C3: 0.119 | E3: 0.404 | K3: 0.119 | L3: 0.404 | M3: =L3-K3 -> 0.285 | N3: =M3-0.0112 -> 0.2738 | W3: 375 | X3: 13.72636373 | Y3: 3.711777641
A4: NAHPH | B4: 500 uM | C4: 0.121 | E4: 0.411 | K4: 0.121 | L4: 0.411 | M4: 0.29 | N4: 0.2788 | O4: =AVERAGE(N2:N6) -> 0.2678 | P4: =STDEVA(N2:N6) -> 0.01334166406 | Q4: =(O4/37000*1000000)/0.0273 -> 265.1222651 | R4: =(P4/37000*1000000)/0.0273 -> 13.20826063 | S4: =Q4/20 -> 13.25611326 | T4: =R4/20 -> 0.6604130316 | V4: paramete 7 | W4: =W2/2 -> 250 | X4: 15.36481536 | Y4: 0.2791381483
C5: 0.13 | E5: 0.386 | K5: 0.13 | L5: 0.386 | M5: 0.256 | N5: 0.2448 | W5: =W3/2 -> 187.5 | X5: 14.71141471 | Y5: 0.9369772307
C6: 0.123 | E6: 0.403 | K6: 0.123 | L6: 0.403 | M6: 0.28 | N6: 0.2688 | V6: paramete 6 | W6: =W4/2 -> 125 | X6: 15.95881596 | Y6: 0.3313177018
B7: Average | C7: =AVERAGE(C2:C6) -> 0.1228 | E7: =AVERAGE(E2:E6) -> 0.4018 | J7: Average | K7: 0.1228 | L7: 0.4018 | V7: paramete 5 | W7: =W5/2 -> 93.75 | X7: 15.96871597 | Y7: 0.6046304914
B8: STEDEV | C8: =STDEV(C2:C6) -> 0.004266145802 | E8: =STDEV(E2:E6) -> 0.009364827815 | J8: STEDEV | K8: 0.004266145802 | L8: 0.009364827815 | V8: paramete 4 | W8: =W6/2 -> 62.5 | X8: 15.84991585 | Y8: 1.042208231
V9: paramete 3 | W9: =W7/2 -> 46.875 | X9: 14.45401445 | Y9: 1.705203064
C10: 0.12 | E10: 0.418 | K10: 0.12 | L10: 0.418 | M10: =L10-K10 -> 0.298 | N10: =M10-0.0112 -> 0.2868 | W10: 31.25 | X10: 21.76022176 | Y10: 0.7286770457
C11: 0.13 | E11: 0.422 | K11: 0.13 | L11: 0.422 | M11: =L11-K11 -> 0.292 | N11: =M11-0.0112 -> 0.2808 | V11: paramete 2 | W11: =W9/2 -> 23.4375 | X11: 10.52371052 | Y11: 1.68714585
A12: NAHPH | B12: 375 uM | C12: 0.126 | E12: 0.394 | K12: 0.126 | L12: 0.394 | M12: 0.268 | N12: 0.2568 | O12: =AVERAGE(N10:N14) -> 0.2773 | P12: =STDEV(M10:M14) -> 0.0749853319 | Q12: =(O12/37000*1000000)/0.0273 -> 274.5272745 | R12: =(P12/37000*1000000)/0.0273 -> 74.23555282 | S12: =Q12/20 -> 13.72636373 | T12: =R12/20 -> 3.711777641 | V12: parameter1 | W12: 15.625 | X12: 8.811008811 | Y12: 0.2224750525
C13: 0.209 | E13: 0.332 | K13: 0.209 | L13: 0.332 | M13: 0.123 | W13: 0
C14: 0.13 | E14: 0.426 | K14: 0.13 | L14: 0.426 | M14: 0.296 | N14: 0.2848 | T14: `
B15: Average | C15: =AVERAGE(C10:C14) -> 0.143 | E15: =AVERAGE(E10:E14) -> 0.3984 | K15: 0.143 | L15: 0.3984 | V15: Notes: For group of NADPH (o uM), it's system control, the value is 0.0112.. To calcurate the rate, we use values (20 min) to subtract values (0 min), then subtract system control (0.0112). Get average value of 5 repeats. The equation is Average/37000X1000000/0.0273/20. For stddev, the calculation is similar.
B16: STEDEV | C16: =STDEV(C10:C14) -> 0.03712142239 | E16: =STDEV(E10:E14) -> 0.03915098977 | K16: 0.03712142239 | L16: 0.03915098977
C17: 0.129 | E17: 0.46 | K17: 0.129 | L17: 0.46 | M17: =L17-K17 -> 0.331 | N17: =M17-0.0112 -> 0.3198
C18: 0.132 | E18: 0.451 | K18: 0.132 | L18: 0.451 | M18: =L18-K18 -> 0.319 | N18: =M18-0.0112 -> 0.3078
A19: NAHPH | B19: 250 uM | C19: 0.136 | E19: 0.452 | K19: 0.136 | L19: 0.452 | M19: 0.316 | N19: 0.3048 | O19: =AVERAGE(N17:N21) -> 0.3104 | P19: =STDEV(M17:M21) -> 0.005639148872 | Q19: =(O19/37000*1000000)/0.0273 -> 307.2963073 | R19: =(P19/37000*1000000)/0.0273 -> 5.582762966 | S19: =Q19/20 -> 15.36481536 | T19: =R19/20 -> 0.2791381483
C20: 0.138 | E20: 0.459 | K20: 0.138 | L20: 0.459 | M20: 0.321 | N20: 0.3098
C21: 0.139 | E21: 0.46 | K21: 0.139 | L21: 0.46 | M21: 0.321 | N21: 0.3098
B22: Average | C22: =AVERAGE(C17:C21) -> 0.1348 | E22: =AVERAGE(E17:E21) -> 0.4564 | K22: 0.1348 | L22: 0.4564
B23: STEDEV | C23: =STDEV(C17:C21) -> 0.004207136794 | E23: =STDEV(E17:E21) -> 0.00450555213 | K23: 0.004207136794 | L23: 0.00450555213
C24: 0.134 | E24: 0.415 | K24: 0.134 | L24: 0.415 | M24: =L24-K24 -> 0.281 | N24: =M24-0.0112 -> 0.2698
C25: 0.129 | E25: 0.461 | K25: 0.129 | L25: 0.461 | M25: =L25-K25 -> 0.332 | N25: =M25-0.0112 -> 0.3208
A26: NAHPH | B26: 187.5 uM | C26: 0.132 | E26: 0.433 | K26: 0.132 | L26: 0.433 | M26: 0.301 | N26: 0.2898 | O26: =AVERAGE(N24:N28) -> 0.2972 | P26: =STDEV(M24:M28) -> 0.01892881401 | Q26: =(O26/37000*1000000)/0.0273 -> 294.2282942 | R26: =(P26/37000*1000000)/0.0273 -> 18.73954461 | S26: =Q26/20 -> 14.71141471 | T26: =R26/20 -> 0.9369772307
C27: 0.14 | E27: 0.452 | K27: 0.14 | L27: 0.452 | M27: 0.312 | N27: 0.3008
C28: 0.147 | E28: 0.463 | K28: 0.147 | L28: 0.463 | M28: 0.316 | N28: 0.3048
B29: Average | C29: =AVERAGE(C24:C28) -> 0.1364 | E29: =AVERAGE(E24:E28) -> 0.4448 | K29: 0.1364 | L29: 0.4448
B30: STEDEV | C30: =STDEV(C24:C28) -> 0.007162401832 | E30: =STDEV(E24:E28) -> 0.02044993888 | K30: 0.007162401832 | L30: 0.02044993888
C31: 0.144 | E31: 0.473 | K31: 0.144 | L31: 0.473 | M31: =L31-K31 -> 0.329 | N31: =M31-0.0112 -> 0.3178
C32: 0.143 | E32: 0.486 | K32: 0.143 | L32: 0.486 | M32: =L32-K32 -> 0.343 | N32: =M32-0.0112 -> 0.3318
A33: NAHPH | B33: 125 uM | C33: 0.138 | E33: 0.475 | K33: 0.138 | L33: 0.475 | M33: 0.337 | N33: 0.3258 | O33: =AVERAGE(N31:N35) -> 0.3224 | P33: =STDEV(M31:M35) -> 0.006693280212 | Q33: =(O33/37000*1000000)/0.0273 -> 319.1763192 | R33: =(P33/37000*1000000)/0.0273 -> 6.626354037 | S33: =Q33/20 -> 15.95881596 | T33: =R33/20 -> 0.3313177018
C34: 0.14 | E34: 0.473 | K34: 0.14 | L34: 0.473 | M34: 0.333 | N34: 0.3218
C35: 0.149 | E35: 0.475 | K35: 0.149 | L35: 0.475 | M35: 0.326 | N35: 0.3148
B36: Average | C36: =AVERAGE(C31:C35) -> 0.1428 | E36: =AVERAGE(E31:E35) -> 0.4764 | K36: 0.1428 | L36: 0.4764
B37: STEDEV | C37: =STDEV(C31:C35) -> 0.004207136794 | E37: =STDEV(E31:E35) -> 0.005458937626 | K37: 0.004207136794 | L37: 0.005458937626
C38: 0.14 | E38: 0.466 | K38: 0.14 | L38: 0.466 | M38: =L38-K38 -> 0.326 | N38: =M38-0.0112 -> 0.3148
C39: 0.137 | E39: 0.465 | K39: 0.137 | L39: 0.465 | M39: =L39-K39 -> 0.328 | N39: =M39-0.0112 -> 0.3168
A40: NAHPH | B40: 93.75 uM | C40: 0.148 | E40: 0.49 | K40: 0.148 | L40: 0.49 | M40: 0.342 | N40: 0.3308 | O40: =AVERAGE(N38:N42) -> 0.3226 | P40: =STDEV(M38:M42) -> 0.01221474519 | Q40: =(O40/37000*1000000)/0.0273 -> 319.3743194 | R40: =(P40/37000*1000000)/0.0273 -> 12.09260983 | S40: =Q40/20 -> 15.96871597 | T40: =R40/20 -> 0.6046304914
C41: 0.137 | E41: 0.488 | K41: 0.137 | L41: 0.488 | M41: 0.351 | N41: 0.3398
C42: 0.146 | E42: 0.468 | K42: 0.146 | L42: 0.468 | M42: 0.322 | N42: 0.3108
B43: Average | C43: =AVERAGE(C38:C42) -> 0.1416 | E43: =AVERAGE(E38:E42) -> 0.4754 | K43: 0.1416 | L43: 0.4754
B44: STEDEV | C44: =STDEV(C38:C42) -> 0.005128352562 | E44: =STDEV(E38:E42) -> 0.01248198702 | K44: 0.005128352562 | L44: 0.01248198702
C45: 0.158 | E45: 0.527 | K45: 0.158 | L45: 0.527 | M45: =L45-K45 -> 0.369 | N45: =M45-0.0112 -> 0.3578
C46: 0.15 | E46: 0.474 | K46: 0.15 | L46: 0.474 | M46: =L46-K46 -> 0.324 | N46: =M46-0.0112 -> 0.3128
A47: NAHPH | B47: 62.5 uM | C47: 0.162 | E47: 0.483 | K47: 0.162 | L47: 0.483 | M47: 0.321 | N47: 0.3098 | O47: =AVERAGE(N45:N49) -> 0.3202 | P47: =STDEV(M45:M49) -> 0.02105469069 | Q47: =(O47/37000*1000000)/0.0273 -> 316.998317 | R47: =(P47/37000*1000000)/0.0273 -> 20.84416463 | S47: =Q47/20 -> 15.84991585 | T47: =R47/20 -> 1.042208231
C48: 0.146 | E48: 0.467 | K48: 0.146 | L48: 0.467 | M48: 0.321 | N48: 0.3098
C49: 0.174 | E49: 0.496 | K49: 0.174 | L49: 0.496 | M49: 0.322 | N49: 0.3108
B50: Average | C50: =AVERAGE(C45:C49) -> 0.158 | E50: =AVERAGE(E45:E49) -> 0.4894 | K50: 0.158 | L50: 0.4894
B51: STEDEV | C51: =STDEV(C45:C49) -> 0.01095445115 | E51: =STDEV(E45:E49) -> 0.02364952431 | K51: 0.01095445115 | L51: 0.02364952431
C52: 0.129 | E52: 0.389 | K52: 0.129 | L52: 0.389 | M52: =L52-K52 -> 0.26 | N52: =M52-0.0112 -> 0.2488
C53: 0.132 | E53: 0.452 | K53: 0.132 | L53: 0.452 | M53: =L53-K53 -> 0.32 | N53: =M53-0.0112 -> 0.3088
A54: NAHPH | B54: 46.875 uM | C54: 0.135 | E54: 0.485 | K54: 0.135 | L54: 0.485 | M54: 0.35 | N54: 0.3388 | O54: =AVERAGE(N52:N56) -> 0.292 | P54: =STDEV(M52:M56) -> 0.0344485123 | Q54: =(O54/37000*1000000)/0.0273 -> 289.0802891 | R54: =(P54/37000*1000000)/0.0273 -> 34.10406129 | S54: =Q54/20 -> 14.45401445 | T54: =R54/20 -> 1.705203064
C55: 0.141 | E55: 0.444 | K55: 0.141 | L55: 0.444 | M55: 0.303 | N55: 0.2918
C56: 0.147 | E56: 0.43 | K56: 0.147 | L56: 0.43 | M56: 0.283 | N56: 0.2718
B57: Average | C57: =AVERAGE(C52:C56) -> 0.1368 | E57: =AVERAGE(E52:E56) -> 0.44 | K57: 0.1368 | L57: 0.44
B58: STEDEV | C58: =STDEV(C52:C56) -> 0.007224956747 | E58: =STDEV(E52:E56) -> 0.03494996423 | K58: 0.007224956747 | L58: 0.03494996423
C59: 0.179 | E59: 0.653 | K59: 0.179 | L59: 0.653 | M59: =L59-K59 -> 0.474 | N59: =M59-0.0112 -> 0.4628
C60: 0.19 | E60: 0.628 | K60: 0.19 | L60: 0.628 | M60: =L60-K60 -> 0.438 | N60: =M60-0.0112 -> 0.4268
A61: NAHPH | B61: 31.25 uM | C61: 0.18 | E61: 0.635 | K61: 0.18 | L61: 0.635 | M61: 0.455 | N61: 0.4438 | O61: =AVERAGE(N59:N63) -> 0.4396 | P61: =STDEV(M59:M63) -> 0.01472073368 | Q61: =(O61/37000*1000000)/0.0273 -> 435.2044352 | R61: =(P61/37000*1000000)/0.0273 -> 14.57354091 | S61: =Q61/20 -> 21.76022176 | T61: =R61/20 -> 0.7286770457
C62: 0.182 | E62: 0.63 | K62: 0.182 | L62: 0.63 | M62: 0.448 | N62: 0.4368
C63: 0.199 | E63: 0.638 | K63: 0.199 | L63: 0.638 | M63: 0.439 | N63: 0.4278
B64: Average | C64: =AVERAGE(C59:C63) -> 0.186 | E64: =AVERAGE(E59:E63) -> 0.6368 | K64: 0.186 | L64: 0.6368
B65: STEDEV | C65: =STDEV(C59:C63) -> 0.008455767263 | E65: =STDEV(E59:E63) -> 0.009884331035 | K65: 0.008455767263 | L65: 0.009884331035
C66: 0.132 | E66: 0.295 | K66: 0.132 | L66: 0.295 | M66: =L66-K66 -> 0.163 | N66: =M66-0.0112 -> 0.1518
C67: 0.139 | E67: 0.381 | K67: 0.139 | L67: 0.381 | M67: =L67-K67 -> 0.242 | N67: =M67-0.0112 -> 0.2308
A68: NAHPH | B68: 23.4375 uM | C68: 0.13 | E68: 0.37 | K68: 0.13 | L68: 0.37 | M68: 0.24 | N68: 0.2288 | O68: =AVERAGE(N66:N70) -> 0.2126 | P68: =STDEV(M66:M70) -> 0.03408372045 | Q68: =(O68/37000*1000000)/0.0273 -> 210.4742105 | R68: =(P68/37000*1000000)/0.0273 -> 33.74291699 | S68: =Q68/20 -> 10.52371052 | T68: =R68/20 -> 1.68714585
C69: 0.133 | E69: 0.368 | K69: 0.133 | L69: 0.368 | M69: 0.235 | N69: 0.2238
C70: 0.145 | E70: 0.384 | K70: 0.145 | L70: 0.384 | M70: 0.239 | N70: 0.2278
B71: Average | C71: =AVERAGE(C66:C70) -> 0.1358 | E71: =AVERAGE(E66:E70) -> 0.3596 | K71: 0.1358 | L71: 0.3596
B72: STEDEV | C72: =STDEV(C66:C70) -> 0.006140032573 | E72: =STDEV(E66:E70) -> 0.03676003264 | K72: 0.006140032573 | L72: 0.03676003264
C73: 0.137 | E73: 0.326 | K73: 0.137 | L73: 0.326 | M73: =L73-K73 -> 0.189 | N73: =M73-0.0112 -> 0.1778
C74: 0.132 | E74: 0.325 | K74: 0.132 | L74: 0.325 | M74: =L74-K74 -> 0.193 | N74: =M74-0.0112 -> 0.1818
A75: NAHPH | B75: 15.625 uM | C75: 0.133 | E75: 0.322 | K75: 0.133 | L75: 0.322 | M75: 0.189 | N75: 0.1778 | O75: =AVERAGE(N73:N77) -> 0.178 | P75: =STDEV(M73:M77) -> 0.004494441011 | Q75: =(O75/37000*1000000)/0.0273 -> 176.2201762 | R75: =(P75/37000*1000000)/0.0273 -> 4.44950105 | S75: =Q75/20 -> 8.811008811 | T75: =R75/20 -> 0.2224750525
C76: 0.134 | E76: 0.316 | K76: 0.134 | L76: 0.316 | M76: 0.182 | N76: 0.1708
C77: 0.134 | E77: 0.327 | K77: 0.134 | L77: 0.327 | M77: 0.193 | N77: 0.1818
B78: Average | C78: =AVERAGE(C73:C77) -> 0.134 | E78: =AVERAGE(E73:E77) -> 0.3232 | K78: 0.134 | L78: 0.3232
B79: STEDEV | C79: =STDEV(C73:C77) -> 0.001870828693 | E79: =STDEV(E73:E77) -> 0.004438468204 | K79: 0.001870828693 | L79: 0.004438468204
C80: 0.117 | E80: 0.126 | K80: 0.117 | L80: 0.126 | M80: =L80-K80 -> 0.009
C81: 0.113 | E81: 0.129 | K81: 0.113 | L81: 0.129 | M81: =L81-K81 -> 0.016
A82: NAHPH | B82: 0 uM | C82: 0.119 | E82: 0.131 | K82: 0.119 | L82: 0.131 | M82: 0.012 | N82: =AVERAGE(M80:M84) -> 0.0112
C83: 0.112 | E83: 0.124 | K83: 0.112 | L83: 0.124 | M83: 0.012
C84: 0.113 | E84: 0.12 | K84: 0.113 | L84: 0.12 | M84: 0.007
B85: Average | C85: =AVERAGE(C80:C84) -> 0.1148 | E85: =AVERAGE(E80:E84) -> 0.126 | K85: 0.1148 | L85: 0.126
B86: STEDEV | C86: =STDEV(C80:C84) -> 0.003033150178 | E86: =STDEV(E80:E84) -> 0.004301162634 | K86: 0.003033150178 | L86: 0.004301162634
A89: Notes:NOX5 activity assay is measured with 11 different concentrations of NADPH. Time course is from 0-20 mins. n=5 repeats. We calculate average value with 5 repeats.

Sheet Figure 1c
A1: Figure 1c | D1: Time | E1: 0 min | F1: 1 min | G1: 2 min | H1: 3 min | I1: 4 min | J1: 5 min | K1: 6 min | L1: 7 min | M1: 8 min | N1: 9 min | O1: 10 min | P1: 11 min | Q1: 12 min | R1: 13 min | S1: 14 min | T1: 15 min | U1: 16 min | V1: 17 min | W1: 18 min | X1: 19 min | Y1: 20 min | Z1: 21 min | AA1: 22 min | AB1: 23 min | AC1: 24 min | AD1: 25 min | AE1: 26 min | AF1: 27 min | AG1: 28 min | AH1: 29 min | AI1: 30 min | AJ1: 31 min | AK1: 32 min | AL1: 33 min | AM1: 34 min | AN1: 35 min | AO1: 36 min | AP1: 37 min | AQ1: 38 min | AR1: 39 min | AS1: 40 min | AT1: 41 min | AU1: 42 min | AV1: 43 min | AW1: 44 min | AX1: 45 min | AY1: 46 min | AZ1: 47 min | BA1: 48 min | BB1: 49 min | BC1: 50 min | BD1: 51 min | BE1: 52 min | BF1: 53 min | BG1: 54 min | BH1: 55 min | BI1: 56 min | BJ1: 57 min | BK1: 58 min | BL1: 59 min | BM1: 60 min | BN1: 61 min | BO1: 62 min | BP1: 63 min | BQ1: 64 min | BR1: 65 min | BS1: 66 min | BT1: 67 min | BU1: 68 min | BV1: 69 min | BW1: 70 min | BX1: 71 min | BY1: 72 min | BZ1: 73 min | CA1: 74 min | CB1: 75 min | CC1: 76 min | CD1: 77 min | CE1: 78 min | CF1: 79 min | CG1: 80 min | CH1: 81 min | CI1: 82 min | CJ1: 83 min | CK1: 84 min | CL1: 85 min | CM1: 86 min | CN1: 87 min | CO1: 88 min | CP1: 89 min | CQ1: 90 min | CR1: 91 min | CS1: 92 min | CT1: 93 min | CU1: 94 min | CV1: 95 min | CW1: 96 min | CX1: 97 min | CY1: 98 min | CZ1: 99 min
C2: A09 | D2: Sample X4 | E2: 0.147 | F2: 0.149 | G2: 0.177 | H2: 0.16 | I2: 0.151 | J2: 0.15 | K2: 0.158 | L2: 0.209 | M2: 0.159 | N2: 0.156 | O2: 0.155 | P2: 0.155 | Q2: 0.275 | R2: 0.173 | S2: 0.3 | T2: 0.16 | U2: 0.159 | V2: 0.195 | W2: 0.159 | X2: 0.185 | Y2: 0.167 | Z2: 0.346 | AA2: 0.167 | AB2: 0.362 | AC2: 0.163 | AD2: 0.229 | AE2: 0.166 | AF2: 0.278 | AG2: 0.164 | AH2: 0.342 | AI2: 0.163 | AJ2: 0.326 | AK2: 0.166 | AL2: 0.321 | AM2: 0.165 | AN2: 0.286 | AO2: 0.165 | AP2: 0.263 | AQ2: 0.17 | AR2: 0.232 | AS2: 0.172 | AT2: 0.171 | AU2: 0.172 | AV2: 0.173 | AW2: 0.172 | AX2: 0.178 | AY2: 0.177 | AZ2: 0.176 | BA2: 0.178 | BB2: 0.176 | BC2: 0.177 | BD2: 0.177 | BE2: 0.178 | BF2: 0.178 | BG2: 0.174 | BH2: 0.174 | BI2: 0.175 | BJ2: 0.175 | BK2: 0.176 | BL2: 0.186 | BM2: 0.174 | BN2: 0.175 | BO2: 0.173 | BP2: 0.175 | BQ2: 0.177 | BR2: 0.177 | BS2: 0.178 | BT2: 0.181 | BU2: 0.179 | BV2: 0.177 | BW2: 0.178 | BX2: 0.174 | BY2: 0.178 | BZ2: 0.18 | CA2: 0.182 | CB2: 0.18 | CC2: 0.183 | CD2: 0.182 | CE2: 0.18 | CF2: 0.178 | CG2: 0.182 | CH2: 0.181 | CI2: 0.178 | CJ2: 0.18 | CK2: 0.18 | CL2: 0.176 | CM2: 0.184 | CN2: 0.183 | CO2: 0.185 | CP2: 0.18 | CQ2: 0.183 | CR2: 0.183 | CS2: 0.182 | CT2: 0.18 | CU2: 0.181 | CV2: 0.183 | CW2: 0.181 | CX2: 0.183 | CY2: 0.182 | CZ2: 0.182
A3: DPI 10 uM | C3: A10 | D3: Sample X5 | E3: 0.16 | F3: 0.158 | G3: 0.16 | H3: 0.162 | I3: 0.16 | J3: 0.163 | K3: 0.166 | L3: 0.165 | M3: 0.167 | N3: 0.167 | O3: 0.168 | P3: 0.168 | Q3: 0.167 | R3: 0.168 | S3: 0.169 | T3: 0.171 | U3: 0.17 | V3: 0.172 | W3: 0.171 | X3: 0.17 | Y3: 0.17 | Z3: 0.171 | AA3: 0.173 | AB3: 0.172 | AC3: 0.175 | AD3: 0.173 | AE3: 0.174 | AF3: 0.175 | AG3: 0.178 | AH3: 0.174 | AI3: 0.174 | AJ3: 0.174 | AK3: 0.176 | AL3: 0.177 | AM3: 0.174 | AN3: 0.171 | AO3: 0.175 | AP3: 0.175 | AQ3: 0.18 | AR3: 0.176 | AS3: 0.179 | AT3: 0.178 | AU3: 0.182 | AV3: 0.179 | AW3: 0.178 | AX3: 0.181 | AY3: 0.179 | AZ3: 0.18 | BA3: 0.182 | BB3: 0.18 | BC3: 0.178 | BD3: 0.179 | BE3: 0.181 | BF3: 0.182 | BG3: 0.181 | BH3: 0.18 | BI3: 0.18 | BJ3: 0.181 | BK3: 0.183 | BL3: 0.183 | BM3: 0.181 | BN3: 0.182 | BO3: 0.182 | BP3: 0.183 | BQ3: 0.181 | BR3: 0.181 | BS3: 0.179 | BT3: 0.183 | BU3: 0.183 | BV3: 0.183 | BW3: 0.184 | BX3: 0.18 | BY3: 0.18 | BZ3: 0.182 | CA3: 0.186 | CB3: 0.185 | CC3: 0.187 | CD3: 0.185 | CE3: 0.184 | CF3: 0.183 | CG3: 0.183 | CH3: 0.187 | CI3: 0.183 | CJ3: 0.186 | CK3: 0.183 | CL3: 0.184 | CM3: 0.188 | CN3: 0.185 | CO3: 0.188 | CP3: 0.187 | CQ3: 0.188 | CR3: 0.189 | CS3: 0.186 | CT3: 0.188 | CU3: 0.187 | CV3: 0.187 | CW3: 0.188 | CX3: 0.187 | CY3: 0.189 | CZ3: 0.187
C4: A11 | D4: Sample X6 | E4: 0.158 | F4: 0.154 | G4: 0.156 | H4: 0.159 | I4: 0.157 | J4: 0.158 | K4: 0.16 | L4: 0.161 | M4: 0.196 | N4: 0.161 | O4: 0.158 | P4: 0.157 | Q4: 0.161 | R4: 0.158 | S4: 0.158 | T4: 0.163 | U4: 0.162 | V4: 0.164 | W4: 0.162 | X4: 0.16 | Y4: 0.163 | Z4: 0.164 | AA4: 0.166 | AB4: 0.163 | AC4: 0.167 | AD4: 0.167 | AE4: 0.168 | AF4: 0.168 | AG4: 0.168 | AH4: 0.168 | AI4: 0.168 | AJ4: 0.169 | AK4: 0.17 | AL4: 0.17 | AM4: 0.168 | AN4: 0.169 | AO4: 0.17 | AP4: 0.169 | AQ4: 0.171 | AR4: 0.169 | AS4: 0.174 | AT4: 0.171 | AU4: 0.177 | AV4: 0.174 | AW4: 0.173 | AX4: 0.176 | AY4: 0.174 | AZ4: 0.176 | BA4: 0.178 | BB4: 0.175 | BC4: 0.177 | BD4: 0.175 | BE4: 0.179 | BF4: 0.181 | BG4: 0.178 | BH4: 0.178 | BI4: 0.178 | BJ4: 0.178 | BK4: 0.181 | BL4: 0.181 | BM4: 0.179 | BN4: 0.18 | BO4: 0.178 | BP4: 0.181 | BQ4: 0.18 | BR4: 0.18 | BS4: 0.181 | BT4: 0.183 | BU4: 0.18 | BV4: 0.181 | BW4: 0.181 | BX4: 0.179 | BY4: 0.181 | BZ4: 0.182 | CA4: 0.186 | CB4: 0.184 | CC4: 0.184 | CD4: 0.183 | CE4: 0.185 | CF4: 0.184 | CG4: 0.185 | CH4: 0.185 | CI4: 0.183 | CJ4: 0.186 | CK4: 0.183 | CL4: 0.181 | CM4: 0.189 | CN4: 0.188 | CO4: 0.191 | CP4: 0.186 | CQ4: 0.19 | CR4: 0.186 | CS4: 0.187 | CT4: 0.187 | CU4: 0.187 | CV4: 0.189 | CW4: 0.188 | CX4: 0.19 | CY4: 0.188 | CZ4: 0.189
B5: Average | C5: =AVERAGE(C2:C4) ->  | E5: =AVERAGE(E2:E4) -> 0.155 | F5: =AVERAGE(F2:F4) -> 0.1536666667 | G5: 0.1643333333 | H5: 0.1603333333 | I5: 0.156 | J5: 0.157 | K5: 0.1613333333 | L5: 0.1783333333 | M5: 0.174 | N5: 0.1613333333 | O5: 0.1603333333 | P5: 0.16 | Q5: 0.201 | R5: 0.1663333333 | S5: 0.209 | T5: 0.1646666667 | U5: 0.1636666667 | V5: 0.177 | W5: 0.164 | X5: 0.1716666667 | Y5: 0.1666666667 | Z5: 0.227 | AA5: 0.1686666667 | AB5: 0.2323333333 | AC5: 0.1683333333 | AD5: 0.1896666667 | AE5: 0.1693333333 | AF5: 0.207 | AG5: 0.17 | AH5: 0.228 | AI5: 0.1683333333 | AJ5: 0.223 | AK5: 0.1706666667 | AL5: 0.2226666667 | AM5: 0.169 | AN5: 0.2086666667 | AO5: 0.17 | AP5: 0.2023333333 | AQ5: 0.1736666667 | AR5: 0.1923333333 | AS5: 0.175 | AT5: 0.1733333333 | AU5: 0.177 | AV5: 0.1753333333 | AW5: 0.1743333333 | AX5: 0.1783333333 | AY5: 0.1766666667 | AZ5: 0.1773333333 | BA5: 0.1793333333 | BB5: 0.177 | BC5: 0.1773333333 | BD5: 0.177 | BE5: 0.1793333333 | BF5: 0.1803333333 | BG5: 0.1776666667 | BH5: 0.1773333333 | BI5: 0.1776666667 | BJ5: 0.178 | BK5: 0.18 | BL5: 0.1833333333 | BM5: 0.178 | BN5: 0.179 | BO5: 0.1776666667 | BP5: 0.1796666667 | BQ5: 0.1793333333 | BR5: =AVERAGE(BR2:BR4) -> 0.1793333333 | BS5: 0.1793333333 | BT5: 0.1823333333 | BU5: 0.1806666667 | BV5: 0.1803333333 | BW5: 0.181 | BX5: 0.1776666667 | BY5: 0.1796666667 | BZ5: 0.1813333333 | CA5: 0.1846666667 | CB5: 0.183 | CC5: 0.1846666667 | CD5: 0.1833333333 | CE5: 0.183 | CF5: 0.1816666667 | CG5: 0.1833333333 | CH5: 0.1843333333 | CI5: 0.1813333333 | CJ5: 0.184 | CK5: 0.182 | CL5: 0.1803333333 | CM5: 0.187 | CN5: 0.1853333333 | CO5: 0.188 | CP5: 0.1843333333 | CQ5: 0.187 | CR5: 0.186 | CS5: 0.185 | CT5: 0.185 | CU5: 0.185 | CV5: 0.1863333333 | CW5: 0.1856666667 | CX5: 0.1866666667 | CY5: 0.1863333333 | CZ5: 0.186
B6: STDEVA | C6: =STDEVA(C2:C4) -> 0 | D6: 0 | E6: =STDEVA(E2:E4) -> 0.007 | F6: =STDEVA(F2:F4) -> 0.004509249753 | G6: 0.01115048579 | H6: 0.001527525232 | I6: 0.004582575695 | J6: 0.006557438524 | K6: 0.004163331999 | L6: 0.02663331247 | M6: 0.01946792233 | N6: 0.005507570547 | O6: 0.006806859286 | P6: 0.007 | Q6: 0.06415605973 | R6: 0.007637626158 | S6: 0.079 | T6: 0.005686240703 | U6: 0.005686240703 | V6: 0.01609347694 | W6: 0.006244997998 | X6: 0.01258305739 | Y6: 0.003511884584 | Z6: 0.103116439 | AA6: 0.003785938897 | AB6: 0.1123847558 | AC6: 0.006110100927 | AD6: 0.03419551628 | AE6: 0.004163331999 | AF6: 0.06158733636 | AG6: 0.007211102551 | AH6: 0.0987724658 | AI6: 0.005507570547 | AJ6: 0.0892356431 | AK6: 0.005033222957 | AL6: 0.0852310585 | AM6: 0.004582575695 | AN6: 0.06698009655 | AO6: 0.005 | AP6: 0.05262445566 | AQ6: 0.005507570547 | AR6: 0.03453018004 | AS6: 0.003605551275 | AT6: 0.004041451884 | AU6: 0.005 | AV6: 0.003214550254 | AW6: 0.003214550254 | AX6: 0.002516611478 | AY6: 0.002516611478 | AZ6: 0.002309401077 | BA6: 0.002309401077 | BB6: 0.002645751311 | BC6: 0.0005773502692 | BD6: 0.002 | BE6: 0.001527525232 | BF6: 0.002081665999 | BG6: 0.003511884584 | BH6: 0.003055050463 | BI6: 0.002516611478 | BJ6: 0.003 | BK6: 0.003605551275 | BL6: 0.002516611478 | BM6: 0.003605551275 | BN6: 0.003605551275 | BO6: 0.004509249753 | BP6: 0.004163331999 | BQ6: 0.002081665999 | BR6: =STDEVA(BR2:BR4) -> 0.002081665999 | BS6: 0.001527525232 | BT6: 0.001154700538 | BU6: 0.002081665999 | BV6: 0.003055050463 | BW6: 0.003 | BX6: 0.003214550254 | BY6: 0.001527525232 | BZ6: 0.001154700538 | CA6: 0.002309401077 | CB6: 0.002645751311 | CC6: 0.002081665999 | CD6: 0.001527525232 | CE6: 0.002645751311 | CF6: 0.003214550254 | CG6: 0.001527525232 | CH6: 0.003055050463 | CI6: 0.002886751346 | CJ6: 0.003464101615 | CK6: 0.001732050808 | CL6: 0.004041451884 | CM6: 0.002645751311 | CN6: 0.002516611478 | CO6: 0.003 | CP6: 0.003785938897 | CQ6: 0.003605551275 | CR6: 0.003 | CS6: 0.002645751311 | CT6: 0.004358898944 | CU6: 0.003464101615 | CV6: 0.003055050463 | CW6: 0.004041451884 | CX6: 0.003511884584 | CY6: 0.003785938897 | CZ6: 0.003605551275
C8: B09 | D8: Sample X10 | E8: 0.146 | F8: 0.146 | G8: 0.148 | H8: 0.148 | I8: 0.149 | J8: 0.15 | K8: 0.153 | L8: 0.154 | M8: 0.159 | N8: 0.158 | O8: 0.154 | P8: 0.157 | Q8: 0.157 | R8: 0.158 | S8: 0.158 | T8: 0.162 | U8: 0.159 | V8: 0.165 | W8: 0.164 | X8: 0.164 | Y8: 0.162 | Z8: 0.166 | AA8: 0.164 | AB8: 0.167 | AC8: 0.171 | AD8: 0.17 | AE8: 0.171 | AF8: 0.174 | AG8: 0.179 | AH8: 0.182 | AI8: 0.183 | AJ8: 0.184 | AK8: 0.185 | AL8: 0.187 | AM8: 0.184 | AN8: 0.184 | AO8: 0.181 | AP8: 0.19 | AQ8: 0.19 | AR8: 0.191 | AS8: 0.194 | AT8: 0.202 | AU8: 0.204 | AV8: 0.192 | AW8: 0.204 | AX8: 0.207 | AY8: 0.194 | AZ8: 0.194 | BA8: 0.202 | BB8: 0.209 | BC8: 0.19 | BD8: 0.206 | BE8: 0.207 | BF8: 0.196 | BG8: 0.195 | BH8: 0.2 | BI8: 0.201 | BJ8: 0.194 | BK8: 0.208 | BL8: 0.202 | BM8: 0.207 | BN8: 0.212 | BO8: 0.211 | BP8: 0.193 | BQ8: 0.192 | BR8: 0.192 | BS8: 0.193 | BT8: 0.198 | BU8: 0.197 | BV8: 0.196 | BW8: 0.194 | BX8: 0.194 | BY8: 0.194 | BZ8: 0.194 | CA8: 0.195 | CB8: 0.199 | CC8: 0.196 | CD8: 0.195 | CE8: 0.197 | CF8: 0.196 | CG8: 0.197 | CH8: 0.196 | CI8: 0.193 | CJ8: 0.198 | CK8: 0.196 | CL8: 0.203 | CM8: 0.201 | CN8: 0.199 | CO8: 0.203 | CP8: 0.199 | CQ8: 0.198 | CR8: 0.2 | CS8: 0.203 | CT8: 0.202 | CU8: 0.201 | CV8: 0.202 | CW8: 0.204 | CX8: 0.205 | CY8: 0.204 | CZ8: 0.205
A9: DPI 5 uM | C9: B10 | D9: Sample X11 | E9: 0.159 | F9: 0.156 | G9: 0.159 | H9: 0.161 | I9: 0.158 | J9: 0.158 | K9: 0.163 | L9: 0.164 | M9: 0.167 | N9: 0.167 | O9: 0.165 | P9: 0.163 | Q9: 0.163 | R9: 0.163 | S9: 0.164 | T9: 0.166 | U9: 0.164 | V9: 0.171 | W9: 0.174 | X9: 0.167 | Y9: 0.183 | Z9: 0.173 | AA9: 0.199 | AB9: 0.185 | AC9: 0.211 | AD9: 0.198 | AE9: 0.197 | AF9: 0.221 | AG9: 0.187 | AH9: 0.207 | AI9: 0.215 | AJ9: 0.189 | AK9: 0.223 | AL9: 0.196 | AM9: 0.21 | AN9: 0.213 | AO9: 0.185 | AP9: 0.216 | AQ9: 0.2 | AR9: 0.202 | AS9: 0.227 | AT9: 0.211 | AU9: 0.244 | AV9: 0.24 | AW9: 0.219 | AX9: 0.223 | AY9: 0.219 | AZ9: 0.248 | BA9: 0.246 | BB9: 0.221 | BC9: 0.214 | BD9: 0.219 | BE9: 0.244 | BF9: 0.234 | BG9: 0.22 | BH9: 0.219 | BI9: 0.221 | BJ9: 0.241 | BK9: 0.241 | BL9: 0.233 | BM9: 0.21 | BN9: 0.226 | BO9: 0.237 | BP9: 0.233 | BQ9: 0.224 | BR9: 0.214 | BS9: 0.23 | BT9: 0.242 | BU9: 0.239 | BV9: 0.231 | BW9: 0.215 | BX9: 0.226 | BY9: 0.236 | BZ9: 0.221 | CA9: 0.227 | CB9: 0.229 | CC9: 0.225 | CD9: 0.224 | CE9: 0.235 | CF9: 0.216 | CG9: 0.211 | CH9: 0.217 | CI9: 0.191 | CJ9: 0.22 | CK9: 0.211 | CL9: 0.228 | CM9: 0.217 | CN9: 0.222 | CO9: 0.219 | CP9: 0.227 | CQ9: 0.21 | CR9: 0.224 | CS9: 0.22 | CT9: 0.233 | CU9: 0.199 | CV9: 0.215 | CW9: 0.21 | CX9: 0.227 | CY9: 0.2 | CZ9: 0.218
C10: B11 | D10: Sample X12 | E10: 0.161 | F10: 0.159 | G10: 0.16 | H10: 0.162 | I10: 0.159 | J10: 0.16 | K10: 0.164 | L10: 0.164 | M10: 0.166 | N10: 0.164 | O10: 0.167 | P10: 0.165 | Q10: 0.166 | R10: 0.166 | S10: 0.164 | T10: 0.166 | U10: 0.167 | V10: 0.17 | W10: 0.168 | X10: 0.168 | Y10: 0.166 | Z10: 0.169 | AA10: 0.17 | AB10: 0.167 | AC10: 0.172 | AD10: 0.172 | AE10: 0.174 | AF10: 0.173 | AG10: 0.172 | AH10: 0.17 | AI10: 0.171 | AJ10: 0.171 | AK10: 0.174 | AL10: 0.174 | AM10: 0.175 | AN10: 0.171 | AO10: 0.173 | AP10: 0.174 | AQ10: 0.177 | AR10: 0.173 | AS10: 0.178 | AT10: 0.178 | AU10: 0.181 | AV10: 0.182 | AW10: 0.18 | AX10: 0.183 | AY10: 0.18 | AZ10: 0.179 | BA10: 0.183 | BB10: 0.181 | BC10: 0.18 | BD10: 0.181 | BE10: 0.183 | BF10: 0.184 | BG10: 0.182 | BH10: 0.184 | BI10: 0.183 | BJ10: 0.184 | BK10: 0.185 | BL10: 0.186 | BM10: 0.183 | BN10: 0.184 | BO10: 0.184 | BP10: 0.186 | BQ10: 0.185 | BR10: 0.186 | BS10: 0.186 | BT10: 0.192 | BU10: 0.188 | BV10: 0.187 | BW10: 0.187 | BX10: 0.186 | BY10: 0.186 | BZ10: 0.187 | CA10: 0.19 | CB10: 0.19 | CC10: 0.192 | CD10: 0.191 | CE10: 0.191 | CF10: 0.191 | CG10: 0.192 | CH10: 0.192 | CI10: 0.189 | CJ10: 0.193 | CK10: 0.191 | CL10: 0.188 | CM10: 0.194 | CN10: 0.195 | CO10: 0.195 | CP10: 0.194 | CQ10: 0.194 | CR10: 0.194 | CS10: 0.196 | CT10: 0.195 | CU10: 0.193 | CV10: 0.195 | CW10: 0.195 | CX10: 0.196 | CY10: 0.198 | CZ10: 0.196
B11: Average | C11: =AVERAGE(C8:C10) ->  | E11: 0.1553333333 | F11: 0.1536666667 | G11: 0.1556666667 | H11: 0.157 | I11: 0.1553333333 | J11: 0.156 | K11: 0.16 | L11: 0.1606666667 | M11: 0.164 | N11: 0.163 | O11: 0.162 | P11: 0.1616666667 | Q11: 0.162 | R11: 0.1623333333 | S11: 0.162 | T11: 0.1646666667 | U11: 0.1633333333 | V11: 0.1686666667 | W11: 0.1686666667 | X11: 0.1663333333 | Y11: 0.1703333333 | Z11: 0.1693333333 | AA11: 0.1776666667 | AB11: 0.173 | AC11: 0.1846666667 | AD11: 0.18 | AE11: 0.1806666667 | AF11: 0.1893333333 | AG11: 0.1793333333 | AH11: 0.1863333333 | AI11: 0.1896666667 | AJ11: 0.1813333333 | AK11: 0.194 | AL11: 0.1856666667 | AM11: 0.1896666667 | AN11: 0.1893333333 | AO11: 0.1796666667 | AP11: 0.1933333333 | AQ11: 0.189 | AR11: 0.1886666667 | AS11: 0.1996666667 | AT11: 0.197 | AU11: 0.2096666667 | AV11: 0.2046666667 | AW11: 0.201 | AX11: 0.2043333333 | AY11: 0.1976666667 | AZ11: 0.207 | BA11: 0.2103333333 | BB11: 0.2036666667 | BC11: 0.1946666667 | BD11: 0.202 | BE11: 0.2113333333 | BF11: 0.2046666667 | BG11: 0.199 | BH11: 0.201 | BI11: 0.2016666667 | BJ11: 0.2063333333 | BK11: 0.2113333333 | BL11: 0.207 | BM11: 0.2 | BN11: 0.2073333333 | BO11: =AVERAGE(BO8:BO10) -> 0.2106666667 | BP11: 0.204 | BQ11: 0.2003333333 | BR11: 0.1973333333 | BS11: 0.203 | BT11: 0.2106666667 | BU11: 0.208 | BV11: 0.2046666667 | BW11: 0.1986666667 | BX11: 0.202 | BY11: 0.2053333333 | BZ11: 0.2006666667 | CA11: 0.204 | CB11: 0.206 | CC11: 0.2043333333 | CD11: 0.2033333333 | CE11: 0.2076666667 | CF11: 0.201 | CG11: 0.2 | CH11: 0.2016666667 | CI11: 0.191 | CJ11: 0.2036666667 | CK11: 0.1993333333 | CL11: 0.2063333333 | CM11: 0.204 | CN11: 0.2053333333 | CO11: 0.2056666667 | CP11: 0.2066666667 | CQ11: 0.2006666667 | CR11: 0.206 | CS11: 0.2063333333 | CT11: 0.21 | CU11: 0.1976666667 | CV11: 0.204 | CW11: 0.203 | CX11: 0.2093333333 | CY11: 0.2006666667 | CZ11: 0.2063333333
B12: STDEVA | C12: =STDEVA(C8:C10) -> 0 | D12: 0 | E12: 0.008144527815 | F12: 0.006806859286 | G12: 0.006658328118 | H12: 0.007810249676 | I12: 0.005507570547 | J12: 0.005291502622 | K12: 0.00608276253 | L12: 0.005773502692 | M12: 0.004358898944 | N12: 0.004582575695 | O12: 0.007 | P12: 0.004163331999 | Q12: 0.004582575695 | R12: 0.004041451884 | S12: 0.003464101615 | T12: 0.002309401077 | U12: 0.004041451884 | V12: 0.003214550254 | W12: 0.005033222957 | X12: 0.002081665999 | Y12: 0.01115048579 | Z12: 0.003511884584 | AA12: 0.01871719352 | AB12: 0.01039230485 | AC12: 0.02281081615 | AD12: 0.01562049935 | AE12: 0.0142243922 | AF12: 0.02742869544 | AG12: 0.007505553499 | AH12: 0.01887679351 | AI12: 0.02274496281 | AJ12: 0.009291573243 | AK12: 0.02570992026 | AL12: 0.01106044002 | AM12: 0.01817507451 | AN12: 0.0215019379 | AO12: 0.006110100927 | AP12: 0.02119748413 | AQ12: 0.01153256259 | AR12: 0.0146401275 | AS12: 0.02498666311 | AT12: 0.01705872211 | AU12: 0.03187998327 | AV12: 0.03100537588 | AW12: 0.01967231557 | AX12: 0.02013289183 | AY12: 0.01975685535 | AZ12: 0.03629049462 | BA12: 0.03231614663 | BB12: 0.02052640576 | BC12: 0.0174737899 | BD12: 0.01931320792 | BE12: 0.03073000705 | BF12: 0.0261023626 | BG12: 0.01931320792 | BH12: 0.01752141547 | BI12: 0.01900876991 | BJ12: 0.03043572462 | BK12: 0.02814841618 | BL12: 0.02389560629 | BM12: 0.01479864859 | BN12: 0.02138535324 | BO12: =STDEVA(BO8:BO10) -> 0.02650157228 | BP12: 0.02535744467 | BQ12: 0.0207926269 | BR12: 0.01474222959 | BS12: 0.02364318084 | BT12: 0.02730079364 | BU12: 0.02722131518 | BV12: 0.02324507116 | BW12: 0.014571662 | BX12: 0.02116601049 | BY12: 0.02685764944 | BZ12: 0.01795364401 | CA12: 0.0200748599 | CB12: 0.02042057786 | CC12: 0.01800925688 | CD12: 0.01800925688 | CE12: 0.02386070689 | CF12: 0.01322875656 | CG12: 0.009848857802 | CH12: 0.01342882472 | CI12: 0.002 | CJ12: 0.01436430762 | CK12: 0.01040833 | CL12: 0.02020725942 | CM12: 0.01178982612 | CN12: 0.014571662 | CO12: 0.01222020185 | CP12: 0.0177857621 | CQ12: 0.008326663998 | CR12: 0.01587450787 | CS12: 0.01234233905 | CT12: 0.02022374842 | CU12: 0.004163331999 | CV12: 0.01014889157 | CW12: 0.007549834435 | CX12: 0.01594783162 | CY12: 0.003055050463 | CZ12: 0.01106044002
C14: C09 | D14: Sample X16 | E14: 0.139 | F14: 0.138 | G14: 0.142 | H14: 0.142 | I14: 0.142 | J14: 0.145 | K14: 0.149 | L14: 0.149 | M14: 0.151 | N14: 0.151 | O14: 0.148 | P14: 0.152 | Q14: 0.154 | R14: 0.168 | S14: 0.172 | T14: 0.163 | U14: 0.166 | V14: 0.175 | W14: 0.178 | X14: 0.171 | Y14: 0.169 | Z14: 0.168 | AA14: 0.172 | AB14: 0.167 | AC14: 0.172 | AD14: 0.168 | AE14: 0.17 | AF14: 0.17 | AG14: 0.171 | AH14: 0.17 | AI14: 0.172 | AJ14: 0.17 | AK14: 0.174 | AL14: 0.175 | AM14: 0.175 | AN14: 0.173 | AO14: 0.176 | AP14: 0.179 | AQ14: 0.177 | AR14: 0.177 | AS14: 0.181 | AT14: 0.18 | AU14: 0.183 | AV14: 0.183 | AW14: 0.178 | AX14: 0.183 | AY14: 0.184 | AZ14: 0.183 | BA14: 0.187 | BB14: 0.185 | BC14: 0.185 | BD14: 0.186 | BE14: 0.186 | BF14: 0.189 | BG14: 0.189 | BH14: 0.188 | BI14: 0.188 | BJ14: 0.191 | BK14: 0.199 | BL14: 0.191 | BM14: 0.189 | BN14: 0.205 | BO14: 0.195 | BP14: 0.193 | BQ14: 0.19 | BR14: 0.19 | BS14: 0.193 | BT14: 0.194 | BU14: 0.194 | BV14: 0.192 | BW14: 0.197 | BX14: 0.198 | BY14: 0.193 | BZ14: 0.193 | CA14: 0.195 | CB14: 0.195 | CC14: 0.199 | CD14: 0.196 | CE14: 0.196 | CF14: 0.199 | CG14: 0.204 | CH14: 0.204 | CI14: 0.201 | CJ14: 0.202 | CK14: 0.196 | CL14: 0.196 | CM14: 0.201 | CN14: 0.202 | CO14: 0.203 | CP14: 0.2 | CQ14: 0.201 | CR14: 0.2 | CS14: 0.202 | CT14: 0.203 | CU14: 0.201 | CV14: 0.202 | CW14: 0.2 | CX14: 0.204 | CY14: 0.203 | CZ14: 0.205
A15: DPI 2.5 uM | C15: C10 | D15: Sample X17 | E15: 0.157 | F15: 0.157 | G15: 0.159 | H15: 0.16 | I15: 0.158 | J15: 0.159 | K15: 0.162 | L15: 0.163 | M15: 0.166 | N15: 0.165 | O15: 0.163 | P15: 0.162 | Q15: 0.165 | R15: 0.164 | S15: 0.163 | T15: 0.169 | U15: 0.166 | V15: 0.169 | W15: 0.169 | X15: 0.169 | Y15: 0.168 | Z15: 0.17 | AA15: 0.171 | AB15: 0.172 | AC15: 0.176 | AD15: 0.174 | AE15: 0.176 | AF15: 0.175 | AG15: 0.176 | AH15: 0.174 | AI15: 0.175 | AJ15: 0.177 | AK15: 0.177 | AL15: 0.178 | AM15: 0.178 | AN15: 0.176 | AO15: 0.178 | AP15: 0.178 | AQ15: 0.181 | AR15: 0.179 | AS15: 0.181 | AT15: 0.181 | AU15: 0.183 | AV15: 0.185 | AW15: 0.182 | AX15: 0.185 | AY15: 0.185 | AZ15: 0.183 | BA15: 0.185 | BB15: 0.185 | BC15: 0.185 | BD15: 0.185 | BE15: 0.187 | BF15: 0.19 | BG15: 0.186 | BH15: 0.188 | BI15: 0.187 | BJ15: 0.189 | BK15: 0.19 | BL15: 0.19 | BM15: 0.189 | BN15: 0.189 | BO15: 0.189 | BP15: 0.19 | BQ15: 0.188 | BR15: 0.19 | BS15: 0.191 | BT15: 0.193 | BU15: 0.191 | BV15: 0.19 | BW15: 0.192 | BX15: 0.191 | BY15: 0.194 | BZ15: 0.19 | CA15: 0.194 | CB15: 0.193 | CC15: 0.194 | CD15: 0.194 | CE15: 0.195 | CF15: 0.194 | CG15: 0.195 | CH15: 0.197 | CI15: 0.194 | CJ15: 0.195 | CK15: 0.193 | CL15: 0.195 | CM15: 0.196 | CN15: 0.196 | CO15: 0.198 | CP15: 0.196 | CQ15: 0.197 | CR15: 0.198 | CS15: 0.2 | CT15: 0.197 | CU15: 0.197 | CV15: 0.198 | CW15: 0.2 | CX15: 0.2 | CY15: 0.201 | CZ15: 0.2
C16: C11 | D16: Sample X18 | E16: 0.16 | F16: 0.159 | G16: 0.161 | H16: 0.162 | I16: 0.159 | J16: 0.162 | K16: 0.164 | L16: 0.164 | M16: 0.169 | N16: 0.167 | O16: 0.164 | P16: 0.167 | Q16: 0.169 | R16: 0.165 | S16: 0.167 | T16: 0.171 | U16: 0.169 | V16: 0.173 | W16: 0.173 | X16: 0.169 | Y16: 0.17 | Z16: 0.176 | AA16: 0.174 | AB16: 0.174 | AC16: 0.179 | AD16: 0.176 | AE16: 0.179 | AF16: 0.176 | AG16: 0.178 | AH16: 0.176 | AI16: 0.178 | AJ16: 0.176 | AK16: 0.18 | AL16: 0.182 | AM16: 0.178 | AN16: 0.177 | AO16: 0.181 | AP16: 0.182 | AQ16: 0.184 | AR16: 0.183 | AS16: 0.185 | AT16: 0.183 | AU16: 0.188 | AV16: 0.186 | AW16: 0.187 | AX16: 0.188 | AY16: 0.188 | AZ16: 0.188 | BA16: 0.191 | BB16: 0.188 | BC16: 0.189 | BD16: 0.188 | BE16: 0.19 | BF16: 0.192 | BG16: 0.191 | BH16: 0.189 | BI16: 0.188 | BJ16: 0.191 | BK16: 0.191 | BL16: 0.192 | BM16: 0.191 | BN16: 0.193 | BO16: 0.194 | BP16: 0.193 | BQ16: 0.193 | BR16: 0.194 | BS16: 0.194 | BT16: 0.197 | BU16: 0.196 | BV16: 0.196 | BW16: 0.197 | BX16: 0.194 | BY16: 0.195 | BZ16: 0.195 | CA16: 0.197 | CB16: 0.198 | CC16: 0.2 | CD16: 0.197 | CE16: 0.197 | CF16: 0.199 | CG16: 0.199 | CH16: 0.201 | CI16: 0.199 | CJ16: 0.199 | CK16: 0.198 | CL16: 0.198 | CM16: 0.203 | CN16: 0.203 | CO16: 0.203 | CP16: 0.202 | CQ16: 0.204 | CR16: 0.204 | CS16: 0.202 | CT16: 0.201 | CU16: 0.203 | CV16: 0.203 | CW16: 0.203 | CX16: 0.205 | CY16: 0.203 | CZ16: 0.205
B17: Average | C17: =AVERAGE(C14:C16) ->  | E17: 0.152 | F17: 0.1513333333 | G17: 0.154 | H17: 0.1546666667 | I17: 0.153 | J17: 0.1553333333 | K17: 0.1583333333 | L17: 0.1586666667 | M17: 0.162 | N17: 0.161 | O17: 0.1583333333 | P17: 0.1603333333 | Q17: 0.1626666667 | R17: 0.1656666667 | S17: 0.1673333333 | T17: 0.1676666667 | U17: 0.167 | V17: 0.1723333333 | W17: 0.1733333333 | X17: 0.1696666667 | Y17: 0.169 | Z17: 0.1713333333 | AA17: 0.1723333333 | AB17: 0.171 | AC17: 0.1756666667 | AD17: 0.1726666667 | AE17: 0.175 | AF17: 0.1736666667 | AG17: 0.175 | AH17: 0.1733333333 | AI17: 0.175 | AJ17: 0.1743333333 | AK17: 0.177 | AL17: 0.1783333333 | AM17: 0.177 | AN17: 0.1753333333 | AO17: 0.1783333333 | AP17: 0.1796666667 | AQ17: 0.1806666667 | AR17: 0.1796666667 | AS17: 0.1823333333 | AT17: 0.1813333333 | AU17: 0.1846666667 | AV17: 0.1846666667 | AW17: 0.1823333333 | AX17: 0.1853333333 | AY17: 0.1856666667 | AZ17: 0.1846666667 | BA17: 0.1876666667 | BB17: 0.186 | BC17: 0.1863333333 | BD17: 0.1863333333 | BE17: 0.1876666667 | BF17: 0.1903333333 | BG17: 0.1886666667 | BH17: 0.1883333333 | BI17: 0.1876666667 | BJ17: 0.1903333333 | BK17: 0.1933333333 | BL17: 0.191 | BM17: 0.1896666667 | BN17: 0.1956666667 | BO17: =AVERAGE(BO14:BO16) -> 0.1926666667 | BP17: 0.192 | BQ17: 0.1903333333 | BR17: 0.1913333333 | BS17: 0.1926666667 | BT17: 0.1946666667 | BU17: 0.1936666667 | BV17: 0.1926666667 | BW17: 0.1953333333 | BX17: 0.1943333333 | BY17: 0.194 | BZ17: 0.1926666667 | CA17: 0.1953333333 | CB17: 0.1953333333 | CC17: 0.1976666667 | CD17: 0.1956666667 | CE17: 0.196 | CF17: 0.1973333333 | CG17: 0.1993333333 | CH17: 0.2006666667 | CI17: 0.198 | CJ17: 0.1986666667 | CK17: 0.1956666667 | CL17: 0.1963333333 | CM17: 0.2 | CN17: 0.2003333333 | CO17: 0.2013333333 | CP17: 0.1993333333 | CQ17: 0.2006666667 | CR17: 0.2006666667 | CS17: 0.2013333333 | CT17: 0.2003333333 | CU17: 0.2003333333 | CV17: 0.201 | CW17: 0.201 | CX17: 0.203 | CY17: 0.2023333333 | CZ17: 0.2033333333
B18: STDEVA | C18: =STDEVA(C14:C16) -> 0 | D18: 0 | E18: 0.01135781669 | F18: 0.01159022577 | G18: 0.01044030651 | H18: 0.01101514109 | I18: 0.009539392014 | J18: 0.009073771726 | K18: 0.008144527815 | L18: 0.008386497084 | M18: 0.009643650761 | N18: 0.008717797887 | O18: 0.00896288644 | P18: 0.007637626158 | Q18: 0.007767453465 | R18: 0.002081665999 | S18: 0.004509249753 | T18: 0.004163331999 | U18: 0.001732050808 | V18: 0.003055050463 | W18: 0.004509249753 | X18: 0.001154700538 | Y18: 0.001 | Z18: 0.004163331999 | AA18: 0.001527525232 | AB18: 0.003605551275 | AC18: 0.003511884584 | AD18: 0.004163331999 | AE18: 0.004582575695 | AF18: 0.003214550254 | AG18: 0.003605551275 | AH18: 0.003055050463 | AI18: 0.003 | AJ18: 0.003785938897 | AK18: 0.003 | AL18: 0.003511884584 | AM18: 0.001732050808 | AN18: 0.002081665999 | AO18: 0.002516611478 | AP18: 0.002081665999 | AQ18: 0.003511884584 | AR18: 0.003055050463 | AS18: 0.002309401077 | AT18: 0.001527525232 | AU18: 0.002886751346 | AV18: 0.001527525232 | AW18: 0.004509249753 | AX18: 0.002516611478 | AY18: 0.002081665999 | AZ18: 0.002886751346 | BA18: 0.003055050463 | BB18: 0.001732050808 | BC18: 0.002309401077 | BD18: 0.001527525232 | BE18: 0.002081665999 | BF18: 0.001527525232 | BG18: 0.002516611478 | BH18: 0.0005773502692 | BI18: 0.0005773502692 | BJ18: 0.001154700538 | BK18: 0.004932882862 | BL18: 0.001 | BM18: 0.001154700538 | BN18: 0.008326663998 | BO18: =STDEVA(BO14:BO16) -> 0.003214550254 | BP18: 0.001732050808 | BQ18: 0.002516611478 | BR18: 0.002309401077 | BS18: 0.001527525232 | BT18: 0.002081665999 | BU18: 0.002516611478 | BV18: 0.003055050463 | BW18: 0.002886751346 | BX18: 0.003511884584 | BY18: 0.001 | BZ18: 0.002516611478 | CA18: 0.001527525232 | CB18: 0.002516611478 | CC18: 0.003214550254 | CD18: 0.001527525232 | CE18: 0.001 | CF18: 0.002886751346 | CG18: 0.004509249753 | CH18: 0.003511884584 | CI18: 0.003605551275 | CJ18: 0.003511884584 | CK18: 0.002516611478 | CL18: 0.001527525232 | CM18: 0.003605551275 | CN18: 0.003785938897 | CO18: 0.002886751346 | CP18: 0.003055050463 | CQ18: 0.003511884584 | CR18: 0.003055050463 | CS18: 0.001154700538 | CT18: 0.003055050463 | CU18: 0.003055050463 | CV18: 0.002645751311 | CW18: 0.001732050808 | CX18: 0.002645751311 | CY18: 0.001154700538 | CZ18: 0.002886751346
C20: D09 | D20: Sample X22 | E20: 0.141 | F20: 0.14 | G20: 0.142 | H20: 0.146 | I20: 0.145 | J20: 0.146 | K20: 0.151 | L20: 0.151 | M20: 0.154 | N20: 0.154 | O20: 0.154 | P20: 0.154 | Q20: 0.156 | R20: 0.156 | S20: 0.158 | T20: 0.162 | U20: 0.162 | V20: 0.166 | W20: 0.165 | X20: 0.165 | Y20: 0.165 | Z20: 0.169 | AA20: 0.171 | AB20: 0.172 | AC20: 0.175 | AD20: 0.175 | AE20: 0.176 | AF20: 0.176 | AG20: 0.18 | AH20: 0.175 | AI20: 0.178 | AJ20: 0.179 | AK20: 0.183 | AL20: 0.185 | AM20: 0.183 | AN20: 0.184 | AO20: 0.186 | AP20: 0.189 | AQ20: 0.19 | AR20: 0.19 | AS20: 0.192 | AT20: 0.196 | AU20: 0.202 | AV20: 0.205 | AW20: 0.198 | AX20: 0.204 | AY20: 0.204 | AZ20: 0.205 | BA20: 0.208 | BB20: 0.205 | BC20: 0.208 | BD20: 0.21 | BE20: 0.211 | BF20: 0.215 | BG20: 0.212 | BH20: 0.213 | BI20: 0.212 | BJ20: 0.213 | BK20: 0.215 | BL20: 0.214 | BM20: 0.212 | BN20: 0.214 | BO20: 0.215 | BP20: 0.216 | BQ20: 0.215 | BR20: 0.216 | BS20: 0.217 | BT20: 0.22 | BU20: 0.221 | BV20: 0.216 | BW20: 0.219 | BX20: 0.216 | BY20: 0.22 | BZ20: 0.22 | CA20: 0.223 | CB20: 0.22 | CC20: 0.224 | CD20: 0.22 | CE20: 0.224 | CF20: 0.222 | CG20: 0.223 | CH20: 0.223 | CI20: 0.22 | CJ20: 0.221 | CK20: 0.224 | CL20: 0.221 | CM20: 0.228 | CN20: 0.226 | CO20: 0.229 | CP20: 0.227 | CQ20: 0.228 | CR20: 0.228 | CS20: 0.228 | CT20: 0.23 | CU20: 0.226 | CV20: 0.229 | CW20: 0.231 | CX20: 0.229 | CY20: 0.231 | CZ20: 0.231
A21: DPI 1.25 uM | C21: D10 | D21: Sample X23 | E21: 0.153 | F21: 0.154 | G21: 0.156 | H21: 0.155 | I21: 0.155 | J21: 0.158 | K21: 0.162 | L21: 0.163 | M21: 0.165 | N21: 0.166 | O21: 0.163 | P21: 0.164 | Q21: 0.163 | R21: 0.166 | S21: 0.167 | T21: 0.17 | U21: 0.169 | V21: 0.173 | W21: 0.172 | X21: 0.173 | Y21: 0.171 | Z21: 0.174 | AA21: 0.175 | AB21: 0.176 | AC21: 0.18 | AD21: 0.181 | AE21: 0.181 | AF21: 0.183 | AG21: 0.183 | AH21: 0.182 | AI21: 0.182 | AJ21: 0.183 | AK21: 0.184 | AL21: 0.187 | AM21: 0.187 | AN21: 0.185 | AO21: 0.187 | AP21: 0.189 | AQ21: 0.193 | AR21: 0.191 | AS21: 0.192 | AT21: 0.194 | AU21: 0.196 | AV21: 0.198 | AW21: 0.194 | AX21: 0.2 | AY21: 0.198 | AZ21: 0.199 | BA21: 0.203 | BB21: 0.199 | BC21: 0.201 | BD21: 0.2 | BE21: 0.202 | BF21: 0.207 | BG21: 0.205 | BH21: 0.202 | BI21: 0.204 | BJ21: 0.204 | BK21: 0.203 | BL21: 0.207 | BM21: 0.206 | BN21: 0.208 | BO21: 0.208 | BP21: 0.208 | BQ21: 0.207 | BR21: 0.209 | BS21: 0.21 | BT21: 0.213 | BU21: 0.21 | BV21: 0.211 | BW21: 0.213 | BX21: 0.211 | BY21: 0.213 | BZ21: 0.214 | CA21: 0.216 | CB21: 0.216 | CC21: 0.215 | CD21: 0.217 | CE21: 0.217 | CF21: 0.216 | CG21: 0.217 | CH21: 0.216 | CI21: 0.216 | CJ21: 0.219 | CK21: 0.217 | CL21: 0.216 | CM21: 0.222 | CN21: 0.221 | CO21: 0.222 | CP21: 0.221 | CQ21: 0.22 | CR21: 0.222 | CS21: 0.222 | CT21: 0.222 | CU21: 0.222 | CV21: 0.225 | CW21: 0.224 | CX21: 0.225 | CY21: 0.223 | CZ21: 0.224
C22: D11 | D22: Sample X24 | E22: 0.163 | F22: 0.163 | G22: 0.164 | H22: 0.165 | I22: 0.163 | J22: 0.165 | K22: 0.169 | L22: 0.172 | M22: 0.173 | N22: 0.169 | O22: 0.169 | P22: 0.168 | Q22: 0.172 | R22: 0.17 | S22: 0.173 | T22: 0.174 | U22: 0.173 | V22: 0.177 | W22: 0.176 | X22: 0.175 | Y22: 0.176 | Z22: 0.177 | AA22: 0.179 | AB22: 0.179 | AC22: 0.18 | AD22: 0.182 | AE22: 0.183 | AF22: 0.182 | AG22: 0.183 | AH22: 0.183 | AI22: 0.184 | AJ22: 0.183 | AK22: 0.185 | AL22: 0.188 | AM22: 0.186 | AN22: 0.186 | AO22: 0.186 | AP22: 0.189 | AQ22: 0.193 | AR22: 0.189 | AS22: 0.193 | AT22: 0.195 | AU22: 0.198 | AV22: 0.199 | AW22: 0.193 | AX22: 0.199 | AY22: 0.199 | AZ22: 0.199 | BA22: 0.201 | BB22: 0.198 | BC22: 0.199 | BD22: 0.202 | BE22: 0.204 | BF22: 0.204 | BG22: 0.204 | BH22: 0.203 | BI22: 0.206 | BJ22: 0.205 | BK22: 0.207 | BL22: 0.208 | BM22: 0.206 | BN22: 0.208 | BO22: 0.209 | BP22: 0.208 | BQ22: 0.208 | BR22: 0.208 | BS22: 0.21 | BT22: 0.211 | BU22: 0.212 | BV22: 0.21 | BW22: 0.209 | BX22: 0.209 | BY22: 0.212 | BZ22: 0.211 | CA22: 0.214 | CB22: 0.215 | CC22: 0.216 | CD22: 0.213 | CE22: 0.217 | CF22: 0.215 | CG22: 0.214 | CH22: 0.217 | CI22: 0.216 | CJ22: 0.218 | CK22: 0.217 | CL22: 0.213 | CM22: 0.22 | CN22: 0.22 | CO22: 0.221 | CP22: 0.219 | CQ22: 0.22 | CR22: 0.223 | CS22: 0.224 | CT22: 0.223 | CU22: 0.224 | CV22: 0.222 | CW22: 0.224 | CX22: 0.224 | CY22: 0.222 | CZ22: 0.224
B23: Average | C23: =AVERAGE(C20:C22) ->  | E23: 0.1523333333 | F23: 0.1523333333 | G23: 0.154 | H23: 0.1553333333 | I23: 0.1543333333 | J23: 0.1563333333 | K23: 0.1606666667 | L23: 0.162 | M23: 0.164 | N23: 0.163 | O23: 0.162 | P23: 0.162 | Q23: 0.1636666667 | R23: 0.164 | S23: 0.166 | T23: 0.1686666667 | U23: 0.168 | V23: 0.172 | W23: 0.171 | X23: 0.171 | Y23: 0.1706666667 | Z23: 0.1733333333 | AA23: 0.175 | AB23: 0.1756666667 | AC23: 0.1783333333 | AD23: 0.1793333333 | AE23: 0.18 | AF23: 0.1803333333 | AG23: 0.182 | AH23: 0.18 | AI23: 0.1813333333 | AJ23: 0.1816666667 | AK23: 0.184 | AL23: 0.1866666667 | AM23: 0.1853333333 | AN23: 0.185 | AO23: 0.1863333333 | AP23: 0.189 | AQ23: 0.192 | AR23: 0.19 | AS23: 0.1923333333 | AT23: 0.195 | AU23: 0.1986666667 | AV23: 0.2006666667 | AW23: 0.195 | AX23: 0.201 | AY23: 0.2003333333 | AZ23: 0.201 | BA23: 0.204 | BB23: 0.2006666667 | BC23: 0.2026666667 | BD23: 0.204 | BE23: 0.2056666667 | BF23: 0.2086666667 | BG23: 0.207 | BH23: 0.206 | BI23: 0.2073333333 | BJ23: 0.2073333333 | BK23: 0.2083333333 | BL23: 0.2096666667 | BM23: 0.208 | BN23: 0.21 | BO23: =AVERAGE(BO20:BO22) -> 0.2106666667 | BP23: 0.2106666667 | BQ23: 0.21 | BR23: 0.211 | BS23: 0.2123333333 | BT23: 0.2146666667 | BU23: 0.2143333333 | BV23: 0.2123333333 | BW23: 0.2136666667 | BX23: 0.212 | BY23: 0.215 | BZ23: 0.215 | CA23: 0.2176666667 | CB23: 0.217 | CC23: 0.2183333333 | CD23: 0.2166666667 | CE23: 0.2193333333 | CF23: 0.2176666667 | CG23: 0.218 | CH23: 0.2186666667 | CI23: 0.2173333333 | CJ23: 0.2193333333 | CK23: 0.2193333333 | CL23: 0.2166666667 | CM23: 0.2233333333 | CN23: 0.2223333333 | CO23: 0.224 | CP23: 0.2223333333 | CQ23: 0.2226666667 | CR23: 0.2243333333 | CS23: 0.2246666667 | CT23: 0.225 | CU23: 0.224 | CV23: 0.2253333333 | CW23: 0.2263333333 | CX23: 0.226 | CY23: 0.2253333333 | CZ23: 0.2263333333
B24: STDEVA | C24: =STDEVA(C20:C22) -> 0 | D24: 0 | E24: 0.01101514109 | F24: 0.01159022577 | G24: 0.01113552873 | H24: 0.009504384953 | I24: 0.009018499506 | J24: 0.009609023537 | K24: 0.009073771726 | L24: 0.01053565375 | M24: 0.009539392014 | N24: 0.007937253933 | O24: 0.007549834435 | P24: 0.007211102551 | Q24: 0.008020806277 | R24: 0.007211102551 | S24: 0.007549834435 | T24: 0.006110100927 | U24: 0.005567764363 | V24: 0.005567764363 | W24: 0.005567764363 | X24: 0.005291502622 | Y24: 0.005507570547 | Z24: 0.004041451884 | AA24: 0.004 | AB24: 0.003511884584 | AC24: 0.002886751346 | AD24: 0.003785938897 | AE24: 0.003605551275 | AF24: 0.003785938897 | AG24: 0.001732050808 | AH24: 0.004358898944 | AI24: 0.003055050463 | AJ24: 0.002309401077 | AK24: 0.001 | AL24: 0.001527525232 | AM24: 0.002081665999 | AN24: 0.001 | AO24: 0.0005773502692 | AP24: 3.399349889e-17 | AQ24: 0.001732050808 | AR24: 0.001 | AS24: 0.0005773502692 | AT24: 0.001 | AU24: 0.003055050463 | AV24: 0.003785938897 | AW24: 0.002645751311 | AX24: 0.002645751311 | AY24: 0.003214550254 | AZ24: 0.003464101615 | BA24: 0.003605551275 | BB24: 0.003785938897 | BC24: 0.004725815626 | BD24: 0.005291502622 | BE24: 0.004725815626 | BF24: 0.005686240703 | BG24: 0.004358898944 | BH24: 0.00608276253 | BI24: 0.004163331999 | BJ24: 0.004932882862 | BK24: 0.006110100927 | BL24: 0.003785938897 | BM24: 0.003464101615 | BN24: 0.003464101615 | BO24: =STDEVA(BO20:BO22) -> 0.003785938897 | BP24: 0.004618802154 | BQ24: 0.004358898944 | BR24: 0.004358898944 | BS24: 0.004041451884 | BT24: 0.004725815626 | BU24: 0.005859465277 | BV24: 0.003214550254 | BW24: 0.005033222957 | BX24: 0.003605551275 | BY24: 0.004358898944 | BZ24: 0.004582575695 | CA24: 0.004725815626 | CB24: 0.002645751311 | CC24: 0.004932882862 | CD24: 0.003511884584 | CE24: 0.004041451884 | CF24: 0.003785938897 | CG24: 0.004582575695 | CH24: 0.003785938897 | CI24: 0.002309401077 | CJ24: 0.001527525232 | CK24: 0.004041451884 | CL24: 0.004041451884 | CM24: 0.004163331999 | CN24: 0.003214550254 | CO24: 0.004358898944 | CP24: 0.004163331999 | CQ24: 0.004618802154 | CR24: 0.003214550254 | CS24: 0.003055050463 | CT24: 0.004358898944 | CU24: 0.002 | CV24: 0.003511884584 | CW24: 0.004041451884 | CX24: 0.002645751311 | CY24: 0.004932882862 | CZ24: 0.004041451884
C26: E09 | D26: Sample X28 | E26: 0.148 | F26: 0.148 | G26: 0.152 | H26: 0.154 | I26: 0.15 | J26: 0.151 | K26: 0.159 | L26: 0.159 | M26: 0.163 | N26: 0.163 | O26: 0.161 | P26: 0.164 | Q26: 0.161 | R26: 0.164 | S26: 0.165 | T26: 0.169 | U26: 0.17 | V26: 0.176 | W26: 0.172 | X26: 0.172 | Y26: 0.173 | Z26: 0.176 | AA26: 0.177 | AB26: 0.179 | AC26: 0.181 | AD26: 0.182 | AE26: 0.186 | AF26: 0.185 | AG26: 0.186 | AH26: 0.186 | AI26: 0.187 | AJ26: 0.191 | AK26: 0.196 | AL26: 0.202 | AM26: 0.199 | AN26: 0.196 | AO26: 0.197 | AP26: 0.198 | AQ26: 0.199 | AR26: 0.199 | AS26: 0.202 | AT26: 0.206 | AU26: 0.212 | AV26: 0.211 | AW26: 0.205 | AX26: 0.211 | AY26: 0.212 | AZ26: 0.213 | BA26: 0.215 | BB26: 0.21 | BC26: 0.216 | BD26: 0.216 | BE26: 0.219 | BF26: 0.221 | BG26: 0.22 | BH26: 0.222 | BI26: 0.222 | BJ26: 0.222 | BK26: 0.224 | BL26: 0.226 | BM26: 0.224 | BN26: 0.225 | BO26: 0.226 | BP26: 0.229 | BQ26: 0.227 | BR26: 0.229 | BS26: 0.229 | BT26: 0.231 | BU26: 0.233 | BV26: 0.232 | BW26: 0.233 | BX26: 0.234 | BY26: 0.235 | BZ26: 0.233 | CA26: 0.237 | CB26: 0.237 | CC26: 0.242 | CD26: 0.238 | CE26: 0.241 | CF26: 0.239 | CG26: 0.244 | CH26: 0.245 | CI26: 0.242 | CJ26: 0.244 | CK26: 0.242 | CL26: 0.241 | CM26: 0.25 | CN26: 0.248 | CO26: 0.249 | CP26: 0.25 | CQ26: 0.251 | CR26: 0.251 | CS26: 0.252 | CT26: 0.252 | CU26: 0.254 | CV26: 0.253 | CW26: 0.255 | CX26: 0.259 | CY26: 0.254 | CZ26: 0.258
A27: DPI 0.625 uM | C27: E10 | D27: Sample X29 | E27: 0.155 | F27: 0.153 | G27: 0.159 | H27: 0.163 | I27: 0.162 | J27: 0.164 | K27: 0.166 | L27: 0.166 | M27: 0.171 | N27: 0.171 | O27: 0.172 | P27: 0.172 | Q27: 0.172 | R27: 0.174 | S27: 0.177 | T27: 0.181 | U27: 0.179 | V27: 0.181 | W27: 0.183 | X27: 0.182 | Y27: 0.181 | Z27: 0.184 | AA27: 0.187 | AB27: 0.188 | AC27: 0.19 | AD27: 0.192 | AE27: 0.193 | AF27: 0.191 | AG27: 0.195 | AH27: 0.194 | AI27: 0.195 | AJ27: 0.196 | AK27: 0.2 | AL27: 0.201 | AM27: 0.201 | AN27: 0.2 | AO27: 0.204 | AP27: 0.205 | AQ27: 0.208 | AR27: 0.206 | AS27: 0.21 | AT27: 0.211 | AU27: 0.214 | AV27: 0.215 | AW27: 0.213 | AX27: 0.216 | AY27: 0.214 | AZ27: 0.216 | BA27: 0.221 | BB27: 0.22 | BC27: 0.221 | BD27: 0.221 | BE27: 0.223 | BF27: 0.227 | BG27: 0.224 | BH27: 0.225 | BI27: 0.226 | BJ27: 0.225 | BK27: 0.229 | BL27: 0.23 | BM27: 0.226 | BN27: 0.231 | BO27: 0.232 | BP27: 0.234 | BQ27: 0.232 | BR27: 0.234 | BS27: 0.234 | BT27: 0.237 | BU27: 0.236 | BV27: 0.236 | BW27: 0.239 | BX27: 0.238 | BY27: 0.238 | BZ27: 0.238 | CA27: 0.243 | CB27: 0.242 | CC27: 0.245 | CD27: 0.243 | CE27: 0.245 | CF27: 0.246 | CG27: 0.247 | CH27: 0.248 | CI27: 0.245 | CJ27: 0.249 | CK27: 0.245 | CL27: 0.248 | CM27: 0.253 | CN27: 0.254 | CO27: 0.254 | CP27: 0.251 | CQ27: 0.255 | CR27: 0.256 | CS27: 0.256 | CT27: 0.256 | CU27: 0.257 | CV27: 0.258 | CW27: 0.257 | CX27: 0.259 | CY27: 0.261 | CZ27: 0.261
C28: E11 | D28: Sample X30 | E28: 0.156 | F28: 0.153 | G28: 0.157 | H28: 0.158 | I28: 0.159 | J28: 0.16 | K28: 0.163 | L28: 0.164 | M28: 0.167 | N28: 0.167 | O28: 0.191 | P28: 0.237 | Q28: 0.28 | R28: 0.259 | S28: 0.175 | T28: 0.174 | U28: 0.173 | V28: 0.176 | W28: 0.176 | X28: 0.178 | Y28: 0.177 | Z28: 0.18 | AA28: 0.18 | AB28: 0.18 | AC28: 0.185 | AD28: 0.186 | AE28: 0.187 | AF28: 0.187 | AG28: 0.189 | AH28: 0.191 | AI28: 0.196 | AJ28: 0.193 | AK28: 0.193 | AL28: 0.197 | AM28: 0.195 | AN28: 0.194 | AO28: 0.196 | AP28: 0.198 | AQ28: 0.2 | AR28: 0.2 | AS28: 0.203 | AT28: 0.203 | AU28: 0.207 | AV28: 0.209 | AW28: 0.208 | AX28: 0.209 | AY28: 0.208 | AZ28: 0.208 | BA28: 0.214 | BB28: 0.212 | BC28: 0.214 | BD28: 0.215 | BE28: 0.218 | BF28: 0.22 | BG28: 0.219 | BH28: 0.221 | BI28: 0.219 | BJ28: 0.219 | BK28: 0.223 | BL28: 0.224 | BM28: 0.223 | BN28: 0.224 | BO28: 0.227 | BP28: 0.229 | BQ28: 0.228 | BR28: 0.228 | BS28: 0.23 | BT28: 0.234 | BU28: 0.235 | BV28: 0.232 | BW28: 0.235 | BX28: 0.234 | BY28: 0.235 | BZ28: 0.237 | CA28: 0.239 | CB28: 0.239 | CC28: 0.241 | CD28: 0.241 | CE28: 0.241 | CF28: 0.242 | CG28: 0.241 | CH28: 0.246 | CI28: 0.242 | CJ28: 0.246 | CK28: 0.245 | CL28: 0.245 | CM28: 0.249 | CN28: 0.249 | CO28: 0.251 | CP28: 0.249 | CQ28: 0.254 | CR28: 0.252 | CS28: 0.254 | CT28: 0.255 | CU28: 0.255 | CV28: 0.256 | CW28: 0.258 | CX28: 0.257 | CY28: 0.258 | CZ28: 0.259
B29: Average | C29: =AVERAGE(C26:C28) ->  | E29: 0.153 | F29: 0.1513333333 | G29: 0.156 | H29: 0.1583333333 | I29: 0.157 | J29: 0.1583333333 | K29: 0.1626666667 | L29: 0.163 | M29: 0.167 | N29: 0.167 | O29: 0.1746666667 | P29: 0.191 | Q29: 0.2043333333 | R29: 0.199 | S29: 0.1723333333 | T29: 0.1746666667 | U29: 0.174 | V29: 0.1776666667 | W29: 0.177 | X29: 0.1773333333 | Y29: 0.177 | Z29: 0.18 | AA29: 0.1813333333 | AB29: 0.1823333333 | AC29: 0.1853333333 | AD29: 0.1866666667 | AE29: 0.1886666667 | AF29: 0.1876666667 | AG29: 0.19 | AH29: 0.1903333333 | AI29: 0.1926666667 | AJ29: 0.1933333333 | AK29: 0.1963333333 | AL29: 0.2 | AM29: 0.1983333333 | AN29: 0.1966666667 | AO29: 0.199 | AP29: 0.2003333333 | AQ29: 0.2023333333 | AR29: 0.2016666667 | AS29: 0.205 | AT29: 0.2066666667 | AU29: 0.211 | AV29: 0.2116666667 | AW29: 0.2086666667 | AX29: 0.212 | AY29: 0.2113333333 | AZ29: 0.2123333333 | BA29: 0.2166666667 | BB29: 0.214 | BC29: 0.217 | BD29: 0.2173333333 | BE29: 0.22 | BF29: 0.2226666667 | BG29: 0.221 | BH29: 0.2226666667 | BI29: 0.2223333333 | BJ29: 0.222 | BK29: 0.2253333333 | BL29: 0.2266666667 | BM29: 0.2243333333 | BN29: 0.2266666667 | BO29: =AVERAGE(BO26:BO28) -> 0.2283333333 | BP29: 0.2306666667 | BQ29: 0.229 | BR29: 0.2303333333 | BS29: 0.231 | BT29: 0.234 | BU29: 0.2346666667 | BV29: 0.2333333333 | BW29: 0.2356666667 | BX29: 0.2353333333 | BY29: 0.236 | BZ29: 0.236 | CA29: 0.2396666667 | CB29: 0.2393333333 | CC29: 0.2426666667 | CD29: 0.2406666667 | CE29: 0.2423333333 | CF29: 0.2423333333 | CG29: 0.244 | CH29: 0.2463333333 | CI29: 0.243 | CJ29: 0.2463333333 | CK29: 0.244 | CL29: 0.2446666667 | CM29: 0.2506666667 | CN29: 0.2503333333 | CO29: 0.2513333333 | CP29: 0.25 | CQ29: 0.2533333333 | CR29: 0.253 | CS29: 0.254 | CT29: 0.2543333333 | CU29: 0.2553333333 | CV29: 0.2556666667 | CW29: 0.2566666667 | CX29: 0.2583333333 | CY29: 0.2576666667 | CZ29: 0.2593333333
B30: STDEVA | C30: =STDEVA(C26:C28) -> 0 | D30: 0 | E30: 0.004358898944 | F30: 0.002886751346 | G30: 0.003605551275 | H30: 0.004509249753 | I30: 0.006244997998 | J30: 0.006658328118 | K30: 0.003511884584 | L30: 0.003605551275 | M30: 0.004 | N30: 0.004 | O30: 0.01517673658 | P30: 0.04003748244 | Q30: 0.06575966342 | R30: 0.05220153254 | S30: 0.006429100507 | T30: 0.006027713773 | U30: 0.004582575695 | V30: 0.002886751346 | W30: 0.005567764363 | X30: 0.005033222957 | Y30: 0.004 | Z30: 0.004 | AA30: 0.005131601439 | AB30: 0.004932882862 | AC30: 0.004509249753 | AD30: 0.005033222957 | AE30: 0.003785938897 | AF30: 0.003055050463 | AG30: 0.004582575695 | AH30: 0.004041451884 | AI30: 0.004932882862 | AJ30: 0.002516611478 | AK30: 0.003511884584 | AL30: 0.002645751311 | AM30: 0.003055050463 | AN30: 0.003055050463 | AO30: 0.004358898944 | AP30: 0.004041451884 | AQ30: 0.004932882862 | AR30: 0.003785938897 | AS30: 0.004358898944 | AT30: 0.004041451884 | AU30: 0.003605551275 | AV30: 0.003055050463 | AW30: 0.004041451884 | AX30: 0.003605551275 | AY30: 0.003055050463 | AZ30: 0.004041451884 | BA30: 0.003785938897 | BB30: 0.005291502622 | BC30: 0.003605551275 | BD30: 0.003214550254 | BE30: 0.002645751311 | BF30: 0.003785938897 | BG30: 0.002645751311 | BH30: 0.002081665999 | BI30: 0.003511884584 | BJ30: 0.003 | BK30: 0.003214550254 | BL30: 0.003055050463 | BM30: 0.001527525232 | BN30: 0.003785938897 | BO30: =STDEVA(BO26:BO28) -> 0.003214550254 | BP30: 0.002886751346 | BQ30: 0.002645751311 | BR30: 0.003214550254 | BS30: 0.002645751311 | BT30: 0.003 | BU30: 0.001527525232 | BV30: 0.002309401077 | BW30: 0.003055050463 | BX30: 0.002309401077 | BY30: 0.001732050808 | BZ30: 0.002645751311 | CA30: 0.003055050463 | CB30: 0.002516611478 | CC30: 0.002081665999 | CD30: 0.002516611478 | CE30: 0.002309401077 | CF30: 0.003511884584 | CG30: 0.003 | CH30: 0.001527525232 | CI30: 0.001732050808 | CJ30: 0.002516611478 | CK30: 0.001732050808 | CL30: 0.003511884584 | CM30: 0.002081665999 | CN30: 0.003214550254 | CO30: 0.002516611478 | CP30: 0.001 | CQ30: 0.002081665999 | CR30: 0.002645751311 | CS30: 0.002 | CT30: 0.002081665999 | CU30: 0.001527525232 | CV30: 0.002516611478 | CW30: 0.001527525232 | CX30: 0.001154700538 | CY30: 0.003511884584 | CZ30: 0.001527525232
C32: F09 | D32: Sample X34 | E32: 0.145 | F32: 0.144 | G32: 0.148 | H32: 0.151 | I32: 0.148 | J32: 0.151 | K32: 0.156 | L32: 0.158 | M32: 0.162 | N32: 0.162 | O32: 0.162 | P32: 0.164 | Q32: 0.163 | R32: 0.167 | S32: 0.17 | T32: 0.172 | U32: 0.174 | V32: 0.178 | W32: 0.179 | X32: 0.179 | Y32: 0.179 | Z32: 0.184 | AA32: 0.186 | AB32: 0.186 | AC32: 0.191 | AD32: 0.19 | AE32: 0.192 | AF32: 0.193 | AG32: 0.194 | AH32: 0.195 | AI32: 0.198 | AJ32: 0.202 | AK32: 0.203 | AL32: 0.205 | AM32: 0.204 | AN32: 0.205 | AO32: 0.209 | AP32: 0.21 | AQ32: 0.213 | AR32: 0.213 | AS32: 0.215 | AT32: 0.219 | AU32: 0.224 | AV32: 0.223 | AW32: 0.221 | AX32: 0.226 | AY32: 0.227 | AZ32: 0.226 | BA32: 0.232 | BB32: 0.229 | BC32: 0.231 | BD32: 0.232 | BE32: 0.235 | BF32: 0.238 | BG32: 0.239 | BH32: 0.238 | BI32: 0.241 | BJ32: 0.24 | BK32: 0.245 | BL32: 0.244 | BM32: 0.246 | BN32: 0.249 | BO32: 0.247 | BP32: 0.248 | BQ32: 0.25 | BR32: 0.25 | BS32: 0.254 | BT32: 0.257 | BU32: 0.258 | BV32: 0.257 | BW32: 0.26 | BX32: 0.258 | BY32: 0.26 | BZ32: 0.263 | CA32: 0.265 | CB32: 0.265 | CC32: 0.268 | CD32: 0.266 | CE32: 0.269 | CF32: 0.268 | CG32: 0.272 | CH32: 0.272 | CI32: 0.273 | CJ32: 0.274 | CK32: 0.273 | CL32: 0.274 | CM32: 0.28 | CN32: 0.281 | CO32: 0.282 | CP32: 0.281 | CQ32: 0.284 | CR32: 0.285 | CS32: 0.283 | CT32: 0.287 | CU32: 0.286 | CV32: 0.29 | CW32: 0.291 | CX32: 0.292 | CY32: 0.291 | CZ32: 0.292
A33: DPI 0.3125 uM | C33: F10 | D33: Sample X35 | E33: 0.153 | F33: 0.154 | G33: 0.156 | H33: 0.16 | I33: 0.158 | J33: 0.158 | K33: 0.164 | L33: 0.163 | M33: 0.169 | N33: 0.168 | O33: 0.168 | P33: 0.172 | Q33: 0.173 | R33: 0.178 | S33: 0.179 | T33: 0.184 | U33: 0.184 | V33: 0.187 | W33: 0.185 | X33: 0.186 | Y33: 0.183 | Z33: 0.188 | AA33: 0.19 | AB33: 0.189 | AC33: 0.195 | AD33: 0.194 | AE33: 0.196 | AF33: 0.196 | AG33: 0.198 | AH33: 0.199 | AI33: 0.2 | AJ33: 0.202 | AK33: 0.203 | AL33: 0.207 | AM33: 0.207 | AN33: 0.206 | AO33: 0.211 | AP33: 0.213 | AQ33: 0.216 | AR33: 0.215 | AS33: 0.219 | AT33: 0.219 | AU33: 0.224 | AV33: 0.226 | AW33: 0.224 | AX33: 0.227 | AY33: 0.231 | AZ33: 0.231 | BA33: 0.233 | BB33: 0.232 | BC33: 0.235 | BD33: 0.234 | BE33: 0.239 | BF33: 0.24 | BG33: 0.241 | BH33: 0.241 | BI33: 0.243 | BJ33: 0.242 | BK33: 0.245 | BL33: 0.248 | BM33: 0.248 | BN33: 0.248 | BO33: 0.25 | BP33: 0.252 | BQ33: 0.252 | BR33: 0.254 | BS33: 0.257 | BT33: 0.26 | BU33: 0.259 | BV33: 0.261 | BW33: 0.261 | BX33: 0.259 | BY33: 0.264 | BZ33: 0.263 | CA33: 0.269 | CB33: 0.27 | CC33: 0.274 | CD33: 0.27 | CE33: 0.273 | CF33: 0.273 | CG33: 0.271 | CH33: 0.277 | CI33: 0.271 | CJ33: 0.279 | CK33: 0.277 | CL33: 0.278 | CM33: 0.285 | CN33: 0.283 | CO33: 0.285 | CP33: 0.286 | CQ33: 0.288 | CR33: 0.29 | CS33: 0.292 | CT33: 0.29 | CU33: 0.293 | CV33: 0.294 | CW33: 0.296 | CX33: 0.298 | CY33: 0.296 | CZ33: 0.298
C34: F11 | D34: Sample X36 | E34: 0.155 | F34: 0.153 | G34: 0.156 | H34: 0.157 | I34: 0.161 | J34: 0.16 | K34: 0.163 | L34: 0.164 | M34: 0.167 | N34: 0.167 | O34: 0.168 | P34: 0.167 | Q34: 0.17 | R34: 0.169 | S34: 0.172 | T34: 0.175 | U34: 0.176 | V34: 0.177 | W34: 0.179 | X34: 0.182 | Y34: 0.18 | Z34: 0.183 | AA34: 0.185 | AB34: 0.188 | AC34: 0.191 | AD34: 0.191 | AE34: 0.192 | AF34: 0.192 | AG34: 0.196 | AH34: 0.192 | AI34: 0.196 | AJ34: 0.198 | AK34: 0.199 | AL34: 0.201 | AM34: 0.202 | AN34: 0.201 | AO34: 0.203 | AP34: 0.205 | AQ34: 0.209 | AR34: 0.209 | AS34: 0.21 | AT34: 0.213 | AU34: 0.218 | AV34: 0.217 | AW34: 0.215 | AX34: 0.22 | AY34: 0.22 | AZ34: 0.22 | BA34: 0.225 | BB34: 0.225 | BC34: 0.226 | BD34: 0.226 | BE34: 0.23 | BF34: 0.234 | BG34: 0.234 | BH34: 0.232 | BI34: 0.235 | BJ34: 0.235 | BK34: 0.238 | BL34: 0.24 | BM34: 0.238 | BN34: 0.243 | BO34: 0.243 | BP34: 0.243 | BQ34: 0.245 | BR34: 0.248 | BS34: 0.248 | BT34: 0.253 | BU34: 0.253 | BV34: 0.253 | BW34: 0.254 | BX34: 0.253 | BY34: 0.258 | BZ34: 0.257 | CA34: 0.262 | CB34: 0.262 | CC34: 0.265 | CD34: 0.263 | CE34: 0.265 | CF34: 0.266 | CG34: 0.268 | CH34: 0.27 | CI34: 0.267 | CJ34: 0.274 | CK34: 0.273 | CL34: 0.273 | CM34: 0.279 | CN34: 0.275 | CO34: 0.28 | CP34: 0.281 | CQ34: 0.282 | CR34: 0.284 | CS34: 0.283 | CT34: 0.288 | CU34: 0.288 | CV34: 0.288 | CW34: 0.289 | CX34: 0.293 | CY34: 0.291 | CZ34: 0.293
B35: Average | C35: =AVERAGE(C32:C34) ->  | E35: 0.151 | F35: 0.1503333333 | G35: 0.1533333333 | H35: 0.156 | I35: 0.1556666667 | J35: 0.1563333333 | K35: 0.161 | L35: 0.1616666667 | M35: 0.166 | N35: 0.1656666667 | O35: 0.166 | P35: 0.1676666667 | Q35: 0.1686666667 | R35: 0.1713333333 | S35: 0.1736666667 | T35: 0.177 | U35: 0.178 | V35: 0.1806666667 | W35: 0.181 | X35: 0.1823333333 | Y35: 0.1806666667 | Z35: 0.185 | AA35: 0.187 | AB35: 0.1876666667 | AC35: 0.1923333333 | AD35: 0.1916666667 | AE35: 0.1933333333 | AF35: 0.1936666667 | AG35: 0.196 | AH35: 0.1953333333 | AI35: 0.198 | AJ35: 0.2006666667 | AK35: 0.2016666667 | AL35: 0.2043333333 | AM35: 0.2043333333 | AN35: 0.204 | AO35: 0.2076666667 | AP35: 0.2093333333 | AQ35: 0.2126666667 | AR35: 0.2123333333 | AS35: 0.2146666667 | AT35: 0.217 | AU35: 0.222 | AV35: 0.222 | AW35: 0.22 | AX35: 0.2243333333 | AY35: 0.226 | AZ35: 0.2256666667 | BA35: 0.23 | BB35: 0.2286666667 | BC35: 0.2306666667 | BD35: 0.2306666667 | BE35: 0.2346666667 | BF35: 0.2373333333 | BG35: 0.238 | BH35: 0.237 | BI35: 0.2396666667 | BJ35: 0.239 | BK35: 0.2426666667 | BL35: 0.244 | BM35: 0.244 | BN35: 0.2466666667 | BO35: =AVERAGE(BO32:BO34) -> 0.2466666667 | BP35: 0.2476666667 | BQ35: 0.249 | BR35: 0.2506666667 | BS35: 0.253 | BT35: 0.2566666667 | BU35: 0.2566666667 | BV35: 0.257 | BW35: 0.2583333333 | BX35: 0.2566666667 | BY35: 0.2606666667 | BZ35: 0.261 | CA35: 0.2653333333 | CB35: 0.2656666667 | CC35: 0.269 | CD35: 0.2663333333 | CE35: 0.269 | CF35: 0.269 | CG35: 0.2703333333 | CH35: 0.273 | CI35: 0.2703333333 | CJ35: 0.2756666667 | CK35: 0.2743333333 | CL35: 0.275 | CM35: 0.2813333333 | CN35: 0.2796666667 | CO35: 0.2823333333 | CP35: 0.2826666667 | CQ35: 0.2846666667 | CR35: 0.2863333333 | CS35: 0.286 | CT35: 0.2883333333 | CU35: 0.289 | CV35: 0.2906666667 | CW35: 0.292 | CX35: 0.2943333333 | CY35: 0.2926666667 | CZ35: 0.2943333333
B36: STDEVA | C36: =STDEVA(C32:C34) -> 0 | D36: 0 | E36: 0.005291502622 | F36: 0.005507570547 | G36: 0.004618802154 | H36: 0.004582575695 | I36: 0.006806859286 | J36: 0.004725815626 | K36: 0.004358898944 | L36: 0.003214550254 | M36: 0.003605551275 | N36: 0.003214550254 | O36: 0.003464101615 | P36: 0.004041451884 | Q36: 0.005131601439 | R36: 0.005859465277 | S36: 0.004725815626 | T36: 0.006244997998 | U36: 0.005291502622 | V36: 0.005507570547 | W36: 0.003464101615 | X36: 0.003511884584 | Y36: 0.002081665999 | Z36: 0.002645751311 | AA36: 0.002645751311 | AB36: 0.001527525232 | AC36: 0.002309401077 | AD36: 0.002081665999 | AE36: 0.002309401077 | AF36: 0.002081665999 | AG36: 0.002 | AH36: 0.003511884584 | AI36: 0.002 | AJ36: 0.002309401077 | AK36: 0.002309401077 | AL36: 0.003055050463 | AM36: 0.002516611478 | AN36: 0.002645751311 | AO36: 0.004163331999 | AP36: 0.004041451884 | AQ36: 0.003511884584 | AR36: 0.003055050463 | AS36: 0.004509249753 | AT36: 0.003464101615 | AU36: 0.003464101615 | AV36: 0.004582575695 | AW36: 0.004582575695 | AX36: 0.003785938897 | AY36: 0.005567764363 | AZ36: 0.005507570547 | BA36: 0.004358898944 | BB36: 0.003511884584 | BC36: 0.004509249753 | BD36: 0.004163331999 | BE36: 0.004509249753 | BF36: 0.003055050463 | BG36: 0.003605551275 | BH36: 0.004582575695 | BI36: 0.004163331999 | BJ36: 0.003605551275 | BK36: 0.004041451884 | BL36: 0.004 | BM36: 0.005291502622 | BN36: 0.003214550254 | BO36: =STDEVA(BO32:BO34) -> 0.003511884584 | BP36: 0.004509249753 | BQ36: 0.003605551275 | BR36: 0.003055050463 | BS36: 0.004582575695 | BT36: 0.003511884584 | BU36: 0.003214550254 | BV36: 0.004 | BW36: 0.003785938897 | BX36: 0.003214550254 | BY36: 0.003055050463 | BZ36: 0.003464101615 | CA36: 0.003511884584 | CB36: 0.004041451884 | CC36: 0.004582575695 | CD36: 0.003511884584 | CE36: 0.004 | CF36: 0.003605551275 | CG36: 0.002081665999 | CH36: 0.003605551275 | CI36: 0.003055050463 | CJ36: 0.002886751346 | CK36: 0.002309401077 | CL36: 0.002645751311 | CM36: 0.003214550254 | CN36: 0.004163331999 | CO36: 0.002516611478 | CP36: 0.002886751346 | CQ36: 0.003055050463 | CR36: 0.003214550254 | CS36: 0.005196152423 | CT36: 0.001527525232 | CU36: 0.003605551275 | CV36: 0.003055050463 | CW36: 0.003605551275 | CX36: 0.003214550254 | CY36: 0.002886751346 | CZ36: 0.003214550254
C38: G09 | D38: Sample X40 | E38: 0.146 | F38: 0.146 | G38: 0.153 | H38: 0.154 | I38: 0.155 | J38: 0.164 | K38: 0.161 | L38: 0.161 | M38: 0.165 | N38: 0.187 | O38: 0.167 | P38: 0.167 | Q38: 0.169 | R38: 0.172 | S38: 0.175 | T38: 0.18 | U38: 0.177 | V38: 0.183 | W38: 0.183 | X38: 0.184 | Y38: 0.184 | Z38: 0.189 | AA38: 0.192 | AB38: 0.194 | AC38: 0.196 | AD38: 0.198 | AE38: 0.2 | AF38: 0.2 | AG38: 0.203 | AH38: 0.203 | AI38: 0.205 | AJ38: 0.207 | AK38: 0.21 | AL38: 0.212 | AM38: 0.212 | AN38: 0.213 | AO38: 0.219 | AP38: 0.219 | AQ38: 0.223 | AR38: 0.222 | AS38: 0.228 | AT38: 0.228 | AU38: 0.232 | AV38: 0.234 | AW38: 0.231 | AX38: 0.235 | AY38: 0.238 | AZ38: 0.241 | BA38: 0.244 | BB38: 0.242 | BC38: 0.244 | BD38: 0.246 | BE38: 0.25 | BF38: 0.254 | BG38: 0.253 | BH38: 0.254 | BI38: 0.253 | BJ38: 0.255 | BK38: 0.259 | BL38: 0.261 | BM38: 0.262 | BN38: 0.266 | BO38: 0.267 | BP38: 0.268 | BQ38: 0.269 | BR38: 0.27 | BS38: 0.272 | BT38: 0.276 | BU38: 0.282 | BV38: 0.284 | BW38: 0.29 | BX38: 0.289 | BY38: 0.29 | BZ38: 0.287 | CA38: 0.291 | CB38: 0.289 | CC38: 0.291 | CD38: 0.29 | CE38: 0.295 | CF38: 0.294 | CG38: 0.296 | CH38: 0.298 | CI38: 0.296 | CJ38: 0.3 | CK38: 0.302 | CL38: 0.307 | CM38: 0.314 | CN38: 0.317 | CO38: 0.322 | CP38: 0.321 | CQ38: 0.317 | CR38: 0.315 | CS38: 0.314 | CT38: 0.319 | CU38: 0.319 | CV38: 0.324 | CW38: 0.322 | CX38: 0.324 | CY38: 0.325 | CZ38: 0.326
A39: DPI 0.15625 uM | C39: G10 | D39: Sample X41 | E39: 0.151 | F39: 0.152 | G39: 0.154 | H39: 0.159 | I39: 0.159 | J39: 0.16 | K39: 0.169 | L39: 0.167 | M39: 0.17 | N39: 0.171 | O39: 0.17 | P39: 0.172 | Q39: 0.173 | R39: 0.176 | S39: 0.178 | T39: 0.184 | U39: 0.184 | V39: 0.188 | W39: 0.188 | X39: 0.191 | Y39: 0.19 | Z39: 0.193 | AA39: 0.197 | AB39: 0.197 | AC39: 0.204 | AD39: 0.204 | AE39: 0.204 | AF39: 0.205 | AG39: 0.208 | AH39: 0.209 | AI39: 0.211 | AJ39: 0.215 | AK39: 0.217 | AL39: 0.22 | AM39: 0.22 | AN39: 0.22 | AO39: 0.224 | AP39: 0.227 | AQ39: 0.23 | AR39: 0.232 | AS39: 0.235 | AT39: 0.235 | AU39: 0.241 | AV39: 0.245 | AW39: 0.241 | AX39: 0.246 | AY39: 0.248 | AZ39: 0.249 | BA39: 0.255 | BB39: 0.252 | BC39: 0.256 | BD39: 0.257 | BE39: 0.262 | BF39: 0.265 | BG39: 0.266 | BH39: 0.265 | BI39: 0.266 | BJ39: 0.268 | BK39: 0.272 | BL39: 0.274 | BM39: 0.272 | BN39: 0.276 | BO39: 0.28 | BP39: 0.282 | BQ39: 0.28 | BR39: 0.283 | BS39: 0.286 | BT39: 0.289 | BU39: 0.29 | BV39: 0.29 | BW39: 0.292 | BX39: 0.292 | BY39: 0.296 | BZ39: 0.298 | CA39: 0.301 | CB39: 0.303 | CC39: 0.305 | CD39: 0.305 | CE39: 0.309 | CF39: 0.31 | CG39: 0.31 | CH39: 0.313 | CI39: 0.311 | CJ39: 0.319 | CK39: 0.314 | CL39: 0.316 | CM39: 0.323 | CN39: 0.322 | CO39: 0.328 | CP39: 0.328 | CQ39: 0.328 | CR39: 0.331 | CS39: 0.334 | CT39: 0.333 | CU39: 0.337 | CV39: 0.337 | CW39: 0.338 | CX39: 0.341 | CY39: 0.341 | CZ39: 0.344
C40: G11 | D40: Sample X42 | E40: 0.159 | F40: 0.16 | G40: 0.163 | H40: 0.166 | I40: 0.165 | J40: 0.168 | K40: 0.172 | L40: 0.17 | M40: 0.173 | N40: 0.176 | O40: 0.176 | P40: 0.175 | Q40: 0.182 | R40: 0.18 | S40: 0.182 | T40: 0.187 | U40: 0.186 | V40: 0.191 | W40: 0.192 | X40: 0.193 | Y40: 0.196 | Z40: 0.199 | AA40: 0.201 | AB40: 0.203 | AC40: 0.205 | AD40: 0.209 | AE40: 0.215 | AF40: 0.215 | AG40: 0.216 | AH40: 0.215 | AI40: 0.218 | AJ40: 0.218 | AK40: 0.22 | AL40: 0.224 | AM40: 0.223 | AN40: 0.226 | AO40: 0.228 | AP40: 0.23 | AQ40: 0.233 | AR40: 0.233 | AS40: 0.24 | AT40: 0.241 | AU40: 0.245 | AV40: 0.252 | AW40: 0.249 | AX40: 0.255 | AY40: 0.25 | AZ40: 0.253 | BA40: 0.258 | BB40: 0.258 | BC40: 0.26 | BD40: 0.26 | BE40: 0.265 | BF40: 0.267 | BG40: 0.267 | BH40: 0.27 | BI40: 0.27 | BJ40: 0.272 | BK40: 0.274 | BL40: 0.278 | BM40: 0.278 | BN40: 0.28 | BO40: 0.281 | BP40: 0.284 | BQ40: 0.287 | BR40: 0.288 | BS40: 0.291 | BT40: 0.293 | BU40: 0.296 | BV40: 0.292 | BW40: 0.299 | BX40: 0.299 | BY40: 0.3 | BZ40: 0.303 | CA40: 0.308 | CB40: 0.308 | CC40: 0.311 | CD40: 0.309 | CE40: 0.312 | CF40: 0.314 | CG40: 0.317 | CH40: 0.32 | CI40: 0.319 | CJ40: 0.324 | CK40: 0.323 | CL40: 0.323 | CM40: 0.331 | CN40: 0.331 | CO40: 0.334 | CP40: 0.333 | CQ40: 0.337 | CR40: 0.349 | CS40: 0.34 | CT40: 0.343 | CU40: 0.342 | CV40: 0.347 | CW40: 0.348 | CX40: 0.349 | CY40: 0.351 | CZ40: 0.353
B41: Average | C41: =AVERAGE(C38:C40) ->  | E41: 0.152 | F41: 0.1526666667 | G41: 0.1566666667 | H41: 0.1596666667 | I41: 0.1596666667 | J41: 0.164 | K41: 0.1673333333 | L41: 0.166 | M41: 0.1693333333 | N41: 0.178 | O41: 0.171 | P41: 0.1713333333 | Q41: 0.1746666667 | R41: 0.176 | S41: 0.1783333333 | T41: 0.1836666667 | U41: 0.1823333333 | V41: 0.1873333333 | W41: 0.1876666667 | X41: 0.1893333333 | Y41: 0.19 | Z41: 0.1936666667 | AA41: 0.1966666667 | AB41: 0.198 | AC41: 0.2016666667 | AD41: 0.2036666667 | AE41: 0.2063333333 | AF41: 0.2066666667 | AG41: 0.209 | AH41: 0.209 | AI41: 0.2113333333 | AJ41: 0.2133333333 | AK41: 0.2156666667 | AL41: 0.2186666667 | AM41: 0.2183333333 | AN41: 0.2196666667 | AO41: 0.2236666667 | AP41: 0.2253333333 | AQ41: 0.2286666667 | AR41: 0.229 | AS41: 0.2343333333 | AT41: 0.2346666667 | AU41: 0.2393333333 | AV41: 0.2436666667 | AW41: 0.2403333333 | AX41: 0.2453333333 | AY41: 0.2453333333 | AZ41: 0.2476666667 | BA41: 0.2523333333 | BB41: 0.2506666667 | BC41: 0.2533333333 | BD41: 0.2543333333 | BE41: 0.259 | BF41: 0.262 | BG41: 0.262 | BH41: 0.263 | BI41: 0.263 | BJ41: 0.265 | BK41: 0.2683333333 | BL41: 0.271 | BM41: 0.2706666667 | BN41: 0.274 | BO41: =AVERAGE(BO38:BO40) -> 0.276 | BP41: 0.278 | BQ41: 0.2786666667 | BR41: 0.2803333333 | BS41: 0.283 | BT41: 0.286 | BU41: 0.2893333333 | BV41: 0.2886666667 | BW41: 0.2936666667 | BX41: 0.2933333333 | BY41: 0.2953333333 | BZ41: 0.296 | CA41: 0.3 | CB41: 0.3 | CC41: 0.3023333333 | CD41: 0.3013333333 | CE41: 0.3053333333 | CF41: 0.306 | CG41: 0.3076666667 | CH41: 0.3103333333 | CI41: 0.3086666667 | CJ41: 0.3143333333 | CK41: 0.313 | CL41: 0.3153333333 | CM41: 0.3226666667 | CN41: 0.3233333333 | CO41: 0.328 | CP41: 0.3273333333 | CQ41: 0.3273333333 | CR41: 0.3316666667 | CS41: 0.3293333333 | CT41: 0.3316666667 | CU41: 0.3326666667 | CV41: 0.336 | CW41: 0.336 | CX41: 0.338 | CY41: 0.339 | CZ41: 0.341
B42: STDEVA | C42: =STDEVA(C38:C40) -> 0 | D42: 0 | E42: 0.006557438524 | F42: 0.007023769169 | G42: 0.005507570547 | H42: 0.006027713773 | I42: 0.005033222957 | J42: 0.004 | K42: 0.005686240703 | L42: 0.004582575695 | M42: 0.004041451884 | N42: 0.008185352772 | O42: 0.004582575695 | P42: 0.004041451884 | Q42: 0.006658328118 | R42: 0.004 | S42: 0.003511884584 | T42: 0.003511884584 | U42: 0.004725815626 | V42: 0.004041451884 | W42: 0.004509249753 | X42: 0.004725815626 | Y42: 0.006 | Z42: 0.005033222957 | AA42: 0.004509249753 | AB42: 0.004582575695 | AC42: 0.004932882862 | AD42: 0.005507570547 | AE42: 0.007767453465 | AF42: 0.007637626158 | AG42: 0.006557438524 | AH42: 0.006 | AI42: 0.006506407099 | AJ42: 0.005686240703 | AK42: 0.005131601439 | AL42: 0.006110100927 | AM42: 0.005686240703 | AN42: 0.006506407099 | AO42: 0.004509249753 | AP42: 0.005686240703 | AQ42: 0.005131601439 | AR42: 0.00608276253 | AS42: 0.006027713773 | AT42: 0.006506407099 | AU42: 0.006658328118 | AV42: 0.009073771726 | AW42: 0.009018499506 | AX42: 0.0100166528 | AY42: 0.006429100507 | AZ42: 0.006110100927 | BA42: 0.007371114796 | BB42: 0.008082903769 | BC42: 0.008326663998 | BD42: 0.007371114796 | BE42: 0.007937253933 | BF42: 0.007 | BG42: 0.007810249676 | BH42: 0.008185352772 | BI42: 0.008888194417 | BJ42: 0.008888194417 | BK42: 0.008144527815 | BL42: 0.008888194417 | BM42: 0.008082903769 | BN42: 0.007211102551 | BO42: =STDEVA(BO38:BO40) -> 0.007810249676 | BP42: 0.008717797887 | BQ42: 0.009073771726 | BR42: 0.009291573243 | BS42: 0.009848857802 | BT42: 0.008888194417 | BU42: 0.007023769169 | BV42: 0.004163331999 | BW42: 0.004725815626 | BX42: 0.005131601439 | BY42: 0.005033222957 | BZ42: 0.008185352772 | CA42: 0.008544003745 | CB42: 0.009848857802 | CC42: 0.01026320288 | CD42: 0.0100166528 | CE42: 0.009073771726 | CF42: 0.01058300524 | CG42: 0.01069267662 | CH42: 0.0112398102 | CI42: 0.01167618659 | CJ42: 0.01266227994 | CK42: 0.01053565375 | CL42: 0.008020806277 | CM42: 0.008504900548 | CN42: 0.007094598885 | CO42: 0.006 | CP42: 0.006027713773 | CQ42: 0.0100166528 | CR42: 0.0170098011 | CS42: 0.01361371857 | CT42: 0.01205542755 | CU42: 0.01209683154 | CV42: 0.01153256259 | CW42: 0.01311487705 | CX42: 0.01276714533 | CY42: 0.01311487705 | CZ42: 0.01374772708
C44: H09 | D44: Sample X46 | E44: 0.133 | F44: 0.129 | G44: 0.132 | H44: 0.134 | I44: 0.132 | J44: 0.132 | K44: 0.134 | L44: 0.136 | M44: 0.137 | N44: 0.138 | O44: 0.134 | P44: 0.136 | Q44: 0.138 | R44: 0.135 | S44: 0.135 | T44: 0.137 | U44: 0.136 | V44: 0.135 | W44: 0.136 | X44: 0.133 | Y44: 0.132 | Z44: 0.135 | AA44: 0.137 | AB44: 0.139 | AC44: 0.139 | AD44: 0.138 | AE44: 0.141 | AF44: 0.139 | AG44: 0.141 | AH44: 0.138 | AI44: 0.138 | AJ44: 0.137 | AK44: 0.141 | AL44: 0.14 | AM44: 0.138 | AN44: 0.137 | AO44: 0.137 | AP44: 0.139 | AQ44: 0.142 | AR44: 0.148 | AS44: 0.157 | AT44: 0.145 | AU44: 0.145 | AV44: 0.139 | AW44: 0.151 | AX44: 0.136 | AY44: 0.135 | AZ44: 0.137 | BA44: 0.142 | BB44: 0.159 | BC44: 0.144 | BD44: 0.142 | BE44: 0.142 | BF44: 0.143 | BG44: 0.141 | BH44: 0.142 | BI44: 0.151 | BJ44: 0.149 | BK44: 0.147 | BL44: 0.14 | BM44: 0.132 | BN44: 0.128 | BO44: 0.124 | BP44: 0.125 | BQ44: 0.121 | BR44: 0.121 | BS44: 0.12 | BT44: 0.125 | BU44: 0.124 | BV44: 0.123 | BW44: 0.123 | BX44: 0.122 | BY44: 0.122 | BZ44: 0.123 | CA44: 0.122 | CB44: 0.123 | CC44: 0.125 | CD44: 0.123 | CE44: 0.126 | CF44: 0.127 | CG44: 0.129 | CH44: 0.129 | CI44: 0.126 | CJ44: 0.13 | CK44: 0.125 | CL44: 0.132 | CM44: 0.131 | CN44: 0.128 | CO44: 0.129 | CP44: 0.125 | CQ44: 0.129 | CR44: 0.128 | CS44: 0.129 | CT44: 0.13 | CU44: 0.127 | CV44: 0.128 | CW44: 0.129 | CX44: 0.129 | CY44: 0.126 | CZ44: 0.127
A45: DPI 0 uM | C45: H10 | D45: Sample X47 | E45: 0.136 | F45: 0.133 | G45: 0.134 | H45: 0.137 | I45: 0.133 | J45: 0.133 | K45: 0.135 | L45: 0.133 | M45: 0.134 | N45: 0.134 | O45: 0.137 | P45: 0.129 | Q45: 0.137 | R45: 0.134 | S45: 0.13 | T45: 0.132 | U45: 0.138 | V45: 0.133 | W45: 0.128 | X45: 0.13 | Y45: 0.135 | Z45: 0.134 | AA45: 0.13 | AB45: 0.128 | AC45: 0.134 | AD45: 0.13 | AE45: 0.13 | AF45: 0.128 | AG45: 0.129 | AH45: 0.128 | AI45: 0.127 | AJ45: 0.127 | AK45: 0.126 | AL45: 0.129 | AM45: 0.125 | AN45: 0.12 | AO45: 0.121 | AP45: 0.123 | AQ45: 0.123 | AR45: 0.121 | AS45: 0.122 | AT45: 0.118 | AU45: 0.121 | AV45: 0.12 | AW45: 0.119 | AX45: 0.119 | AY45: 0.118 | AZ45: 0.119 | BA45: 0.118 | BB45: 0.119 | BC45: 0.117 | BD45: 0.117 | BE45: 0.115 | BF45: 0.118 | BG45: 0.115 | BH45: 0.116 | BI45: 0.126 | BJ45: 0.114 | BK45: 0.122 | BL45: 0.12 | BM45: 0.114 | BN45: 0.123 | BO45: 0.12 | BP45: 0.112 | BQ45: 0.118 | BR45: 0.117 | BS45: 0.116 | BT45: 0.116 | BU45: 0.112 | BV45: 0.114 | BW45: 0.113 | BX45: 0.111 | BY45: 0.114 | BZ45: 0.111 | CA45: 0.113 | CB45: 0.113 | CC45: 0.116 | CD45: 0.112 | CE45: 0.111 | CF45: 0.111 | CG45: 0.112 | CH45: 0.114 | CI45: 0.11 | CJ45: 0.115 | CK45: 0.11 | CL45: 0.114 | CM45: 0.114 | CN45: 0.114 | CO45: 0.116 | CP45: 0.112 | CQ45: 0.116 | CR45: 0.118 | CS45: 0.113 | CT45: 0.116 | CU45: 0.115 | CV45: 0.112 | CW45: 0.111 | CX45: 0.114 | CY45: 0.112 | CZ45: 0.111
C46: H11 | D46: Sample X48 | E46: 0.138 | F46: 0.135 | G46: 0.139 | H46: 0.139 | I46: 0.136 | J46: 0.139 | K46: 0.146 | L46: 0.147 | M46: 0.151 | N46: 0.15 | O46: 0.14 | P46: 0.141 | Q46: 0.142 | R46: 0.139 | S46: 0.137 | T46: 0.139 | U46: 0.136 | V46: 0.137 | W46: 0.134 | X46: 0.133 | Y46: 0.134 | Z46: 0.133 | AA46: 0.135 | AB46: 0.135 | AC46: 0.136 | AD46: 0.136 | AE46: 0.135 | AF46: 0.136 | AG46: 0.133 | AH46: 0.131 | AI46: 0.13 | AJ46: 0.13 | AK46: 0.131 | AL46: 0.131 | AM46: 0.128 | AN46: 0.128 | AO46: 0.127 | AP46: 0.127 | AQ46: 0.128 | AR46: 0.125 | AS46: 0.129 | AT46: 0.124 | AU46: 0.128 | AV46: 0.126 | AW46: 0.125 | AX46: 0.124 | AY46: 0.123 | AZ46: 0.123 | BA46: 0.125 | BB46: 0.126 | BC46: 0.123 | BD46: 0.122 | BE46: 0.121 | BF46: 0.124 | BG46: 0.12 | BH46: 0.121 | BI46: 0.119 | BJ46: 0.118 | BK46: 0.12 | BL46: 0.121 | BM46: 0.118 | BN46: 0.119 | BO46: 0.119 | BP46: 0.118 | BQ46: 0.118 | BR46: 0.118 | BS46: 0.118 | BT46: 0.12 | BU46: 0.117 | BV46: 0.116 | BW46: 0.119 | BX46: 0.116 | BY46: 0.116 | BZ46: 0.115 | CA46: 0.119 | CB46: 0.116 | CC46: 0.118 | CD46: 0.116 | CE46: 0.115 | CF46: 0.115 | CG46: 0.117 | CH46: 0.116 | CI46: 0.11 | CJ46: 0.116 | CK46: 0.112 | CL46: 0.118 | CM46: 0.115 | CN46: 0.116 | CO46: 0.117 | CP46: 0.113 | CQ46: 0.115 | CR46: 0.115 | CS46: 0.114 | CT46: 0.114 | CU46: 0.114 | CV46: 0.115 | CW46: 0.111 | CX46: 0.114 | CY46: 0.114 | CZ46: 0.115
B47: Average | C47: =AVERAGE(C44:C46) ->  | E47: 0.1356666667 | F47: 0.1323333333 | G47: 0.135 | H47: 0.1366666667 | I47: 0.1336666667 | J47: 0.1346666667 | K47: 0.1383333333 | L47: 0.1386666667 | M47: 0.1406666667 | N47: 0.1406666667 | O47: 0.137 | P47: 0.1353333333 | Q47: 0.139 | R47: 0.136 | S47: 0.134 | T47: 0.136 | U47: 0.1366666667 | V47: 0.135 | W47: 0.1326666667 | X47: 0.132 | Y47: 0.1336666667 | Z47: 0.134 | AA47: 0.134 | AB47: 0.134 | AC47: 0.1363333333 | AD47: 0.1346666667 | AE47: 0.1353333333 | AF47: 0.1343333333 | AG47: 0.1343333333 | AH47: 0.1323333333 | AI47: 0.1316666667 | AJ47: 0.1313333333 | AK47: 0.1326666667 | AL47: 0.1333333333 | AM47: 0.1303333333 | AN47: 0.1283333333 | AO47: 0.1283333333 | AP47: 0.1296666667 | AQ47: 0.131 | AR47: 0.1313333333 | AS47: 0.136 | AT47: 0.129 | AU47: 0.1313333333 | AV47: 0.1283333333 | AW47: 0.1316666667 | AX47: 0.1263333333 | AY47: 0.1253333333 | AZ47: 0.1263333333 | BA47: 0.1283333333 | BB47: 0.1346666667 | BC47: 0.128 | BD47: 0.127 | BE47: 0.126 | BF47: 0.1283333333 | BG47: 0.1253333333 | BH47: 0.1263333333 | BI47: 0.132 | BJ47: 0.127 | BK47: 0.1296666667 | BL47: 0.127 | BM47: 0.1213333333 | BN47: 0.1233333333 | BO47: =AVERAGE(BO44:BO46) -> 0.121 | BP47: 0.1183333333 | BQ47: 0.119 | BR47: 0.1186666667 | BS47: 0.118 | BT47: 0.1203333333 | BU47: 0.1176666667 | BV47: 0.1176666667 | BW47: 0.1183333333 | BX47: 0.1163333333 | BY47: 0.1173333333 | BZ47: 0.1163333333 | CA47: 0.118 | CB47: 0.1173333333 | CC47: 0.1196666667 | CD47: 0.117 | CE47: 0.1173333333 | CF47: 0.1176666667 | CG47: 0.1193333333 | CH47: 0.1196666667 | CI47: 0.1153333333 | CJ47: 0.1203333333 | CK47: 0.1156666667 | CL47: 0.1213333333 | CM47: 0.12 | CN47: 0.1193333333 | CO47: 0.1206666667 | CP47: 0.1166666667 | CQ47: 0.12 | CR47: 0.1203333333 | CS47: 0.1186666667 | CT47: 0.12 | CU47: 0.1186666667 | CV47: 0.1183333333 | CW47: 0.117 | CX47: 0.119 | CY47: 0.1173333333 | CZ47: 0.1176666667
B48: STDEVA | C48: =STDEVA(C44:C46) -> 0 | D48: 0 | E48: 0.002516611478 | F48: 0.003055050463 | G48: 0.003605551275 | H48: 0.002516611478 | I48: 0.002081665999 | J48: 0.003785938897 | K48: 0.006658328118 | L48: 0.007371114796 | M48: 0.009073771726 | N48: 0.008326663998 | O48: 0.003 | P48: 0.006027713773 | Q48: 0.002645751311 | R48: 0.002645751311 | S48: 0.003605551275 | T48: 0.003605551275 | U48: 0.001154700538 | V48: 0.002 | W48: 0.004163331999 | X48: 0.001732050808 | Y48: 0.001527525232 | Z48: 0.001 | AA48: 0.003605551275 | AB48: 0.005567764363 | AC48: 0.002516611478 | AD48: 0.004163331999 | AE48: 0.005507570547 | AF48: 0.005686240703 | AG48: 0.006110100927 | AH48: 0.005131601439 | AI48: 0.005686240703 | AJ48: 0.005131601439 | AK48: 0.007637626158 | AL48: 0.005859465277 | AM48: 0.006806859286 | AN48: 0.008504900548 | AO48: 0.008082903769 | AP48: 0.008326663998 | AQ48: 0.009848857802 | AR48: 0.014571662 | AS48: 0.01852025918 | AT48: 0.01417744688 | AU48: 0.01234233905 | AV48: 0.009712534856 | AW48: 0.0170098011 | AX48: 0.008736894948 | AY48: 0.008736894948 | AZ48: 0.009451631253 | BA48: 0.01234233905 | BB48: 0.02136195996 | BC48: 0.01417744688 | BD48: 0.01322875656 | BE48: 0.01417744688 | BF48: 0.0130511813 | BG48: 0.01379613472 | BH48: 0.01379613472 | BI48: 0.01682260384 | BJ48: 0.01915724406 | BK48: 0.0150443788 | BL48: 0.01126942767 | BM48: 0.009451631253 | BN48: 0.004509249753 | BO48: =STDEVA(BO44:BO46) -> 0.002645751311 | BP48: 0.006506407099 | BQ48: 0.001732050808 | BR48: 0.002081665999 | BS48: 0.002 | BT48: 0.004509249753 | BU48: 0.006027713773 | BV48: 0.004725815626 | BW48: 0.005033222957 | BX48: 0.005507570547 | BY48: 0.004163331999 | BZ48: 0.006110100927 | CA48: 0.004582575695 | CB48: 0.005131601439 | CC48: 0.004725815626 | CD48: 0.005567764363 | CE48: 0.007767453465 | CF48: 0.008326663998 | CG48: 0.008736894948 | CH48: 0.008144527815 | CI48: 0.009237604307 | CJ48: 0.008386497084 | CK48: 0.008144527815 | CL48: 0.009451631253 | CM48: 0.009539392014 | CN48: 0.007571877794 | CO48: 0.007234178138 | CP48: 0.007234178138 | CQ48: 0.007810249676 | CR48: 0.006806859286 | CS48: 0.00896288644 | CT48: 0.008717797887 | CU48: 0.007234178138 | CV48: 0.008504900548 | CW48: 0.01039230485 | CX48: 0.008660254038 | CY48: 0.007571877794 | CZ48: 0.008326663998
A50: Notes: Assay is measured with 7 different concentrations of DPI. n=3 repeats. Time course is from 0-99 min, intervial is 1 min. We calculate average and STDEVA value for each minute.
CY52: lane
C53: Time | D53: 0 min | E53: 1 min | F53: 2 min | G53: 3 min | H53: 4 min | I53: 5 min | J53: 6 min | K53: 7 min | L53: 8 min | M53: 9 min | N53: 10 min | O53: 11 min | P53: 12 min | Q53: 13 min | R53: 14 min | S53: 15 min | T53: 16 min | U53: 17 min | V53: 18 min | W53: 19 min | X53: 20 min | Y53: 21 min | Z53: 22 min | AA53: 23 min | AB53: 24 min | AC53: 25 min | AD53: 26 min | AE53: 27 min | AF53: 28 min | AG53: 29 min | AH53: 30 min | AI53: 31 min | AJ53: 32 min | AK53: 33 min | AL53: 34 min | AM53: 35 min | AN53: 36 min | AO53: 37 min | AP53: 38 min | AQ53: 39 min | AR53: 40 min | AS53: 41 min | AT53: 42 min | AU53: 43 min | AV53: 44 min | AW53: 45 min | AX53: 46 min | AY53: 47 min | AZ53: 48 min | BA53: 49 min | BB53: 50 min | BC53: 51 min | BD53: 52 min | BE53: 53 min | BF53: 54 min | BG53: 55 min | BH53: 56 min | BI53: 57 min | BJ53: 58 min | BK53: 59 min | BL53: 60 min | BM53: 61 min | BN53: 62 min | BO53: 63 min | BP53: 64 min | BQ53: 65 min | BR53: 66 min | BS53: 67 min | BT53: 68 min | BU53: 69 min | BV53: 70 min | BW53: 71 min | BX53: 72 min | BY53: 73 min | BZ53: 74 min | CA53: 75 min | CB53: 76 min | CC53: 77 min | CD53: 78 min | CE53: 79 min | CF53: 80 min | CG53: 81 min | CH53: 82 min | CI53: 83 min | CJ53: 84 min | CK53: 85 min | CL53: 86 min | CM53: 87 min | CN53: 88 min | CO53: 89 min | CP53: 90 min | CQ53: 91 min | CR53: 92 min | CS53: 93 min | CT53: 94 min | CU53: 95 min | CV53: 96 min | CW53: 97 min | CX53: 98 min | CY53: 99 min
A54: DPI 10 uM | C54: 10 | D54: 0.155 | E54: 0.1536666667 | F54: 0.1643333333 | G54: 0.1603333333 | H54: 0.156 | I54: 0.157 | J54: 0.1613333333 | K54: 0.1783333333 | L54: 0.174 | M54: 0.1613333333 | N54: 0.1603333333 | O54: 0.16 | P54: 0.201 | Q54: 0.1663333333 | R54: 0.209 | S54: 0.1646666667 | T54: 0.1636666667 | U54: 0.177 | V54: 0.164 | W54: 0.1716666667 | X54: 0.1666666667 | Y54: 0.227 | Z54: 0.1686666667 | AA54: 0.2323333333 | AB54: 0.1683333333 | AC54: 0.1896666667 | AD54: 0.1693333333 | AE54: 0.207 | AF54: 0.17 | AG54: 0.228 | AH54: 0.1683333333 | AI54: 0.223 | AJ54: 0.1706666667 | AK54: 0.2226666667 | AL54: 0.169 | AM54: 0.2086666667 | AN54: 0.17 | AO54: 0.2023333333 | AP54: 0.1736666667 | AQ54: 0.1923333333 | AR54: 0.175 | AS54: 0.1733333333 | AT54: 0.177 | AU54: 0.1753333333 | AV54: 0.1743333333 | AW54: 0.1783333333 | AX54: 0.1766666667 | AY54: 0.1773333333 | AZ54: 0.1793333333 | BA54: 0.177 | BB54: 0.1773333333 | BC54: 0.177 | BD54: 0.1793333333 | BE54: 0.1803333333 | BF54: 0.1776666667 | BG54: 0.1773333333 | BH54: 0.1776666667 | BI54: 0.178 | BJ54: 0.18 | BK54: 0.1833333333 | BL54: 0.178 | BM54: 0.179 | BN54: 0.1776666667 | BO54: 0.1796666667 | BP54: 0.1793333333 | BQ54: 0.1793333333 | BR54: 0.1793333333 | BS54: 0.1823333333 | BT54: 0.1806666667 | BU54: 0.1803333333 | BV54: 0.181 | BW54: 0.1776666667 | BX54: 0.1796666667 | BY54: 0.1813333333 | BZ54: 0.1846666667 | CA54: 0.183 | CB54: 0.1846666667 | CC54: 0.1833333333 | CD54: 0.183 | CE54: 0.1816666667 | CF54: 0.1833333333 | CG54: 0.1843333333 | CH54: 0.1813333333 | CI54: 0.184 | CJ54: 0.182 | CK54: 0.1803333333 | CL54: 0.187 | CM54: 0.1853333333 | CN54: 0.188 | CO54: 0.1843333333 | CP54: 0.187 | CQ54: 0.186 | CR54: 0.185 | CS54: 0.185 | CT54: 0.185 | CU54: 0.1863333333 | CV54: 0.1856666667 | CW54: 0.1866666667 | CX54: 0.1863333333 | CY54: 0.186 | CZ54: Average
C55: Std Dev | D55: 0.007 | E55: 0.004509249753 | F55: 0.01115048579 | G55: 0.001527525232 | H55: 0.004582575695 | I55: 0.006557438524 | J55: 0.004163331999 | K55: 0.02663331247 | L55: 0.01946792233 | M55: 0.005507570547 | N55: 0.006806859286 | O55: 0.007 | P55: 0.06415605973 | Q55: 0.007637626158 | R55: 0.079 | S55: 0.005686240703 | T55: 0.005686240703 | U55: 0.01609347694 | V55: 0.006244997998 | W55: 0.01258305739 | X55: 0.003511884584 | Y55: 0.103116439 | Z55: 0.003785938897 | AA55: 0.1123847558 | AB55: 0.006110100927 | AC55: 0.03419551628 | AD55: 0.004163331999 | AE55: 0.06158733636 | AF55: 0.007211102551 | AG55: 0.0987724658 | AH55: 0.005507570547 | AI55: 0.0892356431 | AJ55: 0.005033222957 | AK55: 0.0852310585 | AL55: 0.004582575695 | AM55: 0.06698009655 | AN55: 0.005 | AO55: 0.05262445566 | AP55: 0.005507570547 | AQ55: 0.03453018004 | AR55: 0.003605551275 | AS55: 0.004041451884 | AT55: 0.005 | AU55: 0.003214550254 | AV55: 0.003214550254 | AW55: 0.002516611478 | AX55: 0.002516611478 | AY55: 0.002309401077 | AZ55: 0.002309401077 | BA55: 0.002645751311 | BB55: 0.0005773502692 | BC55: 0.002 | BD55: 0.001527525232 | BE55: 0.002081665999 | BF55: 0.003511884584 | BG55: 0.003055050463 | BH55: 0.002516611478 | BI55: 0.003 | BJ55: 0.003605551275 | BK55: 0.002516611478 | BL55: 0.003605551275 | BM55: 0.003605551275 | BN55: 0.004509249753 | BO55: 0.004163331999 | BP55: 0.002081665999 | BQ55: 0.002081665999 | BR55: 0.001527525232 | BS55: 0.001154700538 | BT55: 0.002081665999 | BU55: 0.003055050463 | BV55: 0.003 | BW55: 0.003214550254 | BX55: 0.001527525232 | BY55: 0.001154700538 | BZ55: 0.002309401077 | CA55: 0.002645751311 | CB55: 0.002081665999 | CC55: 0.001527525232 | CD55: 0.002645751311 | CE55: 0.003214550254 | CF55: 0.001527525232 | CG55: 0.003055050463 | CH55: 0.002886751346 | CI55: 0.003464101615 | CJ55: 0.001732050808 | CK55: 0.004041451884 | CL55: 0.002645751311 | CM55: 0.002516611478 | CN55: 0.003 | CO55: 0.003785938897 | CP55: 0.003605551275 | CQ55: 0.003 | CR55: 0.002645751311 | CS55: 0.004358898944 | CT55: 0.003464101615 | CU55: 0.003055050463 | CV55: 0.004041451884 | CW55: 0.003511884584 | CX55: 0.003785938897 | CY55: 0.003605551275 | CZ55: STDEVA
A56: DPI 5 uM | C56: =C54/2 -> 5 | D56: 0.1553333333 | E56: 0.1536666667 | F56: 0.1556666667 | G56: 0.157 | H56: 0.1553333333 | I56: 0.156 | J56: 0.16 | K56: 0.1606666667 | L56: 0.164 | M56: 0.163 | N56: 0.162 | O56: 0.1616666667 | P56: 0.162 | Q56: 0.1623333333 | R56: 0.162 | S56: 0.1646666667 | T56: 0.1633333333 | U56: 0.1686666667 | V56: 0.1686666667 | W56: 0.1663333333 | X56: 0.1703333333 | Y56: 0.1693333333 | Z56: 0.1776666667 | AA56: 0.173 | AB56: 0.1846666667 | AC56: 0.18 | AD56: 0.1806666667 | AE56: 0.1893333333 | AF56: 0.1793333333 | AG56: 0.1863333333 | AH56: 0.1896666667 | AI56: 0.1813333333 | AJ56: 0.194 | AK56: 0.1856666667 | AL56: 0.1896666667 | AM56: 0.1893333333 | AN56: 0.1796666667 | AO56: 0.1933333333 | AP56: 0.189 | AQ56: 0.1886666667 | AR56: 0.1996666667 | AS56: 0.197 | AT56: 0.2096666667 | AU56: 0.2046666667 | AV56: 0.201 | AW56: 0.2043333333 | AX56: 0.1976666667 | AY56: 0.207 | AZ56: 0.2103333333 | BA56: 0.2036666667 | BB56: 0.1946666667 | BC56: 0.202 | BD56: 0.2113333333 | BE56: 0.2046666667 | BF56: 0.199 | BG56: 0.201 | BH56: 0.2016666667 | BI56: 0.2063333333 | BJ56: 0.2113333333 | BK56: 0.207 | BL56: 0.2 | BM56: 0.2073333333 | BN56: 0.2106666667 | BO56: 0.204 | BP56: 0.2003333333 | BQ56: 0.1973333333 | BR56: 0.203 | BS56: 0.2106666667 | BT56: 0.208 | BU56: 0.2046666667 | BV56: 0.1986666667 | BW56: 0.202 | BX56: 0.2053333333 | BY56: 0.2006666667 | BZ56: 0.204 | CA56: 0.206 | CB56: 0.2043333333 | CC56: 0.2033333333 | CD56: 0.2076666667 | CE56: 0.201 | CF56: 0.2 | CG56: 0.2016666667 | CH56: 0.191 | CI56: 0.2036666667 | CJ56: 0.1993333333 | CK56: 0.2063333333 | CL56: 0.204 | CM56: 0.2053333333 | CN56: 0.2056666667 | CO56: 0.2066666667 | CP56: 0.2006666667 | CQ56: 0.206 | CR56: 0.2063333333 | CS56: 0.21 | CT56: 0.1976666667 | CU56: 0.204 | CV56: 0.203 | CW56: 0.2093333333 | CX56: 0.2006666667 | CY56: 0.2063333333 | CZ56: Average
C57: Std Dev | D57: 0.008144527815 | E57: 0.006806859286 | F57: 0.006658328118 | G57: 0.007810249676 | H57: 0.005507570547 | I57: 0.005291502622 | J57: 0.00608276253 | K57: 0.005773502692 | L57: 0.004358898944 | M57: 0.004582575695 | N57: 0.007 | O57: 0.004163331999 | P57: 0.004582575695 | Q57: 0.004041451884 | R57: 0.003464101615 | S57: 0.002309401077 | T57: 0.004041451884 | U57: 0.003214550254 | V57: 0.005033222957 | W57: 0.002081665999 | X57: 0.01115048579 | Y57: 0.003511884584 | Z57: 0.01871719352 | AA57: 0.01039230485 | AB57: 0.02281081615 | AC57: 0.01562049935 | AD57: 0.0142243922 | AE57: 0.02742869544 | AF57: 0.007505553499 | AG57: 0.01887679351 | AH57: 0.02274496281 | AI57: 0.009291573243 | AJ57: 0.02570992026 | AK57: 0.01106044002 | AL57: 0.01817507451 | AM57: 0.0215019379 | AN57: 0.006110100927 | AO57: 0.02119748413 | AP57: 0.01153256259 | AQ57: 0.0146401275 | AR57: 0.02498666311 | AS57: 0.01705872211 | AT57: 0.03187998327 | AU57: 0.03100537588 | AV57: 0.01967231557 | AW57: 0.02013289183 | AX57: 0.01975685535 | AY57: 0.03629049462 | AZ57: 0.03231614663 | BA57: 0.02052640576 | BB57: 0.0174737899 | BC57: 0.01931320792 | BD57: 0.03073000705 | BE57: 0.0261023626 | BF57: 0.01931320792 | BG57: 0.01752141547 | BH57: 0.01900876991 | BI57: 0.03043572462 | BJ57: 0.02814841618 | BK57: 0.02389560629 | BL57: 0.01479864859 | BM57: 0.02138535324 | BN57: 0.02650157228 | BO57: 0.02535744467 | BP57: 0.0207926269 | BQ57: 0.01474222959 | BR57: 0.02364318084 | BS57: 0.02730079364 | BT57: 0.02722131518 | BU57: 0.02324507116 | BV57: 0.014571662 | BW57: 0.02116601049 | BX57: 0.02685764944 | BY57: 0.01795364401 | BZ57: 0.0200748599 | CA57: 0.02042057786 | CB57: 0.01800925688 | CC57: 0.01800925688 | CD57: 0.02386070689 | CE57: 0.01322875656 | CF57: 0.009848857802 | CG57: 0.01342882472 | CH57: 0.002 | CI57: 0.01436430762 | CJ57: 0.01040833 | CK57: 0.02020725942 | CL57: 0.01178982612 | CM57: 0.014571662 | CN57: 0.01222020185 | CO57: 0.0177857621 | CP57: 0.008326663998 | CQ57: 0.01587450787 | CR57: 0.01234233905 | CS57: 0.02022374842 | CT57: 0.004163331999 | CU57: 0.01014889157 | CV57: 0.007549834435 | CW57: 0.01594783162 | CX57: 0.003055050463 | CY57: 0.01106044002 | CZ57: STDEVA
A58: DPI 2.5 uM | C58: =C56/2 -> 2.5 | D58: 0.152 | E58: 0.1513333333 | F58: 0.154 | G58: 0.1546666667 | H58: 0.153 | I58: 0.1553333333 | J58: 0.1583333333 | K58: 0.1586666667 | L58: 0.162 | M58: 0.161 | N58: 0.1583333333 | O58: 0.1603333333 | P58: 0.1626666667 | Q58: 0.1656666667 | R58: 0.1673333333 | S58: 0.1676666667 | T58: 0.167 | U58: 0.1723333333 | V58: 0.1733333333 | W58: 0.1696666667 | X58: 0.169 | Y58: 0.1713333333 | Z58: 0.1723333333 | AA58: 0.171 | AB58: 0.1756666667 | AC58: 0.1726666667 | AD58: 0.175 | AE58: 0.1736666667 | AF58: 0.175 | AG58: 0.1733333333 | AH58: 0.175 | AI58: 0.1743333333 | AJ58: 0.177 | AK58: 0.1783333333 | AL58: 0.177 | AM58: 0.1753333333 | AN58: 0.1783333333 | AO58: 0.1796666667 | AP58: 0.1806666667 | AQ58: 0.1796666667 | AR58: 0.1823333333 | AS58: 0.1813333333 | AT58: 0.1846666667 | AU58: 0.1846666667 | AV58: 0.1823333333 | AW58: 0.1853333333 | AX58: 0.1856666667 | AY58: 0.1846666667 | AZ58: 0.1876666667 | BA58: 0.186 | BB58: 0.1863333333 | BC58: 0.1863333333 | BD58: 0.1876666667 | BE58: 0.1903333333 | BF58: 0.1886666667 | BG58: 0.1883333333 | BH58: 0.1876666667 | BI58: 0.1903333333 | BJ58: 0.1933333333 | BK58: 0.191 | BL58: 0.1896666667 | BM58: 0.1956666667 | BN58: 0.1926666667 | BO58: 0.192 | BP58: 0.1903333333 | BQ58: 0.1913333333 | BR58: 0.1926666667 | BS58: 0.1946666667 | BT58: 0.1936666667 | BU58: 0.1926666667 | BV58: 0.1953333333 | BW58: 0.1943333333 | BX58: 0.194 | BY58: 0.1926666667 | BZ58: 0.1953333333 | CA58: 0.1953333333 | CB58: 0.1976666667 | CC58: 0.1956666667 | CD58: 0.196 | CE58: 0.1973333333 | CF58: 0.1993333333 | CG58: 0.2006666667 | CH58: 0.198 | CI58: 0.1986666667 | CJ58: 0.1956666667 | CK58: 0.1963333333 | CL58: 0.2 | CM58: 0.2003333333 | CN58: 0.2013333333 | CO58: 0.1993333333 | CP58: 0.2006666667 | CQ58: 0.2006666667 | CR58: 0.2013333333 | CS58: 0.2003333333 | CT58: 0.2003333333 | CU58: 0.201 | CV58: 0.201 | CW58: 0.203 | CX58: 0.2023333333 | CY58: 0.2033333333 | CZ58: Average
C59: Std Dev | D59: 0.01135781669 | E59: 0.01159022577 | F59: 0.01044030651 | G59: 0.01101514109 | H59: 0.009539392014 | I59: 0.009073771726 | J59: 0.008144527815 | K59: 0.008386497084 | L59: 0.009643650761 | M59: 0.008717797887 | N59: 0.00896288644 | O59: 0.007637626158 | P59: 0.007767453465 | Q59: 0.002081665999 | R59: 0.004509249753 | S59: 0.004163331999 | T59: 0.001732050808 | U59: 0.003055050463 | V59: 0.004509249753 | W59: 0.001154700538 | X59: 0.001 | Y59: 0.004163331999 | Z59: 0.001527525232 | AA59: 0.003605551275 | AB59: 0.003511884584 | AC59: 0.004163331999 | AD59: 0.004582575695 | AE59: 0.003214550254 | AF59: 0.003605551275 | AG59: 0.003055050463 | AH59: 0.003 | AI59: 0.003785938897 | AJ59: 0.003 | AK59: 0.003511884584 | AL59: 0.001732050808 | AM59: 0.002081665999 | AN59: 0.002516611478 | AO59: 0.002081665999 | AP59: 0.003511884584 | AQ59: 0.003055050463 | AR59: 0.002309401077 | AS59: 0.001527525232 | AT59: 0.002886751346 | AU59: 0.001527525232 | AV59: 0.004509249753 | AW59: 0.002516611478 | AX59: 0.002081665999 | AY59: 0.002886751346 | AZ59: 0.003055050463 | BA59: 0.001732050808 | BB59: 0.002309401077 | BC59: 0.001527525232 | BD59: 0.002081665999 | BE59: 0.001527525232 | BF59: 0.002516611478 | BG59: 0.0005773502692 | BH59: 0.0005773502692 | BI59: 0.001154700538 | BJ59: 0.004932882862 | BK59: 0.001 | BL59: 0.001154700538 | BM59: 0.008326663998 | BN59: 0.003214550254 | BO59: 0.001732050808 | BP59: 0.002516611478 | BQ59: 0.002309401077 | BR59: 0.001527525232 | BS59: 0.002081665999 | BT59: 0.002516611478 | BU59: 0.003055050463 | BV59: 0.002886751346 | BW59: 0.003511884584 | BX59: 0.001 | BY59: 0.002516611478 | BZ59: 0.001527525232 | CA59: 0.002516611478 | CB59: 0.003214550254 | CC59: 0.001527525232 | CD59: 0.001 | CE59: 0.002886751346 | CF59: 0.004509249753 | CG59: 0.003511884584 | CH59: 0.003605551275 | CI59: 0.003511884584 | CJ59: 0.002516611478 | CK59: 0.001527525232 | CL59: 0.003605551275 | CM59: 0.003785938897 | CN59: 0.002886751346 | CO59: 0.003055050463 | CP59: 0.003511884584 | CQ59: 0.003055050463 | CR59: 0.001154700538 | CS59: 0.003055050463 | CT59: 0.003055050463 | CU59: 0.002645751311 | CV59: 0.001732050808 | CW59: 0.002645751311 | CX59: 0.001154700538 | CY59: 0.002886751346 | CZ59: STDEVA
A60: DPI 1.25 uM | C60: =C58/2 -> 1.25 | D60: 0.1523333333 | E60: 0.1523333333 | F60: 0.154 | G60: 0.1553333333 | H60: 0.1543333333 | I60: 0.1563333333 | J60: 0.1606666667 | K60: 0.162 | L60: 0.164 | M60: 0.163 | N60: 0.162 | O60: 0.162 | P60: 0.1636666667 | Q60: 0.164 | R60: 0.166 | S60: 0.1686666667 | T60: 0.168 | U60: 0.172 | V60: 0.171 | W60: 0.171 | X60: 0.1706666667 | Y60: 0.1733333333 | Z60: 0.175 | AA60: 0.1756666667 | AB60: 0.1783333333 | AC60: 0.1793333333 | AD60: 0.18 | AE60: 0.1803333333 | AF60: 0.182 | AG60: 0.18 | AH60: 0.1813333333 | AI60: 0.1816666667 | AJ60: 0.184 | AK60: 0.1866666667 | AL60: 0.1853333333 | AM60: 0.185 | AN60: 0.1863333333 | AO60: 0.189 | AP60: 0.192 | AQ60: 0.19 | AR60: 0.1923333333 | AS60: 0.195 | AT60: 0.1986666667 | AU60: 0.2006666667 | AV60: 0.195 | AW60: 0.201 | AX60: 0.2003333333 | AY60: 0.201 | AZ60: 0.204 | BA60: 0.2006666667 | BB60: 0.2026666667 | BC60: 0.204 | BD60: 0.2056666667 | BE60: 0.2086666667 | BF60: 0.207 | BG60: 0.206 | BH60: 0.2073333333 | BI60: 0.2073333333 | BJ60: 0.2083333333 | BK60: 0.2096666667 | BL60: 0.208 | BM60: 0.21 | BN60: 0.2106666667 | BO60: 0.2106666667 | BP60: 0.21 | BQ60: 0.211 | BR60: 0.2123333333 | BS60: 0.2146666667 | BT60: 0.2143333333 | BU60: 0.2123333333 | BV60: 0.2136666667 | BW60: 0.212 | BX60: 0.215 | BY60: 0.215 | BZ60: 0.2176666667 | CA60: 0.217 | CB60: 0.2183333333 | CC60: 0.2166666667 | CD60: 0.2193333333 | CE60: 0.2176666667 | CF60: 0.218 | CG60: 0.2186666667 | CH60: 0.2173333333 | CI60: 0.2193333333 | CJ60: 0.2193333333 | CK60: 0.2166666667 | CL60: 0.2233333333 | CM60: 0.2223333333 | CN60: 0.224 | CO60: 0.2223333333 | CP60: 0.2226666667 | CQ60: 0.2243333333 | CR60: 0.2246666667 | CS60: 0.225 | CT60: 0.224 | CU60: 0.2253333333 | CV60: 0.2263333333 | CW60: 0.226 | CX60: 0.2253333333 | CY60: 0.2263333333 | CZ60: Average
C61: Std Dev | D61: 0.01101514109 | E61: 0.01159022577 | F61: 0.01113552873 | G61: 0.009504384953 | H61: 0.009018499506 | I61: 0.009609023537 | J61: 0.009073771726 | K61: 0.01053565375 | L61: 0.009539392014 | M61: 0.007937253933 | N61: 0.007549834435 | O61: 0.007211102551 | P61: 0.008020806277 | Q61: 0.007211102551 | R61: 0.007549834435 | S61: 0.006110100927 | T61: 0.005567764363 | U61: 0.005567764363 | V61: 0.005567764363 | W61: 0.005291502622 | X61: 0.005507570547 | Y61: 0.004041451884 | Z61: 0.004 | AA61: 0.003511884584 | AB61: 0.002886751346 | AC61: 0.003785938897 | AD61: 0.003605551275 | AE61: 0.003785938897 | AF61: 0.001732050808 | AG61: 0.004358898944 | AH61: 0.003055050463 | AI61: 0.002309401077 | AJ61: 0.001 | AK61: 0.001527525232 | AL61: 0.002081665999 | AM61: 0.001 | AN61: 0.0005773502692 | AO61: 3.399349889e-17 | AP61: 0.001732050808 | AQ61: 0.001 | AR61: 0.0005773502692 | AS61: 0.001 | AT61: 0.003055050463 | AU61: 0.003785938897 | AV61: 0.002645751311 | AW61: 0.002645751311 | AX61: 0.003214550254 | AY61: 0.003464101615 | AZ61: 0.003605551275 | BA61: 0.003785938897 | BB61: 0.004725815626 | BC61: 0.005291502622 | BD61: 0.004725815626 | BE61: 0.005686240703 | BF61: 0.004358898944 | BG61: 0.00608276253 | BH61: 0.004163331999 | BI61: 0.004932882862 | BJ61: 0.006110100927 | BK61: 0.003785938897 | BL61: 0.003464101615 | BM61: 0.003464101615 | BN61: 0.003785938897 | BO61: 0.004618802154 | BP61: 0.004358898944 | BQ61: 0.004358898944 | BR61: 0.004041451884 | BS61: 0.004725815626 | BT61: 0.005859465277 | BU61: 0.003214550254 | BV61: 0.005033222957 | BW61: 0.003605551275 | BX61: 0.004358898944 | BY61: 0.004582575695 | BZ61: 0.004725815626 | CA61: 0.002645751311 | CB61: 0.004932882862 | CC61: 0.003511884584 | CD61: 0.004041451884 | CE61: 0.003785938897 | CF61: 0.004582575695 | CG61: 0.003785938897 | CH61: 0.002309401077 | CI61: 0.001527525232 | CJ61: 0.004041451884 | CK61: 0.004041451884 | CL61: 0.004163331999 | CM61: 0.003214550254 | CN61: 0.004358898944 | CO61: 0.004163331999 | CP61: 0.004618802154 | CQ61: 0.003214550254 | CR61: 0.003055050463 | CS61: 0.004358898944 | CT61: 0.002 | CU61: 0.003511884584 | CV61: 0.004041451884 | CW61: 0.002645751311 | CX61: 0.004932882862 | CY61: 0.004041451884 | CZ61: STDEVA
A62: DPI 0.625 uM | C62: =C60/2 -> 0.625 | D62: 0.153 | E62: 0.1513333333 | F62: 0.156 | G62: 0.1583333333 | H62: 0.157 | I62: 0.1583333333 | J62: 0.1626666667 | K62: 0.163 | L62: 0.167 | M62: 0.167 | N62: 0.1746666667 | O62: 0.191 | P62: 0.2043333333 | Q62: 0.199 | R62: 0.1723333333 | S62: 0.1746666667 | T62: 0.174 | U62: 0.1776666667 | V62: 0.177 | W62: 0.1773333333 | X62: 0.177 | Y62: 0.18 | Z62: 0.1813333333 | AA62: 0.1823333333 | AB62: 0.1853333333 | AC62: 0.1866666667 | AD62: 0.1886666667 | AE62: 0.1876666667 | AF62: 0.19 | AG62: 0.1903333333 | AH62: 0.1926666667 | AI62: 0.1933333333 | AJ62: 0.1963333333 | AK62: 0.2 | AL62: 0.1983333333 | AM62: 0.1966666667 | AN62: 0.199 | AO62: 0.2003333333 | AP62: 0.2023333333 | AQ62: 0.2016666667 | AR62: 0.205 | AS62: 0.2066666667 | AT62: 0.211 | AU62: 0.2116666667 | AV62: 0.2086666667 | AW62: 0.212 | AX62: 0.2113333333 | AY62: 0.2123333333 | AZ62: 0.2166666667 | BA62: 0.214 | BB62: 0.217 | BC62: 0.2173333333 | BD62: 0.22 | BE62: 0.2226666667 | BF62: 0.221 | BG62: 0.2226666667 | BH62: 0.2223333333 | BI62: 0.222 | BJ62: 0.2253333333 | BK62: 0.2266666667 | BL62: 0.2243333333 | BM62: 0.2266666667 | BN62: 0.2283333333 | BO62: 0.2306666667 | BP62: 0.229 | BQ62: 0.2303333333 | BR62: 0.231 | BS62: 0.234 | BT62: 0.2346666667 | BU62: 0.2333333333 | BV62: 0.2356666667 | BW62: 0.2353333333 | BX62: 0.236 | BY62: 0.236 | BZ62: 0.2396666667 | CA62: 0.2393333333 | CB62: 0.2426666667 | CC62: 0.2406666667 | CD62: 0.2423333333 | CE62: 0.2423333333 | CF62: 0.244 | CG62: 0.2463333333 | CH62: 0.243 | CI62: 0.2463333333 | CJ62: 0.244 | CK62: 0.2446666667 | CL62: 0.2506666667 | CM62: 0.2503333333 | CN62: 0.2513333333 | CO62: 0.25 | CP62: 0.2533333333 | CQ62: 0.253 | CR62: 0.254 | CS62: 0.2543333333 | CT62: 0.2553333333 | CU62: 0.2556666667 | CV62: 0.2566666667 | CW62: 0.2583333333 | CX62: 0.2576666667 | CY62: 0.2593333333 | CZ62: Average
C63: Std Dev | D63: 0.004358898944 | E63: 0.002886751346 | F63: 0.003605551275 | G63: 0.004509249753 | H63: 0.006244997998 | I63: 0.006658328118 | J63: 0.003511884584 | K63: 0.003605551275 | L63: 0.004 | M63: 0.004 | N63: 0.01517673658 | O63: 0.04003748244 | P63: 0.06575966342 | Q63: 0.05220153254 | R63: 0.006429100507 | S63: 0.006027713773 | T63: 0.004582575695 | U63: 0.002886751346 | V63: 0.005567764363 | W63: 0.005033222957 | X63: 0.004 | Y63: 0.004 | Z63: 0.005131601439 | AA63: 0.004932882862 | AB63: 0.004509249753 | AC63: 0.005033222957 | AD63: 0.003785938897 | AE63: 0.003055050463 | AF63: 0.004582575695 | AG63: 0.004041451884 | AH63: 0.004932882862 | AI63: 0.002516611478 | AJ63: 0.003511884584 | AK63: 0.002645751311 | AL63: 0.003055050463 | AM63: 0.003055050463 | AN63: 0.004358898944 | AO63: 0.004041451884 | AP63: 0.004932882862 | AQ63: 0.003785938897 | AR63: 0.004358898944 | AS63: 0.004041451884 | AT63: 0.003605551275 | AU63: 0.003055050463 | AV63: 0.004041451884 | AW63: 0.003605551275 | AX63: 0.003055050463 | AY63: 0.004041451884 | AZ63: 0.003785938897 | BA63: 0.005291502622 | BB63: 0.003605551275 | BC63: 0.003214550254 | BD63: 0.002645751311 | BE63: 0.003785938897 | BF63: 0.002645751311 | BG63: 0.002081665999 | BH63: 0.003511884584 | BI63: 0.003 | BJ63: 0.003214550254 | BK63: 0.003055050463 | BL63: 0.001527525232 | BM63: 0.003785938897 | BN63: 0.003214550254 | BO63: 0.002886751346 | BP63: 0.002645751311 | BQ63: 0.003214550254 | BR63: 0.002645751311 | BS63: 0.003 | BT63: 0.001527525232 | BU63: 0.002309401077 | BV63: 0.003055050463 | BW63: 0.002309401077 | BX63: 0.001732050808 | BY63: 0.002645751311 | BZ63: 0.003055050463 | CA63: 0.002516611478 | CB63: 0.002081665999 | CC63: 0.002516611478 | CD63: 0.002309401077 | CE63: 0.003511884584 | CF63: 0.003 | CG63: 0.001527525232 | CH63: 0.001732050808 | CI63: 0.002516611478 | CJ63: 0.001732050808 | CK63: 0.003511884584 | CL63: 0.002081665999 | CM63: 0.003214550254 | CN63: 0.002516611478 | CO63: 0.001 | CP63: 0.002081665999 | CQ63: 0.002645751311 | CR63: 0.002 | CS63: 0.002081665999 | CT63: 0.001527525232 | CU63: 0.002516611478 | CV63: 0.001527525232 | CW63: 0.001154700538 | CX63: 0.003511884584 | CY63: 0.001527525232 | CZ63: STDEVA
A64: DPI 0.3125 uM | C64: =C62/2 -> 0.3125 | D64: 0.151 | E64: 0.1503333333 | F64: 0.1533333333 | G64: 0.156 | H64: 0.1556666667 | I64: 0.1563333333 | J64: 0.161 | K64: 0.1616666667 | L64: 0.166 | M64: 0.1656666667 | N64: 0.166 | O64: 0.1676666667 | P64: 0.1686666667 | Q64: 0.1713333333 | R64: 0.1736666667 | S64: 0.177 | T64: 0.178 | U64: 0.1806666667 | V64: 0.181 | W64: 0.1823333333 | X64: 0.1806666667 | Y64: 0.185 | Z64: 0.187 | AA64: 0.1876666667 | AB64: 0.1923333333 | AC64: 0.1916666667 | AD64: 0.1933333333 | AE64: 0.1936666667 | AF64: 0.196 | AG64: 0.1953333333 | AH64: 0.198 | AI64: 0.2006666667 | AJ64: 0.2016666667 | AK64: 0.2043333333 | AL64: 0.2043333333 | AM64: 0.204 | AN64: 0.2076666667 | AO64: 0.2093333333 | AP64: 0.2126666667 | AQ64: 0.2123333333 | AR64: 0.2146666667 | AS64: 0.217 | AT64: 0.222 | AU64: 0.222 | AV64: 0.22 | AW64: 0.2243333333 | AX64: 0.226 | AY64: 0.2256666667 | AZ64: 0.23 | BA64: 0.2286666667 | BB64: 0.2306666667 | BC64: 0.2306666667 | BD64: 0.2346666667 | BE64: 0.2373333333 | BF64: 0.238 | BG64: 0.237 | BH64: 0.2396666667 | BI64: 0.239 | BJ64: 0.2426666667 | BK64: 0.244 | BL64: 0.244 | BM64: 0.2466666667 | BN64: 0.2466666667 | BO64: 0.2476666667 | BP64: 0.249 | BQ64: 0.2506666667 | BR64: 0.253 | BS64: 0.2566666667 | BT64: 0.2566666667 | BU64: 0.257 | BV64: 0.2583333333 | BW64: 0.2566666667 | BX64: 0.2606666667 | BY64: 0.261 | BZ64: 0.2653333333 | CA64: 0.2656666667 | CB64: 0.269 | CC64: 0.2663333333 | CD64: 0.269 | CE64: 0.269 | CF64: 0.2703333333 | CG64: 0.273 | CH64: 0.2703333333 | CI64: 0.2756666667 | CJ64: 0.2743333333 | CK64: 0.275 | CL64: 0.2813333333 | CM64: 0.2796666667 | CN64: 0.2823333333 | CO64: 0.2826666667 | CP64: 0.2846666667 | CQ64: 0.2863333333 | CR64: 0.286 | CS64: 0.2883333333 | CT64: 0.289 | CU64: 0.2906666667 | CV64: 0.292 | CW64: 0.2943333333 | CX64: 0.2926666667 | CY64: 0.2943333333 | CZ64: Average
C65: Std Dev | D65: 0.005291502622 | E65: 0.005507570547 | F65: 0.004618802154 | G65: 0.004582575695 | H65: 0.006806859286 | I65: 0.004725815626 | J65: 0.004358898944 | K65: 0.003214550254 | L65: 0.003605551275 | M65: 0.003214550254 | N65: 0.003464101615 | O65: 0.004041451884 | P65: 0.005131601439 | Q65: 0.005859465277 | R65: 0.004725815626 | S65: 0.006244997998 | T65: 0.005291502622 | U65: 0.005507570547 | V65: 0.003464101615 | W65: 0.003511884584 | X65: 0.002081665999 | Y65: 0.002645751311 | Z65: 0.002645751311 | AA65: 0.001527525232 | AB65: 0.002309401077 | AC65: 0.002081665999 | AD65: 0.002309401077 | AE65: 0.002081665999 | AF65: 0.002 | AG65: 0.003511884584 | AH65: 0.002 | AI65: 0.002309401077 | AJ65: 0.002309401077 | AK65: 0.003055050463 | AL65: 0.002516611478 | AM65: 0.002645751311 | AN65: 0.004163331999 | AO65: 0.004041451884 | AP65: 0.003511884584 | AQ65: 0.003055050463 | AR65: 0.004509249753 | AS65: 0.003464101615 | AT65: 0.003464101615 | AU65: 0.004582575695 | AV65: 0.004582575695 | AW65: 0.003785938897 | AX65: 0.005567764363 | AY65: 0.005507570547 | AZ65: 0.004358898944 | BA65: 0.003511884584 | BB65: 0.004509249753 | BC65: 0.004163331999 | BD65: 0.004509249753 | BE65: 0.003055050463 | BF65: 0.003605551275 | BG65: 0.004582575695 | BH65: 0.004163331999 | BI65: 0.003605551275 | BJ65: 0.004041451884 | BK65: 0.004 | BL65: 0.005291502622 | BM65: 0.003214550254 | BN65: 0.003511884584 | BO65: 0.004509249753 | BP65: 0.003605551275 | BQ65: 0.003055050463 | BR65: 0.004582575695 | BS65: 0.003511884584 | BT65: 0.003214550254 | BU65: 0.004 | BV65: 0.003785938897 | BW65: 0.003214550254 | BX65: 0.003055050463 | BY65: 0.003464101615 | BZ65: 0.003511884584 | CA65: 0.004041451884 | CB65: 0.004582575695 | CC65: 0.003511884584 | CD65: 0.004 | CE65: 0.003605551275 | CF65: 0.002081665999 | CG65: 0.003605551275 | CH65: 0.003055050463 | CI65: 0.002886751346 | CJ65: 0.002309401077 | CK65: 0.002645751311 | CL65: 0.003214550254 | CM65: 0.004163331999 | CN65: 0.002516611478 | CO65: 0.002886751346 | CP65: 0.003055050463 | CQ65: 0.003214550254 | CR65: 0.005196152423 | CS65: 0.001527525232 | CT65: 0.003605551275 | CU65: 0.003055050463 | CV65: 0.003605551275 | CW65: 0.003214550254 | CX65: 0.002886751346 | CY65: 0.003214550254 | CZ65: STDEVA
A66: DPI 0.15625 uM | C66: =C64/2 -> 0.15625 | D66: 0.152 | E66: 0.1526666667 | F66: 0.1566666667 | G66: 0.1596666667 | H66: 0.1596666667 | I66: 0.164 | J66: 0.1673333333 | K66: 0.166 | L66: 0.1693333333 | M66: 0.178 | N66: 0.171 | O66: 0.1713333333 | P66: 0.1746666667 | Q66: 0.176 | R66: 0.1783333333 | S66: 0.1836666667 | T66: 0.1823333333 | U66: 0.1873333333 | V66: 0.1876666667 | W66: 0.1893333333 | X66: 0.19 | Y66: 0.1936666667 | Z66: 0.1966666667 | AA66: 0.198 | AB66: 0.2016666667 | AC66: 0.2036666667 | AD66: 0.2063333333 | AE66: 0.2066666667 | AF66: 0.209 | AG66: 0.209 | AH66: 0.2113333333 | AI66: 0.2133333333 | AJ66: 0.2156666667 | AK66: 0.2186666667 | AL66: 0.2183333333 | AM66: 0.2196666667 | AN66: 0.2236666667 | AO66: 0.2253333333 | AP66: 0.2286666667 | AQ66: 0.229 | AR66: 0.2343333333 | AS66: 0.2346666667 | AT66: 0.2393333333 | AU66: 0.2436666667 | AV66: 0.2403333333 | AW66: 0.2453333333 | AX66: 0.2453333333 | AY66: 0.2476666667 | AZ66: 0.2523333333 | BA66: 0.2506666667 | BB66: 0.2533333333 | BC66: 0.2543333333 | BD66: 0.259 | BE66: 0.262 | BF66: 0.262 | BG66: 0.263 | BH66: 0.263 | BI66: 0.265 | BJ66: 0.2683333333 | BK66: 0.271 | BL66: 0.2706666667 | BM66: 0.274 | BN66: 0.276 | BO66: 0.278 | BP66: 0.2786666667 | BQ66: 0.2803333333 | BR66: 0.283 | BS66: 0.286 | BT66: 0.2893333333 | BU66: 0.2886666667 | BV66: 0.2936666667 | BW66: 0.2933333333 | BX66: 0.2953333333 | BY66: 0.296 | BZ66: 0.3 | CA66: 0.3 | CB66: 0.3023333333 | CC66: 0.3013333333 | CD66: 0.3053333333 | CE66: 0.306 | CF66: 0.3076666667 | CG66: 0.3103333333 | CH66: 0.3086666667 | CI66: 0.3143333333 | CJ66: 0.313 | CK66: 0.3153333333 | CL66: 0.3226666667 | CM66: 0.3233333333 | CN66: 0.328 | CO66: 0.3273333333 | CP66: 0.3273333333 | CQ66: 0.3316666667 | CR66: 0.3293333333 | CS66: 0.3316666667 | CT66: 0.3326666667 | CU66: 0.336 | CV66: 0.336 | CW66: 0.338 | CX66: 0.339 | CY66: 0.341 | CZ66: Average
C67: Std Dev | D67: 0.006557438524 | E67: 0.007023769169 | F67: 0.005507570547 | G67: 0.006027713773 | H67: 0.005033222957 | I67: 0.004 | J67: 0.005686240703 | K67: 0.004582575695 | L67: 0.004041451884 | M67: 0.008185352772 | N67: 0.004582575695 | O67: 0.004041451884 | P67: 0.006658328118 | Q67: 0.004 | R67: 0.003511884584 | S67: 0.003511884584 | T67: 0.004725815626 | U67: 0.004041451884 | V67: 0.004509249753 | W67: 0.004725815626 | X67: 0.006 | Y67: 0.005033222957 | Z67: 0.004509249753 | AA67: 0.004582575695 | AB67: 0.004932882862 | AC67: 0.005507570547 | AD67: 0.007767453465 | AE67: 0.007637626158 | AF67: 0.006557438524 | AG67: 0.006 | AH67: 0.006506407099 | AI67: 0.005686240703 | AJ67: 0.005131601439 | AK67: 0.006110100927 | AL67: 0.005686240703 | AM67: 0.006506407099 | AN67: 0.004509249753 | AO67: 0.005686240703 | AP67: 0.005131601439 | AQ67: 0.00608276253 | AR67: 0.006027713773 | AS67: 0.006506407099 | AT67: 0.006658328118 | AU67: 0.009073771726 | AV67: 0.009018499506 | AW67: 0.0100166528 | AX67: 0.006429100507 | AY67: 0.006110100927 | AZ67: 0.007371114796 | BA67: 0.008082903769 | BB67: 0.008326663998 | BC67: 0.007371114796 | BD67: 0.007937253933 | BE67: 0.007 | BF67: 0.007810249676 | BG67: 0.008185352772 | BH67: 0.008888194417 | BI67: 0.008888194417 | BJ67: 0.008144527815 | BK67: 0.008888194417 | BL67: 0.008082903769 | BM67: 0.007211102551 | BN67: 0.007810249676 | BO67: 0.008717797887 | BP67: 0.009073771726 | BQ67: 0.009291573243 | BR67: 0.009848857802 | BS67: 0.008888194417 | BT67: 0.007023769169 | BU67: 0.004163331999 | BV67: 0.004725815626 | BW67: 0.005131601439 | BX67: 0.005033222957 | BY67: 0.008185352772 | BZ67: 0.008544003745 | CA67: 0.009848857802 | CB67: 0.01026320288 | CC67: 0.0100166528 | CD67: 0.009073771726 | CE67: 0.01058300524 | CF67: 0.01069267662 | CG67: 0.0112398102 | CH67: 0.01167618659 | CI67: 0.01266227994 | CJ67: 0.01053565375 | CK67: 0.008020806277 | CL67: 0.008504900548 | CM67: 0.007094598885 | CN67: 0.006 | CO67: 0.006027713773 | CP67: 0.0100166528 | CQ67: 0.0170098011 | CR67: 0.01361371857 | CS67: 0.01205542755 | CT67: 0.01209683154 | CU67: 0.01153256259 | CV67: 0.01311487705 | CW67: 0.01276714533 | CX67: 0.01311487705 | CY67: 0.01374772708 | CZ67: STDEVA
A68: DPI 0 uM | C68: 0 | D68: 0.1356666667 | E68: 0.1323333333 | F68: 0.135 | G68: 0.1366666667 | H68: 0.1336666667 | I68: 0.1346666667 | J68: 0.1383333333 | K68: 0.1386666667 | L68: 0.1406666667 | M68: 0.1406666667 | N68: 0.137 | O68: 0.1353333333 | P68: 0.139 | Q68: 0.136 | R68: 0.134 | S68: 0.136 | T68: 0.1366666667 | U68: 0.135 | V68: 0.1326666667 | W68: 0.132 | X68: 0.1336666667 | Y68: 0.134 | Z68: 0.134 | AA68: 0.134 | AB68: 0.1363333333 | AC68: 0.1346666667 | AD68: 0.1353333333 | AE68: 0.1343333333 | AF68: 0.1343333333 | AG68: 0.1323333333 | AH68: 0.1316666667 | AI68: 0.1313333333 | AJ68: 0.1326666667 | AK68: 0.1333333333 | AL68: 0.1303333333 | AM68: 0.1283333333 | AN68: 0.1283333333 | AO68: 0.1296666667 | AP68: 0.131 | AQ68: 0.1313333333 | AR68: 0.136 | AS68: 0.129 | AT68: 0.1313333333 | AU68: 0.1283333333 | AV68: 0.1316666667 | AW68: 0.1263333333 | AX68: 0.1253333333 | AY68: 0.1263333333 | AZ68: 0.1283333333 | BA68: 0.1346666667 | BB68: 0.128 | BC68: 0.127 | BD68: 0.126 | BE68: 0.1283333333 | BF68: 0.1253333333 | BG68: 0.1263333333 | BH68: 0.132 | BI68: 0.127 | BJ68: 0.1296666667 | BK68: 0.127 | BL68: 0.1213333333 | BM68: 0.1233333333 | BN68: 0.121 | BO68: 0.1183333333 | BP68: 0.119 | BQ68: 0.1186666667 | BR68: 0.118 | BS68: 0.1203333333 | BT68: 0.1176666667 | BU68: 0.1176666667 | BV68: 0.1183333333 | BW68: 0.1163333333 | BX68: 0.1173333333 | BY68: 0.1163333333 | BZ68: 0.118 | CA68: 0.1173333333 | CB68: 0.1196666667 | CC68: 0.117 | CD68: 0.1173333333 | CE68: 0.1176666667 | CF68: 0.1193333333 | CG68: 0.1196666667 | CH68: 0.1153333333 | CI68: 0.1203333333 | CJ68: 0.1156666667 | CK68: 0.1213333333 | CL68: 0.12 | CM68: 0.1193333333 | CN68: 0.1206666667 | CO68: 0.1166666667 | CP68: 0.12 | CQ68: 0.1203333333 | CR68: 0.1186666667 | CS68: 0.12 | CT68: 0.1186666667 | CU68: 0.1183333333 | CV68: 0.117 | CW68: 0.119 | CX68: 0.1173333333 | CY68: 0.1176666667 | CZ68: Average
C69: Std Dev | D69: 0.002516611478 | E69: 0.003055050463 | F69: 0.003605551275 | G69: 0.002516611478 | H69: 0.002081665999 | I69: 0.003785938897 | J69: 0.006658328118 | K69: 0.007371114796 | L69: 0.009073771726 | M69: 0.008326663998 | N69: 0.003 | O69: 0.006027713773 | P69: 0.002645751311 | Q69: 0.002645751311 | R69: 0.003605551275 | S69: 0.003605551275 | T69: 0.001154700538 | U69: 0.002 | V69: 0.004163331999 | W69: 0.001732050808 | X69: 0.001527525232 | Y69: 0.001 | Z69: 0.003605551275 | AA69: 0.005567764363 | AB69: 0.002516611478 | AC69: 0.004163331999 | AD69: 0.005507570547 | AE69: 0.005686240703 | AF69: 0.006110100927 | AG69: 0.005131601439 | AH69: 0.005686240703 | AI69: 0.005131601439 | AJ69: 0.007637626158 | AK69: 0.005859465277 | AL69: 0.006806859286 | AM69: 0.008504900548 | AN69: 0.008082903769 | AO69: 0.008326663998 | AP69: 0.009848857802 | AQ69: 0.014571662 | AR69: 0.01852025918 | AS69: 0.01417744688 | AT69: 0.01234233905 | AU69: 0.009712534856 | AV69: 0.0170098011 | AW69: 0.008736894948 | AX69: 0.008736894948 | AY69: 0.009451631253 | AZ69: 0.01234233905 | BA69: 0.02136195996 | BB69: 0.01417744688 | BC69: 0.01322875656 | BD69: 0.01417744688 | BE69: 0.0130511813 | BF69: 0.01379613472 | BG69: 0.01379613472 | BH69: 0.01682260384 | BI69: 0.01915724406 | BJ69: 0.0150443788 | BK69: 0.01126942767 | BL69: 0.009451631253 | BM69: 0.004509249753 | BN69: 0.002645751311 | BO69: 0.006506407099 | BP69: 0.001732050808 | BQ69: 0.002081665999 | BR69: 0.002 | BS69: 0.004509249753 | BT69: 0.006027713773 | BU69: 0.004725815626 | BV69: 0.005033222957 | BW69: 0.005507570547 | BX69: 0.004163331999 | BY69: 0.006110100927 | BZ69: 0.004582575695 | CA69: 0.005131601439 | CB69: 0.004725815626 | CC69: 0.005567764363 | CD69: 0.007767453465 | CE69: 0.008326663998 | CF69: 0.008736894948 | CG69: 0.008144527815 | CH69: 0.009237604307 | CI69: 0.008386497084 | CJ69: 0.008144527815 | CK69: 0.009451631253 | CL69: 0.009539392014 | CM69: 0.007571877794 | CN69: 0.007234178138 | CO69: 0.007234178138 | CP69: 0.007810249676 | CQ69: 0.006806859286 | CR69: 0.00896288644 | CS69: 0.008717797887 | CT69: 0.007234178138 | CU69: 0.008504900548 | CV69: 0.01039230485 | CW69: 0.008660254038 | CX69: 0.007571877794 | CY69: 0.008326663998 | CZ69: STDEVA
C70: Control | D70: 0.1383333333 | E70: 0.1426666667 | F70: 0.151 | G70: 0.161 | H70: 0.1673333333 | I70: 0.1743333333 | J70: 0.2046666667 | K70: 0.2043333333 | L70: 0.1983333333 | M70: 0.2036666667 | N70: 0.21 | O70: 0.2156666667 | P70: 0.221 | Q70: 0.23 | R70: 0.2373333333 | S70: 0.2483333333 | T70: 0.2526666667 | U70: 0.263 | V70: 0.268 | W70: 0.2753333333 | X70: 0.2803333333 | Y70: 0.2906666667 | Z70: 0.2976666667 | AA70: 0.3036666667 | AB70: 0.314 | AC70: 0.3193333333 | AD70: 0.3256666667 | AE70: 0.332 | AF70: 0.3423333333 | AG70: 0.347 | AH70: 0.3546666667 | AI70: 0.3603333333 | AJ70: 0.3686666667 | AK70: 0.3766666667 | AL70: 0.382 | AM70: 0.388 | AN70: 0.3963333333 | AO70: 0.4023333333 | AP70: 0.412 | AQ70: 0.418 | AR70: 0.426 | AS70: 0.4326666667 | AT70: 0.443 | AU70: 0.449 | AV70: 0.4533333333 | AW70: 0.4626666667 | AX70: 0.4683333333 | AY70: 0.4753333333 | AZ70: 0.483 | BA70: 0.4883333333 | BB70: 0.496 | BC70: 0.5026666667 | BD70: 0.5113333333 | BE70: 0.5183333333 | BF70: 0.5243333333 | BG70: 0.529 | BH70: 0.5353333333 | BI70: 0.5413333333 | BJ70: 0.551 | BK70: 0.5573333333 | BL70: 0.5626666667 | BM70: 0.569 | BN70: 0.577 | BO70: 0.5833333333 | BP70: 0.5883333333 | BQ70: 0.596 | BR70: 0.6016666667 | BS70: 0.6103333333 | BT70: 0.617 | BU70: 0.621 | BV70: 0.6293333333 | BW70: 0.632 | BX70: 0.6403333333 | BY70: 0.6466666667 | BZ70: 0.6556666667 | CA70: 0.6606666667 | CB70: 0.6686666667 | CC70: 0.6726666667 | CD70: 0.6793333333 | CE70: 0.6853333333 | CF70: 0.6933333333 | CG70: 0.6986666667 | CH70: 0.703 | CI70: 0.7113333333 | CJ70: 0.7156666667 | CK70: 0.7203333333 | CL70: 0.7316666667 | CM70: 0.7363333333 | CN70: 0.743 | CO70: 0.747 | CP70: 0.7533333333 | CQ70: 0.76 | CR70: 0.7656666667 | CS70: 0.772 | CT70: 0.7776666667 | CU70: 0.7836666667 | CV70: 0.7886666667 | CW70: 0.797 | CX70: 0.8003333333 | CY70: 0.8073333333
C71: Std Dev | D71: 0.008386497084 | E71: 0.008082903769 | F71: 0.00608276253 | G71: 0.005196152423 | H71: 0.006658328118 | I71: 0.005773502692 | J71: 0.03552933061 | K71: 0.0262741952 | L71: 0.006658328118 | M71: 0.006350852961 | N71: 0.00692820323 | O71: 0.007371114796 | P71: 0.009643650761 | Q71: 0.007211102551 | R71: 0.005773502692 | S71: 0.007767453465 | T71: 0.007371114796 | U71: 0.00608276253 | V71: 0.007 | W71: 0.005773502692 | X71: 0.008504900548 | Y71: 0.006350852961 | Z71: 0.007234178138 | AA71: 0.007371114796 | AB71: 0.006557438524 | AC71: 0.007094598885 | AD71: 0.008144527815 | AE71: 0.008185352772 | AF71: 0.006806859286 | AG71: 0.008888194417 | AH71: 0.007637626158 | AI71: 0.007094598885 | AJ71: 0.008621678104 | AK71: 0.008020806277 | AL71: 0.007549834435 | AM71: 0.008544003745 | AN71: 0.009018499506 | AO71: 0.008020806277 | AP71: 0.007549834435 | AQ71: 0.007549834435 | AR71: 0.008544003745 | AS71: 0.006658328118 | AT71: 0.008185352772 | AU71: 0.007211102551 | AV71: 0.008326663998 | AW71: 0.006658328118 | AX71: 0.008326663998 | AY71: 0.008082903769 | AZ71: 0.008717797887 | BA71: 0.008144527815 | BB71: 0.007937253933 | BC71: 0.009237604307 | BD71: 0.009865765725 | BE71: 0.009814954576 | BF71: 0.008144527815 | BG71: 0.01044030651 | BH71: 0.01069267662 | BI71: 0.01154700538 | BJ71: 0.01058300524 | BK71: 0.01154700538 | BL71: 0.01011599394 | BM71: 0.01126942767 | BN71: 0.01228820573 | BO71: 0.01159022577 | BP71: 0.01250333289 | BQ71: 0.01126942767 | BR71: 0.01365039682 | BS71: 0.01159022577 | BT71: 0.01307669683 | BU71: 0.014 | BV71: 0.01331665624 | BW71: 0.01539480432 | BX71: 0.01266227994 | BY71: 0.01379613472 | BZ71: 0.01379613472 | CA71: 0.01550268794 | CB71: 0.01497776129 | CC71: 0.01497776129 | CD71: 0.01553490693 | CE71: 0.01553490693 | CF71: 0.01721433511 | CG71: 0.01550268794 | CH71: 0.01513274595 | CI71: 0.01530795 | CJ71: 0.01569500982 | CK71: 0.01795364401 | CL71: 0.01858314649 | CM71: 0.01650252506 | CN71: 0.01609347694 | CO71: 0.01637070554 | CP71: 0.01817507451 | CQ71: 0.01833030278 | CR71: 0.016653328 | CS71: 0.019 | CT71: 0.01929594085 | CU71: 0.01789785834 | CV71: 0.01789785834 | CW71: 0.01946792233 | CX71: 0.0187705443 | CY71: 0.02010804151
A72: Notes: We calculate the average and STDEVA values of all time ( from 0-99 min). The value is at the end of column. The system control is 0.117667.
D74: parameter 1 | E74: parameter 2 | F74: parameter 3 | G74: parameter 4 | H74: parameter 5
C75: 10 | D75: 0.186 | E75: 0.003605551275 | F75: =D75-0.117 -> 0.069 | G75: =F75/37000*1000*1000 -> 1.864864865 | H75: =E75/37000*1000*1000 -> 0.09744733177 | I75: =G75/18.65766*100 -> 9.99517016 | J75: =H75/31.95988*100 -> 0.3049051867 | K75: =LOG10(C75) -> 1
C76: 5 | D76: 0.2063333333 | E76: 0.01106044002 | F76: 0.08933333333 | G76: =F76/37000*1000*1000 -> 2.414414414 | H76: =E76/37000*1000*1000 -> 0.2989308112 | I76: =G76/18.65766*100 -> 12.94060678 | J76: 0.9353314569 | K76: =LOG10(C76) -> 0.6989700043
C77: 2.5 | D77: 0.2033333333 | E77: 0.002886751346 | F77: 0.08633333333 | G77: 2.333333333 | H77: 0.07802030665 | I77: 12.50603416 | J77: 0.2441195231 | K77: 0.3979400087
C78: 1.25 | D78: 0.2263333333 | E78: 0.004041451884 | F78: 0.1093333333 | G78: 2.954954955 | H78: 0.1092284293 | I78: 15.83775755 | J78: 0.3417673324 | K78: 0.09691001301
C79: 0.625 | D79: 0.2593333333 | E79: 0.001527525232 | F79: 0.1423333333 | G79: 3.846846847 | H79: 0.04128446572 | I79: 20.61805632 | J79: 0.1291759097 | K79: -0.2041199827
C80: 0.3125 | D80: 0.2943333333 | E80: 0.003214550254 | F80: 0.1773333333 | G80: 4.792792793 | H80: 0.08687973659 | I80: 25.68807017 | J80: 0.2718399962 | K80: -0.5051499783
C81: 0.15625 | D81: 0.341 | E81: 0.01374772708 | F81: 0.224 | G81: 6.054054054 | H81: 0.3715601915 | I81: 32.44808864 | J81: 1.162583187 | K81: -0.806179974
C82: 0 | D82: 0.8073333333 | E82: 0.02010804151 | F82: =D82-0.117 -> 0.6903333333 | G82: 18.65765766 | H82: 0.5434605813 | I82: 100 | J82: 1.700446251
C83: Blank | D83: 0.1176666667
A85: Notes: The calculation is the parameter1 subtract system control, then we get parameter3. The equation is parameter 3 /37000X 1000X1000. For STDEVA, the calculation is similar. We take parameter 4 and 5 values to plot curve.

Sheet Fig 1d
A1: Figure 1d
A2: raw data | D2: Notes: n=5, there are 3 blank repeats of F, G and H
A4: User: ADMIN
A5: Path: C:\Program Files (x86)\BMG\Omega\Admin\Data\
A6: Test ID: 302
A7: Test Name: N0X5_50nM_12ran_2_ca st activity09302021
A8: Date: 9/30/2021
A9: Time: 3:08:03 PM
A10: Absorbance | D10: Absorbance values are displayed as OD
B12: data1 | C12: data2 | D12: data3 | E12: data4 | F12: data5 | G12: data6 | H12: data7 | I12: data8 | J12: ata9 | K12: data10 | L12: data11 | M12: data12
A13: lane | B13: 1 | C13: 2 | D13: 3 | E13: 4 | F13: 5 | G13: 6 | H13: 7 | I13: 8 | J13: 9 | K13: 10 | L13: 11 | M13: 12
A14: Ca (uM) | B14: 11.7 | C14: 4 | D14: 3 | E14: 2 | F14: 1 | G14: 0.8 | H14: 0.6 | I14: 0.405 | J14: 0.1806 | K14: 0.045 | L14: 0.0051 | M14: 0
A15: Cycle 1 (0 min)
B16: Raw Data (438)
B17: 1 | C17: 2 | D17: 3 | E17: 4 | F17: 5 | G17: 6 | H17: 7 | I17: 8 | J17: 9 | K17: 10 | L17: 11 | M17: 12
A18: A | B18: 0.18 | C18: 0.18 | D18: 0.186 | E18: 0.184 | F18: 0.176 | G18: 0.176 | H18: 0.183 | I18: 0.186 | J18: 0.181 | K18: 0.179 | L18: 0.175 | M18: 0.178
A19: B | B19: 0.179 | C19: 0.186 | D19: 0.185 | E19: 0.206 | F19: 0.185 | G19: 0.182 | H19: 0.195 | I19: 0.185 | J19: 0.185 | K19: 0.183 | L19: 0.175 | M19: 0.204
A20: C | B20: 0.179 | C20: 0.181 | D20: 0.184 | E20: 0.188 | F20: 0.185 | G20: 0.185 | H20: 0.183 | I20: 0.186 | J20: 0.186 | K20: 0.183 | L20: 0.182 | M20: 0.18
A21: D | B21: 0.181 | C21: 0.183 | D21: 0.183 | E21: 0.186 | F21: 0.182 | G21: 0.181 | H21: 0.186 | I21: 0.196 | J21: 0.182 | K21: 0.179 | L21: 0.173 | M21: 0.174
A22: E | B22: 0.185 | C22: 0.179 | D22: 0.183 | E22: 0.187 | F22: 0.19 | G22: 0.189 | H22: 0.186 | I22: 0.208 | J22: 0.2 | K22: 0.176 | L22: 0.175 | M22: 0.188
A23: F | B23: 0.174 | C23: 0.169 | D23: 0.168 | E23: 0.166 | F23: 0.179 | G23: 0.177 | H23: 0.181 | I23: 0.184 | J23: 0.16 | K23: 0.174 | L23: 0.17 | M23: 0.176 | N23: Blank
A24: G | B24: 0.171 | C24: 0.17 | D24: 0.171 | E24: 0.17 | F24: 0.179 | G24: 0.17 | H24: 0.168 | I24: 0.178 | J24: 0.172 | K24: 0.175 | L24: 0.214 | M24: 0.174 | N24: Blank
A25: H | B25: 0.171 | C25: 0.166 | D25: 0.163 | E25: 0.178 | F25: 0.169 | G25: 0.171 | H25: 0.167 | I25: 0.162 | J25: 0.162 | K25: 0.169 | L25: 0.172 | M25: 0.173 | N25: Blank
A27: Cycle 2 (0 min 55 s)
B28: Raw Data (438)
B29: 1 | C29: 2 | D29: 3 | E29: 4 | F29: 5 | G29: 6 | H29: 7 | I29: 8 | J29: 9 | K29: 10 | L29: 11 | M29: 12
A30: A | B30: 0.189 | C30: 0.194 | D30: 0.197 | E30: 0.195 | F30: 0.19 | G30: 0.193 | H30: 0.196 | I30: 0.192 | J30: 0.184 | K30: 0.178 | L30: 0.177 | M30: 0.179
A31: B | B31: 0.193 | C31: 0.197 | D31: 0.2 | E31: 0.213 | F31: 0.196 | G31: 0.19 | H31: 0.199 | I31: 0.192 | J31: 0.188 | K31: 0.184 | L31: 0.174 | M31: 0.18
A32: C | B32: 0.189 | C32: 0.192 | D32: 0.194 | E32: 0.2 | F32: 0.196 | G32: 0.197 | H32: 0.191 | I32: 0.19 | J32: 0.189 | K32: 0.183 | L32: 0.182 | M32: 0.182
A33: D | B33: 0.194 | C33: 0.197 | D33: 0.197 | E33: 0.198 | F33: 0.193 | G33: 0.193 | H33: 0.195 | I33: 0.202 | J33: 0.187 | K33: 0.183 | L33: 0.175 | M33: 0.177
A34: E | B34: 0.2 | C34: 0.187 | D34: 0.196 | E34: 0.197 | F34: 0.198 | G34: 0.2 | H34: 0.197 | I34: 0.212 | J34: 0.197 | K34: 0.178 | L34: 0.178 | M34: 0.187
A35: F | B35: 0.173 | C35: 0.169 | D35: 0.164 | E35: 0.165 | F35: 0.178 | G35: 0.177 | H35: 0.18 | I35: 0.186 | J35: 0.159 | K35: 0.171 | L35: 0.171 | M35: 0.18
A36: G | B36: 0.172 | C36: 0.169 | D36: 0.167 | E36: 0.171 | F36: 0.179 | G36: 0.169 | H36: 0.167 | I36: 0.183 | J36: 0.171 | K36: 0.177 | L36: 0.172 | M36: 0.174
A37: H | B37: 0.172 | C37: 0.165 | D37: 0.162 | E37: 0.177 | F37: 0.166 | G37: 0.17 | H37: 0.167 | I37: 0.165 | J37: 0.161 | K37: 0.168 | L37: 0.173 | M37: 0.171
A39: Cycle 3 (1 min 50 s)
B40: Raw Data (438)
B41: 1 | C41: 2 | D41: 3 | E41: 4 | F41: 5 | G41: 6 | H41: 7 | I41: 8 | J41: 9 | K41: 10 | L41: 11 | M41: 12
A42: A | B42: 0.204 | C42: 0.208 | D42: 0.214 | E42: 0.211 | F42: 0.204 | G42: 0.204 | H42: 0.201 | I42: 0.196 | J42: 0.19 | K42: 0.185 | L42: 0.18 | M42: 0.181
A43: B | B43: 0.208 | C43: 0.213 | D43: 0.217 | E43: 0.23 | F43: 0.208 | G43: 0.202 | H43: 0.207 | I43: 0.199 | J43: 0.191 | K43: 0.187 | L43: 0.176 | M43: 0.183
A44: C | B44: 0.203 | C44: 0.208 | D44: 0.209 | E44: 0.215 | F44: 0.207 | G44: 0.206 | H44: 0.199 | I44: 0.199 | J44: 0.192 | K44: 0.185 | L44: 0.183 | M44: 0.181
A45: D | B45: 0.211 | C45: 0.21 | D45: 0.213 | E45: 0.215 | F45: 0.205 | G45: 0.206 | H45: 0.205 | I45: 0.21 | J45: 0.189 | K45: 0.185 | L45: 0.175 | M45: 0.18
A46: E | B46: 0.215 | C46: 0.205 | D46: 0.213 | E46: 0.215 | F46: 0.209 | G46: 0.212 | H46: 0.203 | I46: 0.22 | J46: 0.204 | K46: 0.179 | L46: 0.176 | M46: 0.19
A47: F | B47: 0.175 | C47: 0.173 | D47: 0.164 | E47: 0.166 | F47: 0.178 | G47: 0.179 | H47: 0.18 | I47: 0.187 | J47: 0.162 | K47: 0.172 | L47: 0.176 | M47: 0.185
A48: G | B48: 0.172 | C48: 0.17 | D48: 0.168 | E48: 0.17 | F48: 0.18 | G48: 0.17 | H48: 0.169 | I48: 0.187 | J48: 0.173 | K48: 0.182 | L48: 0.171 | M48: 0.176
A49: H | B49: 0.171 | C49: 0.169 | D49: 0.164 | E49: 0.179 | F49: 0.171 | G49: 0.17 | H49: 0.171 | I49: 0.169 | J49: 0.163 | K49: 0.172 | L49: 0.175 | M49: 0.174
A51: Cycle 4 (2 min 45 s)
B52: Raw Data (438)
B53: 1 | C53: 2 | D53: 3 | E53: 4 | F53: 5 | G53: 6 | H53: 7 | I53: 8 | J53: 9 | K53: 10 | L53: 11 | M53: 12
A54: A | B54: 0.224 | C54: 0.226 | D54: 0.233 | E54: 0.233 | F54: 0.222 | G54: 0.218 | H54: 0.223 | I54: 0.209 | J54: 0.195 | K54: 0.189 | L54: 0.18 | M54: 0.181
A55: B | B55: 0.228 | C55: 0.234 | D55: 0.233 | E55: 0.245 | F55: 0.223 | G55: 0.213 | H55: 0.221 | I55: 0.209 | J55: 0.196 | K55: 0.191 | L55: 0.18 | M55: 0.188
A56: C | B56: 0.223 | C56: 0.231 | D56: 0.232 | E56: 0.235 | F56: 0.223 | G56: 0.221 | H56: 0.208 | I56: 0.205 | J56: 0.198 | K56: 0.19 | L56: 0.187 | M56: 0.185
A57: D | B57: 0.235 | C57: 0.232 | D57: 0.233 | E57: 0.239 | F57: 0.219 | G57: 0.221 | H57: 0.224 | I57: 0.221 | J57: 0.195 | K57: 0.19 | L57: 0.181 | M57: 0.181
A58: E | B58: 0.243 | C58: 0.226 | D58: 0.228 | E58: 0.234 | F58: 0.229 | G58: 0.225 | H58: 0.214 | I58: 0.23 | J58: 0.209 | K58: 0.184 | L58: 0.181 | M58: 0.194
A59: F | B59: 0.174 | C59: 0.177 | D59: 0.165 | E59: 0.167 | F59: 0.176 | G59: 0.182 | H59: 0.18 | I59: 0.187 | J59: 0.167 | K59: 0.177 | L59: 0.178 | M59: 0.188
A60: G | B60: 0.175 | C60: 0.173 | D60: 0.17 | E60: 0.173 | F60: 0.182 | G60: 0.175 | H60: 0.171 | I60: 0.195 | J60: 0.176 | K60: 0.185 | L60: 0.176 | M60: 0.178
A61: H | B61: 0.174 | C61: 0.169 | D61: 0.168 | E61: 0.183 | F61: 0.174 | G61: 0.17 | H61: 0.173 | I61: 0.172 | J61: 0.167 | K61: 0.177 | L61: 0.179 | M61: 0.177
A63: Cycle 5 (3 min 40 s)
B64: Raw Data (438)
B65: 1 | C65: 2 | D65: 3 | E65: 4 | F65: 5 | G65: 6 | H65: 7 | I65: 8 | J65: 9 | K65: 10 | L65: 11 | M65: 12
A66: A | B66: 0.242 | C66: 0.243 | D66: 0.251 | E66: 0.247 | F66: 0.232 | G66: 0.23 | H66: 0.223 | I66: 0.216 | J66: 0.195 | K66: 0.189 | L66: 0.182 | M66: 0.182
A67: B | B67: 0.246 | C67: 0.253 | D67: 0.253 | E67: 0.259 | F67: 0.236 | G67: 0.224 | H67: 0.23 | I67: 0.213 | J67: 0.2 | K67: 0.194 | L67: 0.18 | M67: 0.188
A68: C | B68: 0.242 | C68: 0.247 | D68: 0.246 | E68: 0.25 | F68: 0.236 | G68: 0.233 | H68: 0.216 | I68: 0.211 | J68: 0.199 | K68: 0.19 | L68: 0.186 | M68: 0.184
A69: D | B69: 0.252 | C69: 0.251 | D69: 0.251 | E69: 0.262 | F69: 0.231 | G69: 0.234 | H69: 0.229 | I69: 0.227 | J69: 0.197 | K69: 0.19 | L69: 0.182 | M69: 0.183
A70: E | B70: 0.255 | C70: 0.245 | D70: 0.247 | E70: 0.251 | F70: 0.244 | G70: 0.237 | H70: 0.223 | I70: 0.237 | J70: 0.211 | K70: 0.186 | L70: 0.181 | M70: 0.193
A71: F | B71: 0.169 | C71: 0.176 | D71: 0.163 | E71: 0.167 | F71: 0.174 | G71: 0.181 | H71: 0.18 | I71: 0.186 | J71: 0.169 | K71: 0.175 | L71: 0.177 | M71: 0.186
A72: G | B72: 0.173 | C72: 0.172 | D72: 0.168 | E72: 0.171 | F72: 0.181 | G72: 0.176 | H72: 0.166 | I72: 0.191 | J72: 0.173 | K72: 0.183 | L72: 0.175 | M72: 0.174
A73: H | B73: 0.172 | C73: 0.166 | D73: 0.166 | E73: 0.181 | F73: 0.174 | G73: 0.171 | H73: 0.168 | I73: 0.17 | J73: 0.166 | K73: 0.175 | L73: 0.177 | M73: 0.174
A75: Cycle 6 (4 min 35 s)
B76: Raw Data (438)
B77: 1 | C77: 2 | D77: 3 | E77: 4 | F77: 5 | G77: 6 | H77: 7 | I77: 8 | J77: 9 | K77: 10 | L77: 11 | M77: 12
A78: A | B78: 0.265 | C78: 0.267 | D78: 0.272 | E78: 0.276 | F78: 0.249 | G78: 0.248 | H78: 0.237 | I78: 0.224 | J78: 0.2 | K78: 0.195 | L78: 0.182 | M78: 0.182
A79: B | B79: 0.269 | C79: 0.274 | D79: 0.273 | E79: 0.28 | F79: 0.255 | G79: 0.236 | H79: 0.241 | I79: 0.221 | J79: 0.205 | K79: 0.194 | L79: 0.183 | M79: 0.187
A80: C | B80: 0.265 | C80: 0.269 | D80: 0.269 | E80: 0.268 | F80: 0.246 | G80: 0.245 | H80: 0.224 | I80: 0.22 | J80: 0.204 | K80: 0.193 | L80: 0.189 | M80: 0.185
A81: D | B81: 0.276 | C81: 0.271 | D81: 0.273 | E81: 0.273 | F81: 0.246 | G81: 0.248 | H81: 0.241 | I81: 0.237 | J81: 0.196 | K81: 0.195 | L81: 0.181 | M81: 0.187
A82: E | B82: 0.28 | C82: 0.267 | D82: 0.268 | E82: 0.271 | F82: 0.257 | G82: 0.254 | H82: 0.233 | I82: 0.244 | J82: 0.215 | K82: 0.189 | L82: 0.184 | M82: 0.197
A83: F | B83: 0.172 | C83: 0.177 | D83: 0.163 | E83: 0.169 | F83: 0.176 | G83: 0.182 | H83: 0.181 | I83: 0.188 | J83: 0.17 | K83: 0.178 | L83: 0.179 | M83: 0.191
A84: G | B84: 0.177 | C84: 0.174 | D84: 0.17 | E84: 0.173 | F84: 0.182 | G84: 0.177 | H84: 0.168 | I84: 0.192 | J84: 0.178 | K84: 0.183 | L84: 0.178 | M84: 0.177
A85: H | B85: 0.177 | C85: 0.166 | D85: 0.171 | E85: 0.185 | F85: 0.177 | G85: 0.172 | H85: 0.172 | I85: 0.176 | J85: 0.173 | K85: 0.179 | L85: 0.181 | M85: 0.174
A87: Cycle 7 (5 min 30 s)
B88: Raw Data (438)
B89: 1 | C89: 2 | D89: 3 | E89: 4 | F89: 5 | G89: 6 | H89: 7 | I89: 8 | J89: 9 | K89: 10 | L89: 11 | M89: 12
A90: A | B90: 0.289 | C90: 0.29 | D90: 0.294 | E90: 0.284 | F90: 0.264 | G90: 0.261 | H90: 0.25 | I90: 0.236 | J90: 0.205 | K90: 0.197 | L90: 0.185 | M90: 0.183
A91: B | B91: 0.292 | C91: 0.296 | D91: 0.293 | E91: 0.297 | F91: 0.269 | G91: 0.248 | H91: 0.251 | I91: 0.227 | J91: 0.209 | K91: 0.196 | L91: 0.179 | M91: 0.191
A92: C | B92: 0.286 | C92: 0.29 | D92: 0.288 | E92: 0.29 | F92: 0.26 | G92: 0.26 | H92: 0.235 | I92: 0.226 | J92: 0.206 | K92: 0.203 | L92: 0.187 | M92: 0.187
A93: D | B93: 0.299 | C93: 0.292 | D93: 0.297 | E93: 0.297 | F93: 0.258 | G93: 0.261 | H93: 0.25 | I93: 0.244 | J93: 0.2 | K93: 0.196 | L93: 0.181 | M93: 0.185
A94: E | B94: 0.302 | C94: 0.287 | D94: 0.29 | E94: 0.292 | F94: 0.271 | G94: 0.267 | H94: 0.249 | I94: 0.254 | J94: 0.22 | K94: 0.19 | L94: 0.183 | M94: 0.196
A95: F | B95: 0.17 | C95: 0.179 | D95: 0.166 | E95: 0.174 | F95: 0.176 | G95: 0.183 | H95: 0.182 | I95: 0.187 | J95: 0.176 | K95: 0.181 | L95: 0.18 | M95: 0.19
A96: G | B96: 0.174 | C96: 0.175 | D96: 0.17 | E96: 0.174 | F96: 0.183 | G96: 0.18 | H96: 0.167 | I96: 0.192 | J96: 0.177 | K96: 0.184 | L96: 0.211 | M96: 0.178
A97: H | B97: 0.176 | C97: 0.172 | D97: 0.17 | E97: 0.184 | F97: 0.178 | G97: 0.172 | H97: 0.171 | I97: 0.177 | J97: 0.175 | K97: 0.18 | L97: 0.18 | M97: 0.177
A99: Cycle 8 (6 min 25 s)
B100: Raw Data (438)
B101: 1 | C101: 2 | D101: 3 | E101: 4 | F101: 5 | G101: 6 | H101: 7 | I101: 8 | J101: 9 | K101: 10 | L101: 11 | M101: 12
A102: A | B102: 0.315 | C102: 0.313 | D102: 0.32 | E102: 0.308 | F102: 0.28 | G102: 0.276 | H102: 0.265 | I102: 0.243 | J102: 0.211 | K102: 0.199 | L102: 0.187 | M102: 0.186
A103: B | B103: 0.317 | C103: 0.322 | D103: 0.313 | E103: 0.316 | F103: 0.287 | G103: 0.264 | H103: 0.263 | I103: 0.237 | J103: 0.212 | K103: 0.197 | L103: 0.185 | M103: 0.19
A104: C | B104: 0.312 | C104: 0.316 | D104: 0.312 | E104: 0.312 | F104: 0.277 | G104: 0.274 | H104: 0.245 | I104: 0.235 | J104: 0.209 | K104: 0.202 | L104: 0.193 | M104: 0.19
A105: D | B105: 0.325 | C105: 0.313 | D105: 0.319 | E105: 0.318 | F105: 0.274 | G105: 0.276 | H105: 0.263 | I105: 0.256 | J105: 0.204 | K105: 0.2 | L105: 0.183 | M105: 0.186
A106: E | B106: 0.332 | C106: 0.314 | D106: 0.314 | E106: 0.313 | F106: 0.288 | G106: 0.281 | H106: 0.252 | I106: 0.262 | J106: 0.225 | K106: 0.194 | L106: 0.187 | M106: 0.199
A107: F | B107: 0.172 | C107: 0.182 | D107: 0.17 | E107: 0.174 | F107: 0.177 | G107: 0.186 | H107: 0.183 | I107: 0.186 | J107: 0.178 | K107: 0.184 | L107: 0.183 | M107: 0.192
A108: G | B108: 0.176 | C108: 0.179 | D108: 0.17 | E108: 0.175 | F108: 0.181 | G108: 0.183 | H108: 0.171 | I108: 0.191 | J108: 0.18 | K108: 0.189 | L108: 0.18 | M108: 0.178
A109: H | B109: 0.176 | C109: 0.172 | D109: 0.171 | E109: 0.187 | F109: 0.179 | G109: 0.177 | H109: 0.173 | I109: 0.179 | J109: 0.175 | K109: 0.184 | L109: 0.182 | M109: 0.18
A111: Cycle 9 (7 min 20 s)
B112: Raw Data (438)
B113: 1 | C113: 2 | D113: 3 | E113: 4 | F113: 5 | G113: 6 | H113: 7 | I113: 8 | J113: 9 | K113: 10 | L113: 11 | M113: 12
A114: A | B114: 0.339 | C114: 0.335 | D114: 0.341 | E114: 0.328 | F114: 0.296 | G114: 0.29 | H114: 0.274 | I114: 0.254 | J114: 0.214 | K114: 0.198 | L114: 0.185 | M114: 0.184
A115: B | B115: 0.341 | C115: 0.345 | D115: 0.338 | E115: 0.334 | F115: 0.301 | G115: 0.273 | H115: 0.272 | I115: 0.24 | J115: 0.215 | K115: 0.201 | L115: 0.182 | M115: 0.19
A116: C | B116: 0.333 | C116: 0.335 | D116: 0.337 | E116: 0.333 | F116: 0.288 | G116: 0.287 | H116: 0.252 | I116: 0.241 | J116: 0.214 | K116: 0.202 | L116: 0.191 | M116: 0.191
A117: D | B117: 0.348 | C117: 0.335 | D117: 0.34 | E117: 0.338 | F117: 0.286 | G117: 0.288 | H117: 0.276 | I117: 0.26 | J117: 0.207 | K117: 0.2 | L117: 0.185 | M117: 0.189
A118: E | B118: 0.353 | C118: 0.334 | D118: 0.335 | E118: 0.334 | F118: 0.305 | G118: 0.296 | H118: 0.261 | I118: 0.269 | J118: 0.226 | K118: 0.195 | L118: 0.184 | M118: 0.194
A119: F | B119: 0.17 | C119: 0.179 | D119: 0.164 | E119: 0.175 | F119: 0.175 | G119: 0.185 | H119: 0.183 | I119: 0.186 | J119: 0.177 | K119: 0.184 | L119: 0.181 | M119: 0.191
A120: G | B120: 0.174 | C120: 0.176 | D120: 0.171 | E120: 0.174 | F120: 0.198 | G120: 0.18 | H120: 0.167 | I120: 0.189 | J120: 0.18 | K120: 0.184 | L120: 0.184 | M120: 0.179
A121: H | B121: 0.175 | C121: 0.171 | D121: 0.172 | E121: 0.186 | F121: 0.179 | G121: 0.174 | H121: 0.172 | I121: 0.179 | J121: 0.177 | K121: 0.182 | L121: 0.182 | M121: 0.176
A123: Cycle 10 (8 min 15 s)
B124: Raw Data (438)
B125: 1 | C125: 2 | D125: 3 | E125: 4 | F125: 5 | G125: 6 | H125: 7 | I125: 8 | J125: 9 | K125: 10 | L125: 11 | M125: 12
A126: A | B126: 0.365 | C126: 0.362 | D126: 0.365 | E126: 0.351 | F126: 0.315 | G126: 0.307 | H126: 0.29 | I126: 0.261 | J126: 0.221 | K126: 0.203 | L126: 0.188 | M126: 0.188
A127: B | B127: 0.37 | C127: 0.378 | D127: 0.362 | E127: 0.357 | F127: 0.323 | G127: 0.29 | H127: 0.288 | I127: 0.249 | J127: 0.223 | K127: 0.207 | L127: 0.184 | M127: 0.192
A128: C | B128: 0.361 | C128: 0.361 | D128: 0.357 | E128: 0.357 | F128: 0.308 | G128: 0.304 | H128: 0.265 | I128: 0.251 | J128: 0.221 | K128: 0.207 | L128: 0.192 | M128: 0.192
A129: D | B129: 0.376 | C129: 0.361 | D129: 0.366 | E129: 0.36 | F129: 0.304 | G129: 0.31 | H129: 0.295 | I129: 0.274 | J129: 0.211 | K129: 0.204 | L129: 0.187 | M129: 0.19
A130: E | B130: 0.383 | C130: 0.362 | D130: 0.359 | E130: 0.357 | F130: 0.323 | G130: 0.313 | H130: 0.275 | I130: 0.283 | J130: 0.233 | K130: 0.2 | L130: 0.188 | M130: 0.198
A131: F | B131: 0.172 | C131: 0.18 | D131: 0.171 | E131: 0.178 | F131: 0.181 | G131: 0.187 | H131: 0.185 | I131: 0.19 | J131: 0.181 | K131: 0.185 | L131: 0.183 | M131: 0.192
A132: G | B132: 0.179 | C132: 0.177 | D132: 0.175 | E132: 0.177 | F132: 0.21 | G132: 0.185 | H132: 0.173 | I132: 0.189 | J132: 0.184 | K132: 0.188 | L132: 0.181 | M132: 0.18
A133: H | B133: 0.178 | C133: 0.175 | D133: 0.176 | E133: 0.189 | F133: 0.18 | G133: 0.178 | H133: 0.174 | I133: 0.181 | J133: 0.181 | K133: 0.184 | L133: 0.183 | M133: 0.18
A135: Cycle 11 (9 min 10 s)
B136: Raw Data (438)
B137: 1 | C137: 2 | D137: 3 | E137: 4 | F137: 5 | G137: 6 | H137: 7 | I137: 8 | J137: 9 | K137: 10 | L137: 11 | M137: 12
A138: A | B138: 0.391 | C138: 0.387 | D138: 0.391 | E138: 0.372 | F138: 0.331 | G138: 0.325 | H138: 0.301 | I138: 0.273 | J138: 0.222 | K138: 0.205 | L138: 0.191 | M138: 0.189
A139: B | B139: 0.396 | C139: 0.398 | D139: 0.387 | E139: 0.379 | F139: 0.34 | G139: 0.304 | H139: 0.297 | I139: 0.26 | J139: 0.225 | K139: 0.207 | L139: 0.189 | M139: 0.194
A140: C | B140: 0.385 | C140: 0.386 | D140: 0.38 | E140: 0.378 | F140: 0.321 | G140: 0.316 | H140: 0.273 | I140: 0.26 | J140: 0.224 | K140: 0.208 | L140: 0.193 | M140: 0.191
A141: D | B141: 0.403 | C141: 0.385 | D141: 0.391 | E141: 0.383 | F141: 0.317 | G141: 0.323 | H141: 0.316 | I141: 0.281 | J141: 0.214 | K141: 0.207 | L141: 0.189 | M141: 0.189
A142: E | B142: 0.41 | C142: 0.385 | D142: 0.382 | E142: 0.377 | F142: 0.34 | G142: 0.326 | H142: 0.284 | I142: 0.289 | J142: 0.236 | K142: 0.202 | L142: 0.188 | M142: 0.199
A143: F | B143: 0.176 | C143: 0.179 | D143: 0.171 | E143: 0.179 | F143: 0.18 | G143: 0.187 | H143: 0.185 | I143: 0.187 | J143: 0.182 | K143: 0.188 | L143: 0.186 | M143: 0.192
A144: G | B144: 0.178 | C144: 0.185 | D144: 0.174 | E144: 0.178 | F144: 0.182 | G144: 0.185 | H144: 0.174 | I144: 0.188 | J144: 0.184 | K144: 0.192 | L144: 0.18 | M144: 0.18
A145: H | B145: 0.177 | C145: 0.175 | D145: 0.174 | E145: 0.19 | F145: 0.183 | G145: 0.177 | H145: 0.173 | I145: 0.181 | J145: 0.181 | K145: 0.185 | L145: 0.186 | M145: 0.18
A147: Cycle 12 (10 min 5 s)
B148: Raw Data (438)
B149: 1 | C149: 2 | D149: 3 | E149: 4 | F149: 5 | G149: 6 | H149: 7 | I149: 8 | J149: 9 | K149: 10 | L149: 11 | M149: 12
A150: A | B150: 0.42 | C150: 0.412 | D150: 0.417 | E150: 0.394 | F150: 0.352 | G150: 0.344 | H150: 0.317 | I150: 0.284 | J150: 0.23 | K150: 0.209 | L150: 0.191 | M150: 0.192
A151: B | B151: 0.424 | C151: 0.423 | D151: 0.412 | E151: 0.4 | F151: 0.357 | G151: 0.318 | H151: 0.312 | I151: 0.269 | J151: 0.23 | K151: 0.211 | L151: 0.188 | M151: 0.196
A152: C | B152: 0.412 | C152: 0.413 | D152: 0.405 | E152: 0.4 | F152: 0.337 | G152: 0.335 | H152: 0.284 | I152: 0.27 | J152: 0.227 | K152: 0.213 | L152: 0.196 | M152: 0.194
A153: D | B153: 0.431 | C153: 0.412 | D153: 0.416 | E153: 0.407 | F153: 0.336 | G153: 0.342 | H153: 0.323 | I153: 0.294 | J153: 0.218 | K153: 0.21 | L153: 0.19 | M153: 0.193
A154: E | B154: 0.438 | C154: 0.413 | D154: 0.406 | E154: 0.402 | F154: 0.361 | G154: 0.346 | H154: 0.295 | I154: 0.3 | J154: 0.241 | K154: 0.203 | L154: 0.191 | M154: 0.202
A155: F | B155: 0.175 | C155: 0.181 | D155: 0.175 | E155: 0.181 | F155: 0.183 | G155: 0.189 | H155: 0.189 | I155: 0.189 | J155: 0.185 | K155: 0.188 | L155: 0.186 | M155: 0.192
A156: G | B156: 0.181 | C156: 0.18 | D156: 0.177 | E156: 0.179 | F156: 0.231 | G156: 0.186 | H156: 0.176 | I156: 0.189 | J156: 0.185 | K156: 0.2 | L156: 0.181 | M156: 0.184
A157: H | B157: 0.179 | C157: 0.176 | D157: 0.176 | E157: 0.191 | F157: 0.181 | G157: 0.182 | H157: 0.177 | I157: 0.187 | J157: 0.185 | K157: 0.19 | L157: 0.183 | M157: 0.182
A159: Cycle 13 (11 min)
B160: Raw Data (438)
B161: 1 | C161: 2 | D161: 3 | E161: 4 | F161: 5 | G161: 6 | H161: 7 | I161: 8 | J161: 9 | K161: 10 | L161: 11 | M161: 12
A162: A | B162: 0.447 | C162: 0.438 | D162: 0.444 | E162: 0.416 | F162: 0.372 | G162: 0.36 | H162: 0.331 | I162: 0.294 | J162: 0.235 | K162: 0.212 | L162: 0.195 | M162: 0.195
A163: B | B163: 0.45 | C163: 0.452 | D163: 0.439 | E163: 0.421 | F163: 0.381 | G163: 0.331 | H163: 0.322 | I163: 0.277 | J163: 0.234 | K163: 0.212 | L163: 0.189 | M163: 0.199
A164: C | B164: 0.437 | C164: 0.437 | D164: 0.429 | E164: 0.424 | F164: 0.352 | G164: 0.349 | H164: 0.296 | I164: 0.277 | J164: 0.234 | K164: 0.217 | L164: 0.199 | M164: 0.196
A165: D | B165: 0.458 | C165: 0.434 | D165: 0.442 | E165: 0.431 | F165: 0.35 | G165: 0.355 | H165: 0.336 | I165: 0.306 | J165: 0.221 | K165: 0.214 | L165: 0.2 | M165: 0.192
A166: E | B166: 0.467 | C166: 0.439 | D166: 0.43 | E166: 0.423 | F166: 0.379 | G166: 0.36 | H166: 0.307 | I166: 0.308 | J166: 0.251 | K166: 0.207 | L166: 0.19 | M166: 0.203
A167: F | B167: 0.178 | C167: 0.183 | D167: 0.173 | E167: 0.18 | F167: 0.184 | G167: 0.188 | H167: 0.188 | I167: 0.189 | J167: 0.184 | K167: 0.191 | L167: 0.187 | M167: 0.194
A168: G | B168: 0.182 | C168: 0.181 | D168: 0.177 | E168: 0.179 | F168: 0.254 | G168: 0.188 | H168: 0.177 | I168: 0.19 | J168: 0.188 | K168: 0.198 | L168: 0.181 | M168: 0.182
A169: H | B169: 0.181 | C169: 0.176 | D169: 0.174 | E169: 0.191 | F169: 0.182 | G169: 0.181 | H169: 0.178 | I169: 0.185 | J169: 0.184 | K169: 0.188 | L169: 0.185 | M169: 0.18
A171: Cycle 14 (11 min 55 s)
B172: Raw Data (438)
B173: 1 | C173: 2 | D173: 3 | E173: 4 | F173: 5 | G173: 6 | H173: 7 | I173: 8 | J173: 9 | K173: 10 | L173: 11 | M173: 12
A174: A | B174: 0.47 | C174: 0.462 | D174: 0.464 | E174: 0.437 | F174: 0.385 | G174: 0.373 | H174: 0.343 | I174: 0.302 | J174: 0.236 | K174: 0.214 | L174: 0.192 | M174: 0.195
A175: B | B175: 0.477 | C175: 0.477 | D175: 0.461 | E175: 0.44 | F175: 0.391 | G175: 0.344 | H175: 0.333 | I175: 0.283 | J175: 0.235 | K175: 0.213 | L175: 0.189 | M175: 0.197
A176: C | B176: 0.462 | C176: 0.471 | D176: 0.448 | E176: 0.447 | F176: 0.366 | G176: 0.361 | H176: 0.3 | I176: 0.282 | J176: 0.234 | K176: 0.216 | L176: 0.196 | M176: 0.196
A177: D | B177: 0.482 | C177: 0.454 | D177: 0.465 | E177: 0.454 | F177: 0.363 | G177: 0.369 | H177: 0.358 | I177: 0.311 | J177: 0.223 | K177: 0.213 | L177: 0.189 | M177: 0.19
A178: E | B178: 0.493 | C178: 0.461 | D178: 0.452 | E178: 0.445 | F178: 0.395 | G178: 0.372 | H178: 0.315 | I178: 0.315 | J178: 0.249 | K178: 0.209 | L178: 0.19 | M178: 0.203
A179: F | B179: 0.175 | C179: 0.179 | D179: 0.172 | E179: 0.18 | F179: 0.181 | G179: 0.184 | H179: 0.185 | I179: 0.186 | J179: 0.183 | K179: 0.187 | L179: 0.183 | M179: 0.19
A180: G | B180: 0.178 | C180: 0.227 | D180: 0.175 | E180: 0.177 | F180: 0.183 | G180: 0.183 | H180: 0.173 | I180: 0.185 | J180: 0.186 | K180: 0.195 | L180: 0.178 | M180: 0.18
A181: H | B181: 0.177 | C181: 0.173 | D181: 0.174 | E181: 0.19 | F181: 0.18 | G181: 0.181 | H181: 0.177 | I181: 0.184 | J181: 0.18 | K181: 0.186 | L181: 0.185 | M181: 0.179
A183: Cycle 15 (12 min 50 s)
B184: Raw Data (438)
B185: 1 | C185: 2 | D185: 3 | E185: 4 | F185: 5 | G185: 6 | H185: 7 | I185: 8 | J185: 9 | K185: 10 | L185: 11 | M185: 12
A186: A | B186: 0.5 | C186: 0.489 | D186: 0.494 | E186: 0.46 | F186: 0.406 | G186: 0.394 | H186: 0.357 | I186: 0.313 | J186: 0.243 | K186: 0.217 | L186: 0.196 | M186: 0.197
A187: B | B187: 0.506 | C187: 0.507 | D187: 0.487 | E187: 0.464 | F187: 0.413 | G187: 0.358 | H187: 0.348 | I187: 0.292 | J187: 0.245 | K187: 0.215 | L187: 0.19 | M187: 0.199
A188: C | B188: 0.49 | C188: 0.49 | D188: 0.477 | E188: 0.47 | F188: 0.382 | G188: 0.377 | H188: 0.318 | I188: 0.294 | J188: 0.241 | K188: 0.222 | L188: 0.2 | M188: 0.197
A189: D | B189: 0.513 | C189: 0.482 | D189: 0.492 | E189: 0.48 | F189: 0.381 | G189: 0.388 | H189: 0.366 | I189: 0.322 | J189: 0.228 | K189: 0.219 | L189: 0.193 | M189: 0.195
A190: E | B190: 0.521 | C190: 0.487 | D190: 0.477 | E190: 0.467 | F190: 0.413 | G190: 0.39 | H190: 0.33 | I190: 0.327 | J190: 0.254 | K190: 0.212 | L190: 0.195 | M190: 0.206
A191: F | B191: 0.179 | C191: 0.183 | D191: 0.175 | E191: 0.183 | F191: 0.183 | G191: 0.188 | H191: 0.189 | I191: 0.188 | J191: 0.184 | K191: 0.19 | L191: 0.184 | M191: 0.193
A192: G | B192: 0.182 | C192: 0.217 | D192: 0.175 | E192: 0.18 | F192: 0.235 | G192: 0.186 | H192: 0.177 | I192: 0.188 | J192: 0.189 | K192: 0.198 | L192: 0.194 | M192: 0.182
A193: H | B193: 0.18 | C193: 0.177 | D193: 0.178 | E193: 0.192 | F193: 0.181 | G193: 0.183 | H193: 0.178 | I193: 0.187 | J193: 0.184 | K193: 0.189 | L193: 0.184 | M193: 0.182
A195: Cycle 16 (13 min 45 s)
B196: Raw Data (438)
B197: 1 | C197: 2 | D197: 3 | E197: 4 | F197: 5 | G197: 6 | H197: 7 | I197: 8 | J197: 9 | K197: 10 | L197: 11 | M197: 12
A198: A | B198: 0.526 | C198: 0.514 | D198: 0.519 | E198: 0.483 | F198: 0.421 | G198: 0.408 | H198: 0.37 | I198: 0.322 | J198: 0.246 | K198: 0.219 | L198: 0.197 | M198: 0.197
A199: B | B199: 0.532 | C199: 0.532 | D199: 0.512 | E199: 0.485 | F199: 0.43 | G199: 0.373 | H199: 0.361 | I199: 0.299 | J199: 0.247 | K199: 0.218 | L199: 0.191 | M199: 0.199
A200: C | B200: 0.517 | C200: 0.515 | D200: 0.499 | E200: 0.491 | F200: 0.398 | G200: 0.393 | H200: 0.326 | I200: 0.301 | J200: 0.245 | K200: 0.223 | L200: 0.201 | M200: 0.2
A201: D | B201: 0.539 | C201: 0.507 | D201: 0.517 | E201: 0.501 | F201: 0.394 | G201: 0.403 | H201: 0.381 | I201: 0.333 | J201: 0.232 | K201: 0.219 | L201: 0.193 | M201: 0.194
A202: E | B202: 0.549 | C202: 0.514 | D202: 0.501 | E202: 0.488 | F202: 0.431 | G202: 0.405 | H202: 0.339 | I202: 0.335 | J202: 0.259 | K202: 0.213 | L202: 0.194 | M202: 0.206
A203: F | B203: 0.177 | C203: 0.181 | D203: 0.175 | E203: 0.181 | F203: 0.184 | G203: 0.187 | H203: 0.188 | I203: 0.187 | J203: 0.183 | K203: 0.189 | L203: 0.186 | M203: 0.192
A204: G | B204: 0.18 | C204: 0.211 | D204: 0.177 | E204: 0.178 | F204: 0.234 | G204: 0.187 | H204: 0.176 | I204: 0.187 | J204: 0.187 | K204: 0.192 | L204: 0.226 | M204: 0.181
A205: H | B205: 0.18 | C205: 0.176 | D205: 0.177 | E205: 0.191 | F205: 0.183 | G205: 0.182 | H205: 0.178 | I205: 0.185 | J205: 0.183 | K205: 0.189 | L205: 0.185 | M205: 0.185
A207: Cycle 17 (14 min 40 s)
B208: Raw Data (438)
B209: 1 | C209: 2 | D209: 3 | E209: 4 | F209: 5 | G209: 6 | H209: 7 | I209: 8 | J209: 9 | K209: 10 | L209: 11 | M209: 12
A210: A | B210: 0.557 | C210: 0.544 | D210: 0.547 | E210: 0.507 | F210: 0.442 | G210: 0.425 | H210: 0.383 | I210: 0.333 | J210: 0.251 | K210: 0.224 | L210: 0.2 | M210: 0.199
A211: B | B211: 0.563 | C211: 0.559 | D211: 0.538 | E211: 0.508 | F211: 0.448 | G211: 0.389 | H211: 0.372 | I211: 0.309 | J211: 0.255 | K211: 0.223 | L211: 0.194 | M211: 0.201
A212: C | B212: 0.543 | C212: 0.543 | D212: 0.525 | E212: 0.516 | F212: 0.415 | G212: 0.41 | H212: 0.336 | I212: 0.31 | J212: 0.249 | K212: 0.225 | L212: 0.201 | M212: 0.2
A213: D | B213: 0.567 | C213: 0.532 | D213: 0.544 | E213: 0.526 | F213: 0.414 | G213: 0.42 | H213: 0.406 | I213: 0.345 | J213: 0.236 | K213: 0.225 | L213: 0.211 | M213: 0.196
A214: E | B214: 0.579 | C214: 0.54 | D214: 0.527 | E214: 0.514 | F214: 0.449 | G214: 0.424 | H214: 0.352 | I214: 0.367 | J214: 0.267 | K214: 0.218 | L214: 0.197 | M214: 0.208
A215: F | B215: 0.181 | C215: 0.183 | D215: 0.178 | E215: 0.184 | F215: 0.185 | G215: 0.189 | H215: 0.19 | I215: 0.188 | J215: 0.187 | K215: 0.191 | L215: 0.186 | M215: 0.194
A216: G | B216: 0.183 | C216: 0.188 | D216: 0.18 | E216: 0.179 | F216: 0.186 | G216: 0.189 | H216: 0.18 | I216: 0.189 | J216: 0.189 | K216: 0.197 | L216: 0.18 | M216: 0.183
A217: H | B217: 0.182 | C217: 0.179 | D217: 0.176 | E217: 0.194 | F217: 0.184 | G217: 0.189 | H217: 0.178 | I217: 0.186 | J217: 0.186 | K217: 0.191 | L217: 0.187 | M217: 0.182
A219: Cycle 18 (15 min 35 s)
... 1462 more rows

Sheet Figure 2f
A1: Figure 2f
A2: raw data | C2: data1 | BK2: data2
B3: Time | C3: 0 min | D3: 1 min | E3: 2 min | F3: 3 min | G3: 4 min | H3: 5 min | I3: 6 min | J3: 7 min | K3: 8 min | L3: 9 min | M3: 10 min | N3: 11 min | O3: 12 min | P3: 13 min | Q3: 14 min | R3: 15 min | S3: 16 min | T3: 17 min | U3: 18 min | V3: 19 min | W3: 20 min | X3: 21 min | Y3: 22 min | Z3: 23 min | AA3: 24 min | AB3: 25 min | AC3: 26 min | AD3: 27 min | AE3: 28 min | AF3: 29 min | AG3: 30 min | AH3: 31 min | AI3: 32 min | AJ3: 33 min | AK3: 34 min | AL3: 35 min | AM3: 36 min | AN3: 37 min | AO3: 38 min | AP3: 39 min | AQ3: 40 min | AR3: 41 min | AS3: 42 min | AT3: 43 min | AU3: 44 min | AV3: 45 min | AW3: 46 min | AX3: 47 min | AY3: 48 min | AZ3: 49 min | BA3: 50 min | BB3: 51 min | BC3: 52 min | BD3: 53 min | BE3: 54 min | BF3: 55 min | BG3: 56 min | BH3: 57 min | BI3: 58 min | BJ3: 59 min | BK3: 60 min | BL3: 61 min | BM3: 62 min | BN3: 63 min | BO3: 64 min | BP3: 65 min | BQ3: 66 min | BR3: 67 min | BS3: 68 min | BT3: 69 min | BU3: 70 min | BV3: 71 min | BW3: 72 min | BX3: 73 min | BY3: 74 min | BZ3: 75 min | CA3: 76 min | CB3: 77 min | CC3: 78 min | CD3: 79 min | CE3: 80 min | CF3: 81 min | CG3: 82 min | CH3: 83 min | CI3: 84 min | CJ3: 85 min | CK3: 86 min | CL3: 87 min | CM3: 88 min | CN3: 89 min | CO3: 90 min | CP3: 91 min | CQ3: 92 min | CR3: 93 min | CS3: 94 min | CT3: 95 min | CU3: 96 min | CV3: 97 min | CW3: 98 min | CX3: 99 min
A4: A06 | B4: Sample X1 | C4: 0.165 | D4: 0.169 | E4: 0.166 | F4: 0.164 | G4: 0.161 | H4: 0.167 | I4: 0.17 | J4: 0.169 | K4: 0.17 | L4: 0.169 | M4: 0.167 | N4: 0.216 | O4: 0.165 | P4: 0.193 | Q4: 0.241 | R4: 0.166 | S4: 0.162 | T4: 0.165 | U4: 0.163 | V4: 0.16 | W4: 0.16 | X4: 0.162 | Y4: 0.166 | Z4: 0.168 | AA4: 0.164 | AB4: 0.164 | AC4: 0.167 | AD4: 0.179 | AE4: 0.184 | AF4: 0.185 | AG4: 0.177 | AH4: 0.171 | AI4: 0.168 | AJ4: 0.167 | AK4: 0.164 | AL4: 0.162 | AM4: 0.174 | AN4: 0.18 | AO4: 0.188 | AP4: 0.172 | AQ4: 0.232 | AR4: 0.761 | AS4: 0.171 | AT4: 0.167 | AU4: 0.175 | AV4: 0.169 | AW4: 0.168 | AX4: 0.364 | AY4: 0.325 | AZ4: 0.162 | BA4: 0.165 | BB4: 0.166 | BC4: 0.262 | BD4: 0.288 | BE4: 0.227 | BF4: 0.25 | BG4: 0.411 | BH4: 0.314 | BI4: 0.353 | BJ4: 0.33 | BK4: 0.169 | BL4: 0.163 | BM4: 0.184 | BN4: 0.235 | BO4: 0.549 | BP4: 0.168 | BQ4: 0.167 | BR4: 0.169 | BS4: 0.47 | BT4: 0.658 | BU4: 0.537 | BV4: 0.237 | BW4: 0.163 | BX4: 0.213 | BY4: 0.287 | BZ4: 0.281 | CA4: 0.235 | CB4: 0.228 | CC4: 0.223 | CD4: 0.31 | CE4: 0.258 | CF4: 0.276 | CG4: 0.26 | CH4: 0.875 | CI4: 0.494 | CJ4: 0.161 | CK4: 0.162 | CL4: 0.162 | CM4: 0.217 | CN4: 0.278 | CO4: 0.811 | CP4: 0.924 | CQ4: 0.788 | CR4: 0.877 | CS4: 0.772 | CT4: 0.375 | CU4: 0.497 | CV4: 0.185 | CW4: 0.158 | CX4: 0.441
A5: A07 | B5: Sample X2 | C5: 0.141 | D5: 0.143 | E5: 0.148 | F5: 0.146 | G5: 0.146 | H5: 0.147 | I5: 0.153 | J5: 0.153 | K5: 0.169 | L5: 0.175 | M5: 0.164 | N5: 0.16 | O5: 0.158 | P5: 0.158 | Q5: 0.162 | R5: 0.164 | S5: 0.162 | T5: 0.168 | U5: 0.183 | V5: 0.189 | W5: 0.185 | X5: 0.168 | Y5: 0.162 | Z5: 0.16 | AA5: 0.161 | AB5: 0.16 | AC5: 0.159 | AD5: 0.158 | AE5: 0.16 | AF5: 0.155 | AG5: 0.154 | AH5: 0.157 | AI5: 0.156 | AJ5: 0.159 | AK5: 0.159 | AL5: 0.158 | AM5: 0.159 | AN5: 0.16 | AO5: 0.161 | AP5: 0.16 | AQ5: 0.161 | AR5: 0.159 | AS5: 0.163 | AT5: 0.163 | AU5: 0.162 | AV5: 0.163 | AW5: 0.161 | AX5: 0.162 | AY5: 0.164 | AZ5: 0.164 | BA5: 0.162 | BB5: 0.169 | BC5: 0.163 | BD5: 0.165 | BE5: 0.164 | BF5: 0.164 | BG5: 0.165 | BH5: 0.21 | BI5: 0.182 | BJ5: 0.172 | BK5: 0.172 | BL5: 0.169 | BM5: 0.165 | BN5: 0.174 | BO5: 0.19 | BP5: 0.163 | BQ5: 0.165 | BR5: 0.171 | BS5: 0.165 | BT5: 0.163 | BU5: 0.163 | BV5: 0.164 | BW5: 0.163 | BX5: 0.163 | BY5: 0.164 | BZ5: 0.164 | CA5: 0.165 | CB5: 0.188 | CC5: 0.174 | CD5: 0.187 | CE5: 0.26 | CF5: 0.172 | CG5: 0.197 | CH5: 0.163 | CI5: 0.199 | CJ5: 0.258 | CK5: 0.254 | CL5: 0.259 | CM5: 0.266 | CN5: 0.25 | CO5: 0.273 | CP5: 0.266 | CQ5: 0.237 | CR5: 0.291 | CS5: 0.298 | CT5: 0.306 | CU5: 0.348 | CV5: 0.282 | CW5: 0.174 | CX5: 0.17
A6: A08 | B6: Sample X3 | C6: 0.172 | D6: 0.169 | E6: 0.168 | F6: 0.166 | G6: 0.164 | H6: 0.164 | I6: 0.165 | J6: 0.162 | K6: 0.164 | L6: 0.163 | M6: 0.164 | N6: 0.164 | O6: 0.166 | P6: 0.16 | Q6: 0.161 | R6: 0.175 | S6: 0.16 | T6: 0.158 | U6: 0.161 | V6: 0.158 | W6: 0.192 | X6: 0.161 | Y6: 0.188 | Z6: 0.21 | AA6: 0.187 | AB6: 0.163 | AC6: 0.158 | AD6: 0.16 | AE6: 0.16 | AF6: 0.157 | AG6: 0.155 | AH6: 0.156 | AI6: 0.159 | AJ6: 0.16 | AK6: 0.156 | AL6: 0.16 | AM6: 0.159 | AN6: 0.158 | AO6: 0.157 | AP6: 0.158 | AQ6: 0.161 | AR6: 0.158 | AS6: 0.161 | AT6: 0.158 | AU6: 0.16 | AV6: 0.157 | AW6: 0.154 | AX6: 0.155 | AY6: 0.159 | AZ6: 0.157 | BA6: 0.154 | BB6: 0.155 | BC6: 0.154 | BD6: 0.157 | BE6: 0.156 | BF6: 0.155 | BG6: 0.152 | BH6: 0.154 | BI6: 0.182 | BJ6: 0.155 | BK6: 0.171 | BL6: 0.157 | BM6: 0.155 | BN6: 0.154 | BO6: 0.153 | BP6: 0.153 | BQ6: 0.153 | BR6: 0.153 | BS6: 0.153 | BT6: 0.153 | BU6: 0.153 | BV6: 0.151 | BW6: 0.181 | BX6: 0.282 | BY6: 0.157 | BZ6: 0.166 | CA6: 0.265 | CB6: 0.154 | CC6: 0.157 | CD6: 0.152 | CE6: 0.161 | CF6: 0.17 | CG6: 0.164 | CH6: 0.164 | CI6: 0.153 | CJ6: 0.153 | CK6: 0.153 | CL6: 0.153 | CM6: 0.324 | CN6: 0.151 | CO6: 0.152 | CP6: 0.152 | CQ6: 0.152 | CR6: 0.152 | CS6: 0.151 | CT6: 0.151 | CU6: 0.152 | CV6: 0.167 | CW6: 0.254 | CX6: 0.334
C7: 0.159333333 | D7: 0.160333333 | E7: 0.160666667 | F7: 0.158666667 | G7: 0.157 | H7: 0.159333333 | I7: 0.162666667 | J7: 0.161333333 | K7: 0.167666667 | L7: 0.169 | M7: 0.165 | N7: 0.18 | O7: 0.163 | P7: 0.170333333 | Q7: 0.188 | R7: 0.168333333 | S7: 0.161333333 | T7: 0.163666667 | U7: 0.169 | V7: 0.169 | W7: 0.179 | X7: 0.163666667 | Y7: 0.172 | Z7: 0.179333333 | AA7: 0.170666667 | AB7: 0.162333333 | AC7: 0.161333333 | AD7: 0.165666667 | AE7: 0.168 | AF7: 0.165666667 | AG7: 0.162 | AH7: 0.161333333 | AI7: 0.161 | AJ7: 0.162 | AK7: 0.159666667 | AL7: 0.16 | AM7: 0.164 | AN7: 0.166 | AO7: 0.168666667 | AP7: 0.163333333 | AQ7: 0.184666667 | AR7: 0.359333333 | AS7: 0.165 | AT7: 0.162666667 | AU7: 0.165666667 | AV7: 0.163 | AW7: 0.161 | AX7: 0.227 | AY7: 0.216 | AZ7: 0.161 | BA7: 0.160333333 | BB7: 0.163333333 | BC7: 0.193 | BD7: 0.203333333 | BE7: 0.182333333 | BF7: 0.189666667 | BG7: 0.242666667 | BH7: 0.226 | BI7: 0.239 | BJ7: 0.219 | BK7: 0.170666667 | BL7: 0.163 | BM7: 0.168 | BN7: 0.187666667 | BO7: 0.297333333 | BP7: 0.161333333 | BQ7: 0.161666667 | BR7: 0.164333333 | BS7: 0.262666667 | BT7: 0.324666667 | BU7: 0.284333333 | BV7: 0.184 | BW7: 0.169 | BX7: 0.219333333 | BY7: 0.202666667 | BZ7: 0.203666667 | CA7: 0.221666667 | CB7: 0.19 | CC7: 0.184666667 | CD7: 0.216333333 | CE7: 0.226333333 | CF7: 0.206 | CG7: 0.207 | CH7: 0.400666667 | CI7: 0.282 | CJ7: 0.190666667 | CK7: 0.189666667 | CL7: 0.191333333 | CM7: 0.269 | CN7: 0.226333333 | CO7: 0.412 | CP7: 0.447333333 | CQ7: 0.392333333 | CR7: 0.44 | CS7: 0.407 | CT7: 0.277333333 | CU7: 0.332333333 | CV7: 0.211333333 | CW7: 0.195333333 | CX7: 0.315
R8: 0.005859465 | AG8: 0.013 | CX8: 0.136495421
A10: B06 | B10: Sample X7 | C10: 0.154 | D10: 0.157 | E10: 0.161 | F10: 0.163 | G10: 0.163 | H10: 0.162 | I10: 0.167 | J10: 0.164 | K10: 0.169 | L10: 0.168 | M10: 0.168 | N10: 0.167 | O10: 0.168 | P10: 0.165 | Q10: 0.165 | R10: 0.169 | S10: 0.168 | T10: 0.17 | U10: 0.168 | V10: 0.17 | W10: 0.167 | X10: 0.171 | Y10: 0.171 | Z10: 0.174 | AA10: 0.19 | AB10: 0.169 | AC10: 0.168 | AD10: 0.17 | AE10: 0.193 | AF10: 0.18 | AG10: 0.18 | AH10: 0.183 | AI10: 0.174 | AJ10: 0.173 | AK10: 0.169 | AL10: 0.166 | AM10: 0.168 | AN10: 0.166 | AO10: 0.171 | AP10: 0.167 | AQ10: 0.169 | AR10: 0.167 | AS10: 0.168 | AT10: 0.171 | AU10: 0.167 | AV10: 0.169 | AW10: 0.168 | AX10: 0.169 | AY10: 0.172 | AZ10: 0.169 | BA10: 0.169 | BB10: 0.165 | BC10: 0.17 | BD10: 0.171 | BE10: 0.168 | BF10: 0.168 | BG10: 0.168 | BH10: 0.167 | BI10: 0.169 | BJ10: 0.169 | BK10: 0.168 | BL10: 0.168 | BM10: 0.167 | BN10: 0.167 | BO10: 0.166 | BP10: 0.166 | BQ10: 0.168 | BR10: 0.187 | BS10: 0.219 | BT10: 0.199 | BU10: 0.181 | BV10: 0.173 | BW10: 0.17 | BX10: 0.168 | BY10: 0.17 | BZ10: 0.175 | CA10: 0.178 | CB10: 0.177 | CC10: 0.173 | CD10: 0.171 | CE10: 0.169 | CF10: 0.309 | CG10: 0.312 | CH10: 0.319 | CI10: 0.333 | CJ10: 0.348 | CK10: 0.304 | CL10: 0.314 | CM10: 0.212 | CN10: 0.169 | CO10: 0.165 | CP10: 0.167 | CQ10: 0.167 | CR10: 0.167 | CS10: 0.166 | CT10: 0.167 | CU10: 0.165 | CV10: 0.165 | CW10: 0.169 | CX10: 0.168
A11: B07 | B11: Sample X8 | C11: 0.165 | D11: 0.165 | E11: 0.168 | F11: 0.168 | G11: 0.169 | H11: 0.168 | I11: 0.17 | J11: 0.17 | K11: 0.17 | L11: 0.169 | M11: 0.172 | N11: 0.169 | O11: 0.172 | P11: 0.17 | Q11: 0.171 | R11: 0.173 | S11: 0.168 | T11: 0.171 | U11: 0.172 | V11: 0.17 | W11: 0.169 | X11: 0.171 | Y11: 0.171 | Z11: 0.17 | AA11: 0.173 | AB11: 0.173 | AC11: 0.173 | AD11: 0.172 | AE11: 0.172 | AF11: 0.17 | AG11: 0.172 | AH11: 0.17 | AI11: 0.17 | AJ11: 0.172 | AK11: 0.171 | AL11: 0.168 | AM11: 0.171 | AN11: 0.171 | AO11: 0.173 | AP11: 0.17 | AQ11: 0.175 | AR11: 0.172 | AS11: 0.175 | AT11: 0.173 | AU11: 0.173 | AV11: 0.176 | AW11: 0.174 | AX11: 0.172 | AY11: 0.174 | AZ11: 0.174 | BA11: 0.172 | BB11: 0.172 | BC11: 0.174 | BD11: 0.175 | BE11: 0.173 | BF11: 0.172 | BG11: 0.17 | BH11: 0.173 | BI11: 0.173 | BJ11: 0.172 | BK11: 0.171 | BL11: 0.173 | BM11: 0.173 | BN11: 0.189 | BO11: 0.171 | BP11: 0.172 | BQ11: 0.171 | BR11: 0.174 | BS11: 0.172 | BT11: 0.171 | BU11: 0.178 | BV11: 0.251 | BW11: 0.258 | BX11: 0.229 | BY11: 0.212 | BZ11: 0.221 | CA11: 0.191 | CB11: 0.178 | CC11: 0.176 | CD11: 0.172 | CE11: 0.174 | CF11: 0.173 | CG11: 0.173 | CH11: 0.173 | CI11: 0.174 | CJ11: 0.175 | CK11: 0.18 | CL11: 0.179 | CM11: 0.178 | CN11: 0.177 | CO11: 0.175 | CP11: 0.174 | CQ11: 0.175 | CR11: 0.172 | CS11: 0.173 | CT11: 0.174 | CU11: 0.199 | CV11: 0.202 | CW11: 0.177 | CX11: 0.184
A12: B08 | B12: Sample X9 | C12: 0.165 | D12: 0.167 | E12: 0.262 | F12: 0.168 | G12: 0.164 | H12: 0.166 | I12: 0.168 | J12: 0.166 | K12: 0.171 | L12: 0.168 | M12: 0.17 | N12: 0.168 | O12: 0.17 | P12: 0.167 | Q12: 0.167 | R12: 0.169 | S12: 0.166 | T12: 0.169 | U12: 0.17 | V12: 0.169 | W12: 0.181 | X12: 0.174 | Y12: 0.175 | Z12: 0.174 | AA12: 0.173 | AB12: 0.17 | AC12: 0.17 | AD12: 0.167 | AE12: 0.169 | AF12: 0.168 | AG12: 0.167 | AH12: 0.167 | AI12: 0.169 | AJ12: 0.171 | AK12: 0.169 | AL12: 0.169 | AM12: 0.17 | AN12: 0.17 | AO12: 0.171 | AP12: 0.169 | AQ12: 0.168 | AR12: 0.167 | AS12: 0.171 | AT12: 0.171 | AU12: 0.167 | AV12: 0.17 | AW12: 0.168 | AX12: 0.171 | AY12: 0.17 | AZ12: 0.169 | BA12: 0.169 | BB12: 0.167 | BC12: 0.169 | BD12: 0.171 | BE12: 0.169 | BF12: 0.168 | BG12: 0.167 | BH12: 0.168 | BI12: 0.169 | BJ12: 0.171 | BK12: 0.217 | BL12: 0.202 | BM12: 0.168 | BN12: 0.169 | BO12: 0.165 | BP12: 0.167 | BQ12: 0.169 | BR12: 0.167 | BS12: 0.169 | BT12: 0.17 | BU12: 0.202 | BV12: 0.191 | BW12: 0.168 | BX12: 0.176 | BY12: 0.181 | BZ12: 0.27 | CA12: 0.172 | CB12: 0.169 | CC12: 0.168 | CD12: 0.169 | CE12: 0.169 | CF12: 0.169 | CG12: 0.166 | CH12: 0.168 | CI12: 0.168 | CJ12: 0.166 | CK12: 0.17 | CL12: 0.169 | CM12: 0.17 | CN12: 0.167 | CO12: 0.17 | CP12: 0.168 | CQ12: 0.167 | CR12: 0.171 | CS12: 0.168 | CT12: 0.175 | CU12: 0.181 | CV12: 0.19 | CW12: 0.255 | CX12: 0.168
C13: 0.161333333 | D13: 0.163 | E13: 0.197 | F13: 0.166333333 | G13: 0.165333333 | H13: 0.165333333 | I13: 0.168333333 | J13: 0.166666667 | K13: 0.17 | L13: 0.168333333 | M13: 0.17 | N13: 0.168 | O13: 0.17 | P13: 0.167333333 | Q13: 0.167666667 | R13: 0.170333333 | S13: 0.167333333 | T13: 0.17 | U13: 0.17 | V13: 0.169666667 | W13: 0.172333333 | X13: 0.172 | Y13: 0.172333333 | Z13: 0.172666667 | AA13: 0.178666667 | AB13: 0.170666667 | AC13: 0.170333333 | AD13: 0.169666667 | AE13: 0.178 | AF13: 0.172666667 | AG13: 0.173 | AH13: 0.173333333 | AI13: 0.171 | AJ13: 0.172 | AK13: 0.169666667 | AL13: 0.167666667 | AM13: 0.169666667 | AN13: 0.169 | AO13: 0.171666667 | AP13: 0.168666667 | AQ13: 0.170666667 | AR13: 0.168666667 | AS13: 0.171333333 | AT13: 0.171666667 | AU13: 0.169 | AV13: 0.171666667 | AW13: 0.17 | AX13: 0.170666667 | AY13: 0.172 | AZ13: 0.170666667 | BA13: 0.17 | BB13: 0.168 | BC13: 0.171 | BD13: 0.172333333 | BE13: 0.17 | BF13: 0.169333333 | BG13: 0.168333333 | BH13: 0.169333333 | BI13: 0.170333333 | BJ13: 0.170666667 | BK13: 0.185333333 | BL13: 0.181 | BM13: 0.169333333 | BN13: 0.175 | BO13: 0.167333333 | BP13: 0.168333333 | BQ13: 0.169333333 | BR13: 0.176 | BS13: 0.186666667 | BT13: 0.18 | BU13: 0.187 | BV13: 0.205 | BW13: 0.198666667 | BX13: 0.191 | BY13: 0.187666667 | BZ13: 0.222 | CA13: 0.180333333 | CB13: 0.174666667 | CC13: 0.172333333 | CD13: 0.170666667 | CE13: 0.170666667 | CF13: 0.217 | CG13: 0.217 | CH13: 0.22 | CI13: 0.225 | CJ13: 0.229666667 | CK13: 0.218 | CL13: 0.220666667 | CM13: 0.186666667 | CN13: 0.171 | CO13: 0.17 | CP13: 0.169666667 | CQ13: 0.169666667 | CR13: 0.17 | CS13: 0.169 | CT13: 0.172 | CU13: 0.181666667 | CV13: 0.185666667 | CW13: 0.200333333 | CX13: 0.173333333
R14: 0.002309401 | AG14: 0.006557439 | CX14: 0.009237604
... 7 more rows

Sheet Figure 4c
A1: Figure 4c | L1: MS parameters
B3: Sample Id | C3: R | D3: Acquisition Time | E3: QC Status | F3: Dataset File | G3: Method File | H3: Zn 66 (cps) | I3: Sc 45 (IS) (cps) | L3: Reading time
A4: 1 | B4: blank | D4: 1/19/2024 4:41:25 PM | F4: C:\Users\Public\Documents\PerkinElmer Syngistix\ICPMS\Dataset\blank.1179 | G4: C:\Users\Public\Documents\PerkinElmer Syngistix\ICPMS\Method\Xuenwen\service work\st. judes sample_011924.mth | H4: 1507.4 | I4: 222649.4
A5: 2 | B5: std 1 ppb | D5: 1/19/2024 4:44:57 PM | F5: C:\Users\Public\Documents\PerkinElmer Syngistix\ICPMS\Dataset\std 1 ppb.1180 | G5: C:\Users\Public\Documents\PerkinElmer Syngistix\ICPMS\Method\Xuenwen\service work\st. judes sample_011924.mth | H5: 12940.6 | I5: 259355.3
A6: 3 | B6: std 10 ppb | D6: 1/19/2024 4:48:30 PM | F6: C:\Users\Public\Documents\PerkinElmer Syngistix\ICPMS\Dataset\std 10 ppb.1181 | G6: C:\Users\Public\Documents\PerkinElmer Syngistix\ICPMS\Method\Xuenwen\service work\st. judes sample_011924.mth | H6: 90485.6 | I6: 225858.7
A7: 4 | B7: std 50 ppb | D7: 1/19/2024 4:52:04 PM | F7: C:\Users\Public\Documents\PerkinElmer Syngistix\ICPMS\Dataset\std 50 ppb.1182 | G7: C:\Users\Public\Documents\PerkinElmer Syngistix\ICPMS\Method\Xuenwen\service work\st. judes sample_011924.mth | H7: 444840.0 | I7: 224216.7
A8: 5 | B8: std 100 ppb | D8: 1/19/2024 4:55:38 PM | F8: C:\Users\Public\Documents\PerkinElmer Syngistix\ICPMS\Dataset\std 100 ppb.1183 | G8: C:\Users\Public\Documents\PerkinElmer Syngistix\ICPMS\Method\Xuenwen\service work\st. judes sample_011924.mth | H8: 891781.6 | I8: 210594.6
A9: 6 | B9: std 200 ppb | D9: 1/19/2024 4:59:14 PM | F9: C:\Users\Public\Documents\PerkinElmer Syngistix\ICPMS\Dataset\std 200 ppb.1184 | G9: C:\Users\Public\Documents\PerkinElmer Syngistix\ICPMS\Method\Xuenwen\service work\st. judes sample_011924.mth | H9: 1788849.7 | I9: 247664.6
A10: 7 | B10: Calibration Curves | D10: 1/19/2024 4:59:14 PM
A11: 8 | B11: blank | D11: 1/19/2024 5:03:16 PM | F11: C:\Users\Public\Documents\PerkinElmer Syngistix\ICPMS\Dataset\blank.1185 | G11: C:\Users\Public\Documents\PerkinElmer Syngistix\ICPMS\Method\Xuenwen\service work\st. judes sample_011924.mth | H11: 1435.3 | I11: 217367.1
A12: 9 | B12: buffer 1 | D12: 1/19/2024 5:06:49 PM | F12: C:\Users\Public\Documents\PerkinElmer Syngistix\ICPMS\Dataset\buffer 1.1186 | G12: C:\Users\Public\Documents\PerkinElmer Syngistix\ICPMS\Method\Xuenwen\service work\st. judes sample_011924.mth | H12: 12647.9 | I12: 216711.9 | J12: Data1
A13: 10 | B13: buffer 2 | D13: 1/19/2024 5:10:21 PM | F13: C:\Users\Public\Documents\PerkinElmer Syngistix\ICPMS\Dataset\buffer 2.1187 | G13: C:\Users\Public\Documents\PerkinElmer Syngistix\ICPMS\Method\Xuenwen\service work\st. judes sample_011924.mth | H13: 12639.2 | I13: 237509.0 | J13: Data1
A14: 11 | B14: buffer 3 | D14: 1/19/2024 5:13:54 PM | F14: C:\Users\Public\Documents\PerkinElmer Syngistix\ICPMS\Dataset\buffer 3.1188 | G14: C:\Users\Public\Documents\PerkinElmer Syngistix\ICPMS\Method\Xuenwen\service work\st. judes sample_011924.mth | H14: 12688.6 | I14: 230418.9 | J14: Data1
A15: 12 | B15: blank | D15: 1/19/2024 5:17:27 PM | F15: C:\Users\Public\Documents\PerkinElmer Syngistix\ICPMS\Dataset\blank.1189 | G15: C:\Users\Public\Documents\PerkinElmer Syngistix\ICPMS\Method\Xuenwen\service work\st. judes sample_011924.mth | H15: 1205.9 | I15: 235544.0
A16: 13 | B16: NOX5 1 | D16: 1/19/2024 5:21:01 PM | F16: C:\Users\Public\Documents\PerkinElmer Syngistix\ICPMS\Dataset\NOX5 1.1190 | G16: C:\Users\Public\Documents\PerkinElmer Syngistix\ICPMS\Method\Xuenwen\service work\st. judes sample_011924.mth | H16: 30658.8 | I16: 242794.6 | J16: Data2
A17: 14 | B17: NOX5 2 | D17: 1/19/2024 5:24:34 PM | F17: C:\Users\Public\Documents\PerkinElmer Syngistix\ICPMS\Dataset\NOX5 2.1191 | G17: C:\Users\Public\Documents\PerkinElmer Syngistix\ICPMS\Method\Xuenwen\service work\st. judes sample_011924.mth | H17: 30802.6 | I17: 219286.9 | J17: Data2
A18: 15 | B18: NOX5 3 | D18: 1/19/2024 5:28:08 PM | F18: C:\Users\Public\Documents\PerkinElmer Syngistix\ICPMS\Dataset\NOX5 3.1192 | G18: C:\Users\Public\Documents\PerkinElmer Syngistix\ICPMS\Method\Xuenwen\service work\st. judes sample_011924.mth | H18: 30643.1 | I18: 233023.0 | J18: Data2
A19: 16 | B19: blank | D19: 1/19/2024 5:31:42 PM | F19: C:\Users\Public\Documents\PerkinElmer Syngistix\ICPMS\Dataset\blank.1193 | G19: C:\Users\Public\Documents\PerkinElmer Syngistix\ICPMS\Method\Xuenwen\service work\st. judes sample_011924.mth | H19: 1241.5 | I19: 201492.7
A20: 17 | B20: filtered liquid 1 | D20: 1/19/2024 5:35:15 PM | F20: C:\Users\Public\Documents\PerkinElmer Syngistix\ICPMS\Dataset\filtered liquid 1.1194 | G20: C:\Users\Public\Documents\PerkinElmer Syngistix\ICPMS\Method\Xuenwen\service work\st. judes sample_011924.mth | H20: 13569.7 | I20: 233700.1 | J20: Data3
A21: 18 | B21: filtered liquid 2 | D21: 1/19/2024 5:38:50 PM | F21: C:\Users\Public\Documents\PerkinElmer Syngistix\ICPMS\Dataset\filtered liquid 2.1195 | G21: C:\Users\Public\Documents\PerkinElmer Syngistix\ICPMS\Method\Xuenwen\service work\st. judes sample_011924.mth | H21: 13443.7 | I21: 251556.8 | J21: Data3
A22: 19 | B22: filtered liquid 3 | D22: 1/19/2024 5:42:24 PM | F22: C:\Users\Public\Documents\PerkinElmer Syngistix\ICPMS\Dataset\filtered liquid 3.1196 | G22: C:\Users\Public\Documents\PerkinElmer Syngistix\ICPMS\Method\Xuenwen\service work\st. judes sample_011924.mth | H22: 13618.6 | I22: 232158.2 | J22: Data3
F23: line
B24: Sample ID | C24: R | D24: Zn 66 (ppb) | E24: Dilution Factor | F24: Zn (ug/L) with Dilution Factor
B25: buffer1 | D25: 1.217 | E25: 60 | F25: 73.00423132 | G25: Data1
B26: buffer2 | D26: 1.118 | E26: 60 | F26: 67.0664233 | G26: Data1
B27: buffer3 | D27: 1.127 | E27: 60 | F27: 67.63178975 | G27: Data1
B29: NOX51 | D29: 2.941 | E29: 60 | F29: 176.4524837 | G29: Data2
B30: NOX52 | D30: 3.301 | E30: 60 | F30: 198.0408944 | G30: Data2
B31: NOX53 | D31: 3.073 | E31: 60 | F31: 184.3564064 | G31: Data2
B33: filter1 | D33: 1.204 | E33: 60 | F33: 72.21237018 | G33: Data3
B34: filter2 | D34: 1.086 | E34: 60 | F34: 65.17505597 | G34: Data3
B35: filter3 | D35: 1.226 | E35: 60 | F35: 73.56623781 | G35: Data3
L37: Equation
L70: Calibration
L103: Sampling

Sheet Figure 4d
A1: Figure 4d
A2: raw data
B3: NOX5 | C3: line1 | DS3: line2
B4: Time | C4: 0 min | D4: 0 min 30 s | E4: 1 min | F4: 1 min 30 s | G4: 2 min | H4: 2 min 30 s | I4: 3 min | J4: 3 min 30 s | K4: 4 min | L4: 4 min 30 s | M4: 5 min | N4: 5 min 30 s | O4: 6 min | P4: 6 min 30 s | Q4: 7 min | R4: 7 min 30 s | S4: 8 min | T4: 8 min 30 s | U4: 9 min | V4: 9 min 30 s | W4: 10 min | X4: 10 min 30 s | Y4: 11 min | Z4: 11 min 30 s | AA4: 12 min | AB4: 12 min 30 s | AC4: 13 min | AD4: 13 min 30 s | AE4: 14 min | AF4: 14 min 30 s | AG4: 15 min | AH4: 15 min 30 s | AI4: 16 min | AJ4: 16 min 30 s | AK4: 17 min | AL4: 17 min 30 s | AM4: 18 min | AN4: 18 min 30 s | AO4: 19 min | AP4: 19 min 30 s | AQ4: 20 min | AR4: 20 min 30 s | AS4: 21 min | AT4: 21 min 30 s | AU4: 22 min | AV4: 22 min 30 s | AW4: 23 min | AX4: 23 min 30 s | AY4: 24 min | AZ4: 24 min 30 s | BA4: 25 min | BB4: 25 min 30 s | BC4: 26 min | BD4: 26 min 30 s | BE4: 27 min | BF4: 27 min 30 s | BG4: 28 min | BH4: 28 min 30 s | BI4: 29 min | BJ4: 29 min 30 s | BK4: 30 min | BL4: 30 min 30 s | BM4: 31 min | BN4: 31 min 30 s | BO4: 32 min | BP4: 32 min 30 s | BQ4: 33 min | BR4: 33 min 30 s | BS4: 34 min | BT4: 34 min 30 s | BU4: 35 min | BV4: 35 min 30 s | BW4: 36 min | BX4: 36 min 30 s | BY4: 37 min | BZ4: 37 min 30 s | CA4: 38 min | CB4: 38 min 30 s | CC4: 39 min | CD4: 39 min 30 s | CE4: 40 min | CF4: 40 min 30 s | CG4: 41 min | CH4: 41 min 30 s | CI4: 42 min | CJ4: 42 min 30 s | CK4: 43 min | CL4: 43 min 30 s | CM4: 44 min | CN4: 44 min 30 s | CO4: 45 min | CP4: 45 min 30 s | CQ4: 46 min | CR4: 46 min 30 s | CS4: 47 min | CT4: 47 min 30 s | CU4: 48 min | CV4: 48 min 30 s | CW4: 49 min | CX4: 49 min 30 s | CY4: 50 min | CZ4: 50 min 30 s | DA4: 51 min | DB4: 51 min 30 s | DC4: 52 min | DD4: 52 min 30 s | DE4: 53 min | DF4: 53 min 30 s | DG4: 54 min | DH4: 54 min 30 s | DI4: 55 min | DJ4: 55 min 30 s | DK4: 56 min | DL4: 56 min 30 s | DM4: 57 min | DN4: 57 min 30 s | DO4: 58 min | DP4: 58 min 30 s | DQ4: 59 min | DR4: 59 min 30 s | DS4: 60 min | DT4: 60 min 30 s | DU4: 61 min | DV4: 61 min 30 s | DW4: 62 min | DX4: 62 min 30 s | DY4: 63 min | DZ4: 63 min 30 s | EA4: 64 min | EB4: 64 min 30 s | EC4: 65 min | ED4: 65 min 30 s | EE4: 66 min | EF4: 66 min 30 s | EG4: 67 min | EH4: 67 min 30 s | EI4: 68 min | EJ4: 68 min 30 s | EK4: 69 min | EL4: 69 min 30 s | EM4: 70 min | EN4: 70 min 30 s | EO4: 71 min | EP4: 71 min 30 s | EQ4: 72 min | ER4: 72 min 30 s | ES4: 73 min | ET4: 73 min 30 s | EU4: 74 min | EV4: 74 min 30 s | EW4: 75 min | EX4: 75 min 30 s | EY4: 76 min | EZ4: 76 min 30 s | FA4: 77 min | FB4: 77 min 30 s | FC4: 78 min | FD4: 78 min 30 s | FE4: 79 min | FF4: 79 min 30 s | FG4: 80 min | FH4: 80 min 30 s | FI4: 81 min | FJ4: 81 min 30 s | FK4: 82 min | FL4: 82 min 30 s | FM4: 83 min | FN4: 83 min 30 s | FO4: 84 min | FP4: 84 min 30 s | FQ4: 85 min | FR4: 85 min 30 s | FS4: 86 min | FT4: 86 min 30 s | FU4: 87 min | FV4: 87 min 30 s | FW4: 88 min | FX4: 88 min 30 s | FY4: 89 min | FZ4: 89 min 30 s | GA4: 90 min | GB4: 90 min 30 s | GC4: 91 min | GD4: 91 min 30 s | GE4: 92 min | GF4: 92 min 30 s | GG4: 93 min | GH4: 93 min 30 s | GI4: 94 min | GJ4: 94 min 30 s | GK4: 95 min | GL4: 95 min 30 s | GM4: 96 min | GN4: 96 min 30 s | GO4: 97 min | GP4: 97 min 30 s | GQ4: 98 min | GR4: 98 min 30 s | GS4: 99 min | GT4: 99 min 30 s | GU4: 100 min | GV4: 100 min 30 s | GW4: 101 min | GX4: 101 min 30 s | GY4: 102 min | GZ4: 102 min 30 s | HA4: 103 min | HB4: 103 min 30 s | HC4: 104 min | HD4: 104 min 30 s | HE4: 105 min | HF4: 105 min 30 s | HG4: 106 min | HH4: 106 min 30 s | HI4: 107 min | HJ4: 107 min 30 s | HK4: 108 min | HL4: 108 min 30 s | HM4: 109 min | HN4: 109 min 30 s | HO4: 110 min | HP4: 110 min 30 s | HQ4: 111 min | HR4: 111 min 30 s | HS4: 112 min | HT4: 112 min 30 s | HU4: 113 min | HV4: 113 min 30 s | HW4: 114 min | HX4: 114 min 30 s | HY4: 115 min | HZ4: 115 min 30 s | IA4: 116 min | IB4: 116 min 30 s | IC4: 117 min | ID4: 117 min 30 s | IE4: 118 min | IF4: 118 min 30 s | IG4: 119 min | IH4: 119 min 30 s | II4: 120 min | IJ4: 120 min 30 s | IK4: 121 min | IL4: 121 min 30 s | IM4: 122 min | IN4: 122 min 30 s | IO4: 123 min | IP4: 123 min 30 s | IQ4: 124 min | IR4: 124 min 30 s
A5: A01 | B5: Sample X1 | C5: 0.356 | D5: 0.399 | E5: 0.462 | F5: 0.529 | G5: 0.595 | H5: 0.676 | I5: 0.758 | J5: 0.853 | K5: 0.952 | L5: 1.048 | M5: 1.146 | N5: 1.23 | O5: 1.304 | P5: 1.357 | Q5: 1.34 | R5: 1.314 | S5: 1.341 | T5: 1.391 | U5: 1.447 | V5: 1.508 | W5: 1.573 | X5: 1.636 | Y5: 1.695 | Z5: 1.76 | AA5: 1.818 | AB5: 1.876 | AC5: 1.935 | AD5: 1.992 | AE5: 2.051 | AF5: 2.104 | AG5: 2.157 | AH5: 2.216 | AI5: 2.264 | AJ5: 2.322 | AK5: 2.374 | AL5: 2.429 | AM5: 2.481 | AN5: 2.53 | AO5: 2.582 | AP5: 2.635 | AQ5: 2.684 | AR5: 2.734 | AS5: 2.781 | AT5: 2.828 | AU5: 2.878 | AV5: 2.925 | AW5: 2.967 | AX5: 3.016 | AY5: 3.058 | AZ5: 3.096 | BA5: 3.14 | BB5: 3.183 | BC5: 3.225 | BD5: 3.262 | BE5: 3.3 | BF5: 3.34 | BG5: 3.381 | BH5: 3.418 | BI5: 3.455 | BJ5: 3.489 | BK5: 3.529 | BL5: 3.562 | BM5: 3.592 | BN5: 3.628 | BO5: 3.658 | BP5: 3.691 | BQ5: 3.721 | BR5: 3.754 | BS5: 3.786 | BT5: 3.812 | BU5: 3.84 | BV5: 3.867 | BW5: 3.897 | BX5: 3.92 | BY5: 3.947 | BZ5: 3.971 | CA5: 4.003 | CB5: 4.022 | CC5: 4.04 | CD5: 4.064 | CE5: 4.091 | CF5: 4.11 | CG5: 4.131 | CH5: 4.14 | CI5: 4.166 | CJ5: 4.184 | CK5: 4.205 | CL5: 4.221 | CM5: 4.241 | CN5: 4.257 | CO5: 4.272 | CP5: 4.288 | CQ5: 4.304 | CR5: 4.321 | CS5: 4.334 | CT5: 4.344 | CU5: 4.359 | CV5: 4.375 | CW5: 4.384 | CX5: 4.392 | CY5: 4.408 | CZ5: 4.421 | DA5: 4.428 | DB5: 4.436 | DC5: 4.452 | DD5: 4.457 | DE5: 4.47 | DF5: 4.478 | DG5: 4.485 | DH5: 4.498 | DI5: 4.499 | DJ5: 4.51 | DK5: 4.509 | DL5: 4.525 | DM5: 4.532 | DN5: 4.541 | DO5: 4.539 | DP5: 4.55 | DQ5: 4.555 | DR5: 4.558 | DS5: 4.558 | DT5: 4.567 | DU5: 4.569 | DV5: 4.568 | DW5: 4.568 | DX5: 4.576 | DY5: 4.579 | DZ5: 4.581 | EA5: 4.595 | EB5: 4.585 | EC5: 4.589 | ED5: 4.595 | EE5: 4.594 | EF5: 4.594 | EG5: 4.598 | EH5: 4.593 | EI5: 4.596 | EJ5: 4.602 | EK5: 4.602 | EL5: 4.607 | EM5: 4.607 | EN5: 4.609 | EO5: 4.609 | EP5: 4.608 | EQ5: 4.612 | ER5: 4.609 | ES5: 4.612 | ET5: 4.612 | EU5: 4.606 | EV5: 4.611 | EW5: 4.606 | EX5: 4.606 | EY5: 4.608 | EZ5: 4.609 | FA5: 4.61 | FB5: 4.61 | FC5: 4.611 | FD5: 4.603 | FE5: 4.605 | FF5: 4.608 | FG5: 4.61 | FH5: 4.607 | FI5: 4.606 | FJ5: 4.606 | FK5: 4.602 | FL5: 4.61 | FM5: 4.607 | FN5: 4.607 | FO5: 4.602 | FP5: 4.606 | FQ5: 4.61 | FR5: 4.607 | FS5: 4.606 | FT5: 4.605 | FU5: 4.604 | FV5: 4.606 | FW5: 4.602 | FX5: 4.606 | FY5: 4.604 | FZ5: 4.599 | GA5: 4.606 | GB5: 4.599 | GC5: 4.604 | GD5: 4.601 | GE5: 4.6 | GF5: 4.599 | GG5: 4.596 | GH5: 4.596 | GI5: 4.593 | GJ5: 4.604 | GK5: 4.591 | GL5: 4.601 | GM5: 4.594 | GN5: 4.596 | GO5: 4.591 | GP5: 4.594 | GQ5: 4.592 | GR5: 4.589 | GS5: 4.596 | GT5: 4.591 | GU5: 4.59 | GV5: 4.587 | GW5: 4.595 | GX5: 4.588 | GY5: 4.594 | GZ5: 4.588 | HA5: 4.586 | HB5: 4.588 | HC5: 4.594 | HD5: 4.587 | HE5: 4.583 | HF5: 4.583 | HG5: 4.59 | HH5: 4.585 | HI5: 4.584 | HJ5: 4.584 | HK5: 4.585 | HL5: 4.578 | HM5: 4.579 | HN5: 4.583 | HO5: 4.581 | HP5: 4.574 | HQ5: 4.582 | HR5: 4.578 | HS5: 4.576 | HT5: 4.574 | HU5: 4.577 | HV5: 4.571 | HW5: 4.575 | HX5: 4.575 | HY5: 4.571 | HZ5: 4.573 | IA5: 4.574 | IB5: 4.567 | IC5: 4.57 | ID5: 4.571 | IE5: 4.567 | IF5: 4.563 | IG5: 4.572 | IH5: 4.569 | II5: 4.567 | IJ5: 4.565 | IK5: 4.569 | IL5: 4.562 | IM5: 4.561 | IN5: 4.562 | IO5: 4.561 | IP5: 4.566 | IQ5: 4.563 | IR5: 4.559
A6: B01 | B6: Sample X6 | C6: 0.381 | D6: 0.455 | E6: 0.535 | F6: 0.616 | G6: 0.696 | H6: 0.784 | I6: 0.876 | J6: 0.965 | K6: 1.051 | L6: 1.127 | M6: 1.183 | N6: 1.223 | O6: 1.239 | P6: 1.258 | Q6: 1.295 | R6: 1.346 | S6: 1.406 | T6: 1.466 | U6: 1.527 | V6: 1.589 | W6: 1.65 | X6: 1.712 | Y6: 1.769 | Z6: 1.836 | AA6: 1.892 | AB6: 1.953 | AC6: 2.011 | AD6: 2.068 | AE6: 2.13 | AF6: 2.186 | AG6: 2.243 | AH6: 2.3 | AI6: 2.356 | AJ6: 2.41 | AK6: 2.466 | AL6: 2.522 | AM6: 2.572 | AN6: 2.624 | AO6: 2.676 | AP6: 2.731 | AQ6: 2.776 | AR6: 2.828 | AS6: 2.876 | AT6: 2.925 | AU6: 2.971 | AV6: 3.022 | AW6: 3.067 | AX6: 3.112 | AY6: 3.156 | AZ6: 3.198 | BA6: 3.241 | BB6: 3.284 | BC6: 3.323 | BD6: 3.37 | BE6: 3.404 | BF6: 3.443 | BG6: 3.481 | BH6: 3.52 | BI6: 3.554 | BJ6: 3.592 | BK6: 3.627 | BL6: 3.664 | BM6: 3.697 | BN6: 3.729 | BO6: 3.759 | BP6: 3.791 | BQ6: 3.824 | BR6: 3.856 | BS6: 3.884 | BT6: 3.916 | BU6: 3.942 | BV6: 3.965 | BW6: 3.993 | BX6: 4.02 | BY6: 4.047 | BZ6: 4.063 | CA6: 4.097 | CB6: 4.114 | CC6: 4.133 | CD6: 4.161 | CE6: 4.185 | CF6: 4.203 | CG6: 4.223 | CH6: 4.24 | CI6: 4.264 | CJ6: 4.283 | CK6: 4.301 | CL6: 4.312 | CM6: 4.331 | CN6: 4.353 | CO6: 4.365 | CP6: 4.376 | CQ6: 4.39 | CR6: 4.41 | CS6: 4.419 | CT6: 4.432 | CU6: 4.447 | CV6: 4.464 | CW6: 4.469 | CX6: 4.482 | CY6: 4.494 | CZ6: 4.501 | DA6: 4.51 | DB6: 4.518 | DC6: 4.531 | DD6: 4.54 | DE6: 4.544 | DF6: 4.556 | DG6: 4.564 | DH6: 4.577 | DI6: 4.576 | DJ6: 4.59 | DK6: 4.592 | DL6: 4.598 | DM6: 4.602 | DN6: 4.607 | DO6: 4.619 | DP6: 4.619 | DQ6: 4.624 | DR6: 4.628 | DS6: 4.636 | DT6: 4.634 | DU6: 4.642 | DV6: 4.645 | DW6: 4.644 | DX6: 4.649 | DY6: 4.653 | DZ6: 4.654 | EA6: 4.664 | EB6: 4.657 | EC6: 4.662 | ED6: 4.665 | EE6: 4.662 | EF6: 4.657 | EG6: 4.667 | EH6: 4.664 | EI6: 4.671 | EJ6: 4.675 | EK6: 4.67 | EL6: 4.676 | EM6: 4.669 | EN6: 4.673 | EO6: 4.674 | EP6: 4.668 | EQ6: 4.68 | ER6: 4.67 | ES6: 4.668 | ET6: 4.678 | EU6: 4.671 | EV6: 4.675 | EW6: 4.672 | EX6: 4.67 | EY6: 4.674 | EZ6: 4.671 | FA6: 4.672 | FB6: 4.679 | FC6: 4.677 | FD6: 4.676 | FE6: 4.672 | FF6: 4.673 | FG6: 4.673 | FH6: 4.676 | FI6: 4.67 | FJ6: 4.674 | FK6: 4.667 | FL6: 4.67 | FM6: 4.671 | FN6: 4.67 | FO6: 4.669 | FP6: 4.665 | FQ6: 4.67 | FR6: 4.664 | FS6: 4.662 | FT6: 4.667 | FU6: 4.667 | FV6: 4.671 | FW6: 4.663 | FX6: 4.665 | FY6: 4.669 | FZ6: 4.659 | GA6: 4.664 | GB6: 4.657 | GC6: 4.664 | GD6: 4.661 | GE6: 4.661 | GF6: 4.662 | GG6: 4.657 | GH6: 4.656 | GI6: 4.656 | GJ6: 4.663 | GK6: 4.652 | GL6: 4.661 | GM6: 4.656 | GN6: 4.654 | GO6: 4.655 | GP6: 4.661 | GQ6: 4.655 | GR6: 4.654 | GS6: 4.648 | GT6: 4.655 | GU6: 4.65 | GV6: 4.646 | GW6: 4.655 | GX6: 4.648 | GY6: 4.653 | GZ6: 4.647 | HA6: 4.641 | HB6: 4.651 | HC6: 4.647 | HD6: 4.651 | HE6: 4.636 | HF6: 4.643 | HG6: 4.646 | HH6: 4.645 | HI6: 4.649 | HJ6: 4.641 | HK6: 4.644 | HL6: 4.637 | HM6: 4.642 | HN6: 4.639 | HO6: 4.641 | HP6: 4.638 | HQ6: 4.635 | HR6: 4.641 | HS6: 4.636 | HT6: 4.633 | HU6: 4.64 | HV6: 4.632 | HW6: 4.636 | HX6: 4.633 | HY6: 4.63 | HZ6: 4.629 | IA6: 4.632 | IB6: 4.629 | IC6: 4.635 | ID6: 4.63 | IE6: 4.629 | IF6: 4.622 | IG6: 4.627 | IH6: 4.629 | II6: 4.624 | IJ6: 4.626 | IK6: 4.618 | IL6: 4.615 | IM6: 4.621 | IN6: 4.616 | IO6: 4.62 | IP6: 4.625 | IQ6: 4.615 | IR6: 4.616
A7: C01 | B7: Sample X11 | C7: 0.388 | D7: 0.461 | E7: 0.534 | F7: 0.606 | G7: 0.682 | H7: 0.767 | I7: 0.857 | J7: 0.949 | K7: 1.037 | L7: 1.119 | M7: 1.185 | N7: 1.236 | O7: 1.28 | P7: 1.312 | Q7: 1.34 | R7: 1.383 | S7: 1.439 | T7: 1.495 | U7: 1.556 | V7: 1.618 | W7: 1.682 | X7: 1.745 | Y7: 1.804 | Z7: 1.867 | AA7: 1.931 | AB7: 1.993 | AC7: 2.054 | AD7: 2.11 | AE7: 2.172 | AF7: 2.23 | AG7: 2.289 | AH7: 2.348 | AI7: 2.404 | AJ7: 2.464 | AK7: 2.518 | AL7: 2.578 | AM7: 2.63 | AN7: 2.685 | AO7: 2.737 | AP7: 2.793 | AQ7: 2.844 | AR7: 2.895 | AS7: 2.943 | AT7: 2.996 | AU7: 3.047 | AV7: 3.097 | AW7: 3.143 | AX7: 3.19 | AY7: 3.236 | AZ7: 3.28 | BA7: 3.326 | BB7: 3.368 | BC7: 3.415 | BD7: 3.458 | BE7: 3.498 | BF7: 3.538 | BG7: 3.579 | BH7: 3.616 | BI7: 3.651 | BJ7: 3.694 | BK7: 3.731 | BL7: 3.771 | BM7: 3.806 | BN7: 3.837 | BO7: 3.869 | BP7: 3.907 | BQ7: 3.936 | BR7: 3.968 | BS7: 4.004 | BT7: 4.033 | BU7: 4.063 | BV7: 4.09 | BW7: 4.117 | BX7: 4.143 | BY7: 4.174 | BZ7: 4.201 | CA7: 4.227 | CB7: 4.251 | CC7: 4.265 | CD7: 4.296 | CE7: 4.322 | CF7: 4.338 | CG7: 4.36 | CH7: 4.375 | CI7: 4.402 | CJ7: 4.416 | CK7: 4.441 | CL7: 4.462 | CM7: 4.475 | CN7: 4.494 | CO7: 4.517 | CP7: 4.525 | CQ7: 4.535 | CR7: 4.554 | CS7: 4.567 | CT7: 4.584 | CU7: 4.593 | CV7: 4.615 | CW7: 4.619 | CX7: 4.629 | CY7: 4.646 | CZ7: 4.664 | DA7: 4.665 | DB7: 4.671 | DC7: 4.683 | DD7: 4.694 | DE7: 4.694 | DF7: 4.71 | DG7: 4.716 | DH7: 4.728 | DI7: 4.724 | DJ7: 4.743 | DK7: 4.739 | DL7: 4.756 | DM7: 4.757 | DN7: 4.757 | DO7: 4.767 | DP7: 4.771 | DQ7: 4.779 | DR7: 4.783 | DS7: 4.782 | DT7: 4.787 | DU7: 4.79 | DV7: 4.786 | DW7: 4.796 | DX7: 4.797 | DY7: 4.802 | DZ7: 4.806 | EA7: 4.813 | EB7: 4.814 | EC7: 4.811 | ED7: 4.818 | EE7: 4.809 | EF7: 4.806 | EG7: 4.816 | EH7: 4.815 | EI7: 4.825 | EJ7: 4.824 | EK7: 4.823 | EL7: 4.825 | EM7: 4.823 | EN7: 4.827 | EO7: 4.825 | EP7: 4.821 | EQ7: 4.826 | ER7: 4.822 | ES7: 4.823 | ET7: 4.828 | EU7: 4.819 | EV7: 4.824 | EW7: 4.821 | EX7: 4.821 | EY7: 4.828 | EZ7: 4.822 | FA7: 4.828 | FB7: 4.826 | FC7: 4.829 | FD7: 4.82 | FE7: 4.824 | FF7: 4.824 | FG7: 4.818 | FH7: 4.822 | FI7: 4.815 | FJ7: 4.818 | FK7: 4.816 | FL7: 4.818 | FM7: 4.821 | FN7: 4.814 | FO7: 4.816 | FP7: 4.815 | FQ7: 4.818 | FR7: 4.808 | FS7: 4.813 | FT7: 4.811 | FU7: 4.814 | FV7: 4.81 | FW7: 4.807 | FX7: 4.813 | FY7: 4.811 | FZ7: 4.809 | GA7: 4.808 | GB7: 4.804 | GC7: 4.808 | GD7: 4.806 | GE7: 4.81 | GF7: 4.811 | GG7: 4.803 | GH7: 4.799 | GI7: 4.801 | GJ7: 4.809 | GK7: 4.801 | GL7: 4.803 | GM7: 4.802 | GN7: 4.806 | GO7: 4.796 | GP7: 4.808 | GQ7: 4.807 | GR7: 4.796 | GS7: 4.796 | GT7: 4.801 | GU7: 4.796 | GV7: 4.793 | GW7: 4.795 | GX7: 4.79 | GY7: 4.795 | GZ7: 4.793 | HA7: 4.783 | HB7: 4.801 | HC7: 4.794 | HD7: 4.792 | HE7: 4.787 | HF7: 4.785 | HG7: 4.795 | HH7: 4.792 | HI7: 4.794 | HJ7: 4.79 | HK7: 4.786 | HL7: 4.788 | HM7: 4.783 | HN7: 4.787 | HO7: 4.787 | HP7: 4.781 | HQ7: 4.785 | HR7: 4.782 | HS7: 4.778 | HT7: 4.779 | HU7: 4.788 | HV7: 4.779 | HW7: 4.782 | HX7: 4.78 | HY7: 4.774 | HZ7: 4.776 | IA7: 4.781 | IB7: 4.774 | IC7: 4.773 | ID7: 4.776 | IE7: 4.779 | IF7: 4.775 | IG7: 4.769 | IH7: 4.769 | II7: 4.777 | IJ7: 4.774 | IK7: 4.773 | IL7: 4.766 | IM7: 4.768 | IN7: 4.769 | IO7: 4.766 | IP7: 4.771 | IQ7: 4.764 | IR7: 4.761
A8: D01 | B8: Sample X16 | C8: 0.389 | D8: 0.461 | E8: 0.535 | F8: 0.614 | G8: 0.695 | H8: 0.792 | I8: 0.897 | J8: 1.007 | K8: 1.111 | L8: 1.221 | M8: 1.299 | N8: 1.336 | O8: 1.364 | P8: 1.372 | Q8: 1.37 | R8: 1.387 | S8: 1.432 | T8: 1.482 | U8: 1.538 | V8: 1.597 | W8: 1.657 | X8: 1.717 | Y8: 1.777 | Z8: 1.839 | AA8: 1.899 | AB8: 1.956 | AC8: 2.016 | AD8: 2.072 | AE8: 2.132 | AF8: 2.189 | AG8: 2.247 | AH8: 2.306 | AI8: 2.363 | AJ8: 2.426 | AK8: 2.479 | AL8: 2.541 | AM8: 2.602 | AN8: 2.649 | AO8: 2.704 | AP8: 2.758 | AQ8: 2.811 | AR8: 2.861 | AS8: 2.91 | AT8: 2.963 | AU8: 3.004 | AV8: 3.054 | AW8: 3.104 | AX8: 3.149 | AY8: 3.193 | AZ8: 3.238 | BA8: 3.284 | BB8: 3.324 | BC8: 3.366 | BD8: 3.41 | BE8: 3.441 | BF8: 3.48 | BG8: 3.527 | BH8: 3.564 | BI8: 3.601 | BJ8: 3.637 | BK8: 3.674 | BL8: 3.711 | BM8: 3.747 | BN8: 3.776 | BO8: 3.81 | BP8: 3.845 | BQ8: 3.872 | BR8: 3.904 | BS8: 3.936 | BT8: 3.967 | BU8: 3.995 | BV8: 4.024 | BW8: 4.045 | BX8: 4.076 | BY8: 4.11 | BZ8: 4.128 | CA8: 4.155 | CB8: 4.178 | CC8: 4.198 | CD8: 4.219 | CE8: 4.254 | CF8: 4.262 | CG8: 4.297 | CH8: 4.312 | CI8: 4.332 | CJ8: 4.356 | CK8: 4.377 | CL8: 4.393 | CM8: 4.41 | CN8: 4.428 | CO8: 4.447 | CP8: 4.463 | CQ8: 4.479 | CR8: 4.493 | CS8: 4.507 | CT8: 4.522 | CU8: 4.541 | CV8: 4.558 | CW8: 4.559 | CX8: 4.588 | CY8: 4.595 | CZ8: 4.601 | DA8: 4.613 | DB8: 4.619 | DC8: 4.632 | DD8: 4.646 | DE8: 4.646 | DF8: 4.658 | DG8: 4.678 | DH8: 4.678 | DI8: 4.683 | DJ8: 4.693 | DK8: 4.696 | DL8: 4.708 | DM8: 4.718 | DN8: 4.719 | DO8: 4.723 | DP8: 4.73 | DQ8: 4.743 | DR8: 4.739 | DS8: 4.745 | DT8: 4.743 | DU8: 4.746 | DV8: 4.758 | DW8: 4.752 | DX8: 4.753 | DY8: 4.76 | DZ8: 4.754 | EA8: 4.76 | EB8: 4.772 | EC8: 4.763 | ED8: 4.765 | EE8: 4.768 | EF8: 4.762 | EG8: 4.765 | EH8: 4.771 | EI8: 4.769 | EJ8: 4.771 | EK8: 4.772 | EL8: 4.779 | EM8: 4.776 | EN8: 4.782 | EO8: 4.778 | EP8: 4.777 | EQ8: 4.787 | ER8: 4.778 | ES8: 4.785 | ET8: 4.787 | EU8: 4.786 | EV8: 4.794 | EW8: 4.788 | EX8: 4.778 | EY8: 4.794 | EZ8: 4.789 | FA8: 4.785 | FB8: 4.792 | FC8: 4.784 | FD8: 4.781 | FE8: 4.78 | FF8: 4.781 | FG8: 4.785 | FH8: 4.784 | FI8: 4.787 | FJ8: 4.78 | FK8: 4.777 | FL8: 4.799 | FM8: 4.793 | FN8: 4.791 | FO8: 4.795 | FP8: 4.802 | FQ8: 4.808 | FR8: 4.789 | FS8: 4.79 | FT8: 4.794 | FU8: 4.799 | FV8: 4.794 | FW8: 4.781 | FX8: 4.777 | FY8: 4.779 | FZ8: 4.777 | GA8: 4.788 | GB8: 4.77 | GC8: 4.777 | GD8: 4.775 | GE8: 4.776 | GF8: 4.777 | GG8: 4.769 | GH8: 4.773 | GI8: 4.766 | GJ8: 4.775 | GK8: 4.768 | GL8: 4.777 | GM8: 4.783 | GN8: 4.77 | GO8: 4.777 | GP8: 4.776 | GQ8: 4.779 | GR8: 4.779 | GS8: 4.777 | GT8: 4.778 | GU8: 4.779 | GV8: 4.772 | GW8: 4.776 | GX8: 4.77 | GY8: 4.775 | GZ8: 4.765 | HA8: 4.773 | HB8: 4.768 | HC8: 4.767 | HD8: 4.771 | HE8: 4.76 | HF8: 4.767 | HG8: 4.759 | HH8: 4.765 | HI8: 4.761 | HJ8: 4.767 | HK8: 4.754 | HL8: 4.771 | HM8: 4.758 | HN8: 4.752 | HO8: 4.76 | HP8: 4.754 | HQ8: 4.752 | HR8: 4.752 | HS8: 4.752 | HT8: 4.756 | HU8: 4.753 | HV8: 4.753 | HW8: 4.759 | HX8: 4.756 | HY8: 4.753 | HZ8: 4.74 | IA8: 4.751 | IB8: 4.741 | IC8: 4.744 | ID8: 4.743 | IE8: 4.736 | IF8: 4.749 | IG8: 4.733 | IH8: 4.744 | II8: 4.738 | IJ8: 4.748 | IK8: 4.74 | IL8: 4.739 | IM8: 4.739 | IN8: 4.731 | IO8: 4.737 | IP8: 4.739 | IQ8: 4.737 | IR8: 4.74
A9: E01 | B9: Sample X21 | C9: 0.404 | D9: 0.476 | E9: 0.557 | F9: 0.639 | G9: 0.727 | H9: 0.822 | I9: 0.904 | J9: 0.973 | K9: 1.031 | L9: 1.085 | M9: 1.125 | N9: 1.159 | O9: 1.201 | P9: 1.259 | Q9: 1.315 | R9: 1.376 | S9: 1.443 | T9: 1.503 | U9: 1.566 | V9: 1.63 | W9: 1.696 | X9: 1.758 | Y9: 1.821 | Z9: 1.883 | AA9: 1.943 | AB9: 2.005 | AC9: 2.066 | AD9: 2.125 | AE9: 2.185 | AF9: 2.244 | AG9: 2.306 | AH9: 2.364 | AI9: 2.418 | AJ9: 2.474 | AK9: 2.53 | AL9: 2.59 | AM9: 2.644 | AN9: 2.694 | AO9: 2.748 | AP9: 2.803 | AQ9: 2.854 | AR9: 2.905 | AS9: 2.953 | AT9: 3.006 | AU9: 3.054 | AV9: 3.103 | AW9: 3.15 | AX9: 3.197 | AY9: 3.241 | AZ9: 3.286 | BA9: 3.332 | BB9: 3.37 | BC9: 3.422 | BD9: 3.46 | BE9: 3.501 | BF9: 3.539 | BG9: 3.58 | BH9: 3.615 | BI9: 3.655 | BJ9: 3.693 | BK9: 3.73 | BL9: 3.765 | BM9: 3.8 | BN9: 3.838 | BO9: 3.868 | BP9: 3.897 | BQ9: 3.932 | BR9: 3.963 | BS9: 3.994 | BT9: 4.021 | BU9: 4.051 | BV9: 4.077 | BW9: 4.107 | BX9: 4.131 | BY9: 4.155 | BZ9: 4.18 | CA9: 4.212 | CB9: 4.228 | CC9: 4.254 | CD9: 4.277 | CE9: 4.303 | CF9: 4.319 | CG9: 4.34 | CH9: 4.353 | CI9: 4.381 | CJ9: 4.402 | CK9: 4.416 | CL9: 4.439 | CM9: 4.449 | CN9: 4.472 | CO9: 4.49 | CP9: 4.499 | CQ9: 4.517 | CR9: 4.531 | CS9: 4.546 | CT9: 4.559 | CU9: 4.571 | CV9: 4.584 | CW9: 4.596 | CX9: 4.605 | CY9: 4.617 | CZ9: 4.63 | DA9: 4.639 | DB9: 4.649 | DC9: 4.657 | DD9: 4.667 | DE9: 4.671 | DF9: 4.684 | DG9: 4.695 | DH9: 4.7 | DI9: 4.702 | DJ9: 4.717 | DK9: 4.714 | DL9: 4.728 | DM9: 4.734 | DN9: 4.732 | DO9: 4.741 | DP9: 4.75 | DQ9: 4.753 | DR9: 4.754 | DS9: 4.755 | DT9: 4.759 | DU9: 4.764 | DV9: 4.762 | DW9: 4.768 | DX9: 4.775 | DY9: 4.774 | DZ9: 4.788 | EA9: 4.784 | EB9: 4.784 | EC9: 4.786 | ED9: 4.788 | EE9: 4.781 | EF9: 4.786 | EG9: 4.788 | EH9: 4.794 | EI9: 4.798 | EJ9: 4.797 | EK9: 4.793 | EL9: 4.796 | EM9: 4.796 | EN9: 4.792 | EO9: 4.793 | EP9: 4.796 | EQ9: 4.799 | ER9: 4.789 | ES9: 4.794 | ET9: 4.799 | EU9: 4.792 | EV9: 4.803 | EW9: 4.798 | EX9: 4.801 | EY9: 4.801 | EZ9: 4.795 | FA9: 4.798 | FB9: 4.802 | FC9: 4.8 | FD9: 4.797 | FE9: 4.796 | FF9: 4.799 | FG9: 4.791 | FH9: 4.795 | FI9: 4.797 | FJ9: 4.792 | FK9: 4.788 | FL9: 4.798 | FM9: 4.794 | FN9: 4.792 | FO9: 4.791 | FP9: 4.783 | FQ9: 4.79 | FR9: 4.787 | FS9: 4.785 | FT9: 4.786 | FU9: 4.79 | FV9: 4.785 | FW9: 4.785 | FX9: 4.787 | FY9: 4.785 | FZ9: 4.781 | GA9: 4.78 | GB9: 4.777 | GC9: 4.782 | GD9: 4.775 | GE9: 4.783 | GF9: 4.786 | GG9: 4.772 | GH9: 4.77 | GI9: 4.768 | GJ9: 4.782 | GK9: 4.771 | GL9: 4.777 | GM9: 4.769 | GN9: 4.772 | GO9: 4.774 | GP9: 4.776 | GQ9: 4.771 | GR9: 4.768 | GS9: 4.768 | GT9: 4.766 | GU9: 4.769 | GV9: 4.763 | GW9: 4.765 | GX9: 4.764 | GY9: 4.771 | GZ9: 4.76 | HA9: 4.76 | HB9: 4.773 | HC9: 4.765 | HD9: 4.769 | HE9: 4.758 | HF9: 4.765 | HG9: 4.759 | HH9: 4.759 | HI9: 4.767 | HJ9: 4.76 | HK9: 4.761 | HL9: 4.756 | HM9: 4.757 | HN9: 4.756 | HO9: 4.754 | HP9: 4.755 | HQ9: 4.75 | HR9: 4.755 | HS9: 4.749 | HT9: 4.748 | HU9: 4.759 | HV9: 4.748 | HW9: 4.755 | HX9: 4.751 | HY9: 4.744 | HZ9: 4.745 | IA9: 4.749 | IB9: 4.744 | IC9: 4.753 | ID9: 4.747 | IE9: 4.742 | IF9: 4.741 | IG9: 4.737 | IH9: 4.739 | II9: 4.748 | IJ9: 4.743 | IK9: 4.737 | IL9: 4.735 | IM9: 4.736 | IN9: 4.735 | IO9: 4.734 | IP9: 4.737 | IQ9: 4.734 | IR9: 4.732
A10: =AVERAGE(A5:A9) ->  | B10: Average | C10: =AVERAGE(C5:C9) -> 0.3836 | D10: =AVERAGE(D5:D9) -> 0.4504 | E10: 0.5246 | F10: 0.6008 | G10: 0.679 | H10: 0.7682 | I10: 0.8584 | J10: 0.9494 | K10: 1.0364 | L10: 1.12 | M10: 1.1876 | N10: 1.2368 | O10: 1.2776 | P10: 1.3116 | Q10: 1.332 | R10: 1.3612 | S10: 1.4122 | T10: 1.4674 | U10: 1.5268 | V10: 1.5884 | W10: 1.6516 | X10: 1.7136 | Y10: 1.7732 | Z10: 1.837 | AA10: 1.8966 | AB10: 1.9566 | AC10: 2.0164 | AD10: 2.0734 | AE10: 2.134 | AF10: 2.1906 | AG10: 2.2484 | AH10: 2.3068 | AI10: 2.361 | AJ10: 2.4192 | AK10: 2.4734 | AL10: 2.532 | AM10: 2.5858 | AN10: 2.6364 | AO10: 2.6894 | AP10: 2.744 | AQ10: 2.7938 | AR10: 2.8446 | AS10: 2.8926 | AT10: 2.9436 | AU10: 2.9908 | AV10: 3.0402 | AW10: 3.0862 | AX10: 3.1328 | AY10: 3.1768 | AZ10: 3.2196 | BA10: 3.2646 | BB10: 3.3058 | BC10: 3.3502 | BD10: 3.392 | BE10: 3.4288 | BF10: 3.468 | BG10: 3.5096 | BH10: 3.5466 | BI10: 3.5832 | BJ10: 3.621 | BK10: 3.6582 | BL10: 3.6946 | BM10: 3.7284 | BN10: 3.7616 | BO10: 3.7928 | BP10: =AVERAGE(BP5:BP9) -> 3.8262 | BQ10: 3.857 | BR10: 3.889 | BS10: 3.9208 | BT10: 3.9498 | BU10: 3.9782 | BV10: 4.0046 | BW10: 4.0318 | BX10: 4.058 | BY10: 4.0866 | BZ10: 4.1086 | CA10: 4.1388 | CB10: 4.1586 | CC10: 4.178 | CD10: 4.2034 | CE10: 4.231 | CF10: 4.2464 | CG10: 4.2702 | CH10: 4.284 | CI10: 4.309 | CJ10: 4.3282 | CK10: 4.348 | CL10: 4.3654 | CM10: 4.3812 | CN10: 4.4008 | CO10: 4.4182 | CP10: 4.4302 | CQ10: 4.445 | CR10: 4.4618 | CS10: 4.4746 | CT10: 4.4882 | CU10: 4.5022 | CV10: 4.5192 | CW10: 4.5254 | CX10: 4.5392 | CY10: 4.552 | CZ10: 4.5634 | DA10: 4.571 | DB10: 4.5786 | DC10: 4.591 | DD10: 4.6008 | DE10: 4.605 | DF10: 4.6172 | DG10: 4.6276 | DH10: 4.6362 | DI10: 4.6368 | DJ10: 4.6506 | DK10: 4.65 | DL10: 4.663 | DM10: 4.6686 | DN10: 4.6712 | DO10: 4.6778 | DP10: 4.684 | DQ10: 4.6908 | DR10: 4.6924 | DS10: 4.6952 | DT10: 4.698 | DU10: 4.7022 | DV10: 4.7038 | DW10: 4.7056 | DX10: 4.71 | DY10: 4.7136 | DZ10: 4.7166 | EA10: 4.7232 | EB10: =AVERAGE(EB5:EB9) -> 4.7224 | EC10: 4.7222 | ED10: 4.7262 | EE10: 4.7228 | EF10: 4.721 | EG10: 4.7268 | EH10: 4.7274 | EI10: 4.7318 | EJ10: 4.7338 | EK10: 4.732 | EL10: 4.7366 | EM10: 4.7342 | EN10: 4.7366 | EO10: 4.7358 | EP10: 4.734 | EQ10: 4.7408 | ER10: 4.7336 | ES10: 4.7364 | ET10: 4.7408 | EU10: 4.7348 | EV10: 4.7414 | EW10: 4.737 | EX10: 4.7352 | EY10: 4.741 | EZ10: 4.7372 | FA10: 4.7386 | FB10: 4.7418 | FC10: 4.7402 | FD10: 4.7354 | FE10: 4.7354 | FF10: 4.737 | FG10: 4.7354 | FH10: 4.7368 | FI10: 4.735 | FJ10: 4.734 | FK10: 4.73 | FL10: 4.739 | FM10: 4.7372 | FN10: 4.7348 | FO10: 4.7346 | FP10: 4.7342 | FQ10: 4.7392 | FR10: 4.731 | FS10: 4.7312 | FT10: 4.7326 | FU10: 4.7348 | FV10: 4.7332 | FW10: 4.7276 | FX10: 4.7296 | FY10: 4.7296 | FZ10: 4.725 | GA10: 4.7292 | GB10: 4.7214 | GC10: 4.727 | GD10: 4.7236 | GE10: 4.726 | GF10: 4.727 | GG10: 4.7194 | GH10: 4.7188 | GI10: 4.7168 | GJ10: 4.7266 | GK10: 4.7166 | GL10: 4.7238 | GM10: 4.7208 | GN10: =AVERAGE(GN5:GN9) -> 4.7196 | GO10: 4.7186 | GP10: 4.723 | GQ10: 4.7208 | GR10: 4.7172 | GS10: 4.717 | GT10: 4.7182 | GU10: 4.7168 | GV10: 4.7122 | GW10: 4.7172 | GX10: 4.712 | GY10: 4.7176 | GZ10: 4.7106 | HA10: 4.7086 | HB10: 4.7162 | HC10: 4.7134 | HD10: 4.714 | HE10: 4.7048 | HF10: 4.7086 | HG10: 4.7098 | HH10: 4.7092 | HI10: 4.711 | HJ10: 4.7084 | HK10: 4.706 | HL10: 4.706 | HM10: 4.7038 | HN10: 4.7034 | HO10: 4.7046 | HP10: 4.7004 | HQ10: 4.7008 | HR10: 4.7016 | HS10: 4.6982 | HT10: 4.698 | HU10: 4.7034 | HV10: 4.6966 | HW10: 4.7014 | HX10: 4.699 | HY10: 4.6944 | HZ10: 4.6926 | IA10: 4.6974 | IB10: 4.691 | IC10: 4.695 | ID10: 4.6934 | IE10: 4.6906 | IF10: 4.69 | IG10: 4.6876 | IH10: 4.69 | II10: 4.6908 | IJ10: 4.6912 | IK10: 4.6874 | IL10: 4.6834 | IM10: 4.685 | IN10: 4.6826 | IO10: 4.6836 | IP10: 4.6876 | IQ10: 4.6826 | IR10: 4.6816 | IZ10: =AVERAGE(IZ5:IZ9) ->  | LL10: =AVERAGE(LL5:LL9) ->  | NX10: =AVERAGE(NX5:NX9) ->  | QJ10: =AVERAGE(QJ5:QJ9) ->  | SV10: =AVERAGE(SV5:SV9) ->  | VH10: =AVERAGE(VH5:VH9) ->  | XT10: =AVERAGE(XT5:XT9) ->  | AAF10: =AVERAGE(AAF5:AAF9) ->  | ACR10: =AVERAGE(ACR5:ACR9) ->  | AFD10: =AVERAGE(AFD5:AFD9) ->  | AHP10: =AVERAGE(AHP5:AHP9) ->  | AKB10: =AVERAGE(AKB5:AKB9) ->  | AMN10: =AVERAGE(AMN5:AMN9) ->  | AOZ10: =AVERAGE(AOZ5:AOZ9) ->  | ARL10: =AVERAGE(ARL5:ARL9) ->  | ATX10: =AVERAGE(ATX5:ATX9) ->  | AWJ10: =AVERAGE(AWJ5:AWJ9) ->  | AYV10: =AVERAGE(AYV5:AYV9) ->  | BBH10: =AVERAGE(BBH5:BBH9) ->  | BDT10: =AVERAGE(BDT5:BDT9) ->  | BGF10: =AVERAGE(BGF5:BGF9) ->  | BIR10: =AVERAGE(BIR5:BIR9) ->  | BLD10: =AVERAGE(BLD5:BLD9) ->  | BNP10: =AVERAGE(BNP5:BNP9) ->  | BQB10: =AVERAGE(BQB5:BQB9) ->  | BSN10: =AVERAGE(BSN5:BSN9) ->  | BUZ10: =AVERAGE(BUZ5:BUZ9) ->  | BXL10: =AVERAGE(BXL5:BXL9) ->  | BZX10: =AVERAGE(BZX5:BZX9) ->  | CCJ10: =AVERAGE(CCJ5:CCJ9) ->  | CEV10: =AVERAGE(CEV5:CEV9) ->  | CHH10: =AVERAGE(CHH5:CHH9) ->  | CJT10: =AVERAGE(CJT5:CJT9) ->  | CMF10: =AVERAGE(CMF5:CMF9) ->  | COR10: =AVERAGE(COR5:COR9) ->  | CRD10: =AVERAGE(CRD5:CRD9) ->  | CTP10: =AVERAGE(CTP5:CTP9) ->  | CWB10: =AVERAGE(CWB5:CWB9) ->  | CYN10: =AVERAGE(CYN5:CYN9) ->  | DAZ10: =AVERAGE(DAZ5:DAZ9) ->  | DDL10: =AVERAGE(DDL5:DDL9) ->  | DFX10: =AVERAGE(DFX5:DFX9) ->  | DIJ10: =AVERAGE(DIJ5:DIJ9) ->  | DKV10: =AVERAGE(DKV5:DKV9) ->  | DNH10: =AVERAGE(DNH5:DNH9) ->  | DPT10: =AVERAGE(DPT5:DPT9) ->  | DSF10: =AVERAGE(DSF5:DSF9) ->  | DUR10: =AVERAGE(DUR5:DUR9) ->  | DXD10: =AVERAGE(DXD5:DXD9) ->  | DZP10: =AVERAGE(DZP5:DZP9) ->  | ECB10: =AVERAGE(ECB5:ECB9) ->  | EEN10: =AVERAGE(EEN5:EEN9) ->  | EGZ10: =AVERAGE(EGZ5:EGZ9) ->  | EJL10: =AVERAGE(EJL5:EJL9) ->  | ELX10: =AVERAGE(ELX5:ELX9) ->  | EOJ10: =AVERAGE(EOJ5:EOJ9) ->  | EQV10: =AVERAGE(EQV5:EQV9) ->  | ETH10: =AVERAGE(ETH5:ETH9) ->  | EVT10: =AVERAGE(EVT5:EVT9) ->  | EYF10: =AVERAGE(EYF5:EYF9) ->  | FAR10: =AVERAGE(FAR5:FAR9) ->  | FDD10: =AVERAGE(FDD5:FDD9) ->  | FFP10: =AVERAGE(FFP5:FFP9) ->  | FIB10: =AVERAGE(FIB5:FIB9) ->  | FKN10: =AVERAGE(FKN5:FKN9) ->  | FMZ10: =AVERAGE(FMZ5:FMZ9) ->  | FPL10: =AVERAGE(FPL5:FPL9) ->  | FRX10: =AVERAGE(FRX5:FRX9) ->  | FUJ10: =AVERAGE(FUJ5:FUJ9) ->  | FWV10: =AVERAGE(FWV5:FWV9) ->  | FZH10: =AVERAGE(FZH5:FZH9) ->  | GBT10: =AVERAGE(GBT5:GBT9) ->  | GEF10: =AVERAGE(GEF5:GEF9) ->  | GGR10: =AVERAGE(GGR5:GGR9) ->  | GJD10: =AVERAGE(GJD5:GJD9) ->  | GLP10: =AVERAGE(GLP5:GLP9) ->  | GOB10: =AVERAGE(GOB5:GOB9) ->  | GQN10: =AVERAGE(GQN5:GQN9) ->  | GSZ10: =AVERAGE(GSZ5:GSZ9) ->  | GVL10: =AVERAGE(GVL5:GVL9) ->  | GXX10: =AVERAGE(GXX5:GXX9) ->  | HAJ10: =AVERAGE(HAJ5:HAJ9) ->  | HCV10: =AVERAGE(HCV5:HCV9) ->  | HFH10: =AVERAGE(HFH5:HFH9) ->  | HHT10: =AVERAGE(HHT5:HHT9) ->  | HKF10: =AVERAGE(HKF5:HKF9) ->  | HMR10: =AVERAGE(HMR5:HMR9) ->  | HPD10: =AVERAGE(HPD5:HPD9) ->  | HRP10: =AVERAGE(HRP5:HRP9) ->  | HUB10: =AVERAGE(HUB5:HUB9) ->  | HWN10: =AVERAGE(HWN5:HWN9) ->  | HYZ10: =AVERAGE(HYZ5:HYZ9) ->  | IBL10: =AVERAGE(IBL5:IBL9) ->  | IDX10: =AVERAGE(IDX5:IDX9) ->  | IGJ10: =AVERAGE(IGJ5:IGJ9) ->  | IIV10: =AVERAGE(IIV5:IIV9) ->  | ILH10: =AVERAGE(ILH5:ILH9) ->  | INT10: =AVERAGE(INT5:INT9) ->  | IQF10: =AVERAGE(IQF5:IQF9) ->  | ISR10: =AVERAGE(ISR5:ISR9) ->  | IVD10: =AVERAGE(IVD5:IVD9) ->  | IXP10: =AVERAGE(IXP5:IXP9) ->  | JAB10: =AVERAGE(JAB5:JAB9) ->  | JCN10: =AVERAGE(JCN5:JCN9) ->  | JEZ10: =AVERAGE(JEZ5:JEZ9) ->  | JHL10: =AVERAGE(JHL5:JHL9) ->  | JJX10: =AVERAGE(JJX5:JJX9) ->  | JMJ10: =AVERAGE(JMJ5:JMJ9) ->  | JOV10: =AVERAGE(JOV5:JOV9) ->  | JRH10: =AVERAGE(JRH5:JRH9) ->  | JTT10: =AVERAGE(JTT5:JTT9) ->  | JWF10: =AVERAGE(JWF5:JWF9) ->  | JYR10: =AVERAGE(JYR5:JYR9) ->  | KBD10: =AVERAGE(KBD5:KBD9) ->  | KDP10: =AVERAGE(KDP5:KDP9) ->  | KGB10: =AVERAGE(KGB5:KGB9) ->  | KIN10: =AVERAGE(KIN5:KIN9) ->  | KKZ10: =AVERAGE(KKZ5:KKZ9) ->  | KNL10: =AVERAGE(KNL5:KNL9) ->  | KPX10: =AVERAGE(KPX5:KPX9) ->  | KSJ10: =AVERAGE(KSJ5:KSJ9) ->  | KUV10: =AVERAGE(KUV5:KUV9) ->  | KXH10: =AVERAGE(KXH5:KXH9) ->  | KZT10: =AVERAGE(KZT5:KZT9) ->  | LCF10: =AVERAGE(LCF5:LCF9) ->  | LER10: =AVERAGE(LER5:LER9) ->  | LHD10: =AVERAGE(LHD5:LHD9) ->  | LJP10: =AVERAGE(LJP5:LJP9) ->  | LMB10: =AVERAGE(LMB5:LMB9) ->  | LON10: =AVERAGE(LON5:LON9) ->  | LQZ10: =AVERAGE(LQZ5:LQZ9) ->  | LTL10: =AVERAGE(LTL5:LTL9) ->  | LVX10: =AVERAGE(LVX5:LVX9) ->  | LYJ10: =AVERAGE(LYJ5:LYJ9) ->  | MAV10: =AVERAGE(MAV5:MAV9) ->  | MDH10: =AVERAGE(MDH5:MDH9) ->  | MFT10: =AVERAGE(MFT5:MFT9) ->  | MIF10: =AVERAGE(MIF5:MIF9) ->  | MKR10: =AVERAGE(MKR5:MKR9) ->  | MND10: =AVERAGE(MND5:MND9) ->  | MPP10: =AVERAGE(MPP5:MPP9) ->  | MSB10: =AVERAGE(MSB5:MSB9) ->  | MUN10: =AVERAGE(MUN5:MUN9) ->  | MWZ10: =AVERAGE(MWZ5:MWZ9) ->  | MZL10: =AVERAGE(MZL5:MZL9) ->  | NBX10: =AVERAGE(NBX5:NBX9) ->  | NEJ10: =AVERAGE(NEJ5:NEJ9) ->  | NGV10: =AVERAGE(NGV5:NGV9) ->  | NJH10: =AVERAGE(NJH5:NJH9) ->  | NLT10: =AVERAGE(NLT5:NLT9) ->  | NOF10: =AVERAGE(NOF5:NOF9) ->  | NQR10: =AVERAGE(NQR5:NQR9) ->  | NTD10: =AVERAGE(NTD5:NTD9) ->  | NVP10: =AVERAGE(NVP5:NVP9) ->  | NYB10: =AVERAGE(NYB5:NYB9) ->  | OAN10: =AVERAGE(OAN5:OAN9) ->  | OCZ10: =AVERAGE(OCZ5:OCZ9) ->  | OFL10: =AVERAGE(OFL5:OFL9) ->  | OHX10: =AVERAGE(OHX5:OHX9) ->  | OKJ10: =AVERAGE(OKJ5:OKJ9) ->  | OMV10: =AVERAGE(OMV5:OMV9) ->  | OPH10: =AVERAGE(OPH5:OPH9) ->  | ORT10: =AVERAGE(ORT5:ORT9) ->  | OUF10: =AVERAGE(OUF5:OUF9) ->  | OWR10: =AVERAGE(OWR5:OWR9) ->  | OZD10: =AVERAGE(OZD5:OZD9) ->  | PBP10: =AVERAGE(PBP5:PBP9) ->  | PEB10: =AVERAGE(PEB5:PEB9) ->  | PGN10: =AVERAGE(PGN5:PGN9) ->  | PIZ10: =AVERAGE(PIZ5:PIZ9) ->  | PLL10: =AVERAGE(PLL5:PLL9) ->  | PNX10: =AVERAGE(PNX5:PNX9) ->  | PQJ10: =AVERAGE(PQJ5:PQJ9) ->  | PSV10: =AVERAGE(PSV5:PSV9) ->  | PVH10: =AVERAGE(PVH5:PVH9) ->  | PXT10: =AVERAGE(PXT5:PXT9) ->  | QAF10: =AVERAGE(QAF5:QAF9) ->  | QCR10: =AVERAGE(QCR5:QCR9) ->  | QFD10: =AVERAGE(QFD5:QFD9) ->  | QHP10: =AVERAGE(QHP5:QHP9) ->  | QKB10: =AVERAGE(QKB5:QKB9) ->  | QMN10: =AVERAGE(QMN5:QMN9) ->  | QOZ10: =AVERAGE(QOZ5:QOZ9) ->  | QRL10: =AVERAGE(QRL5:QRL9) ->  | QTX10: =AVERAGE(QTX5:QTX9) ->  | QWJ10: =AVERAGE(QWJ5:QWJ9) ->  | QYV10: =AVERAGE(QYV5:QYV9) ->  | RBH10: =AVERAGE(RBH5:RBH9) ->  | RDT10: =AVERAGE(RDT5:RDT9) ->  | RGF10: =AVERAGE(RGF5:RGF9) ->  | RIR10: =AVERAGE(RIR5:RIR9) ->  | RLD10: =AVERAGE(RLD5:RLD9) ->  | RNP10: =AVERAGE(RNP5:RNP9) ->  | RQB10: =AVERAGE(RQB5:RQB9) ->  | RSN10: =AVERAGE(RSN5:RSN9) ->  | RUZ10: =AVERAGE(RUZ5:RUZ9) ->  | RXL10: =AVERAGE(RXL5:RXL9) ->  | RZX10: =AVERAGE(RZX5:RZX9) ->  | SCJ10: =AVERAGE(SCJ5:SCJ9) ->  | SEV10: =AVERAGE(SEV5:SEV9) ->  | SHH10: =AVERAGE(SHH5:SHH9) ->  | SJT10: =AVERAGE(SJT5:SJT9) ->  | SMF10: =AVERAGE(SMF5:SMF9) ->  | SOR10: =AVERAGE(SOR5:SOR9) ->  | SRD10: =AVERAGE(SRD5:SRD9) ->  | STP10: =AVERAGE(STP5:STP9) ->  | SWB10: =AVERAGE(SWB5:SWB9) ->  | SYN10: =AVERAGE(SYN5:SYN9) ->  | TAZ10: =AVERAGE(TAZ5:TAZ9) ->  | TDL10: =AVERAGE(TDL5:TDL9) ->  | TFX10: =AVERAGE(TFX5:TFX9) ->  | TIJ10: =AVERAGE(TIJ5:TIJ9) ->  | TKV10: =AVERAGE(TKV5:TKV9) ->  | TNH10: =AVERAGE(TNH5:TNH9) ->  | TPT10: =AVERAGE(TPT5:TPT9) ->  | TSF10: =AVERAGE(TSF5:TSF9) ->  | TUR10: =AVERAGE(TUR5:TUR9) ->  | TXD10: =AVERAGE(TXD5:TXD9) ->  | TZP10: =AVERAGE(TZP5:TZP9) ->  | UCB10: =AVERAGE(UCB5:UCB9) ->  | UEN10: =AVERAGE(UEN5:UEN9) ->  | UGZ10: =AVERAGE(UGZ5:UGZ9) ->  | UJL10: =AVERAGE(UJL5:UJL9) ->  | ULX10: =AVERAGE(ULX5:ULX9) ->  | UOJ10: =AVERAGE(UOJ5:UOJ9) ->  | UQV10: =AVERAGE(UQV5:UQV9) ->  | UTH10: =AVERAGE(UTH5:UTH9) ->  | UVT10: =AVERAGE(UVT5:UVT9) ->  | UYF10: =AVERAGE(UYF5:UYF9) ->  | VAR10: =AVERAGE(VAR5:VAR9) ->  | VDD10: =AVERAGE(VDD5:VDD9) ->  | VFP10: =AVERAGE(VFP5:VFP9) ->  | VIB10: =AVERAGE(VIB5:VIB9) ->  | VKN10: =AVERAGE(VKN5:VKN9) ->  | VMZ10: =AVERAGE(VMZ5:VMZ9) ->  | VPL10: =AVERAGE(VPL5:VPL9) ->  | VRX10: =AVERAGE(VRX5:VRX9) ->  | VUJ10: =AVERAGE(VUJ5:VUJ9) ->  | VWV10: =AVERAGE(VWV5:VWV9) ->  | VZH10: =AVERAGE(VZH5:VZH9) ->  | WBT10: =AVERAGE(WBT5:WBT9) ->  | WEF10: =AVERAGE(WEF5:WEF9) ->  | WGR10: =AVERAGE(WGR5:WGR9) ->  | WJD10: =AVERAGE(WJD5:WJD9) ->  | WLP10: =AVERAGE(WLP5:WLP9) ->  | WOB10: =AVERAGE(WOB5:WOB9) ->  | WQN10: =AVERAGE(WQN5:WQN9) ->  | WSZ10: =AVERAGE(WSZ5:WSZ9) ->  | WVL10: =AVERAGE(WVL5:WVL9) ->  | WXX10: =AVERAGE(WXX5:WXX9) ->  | XAJ10: =AVERAGE(XAJ5:XAJ9) ->  | XCV10: =AVERAGE(XCV5:XCV9) -> 
A11: =STDEV(A5:A9) ->  | C11: 0.01755847374 | D11: 0.02976239238 | E11: 0.03630840123 | F11: 0.04197261012 | G11: 0.04978453575 | H11: 0.05525576893 | I11: 0.05907876099 | J11: 0.05790336778 | K11: 0.05685771715 | L11: 0.0645368112 | M11: 0.06724433062 | N11: 0.06350354321 | O11: 0.06230008026 | P11: 0.05326631206 | Q11: 0.02841654448 | R11: 0.03089822001 | S11: 0.04232847741 | T11: 0.04494774744 | U11: 0.04712430371 | V11: 0.04781526953 | W11: 0.04771058583 | X11: 0.04741624194 | Y11: 0.04842726505 | Z11: 0.04730221982 | AA11: 0.04883953317 | AB11: 0.05044105471 | AC11: 0.05130594507 | AD11: 0.05162170086 | AE11: 0.05233067934 | AF11: 0.05460586049 | AG11: 0.05777369644 | AH11: 0.05757777349 | AI11: 0.06028266749 | AJ11: 0.06039205246 | AK11: 0.06156135151 | AL11: 0.06377695509 | AM11: 0.06476264355 | AN11: 0.06578981684 | AO11: 0.06638373295 | AP11: 0.06732013072 | AQ11: 0.06857988043 | AR11: 0.0688570984 | AS11: 0.06932027121 | AT11: 0.07198124756 | AU11: 0.07148916002 | AV11: 0.07239267919 | AW11: 0.07448288394 | AX11: 0.07370685178 | AY11: 0.0748912545 | AZ11: 0.07768397518 | BA11: 0.07869434541 | BB11: 0.07726059798 | BC11: 0.08065172038 | BD11: 0.08168231143 | BE11: 0.08269643281 | BF11: 0.08230127581 | BG11: 0.0828118349 | BH11: 0.08222408406 | BI11: 0.08269945586 | BJ11: 0.08519683093 | BK11: 0.08421816906 | BL11: 0.08599593014 | BM11: =STDEV(BM5:BM9) -> 0.08815497717 | BN11: 0.0875231398 | BO11: 0.08813455622 | BP11: 0.08861828254 | BQ11: 0.08898876334 | BR11: 0.08839683252 | BS11: 0.08949413389 | BT11: 0.09002610732 | BU11: 0.09108073342 | BV11: 0.09139638943 | BW11: 0.09050524847 | BX11: 0.09133181264 | BY11: 0.09208854435 | BZ11: 0.09357510353 | CA11: 0.09163623737 | CB11: 0.09270814419 | CC11: 0.09329255061 | CD11: 0.09416103228 | CE11: 0.09448544862 | CF11: 0.09272701872 | CG11: 0.09388663377 | CH11: 0.09552224872 | CI11: 0.09596353474 | CJ11: 0.09587074632 | CK11: 0.0958801335 | CL11: 0.09901161548 | CM11: 0.09539496842 | CN11: 0.09677138007 | CO11: 0.09993848108 | CP11: 0.09740995842 | CQ11: 0.09662556598 | CR11: 0.09587856903 | CS11: 0.09688291903 | CT11: 0.09910196769 | CU11: 0.09751512703 | CV11: 0.09839054833 | CW11: 0.09753102071 | CX11: 0.09964286226 | CY11: 0.09875474672 | CZ11: 0.1001763445 | DA11: 0.09923960903 | DB11: 0.09891056566 | DC11: 0.09672383367 | DD11: 0.09935642908 | DE11: 0.09474175426 | DF11: 0.09728925943 | DG11: 0.09909238114 | DH11: 0.09598020629 | DI11: 0.09575332892 | DJ11: 0.09770516875 | DK11: 0.09666695402 | DL11: 0.09768316129 | DM11: 0.09698865913 | DN11: 0.09275882707 | DO11: 0.09580814162 | DP11: 0.09516039092 | DQ11: 0.09653600365 | DR11: 0.0953745249 | DS11: 0.09476127901 | DT11: 0.09343982021 | DU11: 0.09329094275 | DV11: 0.09351577407 | DW11: 0.09610827228 | DX11: 0.09396807969 | DY11: =STDEV(DY5:DY9) -> 0.09408134778 | DZ11: 0.09591037483 | EA11: 0.09090489536 | EB11: 0.0972126535 | EC11: 0.09352379376 | ED11: 0.09315417328 | EE11: 0.09103131329 | EF11: 0.09131812525 | EG11: 0.09127814634 | EH11: 0.09499105221 | EI11: 0.0956436093 | EJ11: 0.09265905244 | EK11: 0.09266336925 | EL11: 0.09166406057 | EM11: 0.09203640584 | EN11: 0.09169133002 | EO11: 0.09070115766 | EP11: 0.09150683035 | EQ11: 0.09092139462 | ER11: 0.0900349932 | ES11: 0.09128691034 | ET11: 0.09173167392 | EU11: 0.09170986861 | EV11: 0.09327003806 | EW11: 0.09322553298 | EX11: 0.09282618165 | EY11: 0.09507365566 | EZ11: 0.0922399046 | FA11: 0.09306879176 | FB11: 0.09293653749 | FC11: 0.0922859686 | FD11: 0.09231630409 | FE11: 0.09291824363 | FF11: 0.09231197105 | FG11: 0.08943321531 | FH11: 0.09140404805 | FI11: 0.09194291707 | FJ11: 0.09016651263 | FK11: 0.09127157279 | FL11: 0.09317188417 | FM11: 0.09313538533 | FN11: 0.09115207074 | FO11: 0.09399627652 | FP11: 0.09318100665 | FQ11: 0.09354784872 | FR11: 0.08985265717 | FS11: 0.09152431371 | FT11: 0.09131429242 | FU11: 0.09373739915 | FV11: 0.08989827585 | FW11: 0.08999888888 | FX11: 0.08936889839 | FY11: 0.08885831419 | FZ11: 0.09100549434 | GA11: 0.08898988707 | GB11: 0.08860756175 | GC11: 0.08829496022 | GD11: 0.08806701993 | GE11: 0.09070005513 | GF11: 0.09171423008 | GG11: 0.08851158116 | GH11: 0.08805509639 | GI11: 0.08825361182 | GJ11: 0.08842680589 | GK11: =STDEV(GK5:GK9) -> 0.09037864792 | GL11: 0.08797272305 | GM11: 0.0909158952 | GN11: 0.08990439366 | GO11: 0.0905499862 | GP11: 0.09127978966 | GQ11: 0.092542963 | GR11: 0.09088289168 | GS11: 0.08922443611 | GT11: 0.09067910454 | GU11: 0.09138763593 | GV11: 0.09047485839 | GW11: 0.08745970501 | GX11: 0.0889156904 | GY11: 0.08886394094 | GZ11: 0.08840984108 | HA11: 0.08933812176 | HB11: 0.09190593017 | HC11: 0.08760308214 | HD11: 0.0900777442 | HE11: 0.08972569309 | HF11: 0.09014876594 | HG11: 0.08735387799 | HH11: 0.08943824685 | HI11: 0.09013600834 | HJ11: 0.09051684926 | HK11: 0.08691087389 | HL11: 0.09299731179 | HM11: 0.08864930908 | HN11: 0.08769435558 | HO11: 0.088911754 | HP11: 0.08975132311 | HQ11: 0.0874282563 | HR11: 0.087757051 | HS11: 0.08752828114 | HT11: 0.08947904783 | HU11: 0.09042289533 | HV11: 0.0902236111 | HW11: 0.09074855371 | HX11: 0.08978585635 | HY11: 0.08888925694 | HZ11: 0.08703045444 | IA11: 0.08948351804 | IB11: 0.08862561706 | IC11: 0.08813909462 | ID11: 0.08825701105 | IE11: 0.08886675419 | IF11: 0.09227675764 | IG11: 0.08390947503 | IH11: 0.08648699324 | II11: 0.09044169392 | IJ11: 0.09075075757 | IK11: 0.08858498744 | IL11: 0.08943321531 | IM11: 0.0892720561 | IN11: 0.08878794963 | IO11: 0.0883985294 | IP11: 0.08766869453 | IQ11: 0.08817766157 | IR11: 0.08886675419 | IW11: =STDEV(IW5:IW9) ->  | LI11: =STDEV(LI5:LI9) ->  | NU11: =STDEV(NU5:NU9) ->  | QG11: =STDEV(QG5:QG9) ->  | SS11: =STDEV(SS5:SS9) ->  | VE11: =STDEV(VE5:VE9) ->  | XQ11: =STDEV(XQ5:XQ9) ->  | AAC11: =STDEV(AAC5:AAC9) ->  | ACO11: =STDEV(ACO5:ACO9) ->  | AFA11: =STDEV(AFA5:AFA9) ->  | AHM11: =STDEV(AHM5:AHM9) ->  | AJY11: =STDEV(AJY5:AJY9) ->  | AMK11: =STDEV(AMK5:AMK9) ->  | AOW11: =STDEV(AOW5:AOW9) ->  | ARI11: =STDEV(ARI5:ARI9) ->  | ATU11: =STDEV(ATU5:ATU9) ->  | AWG11: =STDEV(AWG5:AWG9) ->  | AYS11: =STDEV(AYS5:AYS9) ->  | BBE11: =STDEV(BBE5:BBE9) ->  | BDQ11: =STDEV(BDQ5:BDQ9) ->  | BGC11: =STDEV(BGC5:BGC9) ->  | BIO11: =STDEV(BIO5:BIO9) ->  | BLA11: =STDEV(BLA5:BLA9) ->  | BNM11: =STDEV(BNM5:BNM9) ->  | BPY11: =STDEV(BPY5:BPY9) ->  | BSK11: =STDEV(BSK5:BSK9) ->  | BUW11: =STDEV(BUW5:BUW9) ->  | BXI11: =STDEV(BXI5:BXI9) ->  | BZU11: =STDEV(BZU5:BZU9) ->  | CCG11: =STDEV(CCG5:CCG9) ->  | CES11: =STDEV(CES5:CES9) ->  | CHE11: =STDEV(CHE5:CHE9) ->  | CJQ11: =STDEV(CJQ5:CJQ9) ->  | CMC11: =STDEV(CMC5:CMC9) ->  | COO11: =STDEV(COO5:COO9) ->  | CRA11: =STDEV(CRA5:CRA9) ->  | CTM11: =STDEV(CTM5:CTM9) ->  | CVY11: =STDEV(CVY5:CVY9) ->  | CYK11: =STDEV(CYK5:CYK9) ->  | DAW11: =STDEV(DAW5:DAW9) ->  | DDI11: =STDEV(DDI5:DDI9) ->  | DFU11: =STDEV(DFU5:DFU9) ->  | DIG11: =STDEV(DIG5:DIG9) ->  | DKS11: =STDEV(DKS5:DKS9) ->  | DNE11: =STDEV(DNE5:DNE9) ->  | DPQ11: =STDEV(DPQ5:DPQ9) ->  | DSC11: =STDEV(DSC5:DSC9) ->  | DUO11: =STDEV(DUO5:DUO9) ->  | DXA11: =STDEV(DXA5:DXA9) ->  | DZM11: =STDEV(DZM5:DZM9) ->  | EBY11: =STDEV(EBY5:EBY9) ->  | EEK11: =STDEV(EEK5:EEK9) ->  | EGW11: =STDEV(EGW5:EGW9) ->  | EJI11: =STDEV(EJI5:EJI9) ->  | ELU11: =STDEV(ELU5:ELU9) ->  | EOG11: =STDEV(EOG5:EOG9) ->  | EQS11: =STDEV(EQS5:EQS9) ->  | ETE11: =STDEV(ETE5:ETE9) ->  | EVQ11: =STDEV(EVQ5:EVQ9) ->  | EYC11: =STDEV(EYC5:EYC9) ->  | FAO11: =STDEV(FAO5:FAO9) ->  | FDA11: =STDEV(FDA5:FDA9) ->  | FFM11: =STDEV(FFM5:FFM9) ->  | FHY11: =STDEV(FHY5:FHY9) ->  | FKK11: =STDEV(FKK5:FKK9) ->  | FMW11: =STDEV(FMW5:FMW9) ->  | FPI11: =STDEV(FPI5:FPI9) ->  | FRU11: =STDEV(FRU5:FRU9) ->  | FUG11: =STDEV(FUG5:FUG9) ->  | FWS11: =STDEV(FWS5:FWS9) ->  | FZE11: =STDEV(FZE5:FZE9) ->  | GBQ11: =STDEV(GBQ5:GBQ9) ->  | GEC11: =STDEV(GEC5:GEC9) ->  | GGO11: =STDEV(GGO5:GGO9) ->  | GJA11: =STDEV(GJA5:GJA9) ->  | GLM11: =STDEV(GLM5:GLM9) ->  | GNY11: =STDEV(GNY5:GNY9) ->  | GQK11: =STDEV(GQK5:GQK9) ->  | GSW11: =STDEV(GSW5:GSW9) ->  | GVI11: =STDEV(GVI5:GVI9) ->  | GXU11: =STDEV(GXU5:GXU9) ->  | HAG11: =STDEV(HAG5:HAG9) ->  | HCS11: =STDEV(HCS5:HCS9) ->  | HFE11: =STDEV(HFE5:HFE9) ->  | HHQ11: =STDEV(HHQ5:HHQ9) ->  | HKC11: =STDEV(HKC5:HKC9) ->  | HMO11: =STDEV(HMO5:HMO9) ->  | HPA11: =STDEV(HPA5:HPA9) ->  | HRM11: =STDEV(HRM5:HRM9) ->  | HTY11: =STDEV(HTY5:HTY9) ->  | HWK11: =STDEV(HWK5:HWK9) ->  | HYW11: =STDEV(HYW5:HYW9) ->  | IBI11: =STDEV(IBI5:IBI9) ->  | IDU11: =STDEV(IDU5:IDU9) ->  | IGG11: =STDEV(IGG5:IGG9) ->  | IIS11: =STDEV(IIS5:IIS9) ->  | ILE11: =STDEV(ILE5:ILE9) ->  | INQ11: =STDEV(INQ5:INQ9) ->  | IQC11: =STDEV(IQC5:IQC9) ->  | ISO11: =STDEV(ISO5:ISO9) ->  | IVA11: =STDEV(IVA5:IVA9) ->  | IXM11: =STDEV(IXM5:IXM9) ->  | IZY11: =STDEV(IZY5:IZY9) ->  | JCK11: =STDEV(JCK5:JCK9) ->  | JEW11: =STDEV(JEW5:JEW9) ->  | JHI11: =STDEV(JHI5:JHI9) ->  | JJU11: =STDEV(JJU5:JJU9) ->  | JMG11: =STDEV(JMG5:JMG9) ->  | JOS11: =STDEV(JOS5:JOS9) ->  | JRE11: =STDEV(JRE5:JRE9) ->  | JTQ11: =STDEV(JTQ5:JTQ9) ->  | JWC11: =STDEV(JWC5:JWC9) ->  | JYO11: =STDEV(JYO5:JYO9) ->  | KBA11: =STDEV(KBA5:KBA9) ->  | KDM11: =STDEV(KDM5:KDM9) ->  | KFY11: =STDEV(KFY5:KFY9) ->  | KIK11: =STDEV(KIK5:KIK9) ->  | KKW11: =STDEV(KKW5:KKW9) ->  | KNI11: =STDEV(KNI5:KNI9) ->  | KPU11: =STDEV(KPU5:KPU9) ->  | KSG11: =STDEV(KSG5:KSG9) ->  | KUS11: =STDEV(KUS5:KUS9) ->  | KXE11: =STDEV(KXE5:KXE9) ->  | KZQ11: =STDEV(KZQ5:KZQ9) ->  | LCC11: =STDEV(LCC5:LCC9) ->  | LEO11: =STDEV(LEO5:LEO9) ->  | LHA11: =STDEV(LHA5:LHA9) ->  | LJM11: =STDEV(LJM5:LJM9) ->  | LLY11: =STDEV(LLY5:LLY9) ->  | LOK11: =STDEV(LOK5:LOK9) ->  | LQW11: =STDEV(LQW5:LQW9) ->  | LTI11: =STDEV(LTI5:LTI9) ->  | LVU11: =STDEV(LVU5:LVU9) ->  | LYG11: =STDEV(LYG5:LYG9) ->  | MAS11: =STDEV(MAS5:MAS9) ->  | MDE11: =STDEV(MDE5:MDE9) ->  | MFQ11: =STDEV(MFQ5:MFQ9) ->  | MIC11: =STDEV(MIC5:MIC9) ->  | MKO11: =STDEV(MKO5:MKO9) ->  | MNA11: =STDEV(MNA5:MNA9) ->  | MPM11: =STDEV(MPM5:MPM9) ->  | MRY11: =STDEV(MRY5:MRY9) ->  | MUK11: =STDEV(MUK5:MUK9) ->  | MWW11: =STDEV(MWW5:MWW9) ->  | MZI11: =STDEV(MZI5:MZI9) ->  | NBU11: =STDEV(NBU5:NBU9) ->  | NEG11: =STDEV(NEG5:NEG9) ->  | NGS11: =STDEV(NGS5:NGS9) ->  | NJE11: =STDEV(NJE5:NJE9) ->  | NLQ11: =STDEV(NLQ5:NLQ9) ->  | NOC11: =STDEV(NOC5:NOC9) ->  | NQO11: =STDEV(NQO5:NQO9) ->  | NTA11: =STDEV(NTA5:NTA9) ->  | NVM11: =STDEV(NVM5:NVM9) ->  | NXY11: =STDEV(NXY5:NXY9) ->  | OAK11: =STDEV(OAK5:OAK9) ->  | OCW11: =STDEV(OCW5:OCW9) ->  | OFI11: =STDEV(OFI5:OFI9) ->  | OHU11: =STDEV(OHU5:OHU9) ->  | OKG11: =STDEV(OKG5:OKG9) ->  | OMS11: =STDEV(OMS5:OMS9) ->  | OPE11: =STDEV(OPE5:OPE9) ->  | ORQ11: =STDEV(ORQ5:ORQ9) ->  | OUC11: =STDEV(OUC5:OUC9) ->  | OWO11: =STDEV(OWO5:OWO9) ->  | OZA11: =STDEV(OZA5:OZA9) ->  | PBM11: =STDEV(PBM5:PBM9) ->  | PDY11: =STDEV(PDY5:PDY9) ->  | PGK11: =STDEV(PGK5:PGK9) ->  | PIW11: =STDEV(PIW5:PIW9) ->  | PLI11: =STDEV(PLI5:PLI9) ->  | PNU11: =STDEV(PNU5:PNU9) ->  | PQG11: =STDEV(PQG5:PQG9) ->  | PSS11: =STDEV(PSS5:PSS9) ->  | PVE11: =STDEV(PVE5:PVE9) ->  | PXQ11: =STDEV(PXQ5:PXQ9) ->  | QAC11: =STDEV(QAC5:QAC9) ->  | QCO11: =STDEV(QCO5:QCO9) ->  | QFA11: =STDEV(QFA5:QFA9) ->  | QHM11: =STDEV(QHM5:QHM9) ->  | QJY11: =STDEV(QJY5:QJY9) ->  | QMK11: =STDEV(QMK5:QMK9) ->  | QOW11: =STDEV(QOW5:QOW9) ->  | QRI11: =STDEV(QRI5:QRI9) ->  | QTU11: =STDEV(QTU5:QTU9) ->  | QWG11: =STDEV(QWG5:QWG9) ->  | QYS11: =STDEV(QYS5:QYS9) ->  | RBE11: =STDEV(RBE5:RBE9) ->  | RDQ11: =STDEV(RDQ5:RDQ9) ->  | RGC11: =STDEV(RGC5:RGC9) ->  | RIO11: =STDEV(RIO5:RIO9) ->  | RLA11: =STDEV(RLA5:RLA9) ->  | RNM11: =STDEV(RNM5:RNM9) ->  | RPY11: =STDEV(RPY5:RPY9) ->  | RSK11: =STDEV(RSK5:RSK9) ->  | RUW11: =STDEV(RUW5:RUW9) ->  | RXI11: =STDEV(RXI5:RXI9) ->  | RZU11: =STDEV(RZU5:RZU9) ->  | SCG11: =STDEV(SCG5:SCG9) ->  | SES11: =STDEV(SES5:SES9) ->  | SHE11: =STDEV(SHE5:SHE9) ->  | SJQ11: =STDEV(SJQ5:SJQ9) ->  | SMC11: =STDEV(SMC5:SMC9) ->  | SOO11: =STDEV(SOO5:SOO9) ->  | SRA11: =STDEV(SRA5:SRA9) ->  | STM11: =STDEV(STM5:STM9) ->  | SVY11: =STDEV(SVY5:SVY9) ->  | SYK11: =STDEV(SYK5:SYK9) ->  | TAW11: =STDEV(TAW5:TAW9) ->  | TDI11: =STDEV(TDI5:TDI9) ->  | TFU11: =STDEV(TFU5:TFU9) ->  | TIG11: =STDEV(TIG5:TIG9) ->  | TKS11: =STDEV(TKS5:TKS9) ->  | TNE11: =STDEV(TNE5:TNE9) ->  | TPQ11: =STDEV(TPQ5:TPQ9) ->  | TSC11: =STDEV(TSC5:TSC9) ->  | TUO11: =STDEV(TUO5:TUO9) ->  | TXA11: =STDEV(TXA5:TXA9) ->  | TZM11: =STDEV(TZM5:TZM9) ->  | UBY11: =STDEV(UBY5:UBY9) ->  | UEK11: =STDEV(UEK5:UEK9) ->  | UGW11: =STDEV(UGW5:UGW9) ->  | UJI11: =STDEV(UJI5:UJI9) ->  | ULU11: =STDEV(ULU5:ULU9) ->  | UOG11: =STDEV(UOG5:UOG9) ->  | UQS11: =STDEV(UQS5:UQS9) ->  | UTE11: =STDEV(UTE5:UTE9) ->  | UVQ11: =STDEV(UVQ5:UVQ9) ->  | UYC11: =STDEV(UYC5:UYC9) ->  | VAO11: =STDEV(VAO5:VAO9) ->  | VDA11: =STDEV(VDA5:VDA9) ->  | VFM11: =STDEV(VFM5:VFM9) ->  | VHY11: =STDEV(VHY5:VHY9) ->  | VKK11: =STDEV(VKK5:VKK9) ->  | VMW11: =STDEV(VMW5:VMW9) ->  | VPI11: =STDEV(VPI5:VPI9) ->  | VRU11: =STDEV(VRU5:VRU9) ->  | VUG11: =STDEV(VUG5:VUG9) ->  | VWS11: =STDEV(VWS5:VWS9) ->  | VZE11: =STDEV(VZE5:VZE9) ->  | WBQ11: =STDEV(WBQ5:WBQ9) ->  | WEC11: =STDEV(WEC5:WEC9) ->  | WGO11: =STDEV(WGO5:WGO9) ->  | WJA11: =STDEV(WJA5:WJA9) ->  | WLM11: =STDEV(WLM5:WLM9) ->  | WNY11: =STDEV(WNY5:WNY9) ->  | WQK11: =STDEV(WQK5:WQK9) ->  | WSW11: =STDEV(WSW5:WSW9) ->  | WVI11: =STDEV(WVI5:WVI9) ->  | WXU11: =STDEV(WXU5:WXU9) ->  | XAG11: =STDEV(XAG5:XAG9) ->  | XCS11: =STDEV(XCS5:XCS9) -> 
B13: C571S
A14: A03 | B14: Sample X3 | C14: 0.134 | D14: 0.131 | E14: 0.134 | F14: 0.137 | G14: 0.135 | H14: 0.138 | I14: 0.137 | J14: 0.138 | K14: 0.138 | L14: 0.138 | M14: 0.138 | N14: 0.138 | O14: 0.141 | P14: 0.143 | Q14: 0.141 | R14: 0.139 | S14: 0.143 | T14: 0.143 | U14: 0.142 | V14: 0.144 | W14: 0.145 | X14: 0.145 | Y14: 0.143 | Z14: 0.146 | AA14: 0.149 | AB14: 0.153 | AC14: 0.151 | AD14: 0.152 | AE14: 0.152 | AF14: 0.151 | AG14: 0.152 | AH14: 0.152 | AI14: 0.153 | AJ14: 0.154 | AK14: 0.158 | AL14: 0.16 | AM14: 0.161 | AN14: 0.158 | AO14: 0.16 | AP14: 0.155 | AQ14: 0.154 | AR14: 0.156 | AS14: 0.153 | AT14: 0.154 | AU14: 0.157 | AV14: 0.159 | AW14: 0.163 | AX14: 0.163 | AY14: 0.164 | AZ14: 0.163 | BA14: 0.164 | BB14: 0.163 | BC14: 0.161 | BD14: 0.16 | BE14: 0.157 | BF14: 0.156 | BG14: 0.16 | BH14: 0.16 | BI14: 0.162 | BJ14: 0.166 | BK14: 0.167 | BL14: 0.168 | BM14: 0.164 | BN14: 0.16 | BO14: 0.16 | BP14: 0.161 | BQ14: 0.164 | BR14: 0.161 | BS14: 0.159 | BT14: 0.164 | BU14: 0.165 | BV14: 0.162 | BW14: 0.16 | BX14: 0.157 | BY14: 0.158 | BZ14: 0.157 | CA14: 0.158 | CB14: 0.159 | CC14: 0.159 | CD14: 0.167 | CE14: 0.17 | CF14: 0.166 | CG14: 0.162 | CH14: 0.158 | CI14: 0.16 | CJ14: 0.16 | CK14: 0.161 | CL14: 0.164 | CM14: 0.17 | CN14: 0.17 | CO14: 0.17 | CP14: 0.167 | CQ14: 0.166 | CR14: 0.167 | CS14: 0.162 | CT14: 0.162 | CU14: 0.159 | CV14: 0.162 | CW14: 0.162 | CX14: 0.165 | CY14: 0.167 | CZ14: 0.168 | DA14: 0.167 | DB14: 0.167 | DC14: 0.166 | DD14: 0.166 | DE14: 0.163 | DF14: 0.162 | DG14: 0.164 | DH14: 0.166 | DI14: 0.162 | DJ14: 0.161 | DK14: 0.159 | DL14: 0.162 | DM14: 0.163 | DN14: 0.164 | DO14: 0.166 | DP14: 0.169 | DQ14: 0.169 | DR14: 0.168 | DS14: 0.167 | DT14: 0.165 | DU14: 0.163 | DV14: 0.162 | DW14: 0.157 | DX14: 0.162 | DY14: 0.161 | DZ14: 0.167 | EA14: 0.17 | EB14: 0.172 | EC14: 0.169 | ED14: 0.168 | EE14: 0.164 | EF14: 0.164 | EG14: 0.163 | EH14: 0.162 | EI14: 0.166 | EJ14: 0.165 | EK14: 0.168 | EL14: 0.17 | EM14: 0.168 | EN14: 0.165 | EO14: 0.162 | EP14: 0.16 | EQ14: 0.16 | ER14: 0.158 | ES14: 0.156 | ET14: 0.16 | EU14: 0.166 | EV14: 0.168 | EW14: 0.165 | EX14: 0.162 | EY14: 0.162 | EZ14: 0.161 | FA14: 0.157 | FB14: 0.169 | FC14: 0.17 | FD14: 0.173 | FE14: 0.172 | FF14: 0.17 | FG14: 0.173 | FH14: 0.172 | FI14: 0.17 | FJ14: 0.165 | FK14: 0.163 | FL14: 0.164 | FM14: 0.164 | FN14: 0.165 | FO14: 0.172 | FP14: 0.172 | FQ14: 0.173 | FR14: 0.172 | FS14: 0.168 | FT14: 0.171 | FU14: 0.168 | FV14: 0.165 | FW14: 0.164 | FX14: 0.163 | FY14: 0.166 | FZ14: 0.166 | GA14: 0.171 | GB14: 0.17 | GC14: 0.169 | GD14: 0.17 | GE14: 0.169 | GF14: 0.165 | GG14: 0.164 | GH14: 0.165 | GI14: 0.168 | GJ14: 0.172 | GK14: 0.173 | GL14: 0.172 | GM14: 0.172 | GN14: 0.173 | GO14: 0.173 | GP14: 0.17 | GQ14: 0.164 | GR14: 0.166 | GS14: 0.166 | GT14: 0.169 | GU14: 0.173 | GV14: 0.177 | GW14: 0.177 | GX14: 0.172 | GY14: 0.178 | GZ14: 0.172 | HA14: 0.173 | HB14: 0.173 | HC14: 0.171 | HD14: 0.169 | HE14: 0.169 | HF14: 0.17 | HG14: 0.172 | HH14: 0.174 | HI14: 0.176 | HJ14: 0.175 | HK14: 0.178 | HL14: 0.172 | HM14: 0.174 | HN14: 0.174 | HO14: 0.168 | HP14: 0.168 | HQ14: 0.168 | HR14: 0.17 | HS14: 0.169 | HT14: 0.169 | HU14: 0.168 | HV14: 0.165 | HW14: 0.164 | HX14: 0.161 | HY14: 0.162 | HZ14: 0.166 | IA14: 0.174 | IB14: 0.172 | IC14: 0.173 | ID14: 0.173 | IE14: 0.169 | IF14: 0.166 | IG14: 0.165 | IH14: 0.162 | II14: 0.163 | IJ14: 0.165 | IK14: 0.167 | IL14: 0.169 | IM14: 0.169 | IN14: 0.167 | IO14: 0.164 | IP14: 0.165 | IQ14: 0.161 | IR14: 0.165
A15: B03 | B15: Sample X8 | C15: 0.138 | D15: 0.137 | E15: 0.14 | F15: 0.142 | G15: 0.14 | H15: 0.144 | I15: 0.144 | J15: 0.144 | K15: 0.145 | L15: 0.148 | M15: 0.148 | N15: 0.151 | O15: 0.151 | P15: 0.156 | Q15: 0.158 | R15: 0.159 | S15: 0.16 | T15: 0.159 | U15: 0.16 | V15: 0.161 | W15: 0.161 | X15: 0.16 | Y15: 0.159 | Z15: 0.162 | AA15: 0.159 | AB15: 0.159 | AC15: 0.159 | AD15: 0.161 | AE15: 0.161 | AF15: 0.161 | AG15: 0.16 | AH15: 0.164 | AI15: 0.162 | AJ15: 0.16 | AK15: 0.161 | AL15: 0.164 | AM15: 0.164 | AN15: 0.165 | AO15: 0.165 | AP15: 0.166 | AQ15: 0.165 | AR15: 0.168 | AS15: 0.17 | AT15: 0.168 | AU15: 0.17 | AV15: 0.17 | AW15: 0.166 | AX15: 0.172 | AY15: 0.173 | AZ15: 0.169 | BA15: 0.168 | BB15: 0.17 | BC15: 0.169 | BD15: 0.172 | BE15: 0.169 | BF15: 0.174 | BG15: 0.172 | BH15: 0.172 | BI15: 0.173 | BJ15: 0.173 | BK15: 0.175 | BL15: 0.171 | BM15: 0.171 | BN15: 0.173 | BO15: 0.169 | BP15: 0.172 | BQ15: 0.166 | BR15: 0.169 | BS15: 0.165 | BT15: 0.166 | BU15: 0.163 | BV15: 0.164 | BW15: 0.162 | BX15: 0.16 | BY15: 0.164 | BZ15: 0.162 | CA15: 0.16 | CB15: 0.162 | CC15: 0.163 | CD15: 0.163 | CE15: 0.164 | CF15: 0.162 | CG15: 0.164 | CH15: 0.164 | CI15: 0.164 | CJ15: 0.165 | CK15: 0.162 | CL15: 0.163 | CM15: 0.165 | CN15: 0.165 | CO15: 0.166 | CP15: 0.165 | CQ15: 0.165 | CR15: 0.165 | CS15: 0.165 | CT15: 0.166 | CU15: 0.167 | CV15: 0.167 | CW15: 0.167 | CX15: 0.163 | CY15: 0.163 | CZ15: 0.163 | DA15: 0.162 | DB15: 0.161 | DC15: 0.163 | DD15: 0.162 | DE15: 0.163 | DF15: 0.156 | DG15: 0.165 | DH15: 0.161 | DI15: 0.16 | DJ15: 0.16 | DK15: 0.16 | DL15: 0.16 | DM15: 0.162 | DN15: 0.159 | DO15: 0.16 | DP15: 0.162 | DQ15: 0.16 | DR15: 0.158 | DS15: 0.159 | DT15: 0.16 | DU15: 0.158 | DV15: 0.159 | DW15: 0.158 | DX15: 0.16 | DY15: 0.161 | DZ15: 0.165 | EA15: 0.164 | EB15: 0.164 | EC15: 0.16 | ED15: 0.162 | EE15: 0.161 | EF15: 0.164 | EG15: 0.162 | EH15: 0.165 | EI15: 0.159 | EJ15: 0.164 | EK15: 0.159 | EL15: 0.161 | EM15: 0.161 | EN15: 0.159 | EO15: 0.16 | EP15: 0.163 | EQ15: 0.161 | ER15: 0.162 | ES15: 0.164 | ET15: 0.164 | EU15: 0.166 | EV15: 0.163 | EW15: 0.161 | EX15: 0.159 | EY15: 0.159 | EZ15: 0.16 | FA15: 0.16 | FB15: 0.164 | FC15: 0.161 | FD15: 0.164 | FE15: 0.162 | FF15: 0.162 | FG15: 0.161 | FH15: 0.162 | FI15: 0.163 | FJ15: 0.158 | FK15: 0.161 | FL15: 0.159 | FM15: 0.159 | FN15: 0.158 | FO15: 0.162 | FP15: 0.165 | FQ15: 0.162 | FR15: 0.16 | FS15: 0.16 | FT15: 0.159 | FU15: 0.156 | FV15: 0.159 | FW15: 0.157 | FX15: 0.163 | FY15: 0.161 | FZ15: 0.16 | GA15: 0.161 | GB15: 0.157 | GC15: 0.155 | GD15: 0.161 | GE15: 0.161 | GF15: 0.162 | GG15: 0.163 | GH15: 0.159 | GI15: 0.159 | GJ15: 0.158 | GK15: 0.159 | GL15: 0.161 | GM15: 0.159 | GN15: 0.163 | GO15: 0.165 | GP15: 0.161 | GQ15: 0.163 | GR15: 0.162 | GS15: 0.161 | GT15: 0.162 | GU15: 0.16 | GV15: 0.161 | GW15: 0.162 | GX15: 0.158 | GY15: 0.164 | GZ15: 0.16 | HA15: 0.158 | HB15: 0.161 | HC15: 0.162 | HD15: 0.161 | HE15: 0.159 | HF15: 0.159 | HG15: 0.161 | HH15: 0.159 | HI15: 0.161 | HJ15: 0.159 | HK15: 0.161 | HL15: 0.16 | HM15: 0.157 | HN15: 0.159 | HO15: 0.159 | HP15: 0.161 | HQ15: 0.157 | HR15: 0.161 | HS15: 0.16 | HT15: 0.158 | HU15: 0.158 | HV15: 0.158 | HW15: 0.158 | HX15: 0.159 | HY15: 0.159 | HZ15: 0.159 | IA15: 0.158 | IB15: 0.16 | IC15: 0.163 | ID15: 0.163 | IE15: 0.155 | IF15: 0.158 | IG15: 0.161 | IH15: 0.161 | II15: 0.16 | IJ15: 0.158 | IK15: 0.158 | IL15: 0.158 | IM15: 0.16 | IN15: 0.157 | IO15: 0.16 | IP15: 0.16 | IQ15: 0.157 | IR15: 0.157
... 18 more rows

Sheet Figure 4e
A1: Figure 4e | E1: Notes: n=5 repeats. We take 20 cycles to calculate
I2: data1 | J2: data2 | K2: data3 | L2: data4 | M2: data5 | N2: data6
A3: User: USER | I3: 1 | J3: 2 | K3: 3 | L3: 4 | M3: 5 | N3: 6
A4: Path: C:\Program Files (x86)\BMG\Omega\User\Data\ | G4: system control | H4: A | I4: 0.36 | J4: 0.36 | K4: 0.352 | L4: 0.368 | M4: 0.343
A5: Test ID: 358 | G5: positive control | H5: B | I5: 0.443 | J5: 0.435 | K5: 0.442 | L5: 0.409 | M5: 0.433 | N5: NOX5 with ethanol
A6: Test Name: 20240119_NOX5_TPEN_3 | G6: 5 mM | H6: C | I6: 0.369 | J6: 0.379 | K6: 0.365 | L6: 0.362 | M6: 0.358 | N6: 0.402
A7: Date: 1/19/2024 | G7: 4 mM | H7: D | I7: 0.363 | J7: 0.371 | K7: 0.368 | L7: 0.359 | M7: 0.359 | N7: 0.403
A8: Time: 3:34:59 PM | G8: 3 mM | H8: E | I8: 0.365 | J8: 0.371 | K8: 0.372 | L8: 0.364 | M8: 0.385 | N8: 0.409
A9: Absorbance | D9: Absorbance values are displayed as OD | G9: 2 mM | H9: F | I9: 0.377 | J9: 0.372 | K9: 0.374 | L9: 0.374 | M9: 0.376 | N9: 0.414
G10: 1 mM | H10: G | I10: 0.392 | J10: 0.389 | K10: 0.398 | L10: 0.381 | M10: 0.391 | N10: 0.403
G11: 0.5 mM | H11: H | I11: 0.392 | J11: 0.413 | K11: 0.407 | L11: 0.387 | M11: 0.416 | N11: 0.409
A13: Cycle 1 (0 min)
B14: Raw Data (438)
B15: 1 | C15: 2 | D15: 3 | E15: 4 | F15: 5 | G15: 6 | H15: 7 | I15: 8 | J15: 9 | K15: 10 | L15: 11 | M15: 12
A16: A | B16: 0.36 | C16: 0.36 | D16: 0.352 | E16: 0.368 | F16: 0.343
A17: B | B17: 0.443 | C17: 0.435 | D17: 0.442 | E17: 0.409 | F17: 0.433
A18: C | B18: 0.369 | C18: 0.379 | D18: 0.365 | E18: 0.362 | F18: 0.358 | G18: 0.402
A19: D | B19: 0.363 | C19: 0.371 | D19: 0.368 | E19: 0.359 | F19: 0.359 | G19: 0.403
A20: E | B20: 0.365 | C20: 0.371 | D20: 0.372 | E20: 0.364 | F20: 0.385 | G20: 0.409
A21: F | B21: 0.377 | C21: 0.372 | D21: 0.374 | E21: 0.374 | F21: 0.376 | G21: 0.414
A22: G | B22: 0.392 | C22: 0.389 | D22: 0.398 | E22: 0.381 | F22: 0.391 | G22: 0.403
A23: H | B23: 0.392 | C23: 0.413 | D23: 0.407 | E23: 0.387 | F23: 0.416 | G23: 0.409
A25: Cycle 2 (0 min 45 s)
B26: Raw Data (438)
B27: 1 | C27: 2 | D27: 3 | E27: 4 | F27: 5 | G27: 6 | H27: 7 | I27: 8 | J27: 9 | K27: 10 | L27: 11 | M27: 12
A28: A | B28: 0.358 | C28: 0.36 | D28: 0.358 | E28: 0.371 | F28: 0.346
A29: B | B29: 0.49 | C29: 0.477 | D29: 0.496 | E29: 0.462 | F29: 0.49
A30: C | B30: 0.371 | C30: 0.386 | D30: 0.369 | E30: 0.363 | F30: 0.359 | G30: 0.418
A31: D | B31: 0.365 | C31: 0.378 | D31: 0.369 | E31: 0.364 | F31: 0.389 | G31: 0.424
A32: E | B32: 0.372 | C32: 0.373 | D32: 0.369 | E32: 0.369 | F32: 0.383 | G32: 0.424
A33: F | B33: 0.38 | C33: 0.377 | D33: 0.382 | E33: 0.375 | F33: 0.379 | G33: 0.431
A34: G | B34: 0.397 | C34: 0.399 | D34: 0.406 | E34: 0.389 | F34: 0.4 | G34: 0.413
A35: H | B35: 0.392 | C35: 0.427 | D35: 0.421 | E35: 0.399 | F35: 0.429 | G35: 0.42
A37: Cycle 3 (1 min 30 s)
B38: Raw Data (438)
B39: 1 | C39: 2 | D39: 3 | E39: 4 | F39: 5 | G39: 6 | H39: 7 | I39: 8 | J39: 9 | K39: 10 | L39: 11 | M39: 12
A40: A | B40: 0.359 | C40: 0.363 | D40: 0.359 | E40: 0.372 | F40: 0.344
A41: B | B41: 0.528 | C41: 0.522 | D41: 0.536 | E41: 0.506 | F41: 0.526
A42: C | B42: 0.377 | C42: 0.384 | D42: 0.369 | E42: 0.364 | F42: 0.358 | G42: 0.433
A43: D | B43: 0.367 | C43: 0.371 | D43: 0.38 | E43: 0.371 | F43: 0.366 | G43: 0.441
A44: E | B44: 0.368 | C44: 0.373 | D44: 0.37 | E44: 0.375 | F44: 0.386 | G44: 0.437
A45: F | B45: 0.379 | C45: 0.379 | D45: 0.383 | E45: 0.374 | F45: 0.381 | G45: 0.438
A46: G | B46: 0.401 | C46: 0.401 | D46: 0.417 | E46: 0.399 | F46: 0.408 | G46: 0.421
A47: H | B47: 0.4 | C47: 0.44 | D47: 0.431 | E47: 0.405 | F47: 0.44 | G47: 0.435
A49: Cycle 4 (2 min 15 s)
B50: Raw Data (438)
B51: 1 | C51: 2 | D51: 3 | E51: 4 | F51: 5 | G51: 6 | H51: 7 | I51: 8 | J51: 9 | K51: 10 | L51: 11 | M51: 12
A52: A | B52: 0.362 | C52: 0.365 | D52: 0.359 | E52: 0.375 | F52: 0.344
A53: B | B53: 0.57 | C53: 0.56 | D53: 0.583 | E53: 0.554 | F53: 0.583
A54: C | B54: 0.375 | C54: 0.386 | D54: 0.374 | E54: 0.365 | F54: 0.367 | G54: 0.45
A55: D | B55: 0.369 | C55: 0.375 | D55: 0.372 | E55: 0.364 | F55: 0.374 | G55: 0.459
A56: E | B56: 0.377 | C56: 0.378 | D56: 0.379 | E56: 0.373 | F56: 0.391 | G56: 0.459
A57: F | B57: 0.389 | C57: 0.38 | D57: 0.39 | E57: 0.384 | F57: 0.384 | G57: 0.461
A58: G | B58: 0.416 | C58: 0.411 | D58: 0.426 | E58: 0.408 | F58: 0.417 | G58: 0.434
A59: H | B59: 0.411 | C59: 0.446 | D59: 0.448 | E59: 0.421 | F59: 0.449 | G59: 0.446
A61: Cycle 5 (3 min)
B62: Raw Data (438)
B63: 1 | C63: 2 | D63: 3 | E63: 4 | F63: 5 | G63: 6 | H63: 7 | I63: 8 | J63: 9 | K63: 10 | L63: 11 | M63: 12
A64: A | B64: 0.36 | C64: 0.362 | D64: 0.36 | E64: 0.37 | F64: 0.345
A65: B | B65: 0.608 | C65: 0.596 | D65: 0.626 | E65: 0.597 | F65: 0.641
A66: C | B66: 0.624 | C66: 0.38 | D66: 0.369 | E66: 0.365 | F66: 0.469 | G66: 0.465
A67: D | B67: 0.367 | C67: 0.374 | D67: 0.373 | E67: 0.364 | F67: 0.371 | G67: 0.475
A68: E | B68: 0.432 | C68: 0.375 | D68: 0.38 | E68: 0.375 | F68: 0.389 | G68: 0.469
A69: F | B69: 0.384 | C69: 0.383 | D69: 0.387 | E69: 0.383 | F69: 0.384 | G69: 0.471
A70: G | B70: 0.425 | C70: 0.417 | D70: 0.431 | E70: 0.415 | F70: 0.422 | G70: 0.439
A71: H | B71: 0.413 | C71: 0.459 | D71: 0.457 | E71: 0.429 | F71: 0.463 | G71: 0.777
A73: Cycle 6 (3 min 45 s)
B74: Raw Data (438)
B75: 1 | C75: 2 | D75: 3 | E75: 4 | F75: 5 | G75: 6 | H75: 7 | I75: 8 | J75: 9 | K75: 10 | L75: 11 | M75: 12
A76: A | B76: 0.358 | C76: 0.362 | D76: 0.357 | E76: 0.372 | F76: 0.342
A77: B | B77: 0.648 | C77: 0.642 | D77: 0.669 | E77: 0.639 | F77: 0.747
A78: C | B78: 0.476 | C78: 0.384 | D78: 0.377 | E78: 0.364 | F78: 0.36 | G78: 0.478
A79: D | B79: 0.369 | C79: 0.374 | D79: 0.374 | E79: 0.371 | F79: 0.369 | G79: 0.49
A80: E | B80: 0.379 | C80: 0.381 | D80: 0.382 | E80: 0.374 | F80: 0.393 | G80: 0.487
A81: F | B81: 0.387 | C81: 0.385 | D81: 0.387 | E81: 0.384 | F81: 0.388 | G81: 0.486
A82: G | B82: 0.47 | C82: 0.424 | D82: 0.438 | E82: 0.429 | F82: 0.429 | G82: 0.45
A83: H | B83: 0.422 | C83: 0.467 | D83: 0.472 | E83: 0.492 | F83: 0.473 | G83: 0.569
A85: Cycle 7 (4 min 30 s)
B86: Raw Data (438)
B87: 1 | C87: 2 | D87: 3 | E87: 4 | F87: 5 | G87: 6 | H87: 7 | I87: 8 | J87: 9 | K87: 10 | L87: 11 | M87: 12
A88: A | B88: 0.358 | C88: 0.361 | D88: 0.357 | E88: 0.368 | F88: 0.344
A89: B | B89: 0.688 | C89: 0.681 | D89: 0.713 | E89: 0.681 | F89: 0.839
A90: C | B90: 0.466 | C90: 0.388 | D90: 0.37 | E90: 0.365 | F90: 0.373 | G90: 0.5
A91: D | B91: 0.373 | C91: 0.378 | D91: 0.374 | E91: 0.369 | F91: 0.372 | G91: 0.511
A92: E | B92: 0.383 | C92: 0.383 | D92: 0.383 | E92: 0.377 | F92: 0.391 | G92: 0.505
A93: F | B93: 0.39 | C93: 0.385 | D93: 0.392 | E93: 0.389 | F93: 0.389 | G93: 0.499
A94: G | B94: 0.438 | C94: 0.433 | D94: 0.449 | E94: 0.429 | F94: 0.439 | G94: 0.458
A95: H | B95: 0.428 | C95: 0.478 | D95: 0.483 | E95: 0.449 | F95: 0.48 | G95: 0.469
A97: Cycle 8 (5 min 15 s)
B98: Raw Data (438)
B99: 1 | C99: 2 | D99: 3 | E99: 4 | F99: 5 | G99: 6 | H99: 7 | I99: 8 | J99: 9 | K99: 10 | L99: 11 | M99: 12
A100: A | B100: 0.361 | C100: 0.368 | D100: 0.359 | E100: 0.373 | F100: 0.347
A101: B | B101: 0.73 | C101: 0.721 | D101: 0.76 | E101: 0.719 | F101: 0.908
A102: C | B102: 0.397 | C102: 0.388 | D102: 0.378 | E102: 0.364 | F102: 0.366 | G102: 0.519
A103: D | B103: 0.37 | C103: 0.377 | D103: 0.379 | E103: 0.374 | F103: 0.374 | G103: 0.522
A104: E | B104: 0.383 | C104: 0.385 | D104: 0.385 | E104: 0.382 | F104: 0.395 | G104: 0.52
A105: F | B105: 0.391 | C105: 0.389 | D105: 0.394 | E105: 0.391 | F105: 0.396 | G105: 0.515
A106: G | B106: 0.446 | C106: 0.437 | D106: 0.458 | E106: 0.441 | F106: 0.456 | G106: 0.47
A107: H | B107: 0.437 | C107: 0.513 | D107: 0.497 | E107: 0.494 | F107: 0.492 | G107: 0.483
A109: Cycle 9 (6 min)
B110: Raw Data (438)
B111: 1 | C111: 2 | D111: 3 | E111: 4 | F111: 5 | G111: 6 | H111: 7 | I111: 8 | J111: 9 | K111: 10 | L111: 11 | M111: 12
A112: A | B112: 0.357 | C112: 0.362 | D112: 0.359 | E112: 0.371 | F112: 0.343
A113: B | B113: 0.77 | C113: 0.762 | D113: 0.773 | E113: 0.748 | F113: 0.967
A114: C | B114: 0.387 | C114: 0.387 | D114: 0.377 | E114: 0.365 | F114: 0.396 | G114: 0.537
A115: D | B115: 0.377 | C115: 0.379 | D115: 0.379 | E115: 0.39 | F115: 0.379 | G115: 0.547
A116: E | B116: 0.382 | C116: 0.385 | D116: 0.387 | E116: 0.383 | F116: 0.396 | G116: 0.54
A117: F | B117: 0.397 | C117: 0.389 | D117: 0.397 | E117: 0.392 | F117: 0.395 | G117: 0.532
A118: G | B118: 0.456 | C118: 0.447 | D118: 0.466 | E118: 0.45 | F118: 0.468 | G118: 0.48
A119: H | B119: 0.445 | C119: 0.588 | D119: 0.507 | E119: 0.466 | F119: 0.501 | G119: 0.56
A121: Cycle 10 (6 min 45 s)
B122: Raw Data (438)
B123: 1 | C123: 2 | D123: 3 | E123: 4 | F123: 5 | G123: 6 | H123: 7 | I123: 8 | J123: 9 | K123: 10 | L123: 11 | M123: 12
A124: A | B124: 0.36 | C124: 0.363 | D124: 0.358 | E124: 0.377 | F124: 0.344
A125: B | B125: 0.822 | C125: 0.801 | D125: 0.789 | E125: 0.779 | F125: 1.021
A126: C | B126: 0.39 | C126: 0.389 | D126: 0.38 | E126: 0.369 | F126: 0.37 | G126: 0.556
A127: D | B127: 0.376 | C127: 0.384 | D127: 0.381 | E127: 0.375 | F127: 0.381 | G127: 0.56
A128: E | B128: 0.39 | C128: 0.386 | D128: 0.396 | E128: 0.384 | F128: 0.397 | G128: 0.56
A129: F | B129: 0.401 | C129: 0.395 | D129: 0.402 | E129: 0.395 | F129: 0.396 | G129: 0.552
A130: G | B130: 0.466 | C130: 0.457 | D130: 0.474 | E130: 0.46 | F130: 0.474 | G130: 0.491
A131: H | B131: 0.451 | C131: 0.668 | D131: 0.521 | E131: 0.491 | F131: 0.514 | G131: 0.714
A133: Cycle 11 (7 min 30 s)
B134: Raw Data (438)
B135: 1 | C135: 2 | D135: 3 | E135: 4 | F135: 5 | G135: 6 | H135: 7 | I135: 8 | J135: 9 | K135: 10 | L135: 11 | M135: 12
A136: A | B136: 0.362 | C136: 0.366 | D136: 0.361 | E136: 0.384 | F136: 0.346
A137: B | B137: 0.872 | C137: 0.84 | D137: 0.838 | E137: 0.815 | F137: 1.063
A138: C | B138: 0.393 | C138: 0.393 | D138: 0.382 | E138: 0.372 | F138: 0.383 | G138: 0.575
A139: D | B139: 0.38 | C139: 0.385 | D139: 0.386 | E139: 0.382 | F139: 0.385 | G139: 0.579
A140: E | B140: 0.389 | C140: 0.39 | D140: 0.397 | E140: 0.392 | F140: 0.401 | G140: 0.579
A141: F | B141: 0.406 | C141: 0.396 | D141: 0.403 | E141: 0.401 | F141: 0.405 | G141: 0.572
A142: G | B142: 0.49 | C142: 0.462 | D142: 0.589 | E142: 0.473 | F142: 0.485 | G142: 0.502
A143: H | B143: 0.463 | C143: 0.666 | D143: 0.536 | E143: 0.488 | F143: 0.525 | G143: 0.64
A145: Cycle 12 (8 min 15 s)
B146: Raw Data (438)
B147: 1 | C147: 2 | D147: 3 | E147: 4 | F147: 5 | G147: 6 | H147: 7 | I147: 8 | J147: 9 | K147: 10 | L147: 11 | M147: 12
A148: A | B148: 0.356 | C148: 0.363 | D148: 0.36 | E148: 0.381 | F148: 0.344
A149: B | B149: 0.916 | C149: 0.872 | D149: 0.857 | E149: 0.851 | F149: 1.101
A150: C | B150: 0.391 | C150: 0.388 | D150: 0.38 | E150: 0.375 | F150: 0.372 | G150: 0.592
A151: D | B151: 0.379 | C151: 0.382 | D151: 0.391 | E151: 0.381 | F151: 0.383 | G151: 0.597
A152: E | B152: 0.391 | C152: 0.391 | D152: 0.399 | E152: 0.388 | F152: 0.405 | G152: 0.594
A153: F | B153: 0.427 | C153: 0.397 | D153: 0.408 | E153: 0.403 | F153: 0.403 | G153: 0.58
A154: G | B154: 0.57 | C154: 0.469 | D154: 0.618 | E154: 0.481 | F154: 0.497 | G154: 0.512
A155: H | B155: 0.466 | C155: 0.617 | D155: 0.543 | E155: 0.499 | F155: 0.533 | G155: 0.688
A157: Cycle 13 (9 min)
B158: Raw Data (438)
B159: 1 | C159: 2 | D159: 3 | E159: 4 | F159: 5 | G159: 6 | H159: 7 | I159: 8 | J159: 9 | K159: 10 | L159: 11 | M159: 12
A160: A | B160: 0.358 | C160: 0.359 | D160: 0.356 | E160: 0.37 | F160: 0.345
A161: B | B161: 0.961 | C161: 0.893 | D161: 0.89 | E161: 0.89 | F161: 1.14
A162: C | B162: 0.39 | C162: 0.386 | D162: 0.381 | E162: 0.372 | F162: 0.373 | G162: 0.608
A163: D | B163: 0.38 | C163: 0.383 | D163: 0.388 | E163: 0.378 | F163: 0.381 | G163: 0.605
A164: E | B164: 0.393 | C164: 0.391 | D164: 0.396 | E164: 0.392 | F164: 0.4 | G164: 0.615
A165: F | B165: 0.608 | C165: 0.398 | D165: 0.403 | E165: 0.405 | F165: 0.405 | G165: 0.592
A166: G | B166: 0.513 | C166: 0.471 | D166: 0.64 | E166: 0.481 | F166: 0.504 | G166: 0.524
A167: H | B167: 0.473 | C167: 0.746 | D167: 0.582 | E167: 0.503 | F167: 0.537 | G167: 0.815
A169: Cycle 14 (9 min 45 s)
B170: Raw Data (438)
B171: 1 | C171: 2 | D171: 3 | E171: 4 | F171: 5 | G171: 6 | H171: 7 | I171: 8 | J171: 9 | K171: 10 | L171: 11 | M171: 12
A172: A | B172: 0.363 | C172: 0.365 | D172: 0.361 | E172: 0.372 | F172: 0.349
A173: B | B173: 1.014 | C173: 0.918 | D173: 0.931 | E173: 0.939 | F173: 1.171
A174: C | B174: 0.395 | C174: 0.398 | D174: 0.387 | E174: 0.381 | F174: 0.375 | G174: 0.627
A175: D | B175: 0.389 | C175: 0.387 | D175: 0.395 | E175: 0.38 | F175: 0.387 | G175: 0.625
A176: E | B176: 0.402 | C176: 0.398 | D176: 0.405 | E176: 0.398 | F176: 0.408 | G176: 0.635
A177: F | B177: 0.724 | C177: 0.404 | D177: 0.412 | E177: 0.411 | F177: 0.41 | G177: 0.614
A178: G | B178: 0.622 | C178: 0.483 | D178: 0.577 | E178: 0.493 | F178: 0.522 | G178: 0.536
A179: H | B179: 0.486 | C179: 0.868 | D179: 0.565 | E179: 0.613 | F179: 0.555 | G179: 0.937
A181: Cycle 15 (10 min 30 s)
B182: Raw Data (438)
B183: 1 | C183: 2 | D183: 3 | E183: 4 | F183: 5 | G183: 6 | H183: 7 | I183: 8 | J183: 9 | K183: 10 | L183: 11 | M183: 12
A184: A | B184: 0.36 | C184: 0.367 | D184: 0.362 | E184: 0.376 | F184: 0.349
A185: B | B185: 1.061 | C185: 0.951 | D185: 0.974 | E185: 0.993 | F185: 1.193
A186: C | B186: 0.393 | C186: 0.4 | D186: 0.386 | E186: 0.378 | F186: 0.408 | G186: 0.646
A187: D | B187: 0.396 | C187: 0.392 | D187: 0.4 | E187: 0.386 | F187: 0.392 | G187: 0.642
A188: E | B188: 0.402 | C188: 0.403 | D188: 0.408 | E188: 0.399 | F188: 0.413 | G188: 0.65
A189: F | B189: 0.413 | C189: 0.409 | D189: 0.417 | E189: 0.414 | F189: 0.415 | G189: 0.626
A190: G | B190: 0.562 | C190: 0.493 | D190: 0.516 | E190: 0.501 | F190: 0.533 | G190: 0.549
A191: H | B191: 0.491 | C191: 0.906 | D191: 0.576 | E191: 0.532 | F191: 0.565 | G191: 1.046
A193: Cycle 16 (11 min 15 s)
B194: Raw Data (438)
B195: 1 | C195: 2 | D195: 3 | E195: 4 | F195: 5 | G195: 6 | H195: 7 | I195: 8 | J195: 9 | K195: 10 | L195: 11 | M195: 12
A196: A | B196: 0.359 | C196: 0.362 | D196: 0.36 | E196: 0.384 | F196: 0.347
A197: B | B197: 1.099 | C197: 0.988 | D197: 1.072 | E197: 1.036 | F197: 1.222
A198: C | B198: 0.397 | C198: 0.397 | D198: 0.391 | E198: 0.38 | F198: 0.377 | G198: 0.662
A199: D | B199: 0.39 | C199: 0.391 | D199: 0.4 | E199: 0.387 | F199: 0.393 | G199: 0.661
A200: E | B200: 0.408 | C200: 0.402 | D200: 0.41 | E200: 0.407 | F200: 0.412 | G200: 0.669
A201: F | B201: 0.416 | C201: 0.412 | D201: 0.419 | E201: 0.413 | F201: 0.419 | G201: 0.642
A202: G | B202: 0.524 | C202: 0.5 | D202: 0.523 | E202: 0.511 | F202: 0.537 | G202: 0.555
A203: H | B203: 0.491 | C203: 0.914 | D203: 0.591 | E203: 0.542 | F203: 0.578 | G203: 1.086
A205: Cycle 17 (12 min)
B206: Raw Data (438)
B207: 1 | C207: 2 | D207: 3 | E207: 4 | F207: 5 | G207: 6 | H207: 7 | I207: 8 | J207: 9 | K207: 10 | L207: 11 | M207: 12
A208: A | B208: 0.358 | C208: 0.361 | D208: 0.359 | E208: 0.392 | F208: 0.346
A209: B | B209: 1.131 | C209: 1.018 | D209: 1.132 | E209: 1.078 | F209: 1.25
A210: C | B210: 0.395 | C210: 0.395 | D210: 0.384 | E210: 0.378 | F210: 0.379 | G210: 0.68
A211: D | B211: 0.4 | C211: 0.387 | D211: 0.399 | E211: 0.388 | F211: 0.389 | G211: 0.668
A212: E | B212: 0.405 | C212: 0.405 | D212: 0.411 | E212: 0.399 | F212: 0.41 | G212: 0.684
A213: F | B213: 0.426 | C213: 0.41 | D213: 0.416 | E213: 0.415 | F213: 0.42 | G213: 0.652
A214: G | B214: 0.643 | C214: 0.502 | D214: 0.528 | E214: 0.516 | F214: 0.535 | G214: 0.56
A215: H | B215: 0.495 | C215: 0.93 | D215: 0.6 | E215: 0.555 | F215: 0.586 | G215: 0.904
A217: Cycle 18 (12 min 45 s)
B218: Raw Data (438)
... 911 more rows

Sheet Sipplementary Figure 6g
A1: Supplementary Figure 6g
A3: User: ADMIN
A4: Path: C:\Program Files (x86)\BMG\Omega\Admin\Data\
A5: Test ID: 305
A6: Test Name: S720_EF3_N0X5_50_200nM_ activity1027_2nd
A7: Date: 10/27/2021
A8: Time: 2:04:16 PM
A9: Absorbance | D9: Absorbance values are displayed as OD
A13: Cycle 1 (0 min) | H13: line7 | I13: line8 | J13: line9 | K13: line10
B14: Raw Data (438) | H14: WT+EGTA | I14: WT+Ca2+ | J14: _EF3+EGTA | K14: _EF3+Ca2+
B15: 1 | C15: 2 | D15: 3 | E15: 4 | F15: 5 | G15: 6 | H15: 7 | I15: 8 | J15: 9 | K15: 10 | L15: 11 | M15: 12
A16: A | B16: 0.174 | C16: 0.201 | D16: 0.173 | E16: 0.179 | F16: 0.2 | G16: 0.188 | H16: 0.19 | I16: 0.205 | J16: 0.182 | K16: 0.198 | L16: 0.191 | M16: 0.177
A17: B | B17: 0.201 | C17: 0.2 | D17: 0.19 | E17: 0.174 | F17: 0.181 | G17: 0.185 | H17: 0.179 | I17: 0.257 | J17: 0.204 | K17: 0.211 | L17: 0.21 | M17: 0.186
A18: C | B18: 0.193 | C18: 0.22 | D18: 0.171 | E18: 0.198 | F18: 0.85 | G18: 0.177 | H18: 0.192 | I18: 0.217 | J18: 0.196 | K18: 0.208 | L18: 0.2 | M18: 0.186
A19: D | B19: 0.187 | C19: 0.217 | D19: 0.185 | E19: 0.177 | F19: 0.181 | G19: 0.176 | H19: 0.183 | I19: 0.253 | J19: 0.214 | K19: 0.225 | L19: 0.202 | M19: 0.197
A20: E | B20: 0.188 | C20: 0.213 | D20: 0.186 | E20: 0.179 | F20: 0.178 | G20: 0.18 | H20: 0.181 | I20: 0.278 | J20: 0.199 | K20: 0.22 | L20: 0.216 | M20: 0.209
A21: F | B21: 0.172 | C21: 0.199 | D21: 0.168 | E21: 0.164 | F21: 0.172
A22: G | B22: 0.177 | C22: 0.184 | D22: 0.188 | E22: 0.164 | F22: 0.176
A23: H
A25: Cycle 2 (0 min 45 s)
B26: Raw Data (438)
B27: 1 | C27: 2 | D27: 3 | E27: 4 | F27: 5 | G27: 6 | H27: 7 | I27: 8 | J27: 9 | K27: 10 | L27: 11 | M27: 12
A28: A | B28: 0.174 | C28: 0.216 | D28: 0.179 | E28: 0.186 | F28: 0.204 | G28: 0.192 | H28: 0.198 | I28: 0.263 | J28: 0.197 | K28: 0.209 | L28: 0.198 | M28: 0.188
A29: B | B29: 0.203 | C29: 0.213 | D29: 0.195 | E29: 0.18 | F29: 0.187 | G29: 0.187 | H29: 0.186 | I29: 0.303 | J29: 0.219 | K29: 0.227 | L29: 0.219 | M29: 0.195
A30: C | B30: 0.194 | C30: 0.239 | D30: 0.175 | E30: 0.191 | F30: 0.855 | G30: 0.18 | H30: 0.2 | I30: 0.277 | J30: 0.214 | K30: 0.224 | L30: 0.213 | M30: 0.188
A31: D | B31: 0.189 | C31: 0.236 | D31: 0.19 | E31: 0.184 | F31: 0.187 | G31: 0.18 | H31: 0.191 | I31: 0.309 | J31: 0.228 | K31: 0.242 | L31: 0.212 | M31: 0.21
A32: E | B32: 0.19 | C32: 0.228 | D32: 0.192 | E32: 0.186 | F32: 0.182 | G32: 0.186 | H32: 0.189 | I32: 0.334 | J32: 0.214 | K32: 0.232 | L32: 0.225 | M32: 0.219
A33: F | B33: 0.17 | C33: 0.199 | D33: 0.169 | E33: 0.166 | F33: 0.178
A34: G | B34: 0.178 | C34: 0.183 | D34: 0.187 | E34: 0.164 | F34: 0.179
A35: H
A37: Cycle 3 (1 min 30 s)
B38: Raw Data (438)
B39: 1 | C39: 2 | D39: 3 | E39: 4 | F39: 5 | G39: 6 | H39: 7 | I39: 8 | J39: 9 | K39: 10 | L39: 11 | M39: 12
A40: A | B40: 0.173 | C40: 0.232 | D40: 0.181 | E40: 0.186 | F40: 0.206 | G40: 0.193 | H40: 0.201 | I40: 0.335 | J40: 0.209 | K40: 0.222 | L40: 0.207 | M40: 0.197
A41: B | B41: 0.205 | C41: 0.227 | D41: 0.195 | E41: 0.181 | F41: 0.191 | G41: 0.19 | H41: 0.191 | I41: 0.365 | J41: 0.229 | K41: 0.238 | L41: 0.227 | M41: 0.216
A42: C | B42: 0.194 | C42: 0.252 | D42: 0.178 | E42: 0.194 | F42: 0.857 | G42: 0.183 | H42: 0.202 | I42: 0.334 | J42: 0.224 | K42: 0.234 | L42: 0.219 | M42: 0.194
A43: D | B43: 0.189 | C43: 0.25 | D43: 0.192 | E43: 0.185 | F43: 0.187 | G43: 0.183 | H43: 0.197 | I43: 0.362 | J43: 0.238 | K43: 0.25 | L43: 0.221 | M43: 0.219
A44: E | B44: 0.191 | C44: 0.241 | D44: 0.194 | E44: 0.187 | F44: 0.183 | G44: 0.186 | H44: 0.193 | I44: 0.391 | J44: 0.224 | K44: 0.241 | L44: 0.232 | M44: 0.226
A45: F | B45: 0.168 | C45: 0.195 | D45: 0.17 | E45: 0.165 | F45: 0.177
A46: G | B46: 0.178 | C46: 0.18 | D46: 0.184 | E46: 0.165 | F46: 0.179
A47: H
A49: Cycle 4 (2 min 15 s)
B50: Raw Data (438)
B51: 1 | C51: 2 | D51: 3 | E51: 4 | F51: 5 | G51: 6 | H51: 7 | I51: 8 | J51: 9 | K51: 10 | L51: 11 | M51: 12
A52: A | B52: 0.176 | C52: 0.25 | D52: 0.185 | E52: 0.193 | F52: 0.211 | G52: 0.195 | H52: 0.205 | I52: 0.399 | J52: 0.221 | K52: 0.233 | L52: 0.216 | M52: 0.204
A53: B | B53: 0.205 | C53: 0.243 | D53: 0.2 | E53: 0.185 | F53: 0.194 | G53: 0.193 | H53: 0.199 | I53: 0.427 | J53: 0.239 | K53: 0.249 | L53: 0.236 | M53: 0.215
A54: C | B54: 0.195 | C54: 0.268 | D54: 0.183 | E54: 0.197 | F54: 0.86 | G54: 0.187 | H54: 0.21 | I54: 0.394 | J54: 0.234 | K54: 0.244 | L54: 0.227 | M54: 0.206
A55: D | B55: 0.192 | C55: 0.267 | D55: 0.196 | E55: 0.189 | F55: 0.193 | G55: 0.185 | H55: 0.202 | I55: 0.418 | J55: 0.247 | K55: 0.259 | L55: 0.23 | M55: 0.226
A56: E | B56: 0.194 | C56: 0.257 | D56: 0.206 | E56: 0.192 | F56: 0.187 | G56: 0.191 | H56: 0.2 | I56: 0.453 | J56: 0.237 | K56: 0.251 | L56: 0.245 | M56: 0.235
A57: F | B57: 0.17 | C57: 0.195 | D57: 0.172 | E57: 0.168 | F57: 0.18
A58: G | B58: 0.18 | C58: 0.184 | D58: 0.187 | E58: 0.169 | F58: 0.181
A59: H
A61: Cycle 5 (3 min)
B62: Raw Data (438)
B63: 1 | C63: 2 | D63: 3 | E63: 4 | F63: 5 | G63: 6 | H63: 7 | I63: 8 | J63: 9 | K63: 10 | L63: 11 | M63: 12
A64: A | B64: 0.173 | C64: 0.263 | D64: 0.189 | E64: 0.192 | F64: 0.21 | G64: 0.193 | H64: 0.21 | I64: 0.458 | J64: 0.229 | K64: 0.239 | L64: 0.223 | M64: 0.211
A65: B | B65: 0.203 | C65: 0.253 | D65: 0.199 | E65: 0.186 | F65: 0.193 | G65: 0.191 | H65: 0.196 | I65: 0.482 | J65: 0.245 | K65: 0.255 | L65: 0.239 | M65: 0.217
A66: C | B66: 0.192 | C66: 0.278 | D66: 0.181 | E66: 0.198 | F66: 0.862 | G66: 0.187 | H66: 0.209 | I66: 0.451 | J66: 0.238 | K66: 0.25 | L66: 0.231 | M66: 0.209
A67: D | B67: 0.187 | C67: 0.28 | D67: 0.195 | E67: 0.187 | F67: 0.191 | G67: 0.185 | H67: 0.204 | I67: 0.472 | J67: 0.252 | K67: 0.268 | L67: 0.233 | M67: 0.23
A68: E | B68: 0.191 | C68: 0.269 | D68: 0.218 | E68: 0.192 | F68: 0.188 | G68: 0.191 | H68: 0.202 | I68: 0.512 | J68: 0.245 | K68: 0.256 | L68: 0.249 | M68: 0.24
A69: F | B69: 0.169 | C69: 0.191 | D69: 0.17 | E69: 0.167 | F69: 0.177 | H69: 0.1748
A70: G | B70: 0.179 | C70: 0.18 | D70: 0.183 | E70: 0.169 | F70: 0.179 | H70: 0.178
A71: H
A73: Cycle 6 (3 min 45 s)
B74: Raw Data (438)
B75: 1 | C75: 2 | D75: 3 | E75: 4 | F75: 5 | G75: 6 | H75: 7 | I75: 8 | J75: 9 | K75: 10 | L75: 11 | M75: 12
A76: A | B76: 0.177 | C76: 0.281 | D76: 0.196 | E76: 0.196 | F76: 0.213 | G76: 0.196 | H76: 0.215 | I76: 0.523 | J76: 0.241 | K76: 0.25 | L76: 0.233 | M76: 0.221
A77: B | B77: 0.206 | C77: 0.27 | D77: 0.201 | E77: 0.186 | F77: 0.197 | G77: 0.195 | H77: 0.202 | I77: 0.546 | J77: 0.257 | K77: 0.265 | L77: 0.246 | M77: 0.227
A78: C | B78: 0.193 | C78: 0.299 | D78: 0.186 | E78: 0.203 | F78: 0.865 | G78: 0.189 | H78: 0.216 | I78: 0.511 | J78: 0.25 | K78: 0.259 | L78: 0.239 | M78: 0.22
A79: D | B79: 0.191 | C79: 0.299 | D79: 0.2 | E79: 0.193 | F79: 0.195 | G79: 0.188 | H79: 0.211 | I79: 0.534 | J79: 0.262 | K79: 0.278 | L79: 0.24 | M79: 0.24
A80: E | B80: 0.192 | C80: 0.283 | D80: 0.228 | E80: 0.195 | F80: 0.19 | G80: 0.194 | H80: 0.206 | I80: 0.576 | J80: 0.256 | K80: 0.268 | L80: 0.258 | M80: 0.248
A81: F | B81: 0.17 | C81: 0.192 | D81: 0.17 | E81: 0.168 | F81: 0.18
A82: G | B82: 0.178 | C82: 0.182 | D82: 0.184 | E82: 0.17 | F82: 0.18
A83: H
A85: Cycle 7 (4 min 30 s)
B86: Raw Data (438)
B87: 1 | C87: 2 | D87: 3 | E87: 4 | F87: 5 | G87: 6 | H87: 7 | I87: 8 | J87: 9 | K87: 10 | L87: 11 | M87: 12
A88: A | B88: 0.178 | C88: 0.298 | D88: 0.202 | E88: 0.197 | F88: 0.217 | G88: 0.196 | H88: 0.217 | I88: 0.59 | J88: 0.251 | K88: 0.259 | L88: 0.239 | M88: 0.226
A89: B | B89: 0.205 | C89: 0.285 | D89: 0.204 | E89: 0.192 | F89: 0.2 | G89: 0.198 | H89: 0.206 | I89: 0.607 | J89: 0.265 | K89: 0.273 | L89: 0.253 | M89: 0.304
A90: C | B90: 0.195 | C90: 0.313 | D90: 0.189 | E90: 0.206 | F90: 0.868 | G90: 0.202 | H90: 0.218 | I90: 0.573 | J90: 0.258 | K90: 0.269 | L90: 0.245 | M90: 0.225
A91: D | B91: 0.191 | C91: 0.315 | D91: 0.199 | E91: 0.194 | F91: 0.196 | G91: 0.191 | H91: 0.215 | I91: 0.595 | J91: 0.273 | K91: 0.29 | L91: 0.246 | M91: 0.248
A92: E | B92: 0.191 | C92: 0.301 | D92: 0.227 | E92: 0.196 | F92: 0.189 | G92: 0.198 | H92: 0.211 | I92: 0.638 | J92: 0.265 | K92: 0.277 | L92: 0.263 | M92: 0.252
A93: F | B93: 0.17 | C93: 0.189 | D93: 0.174 | E93: 0.17 | F93: 0.179
A94: G | B94: 0.179 | C94: 0.181 | D94: 0.184 | E94: 0.171 | F94: 0.18
A95: H
A97: Cycle 8 (5 min 15 s)
B98: Raw Data (438)
B99: 1 | C99: 2 | D99: 3 | E99: 4 | F99: 5 | G99: 6 | H99: 7 | I99: 8 | J99: 9 | K99: 10 | L99: 11 | M99: 12
A100: A | B100: 0.179 | C100: 0.318 | D100: 0.206 | E100: 0.2 | F100: 0.22 | G100: 0.2 | H100: 0.22 | I100: 0.652 | J100: 0.261 | K100: 0.27 | L100: 0.248 | M100: 0.232
A101: B | B101: 0.207 | C101: 0.303 | D101: 0.206 | E101: 0.192 | F101: 0.201 | G101: 0.198 | H101: 0.21 | I101: 0.67 | J101: 0.276 | K101: 0.284 | L101: 0.263 | M101: 0.238
A102: C | B102: 0.194 | C102: 0.332 | D102: 0.191 | E102: 0.209 | F102: 0.868 | G102: 0.194 | H102: 0.223 | I102: 0.635 | J102: 0.268 | K102: 0.279 | L102: 0.252 | M102: 0.234
A103: D | B103: 0.19 | C103: 0.331 | D103: 0.203 | E103: 0.196 | F103: 0.199 | G103: 0.192 | H103: 0.219 | I103: 0.656 | J103: 0.281 | K103: 0.3 | L103: 0.254 | M103: 0.254
A104: E | B104: 0.194 | C104: 0.318 | D104: 0.225 | E104: 0.2 | F104: 0.194 | G104: 0.2 | H104: 0.217 | I104: 0.707 | J104: 0.278 | K104: 0.287 | L104: 0.274 | M104: 0.266
A105: F | B105: 0.173 | C105: 0.189 | D105: 0.174 | E105: 0.169 | F105: 0.18
A106: G | B106: 0.18 | C106: 0.183 | D106: 0.182 | E106: 0.173 | F106: 0.18
A107: H
A109: Cycle 9 (6 min)
B110: Raw Data (438)
B111: 1 | C111: 2 | D111: 3 | E111: 4 | F111: 5 | G111: 6 | H111: 7 | I111: 8 | J111: 9 | K111: 10 | L111: 11 | M111: 12
A112: A | B112: 0.178 | C112: 0.334 | D112: 0.214 | E112: 0.202 | F112: 0.22 | G112: 0.202 | H112: 0.223 | I112: 0.719 | J112: 0.272 | K112: 0.285 | L112: 0.254 | M112: 0.244
A113: B | B113: 0.206 | C113: 0.319 | D113: 0.21 | E113: 0.195 | F113: 0.203 | G113: 0.202 | H113: 0.213 | I113: 0.734 | J113: 0.284 | K113: 0.294 | L113: 0.269 | M113: 0.249
A114: C | B114: 0.195 | C114: 0.349 | D114: 0.193 | E114: 0.21 | F114: 0.868 | G114: 0.198 | H114: 0.228 | I114: 0.7 | J114: 0.278 | K114: 0.288 | L114: 0.263 | M114: 0.239
A115: D | B115: 0.191 | C115: 0.351 | D115: 0.205 | E115: 0.198 | F115: 0.2 | G115: 0.196 | H115: 0.223 | I115: 0.723 | J115: 0.29 | K115: 0.306 | L115: 0.26 | M115: 0.26
A116: E | B116: 0.193 | C116: 0.334 | D116: 0.221 | E116: 0.202 | F116: 0.196 | G116: 0.201 | H116: 0.22 | I116: 0.77 | J116: 0.286 | K116: 0.298 | L116: 0.283 | M116: 0.271
A117: F | B117: 0.172 | C117: 0.189 | D117: 0.171 | E117: 0.172 | F117: 0.179
A118: G | B118: 0.18 | C118: 0.182 | D118: 0.182 | E118: 0.172 | F118: 0.182
A119: H
A121: Cycle 10 (6 min 45 s)
B122: Raw Data (438)
B123: 1 | C123: 2 | D123: 3 | E123: 4 | F123: 5 | G123: 6 | H123: 7 | I123: 8 | J123: 9 | K123: 10 | L123: 11 | M123: 12
A124: A | B124: 0.179 | C124: 0.355 | D124: 0.227 | E124: 0.206 | F124: 0.222 | G124: 0.206 | H124: 0.229 | I124: 0.789 | J124: 0.284 | K124: 0.297 | L124: 0.267 | M124: 0.256
A125: B | B125: 0.206 | C125: 0.335 | D125: 0.211 | E125: 0.197 | F125: 0.205 | G125: 0.203 | H125: 0.215 | I125: 0.798 | J125: 0.296 | K125: 0.304 | L125: 0.277 | M125: 0.255
A126: C | B126: 0.192 | C126: 0.367 | D126: 0.194 | E126: 0.208 | F126: 0.869 | G126: 0.201 | H126: 0.231 | I126: 0.762 | J126: 0.286 | K126: 0.299 | L126: 0.269 | M126: 0.245
A127: D | B127: 0.19 | C127: 0.368 | D127: 0.205 | E127: 0.199 | F127: 0.203 | G127: 0.198 | H127: 0.225 | I127: 0.786 | J127: 0.299 | K127: 0.321 | L127: 0.266 | M127: 0.266
A128: E | B128: 0.192 | C128: 0.35 | D128: 0.223 | E128: 0.202 | F128: 0.194 | G128: 0.2 | H128: 0.222 | I128: 0.836 | J128: 0.296 | K128: 0.305 | L128: 0.29 | M128: 0.277
A129: F | B129: 0.173 | C129: 0.188 | D129: 0.173 | E129: 0.172 | F129: 0.181
A130: G | B130: 0.181 | C130: 0.183 | D130: 0.18 | E130: 0.174 | F130: 0.181
A131: H
A133: Cycle 11 (7 min 30 s)
B134: Raw Data (438)
B135: 1 | C135: 2 | D135: 3 | E135: 4 | F135: 5 | G135: 6 | H135: 7 | I135: 8 | J135: 9 | K135: 10 | L135: 11 | M135: 12
A136: A | B136: 0.181 | C136: 0.375 | D136: 0.234 | E136: 0.208 | F136: 0.226 | G136: 0.205 | H136: 0.231 | I136: 0.856 | J136: 0.292 | K136: 0.302 | L136: 0.269 | M136: 0.257
A137: B | B137: 0.207 | C137: 0.353 | D137: 0.215 | E137: 0.202 | F137: 0.209 | G137: 0.204 | H137: 0.221 | I137: 0.865 | J137: 0.308 | K137: 0.316 | L137: 0.285 | M137: 0.277
A138: C | B138: 0.194 | C138: 0.385 | D138: 0.198 | E138: 0.212 | F138: 0.871 | G138: 0.202 | H138: 0.233 | I138: 0.83 | J138: 0.297 | K138: 0.31 | L138: 0.274 | M138: 0.255
A139: D | B139: 0.191 | C139: 0.387 | D139: 0.211 | E139: 0.203 | F139: 0.207 | G139: 0.203 | H139: 0.232 | I139: 0.855 | J139: 0.31 | K139: 0.33 | L139: 0.275 | M139: 0.277
A140: E | B140: 0.193 | C140: 0.369 | D140: 0.227 | E140: 0.206 | F140: 0.2 | G140: 0.207 | H140: 0.229 | I140: 0.906 | J140: 0.309 | K140: 0.319 | L140: 0.303 | M140: 0.285
A141: F | B141: 0.174 | C141: 0.19 | D141: 0.176 | E141: 0.174 | F141: 0.184
A142: G | B142: 0.183 | C142: 0.184 | D142: 0.183 | E142: 0.175 | F142: 0.181
A143: H
A145: Cycle 12 (8 min 15 s)
B146: Raw Data (438)
B147: 1 | C147: 2 | D147: 3 | E147: 4 | F147: 5 | G147: 6 | H147: 7 | I147: 8 | J147: 9 | K147: 10 | L147: 11 | M147: 12
A148: A | B148: 0.183 | C148: 0.395 | D148: 0.239 | E148: 0.214 | F148: 0.229 | G148: 0.208 | H148: 0.234 | I148: 0.925 | J148: 0.304 | K148: 0.31 | L148: 0.278 | M148: 0.264
A149: B | B149: 0.209 | C149: 0.369 | D149: 0.216 | E149: 0.204 | F149: 0.211 | G149: 0.209 | H149: 0.225 | I149: 0.933 | J149: 0.319 | K149: 0.327 | L149: 0.293 | M149: 0.274
A150: C | B150: 0.197 | C150: 0.405 | D150: 0.201 | E150: 0.215 | F150: 0.871 | G150: 0.204 | H150: 0.24 | I150: 0.897 | J150: 0.31 | K150: 0.321 | L150: 0.285 | M150: 0.261
A151: D | B151: 0.192 | C151: 0.405 | D151: 0.213 | E151: 0.207 | F151: 0.208 | G151: 0.203 | H151: 0.235 | I151: 0.922 | J151: 0.321 | K151: 0.341 | L151: 0.284 | M151: 0.284
A152: E | B152: 0.194 | C152: 0.386 | D152: 0.23 | E152: 0.211 | F152: 0.203 | G152: 0.209 | H152: 0.232 | I152: 0.973 | J152: 0.319 | K152: 0.334 | L152: 0.312 | M152: 0.295
A153: F | B153: 0.177 | C153: 0.189 | D153: 0.177 | E153: 0.176 | F153: 0.184
A154: G | B154: 0.184 | C154: 0.184 | D154: 0.181 | E154: 0.177 | F154: 0.183
A155: H
A157: Cycle 13 (9 min)
B158: Raw Data (438)
B159: 1 | C159: 2 | D159: 3 | E159: 4 | F159: 5 | G159: 6 | H159: 7 | I159: 8 | J159: 9 | K159: 10 | L159: 11 | M159: 12
A160: A | B160: 0.183 | C160: 0.413 | D160: 0.243 | E160: 0.215 | F160: 0.232 | G160: 0.211 | H160: 0.241 | I160: 0.993 | J160: 0.314 | K160: 0.319 | L160: 0.287 | M160: 0.276
A161: B | B161: 0.208 | C161: 0.385 | D161: 0.218 | E161: 0.204 | F161: 0.214 | G161: 0.21 | H161: 0.229 | I161: 0.998 | J161: 0.331 | K161: 0.336 | L161: 0.301 | M161: 0.279
A162: C | B162: 0.198 | C162: 0.424 | D162: 0.203 | E162: 0.215 | F162: 0.881 | G162: 0.205 | H162: 0.244 | I162: 0.96 | J162: 0.318 | K162: 0.331 | L162: 0.291 | M162: 0.27
A163: D | B163: 0.194 | C163: 0.422 | D163: 0.214 | E163: 0.208 | F163: 0.212 | G163: 0.205 | H163: 0.241 | I163: 0.988 | J163: 0.331 | K163: 0.349 | L163: 0.291 | M163: 0.29
A164: E | B164: 0.195 | C164: 0.404 | D164: 0.23 | E164: 0.212 | F164: 0.203 | G164: 0.211 | H164: 0.236 | I164: 1.039 | J164: 0.33 | K164: 0.343 | L164: 0.318 | M164: 0.3
A165: F | B165: 0.176 | C165: 0.188 | D165: 0.175 | E165: 0.175 | F165: 0.181
A166: G | B166: 0.18 | C166: 0.181 | D166: 0.183 | E166: 0.175 | F166: 0.181
A167: H
A169: Cycle 14 (9 min 45 s)
B170: Raw Data (438)
B171: 1 | C171: 2 | D171: 3 | E171: 4 | F171: 5 | G171: 6 | H171: 7 | I171: 8 | J171: 9 | K171: 10 | L171: 11 | M171: 12
A172: A | B172: 0.183 | C172: 0.432 | D172: 0.252 | E172: 0.218 | F172: 0.234 | G172: 0.212 | H172: 0.242 | I172: 1.064 | J172: 0.328 | K172: 0.333 | L172: 0.295 | M172: 0.287
A173: B | B173: 0.21 | C173: 0.404 | D173: 0.222 | E173: 0.209 | F173: 0.216 | G173: 0.213 | H173: 0.23 | I173: 1.068 | J173: 0.341 | K173: 0.345 | L173: 0.308 | M173: 0.289
A174: C | B174: 0.196 | C174: 0.441 | D174: 0.208 | E174: 0.218 | F174: 0.88 | G174: 0.206 | H174: 0.248 | I174: 1.029 | J174: 0.332 | K174: 0.343 | L174: 0.301 | M174: 0.276
A175: D | B175: 0.193 | C175: 0.441 | D175: 0.216 | E175: 0.209 | F175: 0.213 | G175: 0.206 | H175: 0.243 | I175: 1.054 | J175: 0.341 | K175: 0.361 | L175: 0.326 | M175: 0.3
A176: E | B176: 0.196 | C176: 0.421 | D176: 0.227 | E176: 0.214 | F176: 0.205 | G176: 0.213 | H176: 0.238 | I176: 1.109 | J176: 0.342 | K176: 0.355 | L176: 0.326 | M176: 0.303
A177: F | B177: 0.175 | C177: 0.186 | D177: 0.174 | E177: 0.174 | F177: 0.182
A178: G | B178: 0.182 | C178: 0.182 | D178: 0.18 | E178: 0.175 | F178: 0.182
A179: H
A181: Cycle 15 (10 min 30 s)
B182: Raw Data (438)
B183: 1 | C183: 2 | D183: 3 | E183: 4 | F183: 5 | G183: 6 | H183: 7 | I183: 8 | J183: 9 | K183: 10 | L183: 11 | M183: 12
A184: A | B184: 0.188 | C184: 0.453 | D184: 0.265 | E184: 0.223 | F184: 0.239 | G184: 0.218 | H184: 0.25 | I184: 1.137 | J184: 0.342 | K184: 0.345 | L184: 0.306 | M184: 0.296
A185: B | B185: 0.211 | C185: 0.427 | D185: 0.226 | E185: 0.212 | F185: 0.222 | G185: 0.217 | H185: 0.237 | I185: 1.137 | J185: 0.354 | K185: 0.359 | L185: 0.318 | M185: 0.375
A186: C | B186: 0.2 | C186: 0.461 | D186: 0.209 | E186: 0.224 | F186: 0.88 | G186: 0.214 | H186: 0.252 | I186: 1.097 | J186: 0.346 | K186: 0.359 | L186: 0.311 | M186: 0.29
A187: D | B187: 0.198 | C187: 0.463 | D187: 0.222 | E187: 0.217 | F187: 0.216 | G187: 0.211 | H187: 0.25 | I187: 1.126 | J187: 0.354 | K187: 0.372 | L187: 0.309 | M187: 0.31
A188: E | B188: 0.198 | C188: 0.44 | D188: 0.237 | E188: 0.217 | F188: 0.211 | G188: 0.219 | H188: 0.246 | I188: 1.18 | J188: 0.356 | K188: 0.366 | L188: 0.338 | M188: 0.316
A189: F | B189: 0.177 | C189: 0.189 | D189: 0.175 | E189: 0.177 | F189: 0.182
A190: G | B190: 0.183 | C190: 0.182 | D190: 0.183 | E190: 0.179 | F190: 0.182
A191: H
A193: Cycle 16 (11 min 15 s)
B194: Raw Data (438)
B195: 1 | C195: 2 | D195: 3 | E195: 4 | F195: 5 | G195: 6 | H195: 7 | I195: 8 | J195: 9 | K195: 10 | L195: 11 | M195: 12
A196: A | B196: 0.186 | C196: 0.471 | D196: 0.262 | E196: 0.226 | F196: 0.238 | G196: 0.218 | H196: 0.251 | I196: 1.202 | J196: 0.35 | K196: 0.355 | L196: 0.311 | M196: 0.301
A197: B | B197: 0.211 | C197: 0.449 | D197: 0.229 | E197: 0.214 | F197: 0.221 | G197: 0.219 | H197: 0.24 | I197: 1.202 | J197: 0.363 | K197: 0.369 | L197: 0.325 | M197: 0.306
A198: C | B198: 0.199 | C198: 0.479 | D198: 0.214 | E198: 0.223 | F198: 0.879 | G198: 0.215 | H198: 0.255 | I198: 1.162 | J198: 0.355 | K198: 0.367 | L198: 0.318 | M198: 0.296
A199: D | B199: 0.198 | C199: 0.481 | D199: 0.224 | E199: 0.214 | F199: 0.219 | G199: 0.213 | H199: 0.252 | I199: 1.192 | J199: 0.364 | K199: 0.381 | L199: 0.317 | M199: 0.319
A200: E | B200: 0.198 | C200: 0.458 | D200: 0.232 | E200: 0.221 | F200: 0.211 | G200: 0.219 | H200: 0.246 | I200: 1.247 | J200: 0.366 | K200: 0.379 | L200: 0.346 | M200: 0.323
A201: F | B201: 0.174 | C201: 0.187 | D201: 0.174 | E201: 0.176 | F201: 0.182
A202: G | B202: 0.182 | C202: 0.181 | D202: 0.183 | E202: 0.178 | F202: 0.182
A203: H
A205: Cycle 17 (12 min)
B206: Raw Data (438)
B207: 1 | C207: 2 | D207: 3 | E207: 4 | F207: 5 | G207: 6 | H207: 7 | I207: 8 | J207: 9 | K207: 10 | L207: 11 | M207: 12
A208: A | B208: 0.188 | C208: 0.491 | D208: 0.26 | E208: 0.228 | F208: 0.243 | G208: 0.22 | H208: 0.254 | I208: 1.271 | J208: 0.362 | K208: 0.366 | L208: 0.316 | M208: 0.309
A209: B | B209: 0.212 | C209: 0.458 | D209: 0.23 | E209: 0.217 | F209: 0.225 | G209: 0.221 | H209: 0.244 | I209: 1.269 | J209: 0.375 | K209: 0.38 | L209: 0.33 | M209: 0.315
A210: C | B210: 0.2 | C210: 0.498 | D210: 0.217 | E210: 0.227 | F210: 0.883 | G210: 0.215 | H210: 0.259 | I210: 1.229 | J210: 0.365 | K210: 0.377 | L210: 0.325 | M210: 0.305
A211: D | B211: 0.197 | C211: 0.498 | D211: 0.226 | E211: 0.22 | F211: 0.224 | G211: 0.216 | H211: 0.256 | I211: 1.257 | J211: 0.381 | K211: 0.394 | L211: 0.322 | M211: 0.325
A212: E | B212: 0.198 | C212: 0.475 | D212: 0.234 | E212: 0.222 | F212: 0.214 | G212: 0.225 | H212: 0.253 | I212: 1.317 | J212: 0.379 | K212: 0.389 | L212: 0.355 | M212: 0.331
A213: F | B213: 0.176 | C213: 0.188 | D213: 0.174 | E213: 0.175 | F213: 0.182
A214: G | B214: 0.183 | C214: 0.182 | D214: 0.181 | E214: 0.179 | F214: 0.184
A215: H
A217: Cycle 18 (12 min 45 s)
B218: Raw Data (438)
B219: 1 | C219: 2 | D219: 3 | E219: 4 | F219: 5 | G219: 6 | H219: 7 | I219: 8 | J219: 9 | K219: 10 | L219: 11 | M219: 12
A220: A | B220: 0.189 | C220: 0.512 | D220: 0.264 | E220: 0.232 | F220: 0.243 | G220: 0.221 | H220: 0.259 | I220: 1.342 | J220: 0.37 | K220: 0.377 | L220: 0.327 | M220: 0.319
A221: B | B221: 0.21 | C221: 0.476 | D221: 0.234 | E221: 0.219 | F221: 0.225 | G221: 0.224 | H221: 0.246 | I221: 1.335 | J221: 0.385 | K221: 0.39 | L221: 0.338 | M221: 0.4
... 2008 more rows

Sheet Supplementary Figure 7c
A1: Supplementary Figure 7c | K1: raw data for FSEC curve
K2: NOX5 WT | T2: NOX5_R426A | AC2: NOX5_R530A | AL2: NOX5_R531A
K3: [Header] | T3: [Header] | AC3: [Header] | AL3: [Header]
A4: raw data for gel | K4: Application Name | L4: LabSolutions | T4: Application Name | U4: LabSolutions | AC4: Application Name | AD4: LabSolutions | AL4: Application Name | AM4: LabSolutions
K5: Version | L5: 5.97 SP1 | T5: Version | U5: 5.97 SP1 | AC5: Version | AD5: 5.97 SP1 | AL5: Version | AM5: 5.97 SP1
K6: Data File Name | L6: C:\LabSolutions\Data\meiqin\ift-A\20240109_TRP_nox5_mut_runB_TBSlmngCHS_s6-1\nox5_WT_006.lcd | T6: Data File Name | U6: C:\LabSolutions\Data\meiqin\ift-A\20240109_TRP_nox5_mut_runB_TBSlmngCHS_s6-1\mj35_002.lcd | AC6: Data File Name | AD6: C:\LabSolutions\Data\meiqin\ift-A\20240109_TRP_nox5_mut_runB_TBSlmngCHS_s6-1\mj36_003.lcd | AL6: Data File Name | AM6: C:\LabSolutions\Data\meiqin\ift-A\20240109_TRP_nox5_mut_runB_TBSlmngCHS_s6-1\mj37_004.lcd
K7: Output Date | L7: 2024-02-17 | T7: Output Date | U7: 2024-02-17 | AC7: Output Date | AD7: 2024-02-17 | AL7: Output Date | AM7: 2024-02-17
K8: Output Time | L8: 22:31:01 | T8: Output Time | U8: 22:31:30 | AC8: Output Time | AD8: 22:31:23 | AL8: Output Time | AM8: 22:31:16
K10: [File Information] | T10: [File Information] | AC10: [File Information] | AL10: [File Information]
K11: Type | L11: Data File | T11: Type | U11: Data File | AC11: Type | AD11: Data File | AL11: Type | AM11: Data File
K12: Generated | L12: 2024-01-09T18:27:25 | T12: Generated | U12: 2024-01-09T14:25:22 | AC12: Generated | AD12: 2024-01-09T15:25:53 | AL12: Generated | AM12: 2024-01-09T16:26:23
K13: Generated by | L13: System Administrator | T13: Generated by | U13: System Administrator | AC13: Generated by | AD13: System Administrator | AL13: Generated by | AM13: System Administrator
K14: Modified | L14: 2024-01-09T19:27:50 | T14: Modified | U14: 2024-01-09T15:25:48 | AC14: Modified | AD14: 2024-01-09T16:26:18 | AL14: Modified | AM14: 2024-01-09T17:26:48
K15: Modified by | L15: System Administrator | T15: Modified by | U15: System Administrator | AC15: Modified by | AD15: System Administrator | AL15: Modified by | AM15: System Administrator
K17: [Sample Information] | T17: [Sample Information] | AC17: [Sample Information] | AL17: [Sample Information]
K18: Operator Name | L18: System Administrator | T18: Operator Name | U18: System Administrator | AC18: Operator Name | AD18: System Administrator | AL18: Operator Name | AM18: System Administrator
K19: Acquired | L19: 2024-01-09T18:27:49 | T19: Acquired | U19: 2024-01-09T14:25:46 | AC19: Acquired | AD19: 2024-01-09T15:26:17 | AL19: Acquired | AM19: 2024-01-09T16:26:48
K20: Sample Type | L20: 0:Unknown | T20: Sample Type | U20: 0:Unknown | AC20: Sample Type | AD20: 0:Unknown | AL20: Sample Type | AM20: 0:Unknown
K21: Level | L21: 0 | T21: Level | U21: 0 | AC21: Level | AD21: 0 | AL21: Level | AM21: 0
K22: Sample Name | L22: nox5_WT | T22: Sample Name | U22: mj35 | AC22: Sample Name | AD22: mj36 | AL22: Sample Name | AM22: mj37
K23: Sample ID | L23: nox5_WT | T23: Sample ID | U23: mj35 | AC23: Sample ID | AD23: mj36 | AL23: Sample ID | AM23: mj37
K24: data1 | L24: data2 | T24: data1 | U24: data2 | AC24: data1 | AD24: data2 | AL24: data1 | AM24: data2
K25: [LC Chromatogram(Detector A-Ch1)] | T25: [LC Chromatogram(Detector A-Ch1)] | AC25: [LC Chromatogram(Detector A-Ch1)] | AL25: [LC Chromatogram(Detector A-Ch1)]
K26: Interval(msec) | L26: 500 | T26: Interval(msec) | U26: 500 | AC26: Interval(msec) | AD26: 500 | AL26: Interval(msec) | AM26: 500
K27: # of Points | L27: 7201 | T27: # of Points | U27: 7201 | AC27: # of Points | AD27: 7201 | AL27: # of Points | AM27: 7201
K28: Start Time(min) | L28: 0 | T28: Start Time(min) | U28: 0 | AC28: Start Time(min) | AD28: 0 | AL28: Start Time(min) | AM28: 0
K29: End Time(min) | L29: 60 | T29: End Time(min) | U29: 60 | AC29: End Time(min) | AD29: 60 | AL29: End Time(min) | AM29: 60
K30: Intensity Units | L30: mV | T30: Intensity Units | U30: mV | AC30: Intensity Units | AD30: mV | AL30: Intensity Units | AM30: mV
K31: Intensity Multiplier | L31: 0.001 | T31: Intensity Multiplier | U31: 0.001 | AC31: Intensity Multiplier | AD31: 0.001 | AL31: Intensity Multiplier | AM31: 0.001
K32: Ex. Wavelength(nm) | L32: 280 | T32: Ex. Wavelength(nm) | U32: 280 | AC32: Ex. Wavelength(nm) | AD32: 280 | AL32: Ex. Wavelength(nm) | AM32: 280
K33: Em. Wavelength(nm) | L33: 350 | T33: Em. Wavelength(nm) | U33: 350 | AC33: Em. Wavelength(nm) | AD33: 350 | AL33: Em. Wavelength(nm) | AM33: 350
K34: R.Time (min) | L34: Intensity | T34: R.Time (min) | U34: Intensity | AC34: R.Time (min) | AD34: Intensity | AL34: R.Time (min) | AM34: Intensity
K35: 0 | L35: -355 | T35: 0 | U35: -854 | AC35: 0 | AD35: -1336 | AL35: 0 | AM35: -1644
K36: 0.00833 | L36: -355 | T36: 0.00833 | U36: -854 | AC36: 0.00833 | AD36: -1336 | AL36: 0.00833 | AM36: -1644
K37: 0.01667 | L37: 22 | T37: 0.01667 | U37: -220 | AC37: 0.01667 | AD37: -22 | AL37: 0.01667 | AM37: -390
K38: 0.025 | L38: 32 | T38: 0.025 | U38: -153 | AC38: 0.025 | AD38: -88 | AL38: 0.025 | AM38: 36
K39: 0.03333 | L39: 11 | T39: 0.03333 | U39: -176 | AC39: 0.03333 | AD39: -218 | AL39: 0.03333 | AM39: -6
K40: 0.04167 | L40: -18 | T40: 0.04167 | U40: -91 | AC40: 0.04167 | AD40: -250 | AL40: 0.04167 | AM40: -143
K41: 0.05 | L41: -161 | T41: 0.05 | U41: -61 | AC41: 0.05 | AD41: -176 | AL41: 0.05 | AM41: -190
K42: 0.05833 | L42: -427 | T42: 0.05833 | U42: -190 | AC42: 0.05833 | AD42: -153 | AL42: 0.05833 | AM42: -217
K43: 0.06667 | L43: -596 | T43: 0.06667 | U43: -355 | AC43: 0.06667 | AD43: -314 | AL43: 0.06667 | AM43: -289
K44: 0.075 | L44: -525 | T44: 0.075 | U44: -419 | AC44: 0.075 | AD44: -487 | AL44: 0.075 | AM44: -311
K45: 0.08333 | L45: -416 | T45: 0.08333 | U45: -425 | AC45: 0.08333 | AD45: -714 | AL45: 0.08333 | AM45: -228
K46: 0.09167 | L46: -468 | T46: 0.09167 | U46: -443 | AC46: 0.09167 | AD46: -902 | AL46: 0.09167 | AM46: -176
K47: 0.1 | L47: -595 | T47: 0.1 | U47: -419 | AC47: 0.1 | AD47: -983 | AL47: 0.1 | AM47: -266
K48: 0.10833 | L48: -675 | T48: 0.10833 | U48: -338 | AC48: 0.10833 | AD48: -993 | AL48: 0.10833 | AM48: -393
K49: 0.11667 | L49: -678 | T49: 0.11667 | U49: -203 | AC49: 0.11667 | AD49: -1027 | AL49: 0.11667 | AM49: -474
K50: 0.125 | L50: -565 | T50: 0.125 | U50: -107 | AC50: 0.125 | AD50: -1022 | AL50: 0.125 | AM50: -474
K51: 0.13333 | L51: -500 | T51: 0.13333 | U51: -79 | AC51: 0.13333 | AD51: -1020 | AL51: 0.13333 | AM51: -440
K52: 0.14167 | L52: -567 | T52: 0.14167 | U52: -10 | AC52: 0.14167 | AD52: -1044 | AL52: 0.14167 | AM52: -459
K53: 0.15 | L53: -776 | T53: 0.15 | U53: 45 | AC53: 0.15 | AD53: -1112 | AL53: 0.15 | AM53: -592
K54: 0.15833 | L54: -986 | T54: 0.15833 | U54: 7 | AC54: 0.15833 | AD54: -1112 | AL54: 0.15833 | AM54: -709
K55: 0.16667 | L55: -1057 | T55: 0.16667 | U55: -80 | AC55: 0.16667 | AD55: -979 | AL55: 0.16667 | AM55: -770
K56: 0.175 | L56: -1019 | T56: 0.175 | U56: -244 | AC56: 0.175 | AD56: -838 | AL56: 0.175 | AM56: -779
K57: 0.18333 | L57: -849 | T57: 0.18333 | U57: -447 | AC57: 0.18333 | AD57: -749 | AL57: 0.18333 | AM57: -726
K58: 0.19167 | L58: -731 | T58: 0.19167 | U58: -585 | AC58: 0.19167 | AD58: -673 | AL58: 0.19167 | AM58: -628
K59: 0.2 | L59: -788 | T59: 0.2 | U59: -656 | AC59: 0.2 | AD59: -713 | AL59: 0.2 | AM59: -562
K60: 0.20833 | L60: -948 | T60: 0.20833 | U60: -561 | AC60: 0.20833 | AD60: -781 | AL60: 0.20833 | AM60: -635
K61: 0.21667 | L61: -992 | T61: 0.21667 | U61: -411 | AC61: 0.21667 | AD61: -876 | AL61: 0.21667 | AM61: -765
K62: 0.225 | L62: -933 | T62: 0.225 | U62: -492 | AC62: 0.225 | AD62: -979 | AL62: 0.225 | AM62: -807
K63: 0.23333 | L63: -843 | T63: 0.23333 | U63: -648 | AC63: 0.23333 | AD63: -1096 | AL63: 0.23333 | AM63: -884
K64: 0.24167 | L64: -785 | T64: 0.24167 | U64: -656 | AC64: 0.24167 | AD64: -1282 | AL64: 0.24167 | AM64: -944
K65: 0.25 | L65: -839 | T65: 0.25 | U65: -534 | AC65: 0.25 | AD65: -1370 | AL65: 0.25 | AM65: -987
K66: 0.25833 | L66: -930 | T66: 0.25833 | U66: -502 | AC66: 0.25833 | AD66: -1390 | AL66: 0.25833 | AM66: -971
K67: 0.26667 | L67: -936 | T67: 0.26667 | U67: -562 | AC67: 0.26667 | AD67: -1411 | AL67: 0.26667 | AM67: -1011
K68: 0.275 | L68: -884 | T68: 0.275 | U68: -525 | AC68: 0.275 | AD68: -1399 | AL68: 0.275 | AM68: -1137
K69: 0.28333 | L69: -877 | T69: 0.28333 | U69: -547 | AC69: 0.28333 | AD69: -1410 | AL69: 0.28333 | AM69: -1284
K70: 0.29167 | L70: -891 | T70: 0.29167 | U70: -606 | AC70: 0.29167 | AD70: -1426 | AL70: 0.29167 | AM70: -1437
K71: 0.3 | L71: -965 | T71: 0.3 | U71: -682 | AC71: 0.3 | AD71: -1431 | AL71: 0.3 | AM71: -1534
K72: 0.30833 | L72: -982 | T72: 0.30833 | U72: -727 | AC72: 0.30833 | AD72: -1488 | AL72: 0.30833 | AM72: -1590
K73: 0.31667 | L73: -953 | T73: 0.31667 | U73: -761 | AC73: 0.31667 | AD73: -1474 | AL73: 0.31667 | AM73: -1588
K74: 0.325 | L74: -952 | T74: 0.325 | U74: -852 | AC74: 0.325 | AD74: -1407 | AL74: 0.325 | AM74: -1700
K75: 0.33333 | L75: -986 | T75: 0.33333 | U75: -876 | AC75: 0.33333 | AD75: -1333 | AL75: 0.33333 | AM75: -1788
K76: 0.34167 | L76: -1089 | T76: 0.34167 | U76: -904 | AC76: 0.34167 | AD76: -1301 | AL76: 0.34167 | AM76: -1831
K77: 0.35 | L77: -1181 | T77: 0.35 | U77: -969 | AC77: 0.35 | AD77: -1374 | AL77: 0.35 | AM77: -1808
K78: 0.35833 | L78: -1299 | T78: 0.35833 | U78: -1021 | AC78: 0.35833 | AD78: -1466 | AL78: 0.35833 | AM78: -1746
K79: 0.36667 | L79: -1464 | T79: 0.36667 | U79: -1009 | AC79: 0.36667 | AD79: -1566 | AL79: 0.36667 | AM79: -1672
K80: 0.375 | L80: -1649 | T80: 0.375 | U80: -994 | AC80: 0.375 | AD80: -1631 | AL80: 0.375 | AM80: -1685
K81: 0.38333 | L81: -1837 | T81: 0.38333 | U81: -964 | AC81: 0.38333 | AD81: -1677 | AL81: 0.38333 | AM81: -1748 | AV81: ID# | AW81: Name | AX81: k' | AY81: Plate # | AZ81: Plate Ht. | BA81: Tailing | BB81: Resolution | BC81: Sep.Factor | BD81: Area Ratio | BE81: Height Ratio | BF81: Conc. % | BG81: Norm Conc.
K82: 0.39167 | L82: -1923 | T82: 0.39167 | U82: -885 | AC82: 0.39167 | AD82: -1805 | AL82: 0.39167 | AM82: -1797 | AX82: 0 | AY82: 39 | AZ82: 3826.678 | BA82: 2.599 | BB82: 0 | BC82: 0 | BD82: 0 | BE82: 0 | BF82: 0 | BG82: 0
K83: 0.4 | L83: -1913 | T83: 0.4 | U83: -802 | AC83: 0.4 | AD83: -1898 | AL83: 0.4 | AM83: -1840 | AX83: 1.515 | AY83: 388 | AZ83: 386.38 | BA83: 1.897 | BB83: 2.636 | BC83: 0 | BD83: 0 | BE83: 0 | BF83: 0 | BG83: 0
K84: 0.40833 | L84: -1912 | T84: 0.40833 | U84: -822 | AC84: 0.40833 | AD84: -1914 | AL84: 0.40833 | AM84: -1874 | AX84: 2.596 | AY84: 340 | AZ84: 440.758 | BA84: 0 | BB84: 1.676 | BC84: 1.714 | BD84: 0 | BE84: 0 | BF84: 0 | BG84: 0
K85: 0.41667 | L85: -2002 | T85: 0.41667 | U85: -990 | AC85: 0.41667 | AD85: -1894 | AL85: 0.41667 | AM85: -1873 | AX85: 2.963 | AY85: 1027 | AZ85: 146.084 | BA85: 0 | BB85: 0.576 | BC85: 1.141 | BD85: 0 | BE85: 0 | BF85: 0 | BG85: 0
K86: 0.425 | L86: -2093 | T86: 0.425 | U86: -1168 | AC86: 0.425 | AD86: -1831 | AL86: 0.425 | AM86: -1868 | AX86: 3.57 | AY86: 1317 | AZ86: 113.91 | BA86: 0.981 | BB86: 1.217 | BC86: 1.205 | BD86: 0 | BE86: 0 | BF86: 0 | BG86: 0
K87: 0.43333 | L87: -2235 | T87: 0.43333 | U87: -1174 | AC87: 0.43333 | AD87: -1781 | AL87: 0.43333 | AM87: -1764 | AX87: 4.076 | AY87: 2809 | AZ87: 53.407 | BA87: 1.047 | BB87: 1.141 | BC87: 1.142 | BD87: 0 | BE87: 0 | BF87: 0 | BG87: 0
K88: 0.44167 | L88: -2357 | T88: 0.44167 | U88: -1033 | AC88: 0.44167 | AD88: -1861 | AL88: 0.44167 | AM88: -1682 | AX88: 4.523 | AY88: 5855 | AZ88: 25.618 | BA88: 0.956 | BB88: 1.33 | BC88: 1.11 | BD88: 0 | BE88: 0 | BF88: 0 | BG88: 0
K89: 0.45 | L89: -2391 | T89: 0.45 | U89: -966 | AC89: 0.45 | AD89: -1886 | AL89: 0.45 | AM89: -1712 | AX89: 4.918 | AY89: 676 | AZ89: 222.031 | BA89: 0 | BB89: 0.659 | BC89: 1.087 | BD89: 0 | BE89: 0 | BF89: 0 | BG89: 0
K90: 0.45833 | L90: -2293 | T90: 0.45833 | U90: -992 | AC90: 0.45833 | AD90: -1723 | AL90: 0.45833 | AM90: -1780 | AX90: 5.409 | AY90: 2030 | AZ90: 73.901 | BA90: 0 | BB90: 0.663 | BC90: 1.1 | BD90: 0 | BE90: 0 | BF90: 0 | BG90: 0
K91: 0.46667 | L91: -2353 | T91: 0.46667 | U91: -996 | AC91: 0.46667 | AD91: -1648 | AL91: 0.46667 | AM91: -1895 | AX91: 6.38 | AY91: 3752 | AZ91: 39.975 | BA91: 1.527 | BB91: 1.849 | BC91: 1.18 | BD91: 0 | BE91: 0 | BF91: 0 | BG91: 0
K92: 0.475 | L92: -2546 | T92: 0.475 | U92: -988 | AC92: 0.475 | AD92: -1865 | AL92: 0.475 | AM92: -2012 | AX92: 6.918 | AY92: 3136 | AZ92: 47.826 | BA92: 1.624 | BB92: 1.028 | BC92: 1.084 | BD92: 0 | BE92: 0 | BF92: 0 | BG92: 0
K93: 0.48333 | L93: -2635 | T93: 0.48333 | U93: -989 | AC93: 0.48333 | AD93: -2029 | AL93: 0.48333 | AM93: -1991 | AX93: 7.577 | AY93: 0 | AZ93: 0 | BA93: 0 | BB93: 0 | BC93: 1.095 | BD93: 0 | BE93: 0 | BF93: 0 | BG93: 0
K94: 0.49167 | L94: -2622 | T94: 0.49167 | U94: -941 | AC94: 0.49167 | AD94: -2049 | AL94: 0.49167 | AM94: -1878 | AX94: 8.536 | AY94: 5236 | AZ94: 28.646 | BA94: 0 | BB94: 0 | BC94: 1.126 | BD94: 0 | BE94: 0 | BF94: 0 | BG94: 0
K95: 0.5 | L95: -2586 | T95: 0.5 | U95: -831 | AC95: 0.5 | AD95: -1997 | AL95: 0.5 | AM95: -1833 | AX95: 9.046 | AY95: 14037 | AZ95: 10.686 | BA95: 0 | BB95: 1.178 | BC95: 1.06 | BD95: 0 | BE95: 0 | BF95: 0 | BG95: 0
K96: 0.50833 | L96: -2563 | T96: 0.50833 | U96: -723 | AC96: 0.50833 | AD96: -1976 | AL96: 0.50833 | AM96: -1845 | AX96: 9.858 | AY96: 16479 | AZ96: 9.103 | BA96: 1.253 | BB96: 2.397 | BC96: 1.09 | BD96: 0 | BE96: 0 | BF96: 0 | BG96: 0
K97: 0.51667 | L97: -2589 | T97: 0.51667 | U97: -746 | AC97: 0.51667 | AD97: -1985 | AL97: 0.51667 | AM97: -1855 | AX97: 11.264 | AY97: 3886 | AZ97: 38.603 | BA97: 1.009 | BB97: 2.498 | BC97: 1.143 | BD97: 0 | BE97: 0 | BF97: 0 | BG97: 0
K98: 0.525 | L98: -2614 | T98: 0.525 | U98: -869 | AC98: 0.525 | AD98: -2036 | AL98: 0.525 | AM98: -1926 | AX98: 12.145 | AY98: 6003 | AZ98: 24.989 | BA98: 0 | BB98: 1.203 | BC98: 1.078 | BD98: 0 | BE98: 0 | BF98: 0 | BG98: 0
K99: 0.53333 | L99: -2673 | T99: 0.53333 | U99: -989 | AC99: 0.53333 | AD99: -2135 | AL99: 0.53333 | AM99: -2080 | AX99: 12.437 | AY99: 2948 | AZ99: 50.88 | BA99: 0 | BB99: 0.35 | BC99: 1.024 | BD99: 0 | BE99: 0 | BF99: 0 | BG99: 0
K100: 0.54167 | L100: -2665 | T100: 0.54167 | U100: -1096 | AC100: 0.54167 | AD100: -2136 | AL100: 0.54167 | AM100: -2261 | AX100: 12.849 | AY100: 10451 | AZ100: 14.353 | BA100: 0 | BB100: 0.538 | BC100: 1.033 | BD100: 0 | BE100: 0 | BF100: 0 | BG100: 0
K101: 0.55 | L101: -2577 | T101: 0.55 | U101: -1115 | AC101: 0.55 | AD101: -2045 | AL101: 0.55 | AM101: -2338 | AX101: 13.359 | AY101: 18911 | AZ101: 7.932 | BA101: 0 | BB101: 1.064 | BC101: 1.04 | BD101: 0 | BE101: 0 | BF101: 0 | BG101: 0
K102: 0.55833 | L102: -2523 | T102: 0.55833 | U102: -1027 | AC102: 0.55833 | AD102: -2024 | AL102: 0.55833 | AM102: -2400 | AX102: 13.951 | AY102: 6487 | AZ102: 23.122 | BA102: 0 | BB102: 1.02 | BC102: 1.044 | BD102: 0 | BE102: 0 | BF102: 0 | BG102: 0
K103: 0.56667 | L103: -2573 | T103: 0.56667 | U103: -947 | AC103: 0.56667 | AD103: -2062 | AL103: 0.56667 | AM103: -2569 | AX103: 14.745 | AY103: 5214 | AZ103: 28.767 | BA103: 0 | BB103: 0.984 | BC103: 1.057 | BD103: 0 | BE103: 0 | BF103: 0 | BG103: 0
K104: 0.575 | L104: -2640 | T104: 0.575 | U104: -895 | AC104: 0.575 | AD104: -2032 | AL104: 0.575 | AM104: -2751 | AX104: 15.107 | AY104: 6434 | AZ104: 23.315 | BA104: 0 | BB104: 0.431 | BC104: 1.024 | BD104: 0 | BE104: 0 | BF104: 0 | BG104: 0
K105: 0.58333 | L105: -2740 | T105: 0.58333 | U105: -844 | AC105: 0.58333 | AD105: -2120 | AL105: 0.58333 | AM105: -2773 | AX105: 16.35 | AY105: 27302 | AZ105: 5.494 | BA105: 0 | BB105: 2.032 | BC105: 1.082 | BD105: 0 | BE105: 0 | BF105: 0 | BG105: 0
K106: 0.59167 | L106: -2893 | T106: 0.59167 | U106: -905 | AC106: 0.59167 | AD106: -2260 | AL106: 0.59167 | AM106: -2648 | AX106: 16.723 | AY106: 16148 | AZ106: 9.289 | BA106: 0 | BB106: 0.764 | BC106: 1.023 | BD106: 0 | BE106: 0 | BF106: 0 | BG106: 0
K107: 0.6 | L107: -3072 | T107: 0.6 | U107: -1000 | AC107: 0.6 | AD107: -2315 | AL107: 0.6 | AM107: -2590 | AX107: 16.987 | AY107: 5843 | AZ107: 25.673 | BA107: 0 | BB107: 0.352 | BC107: 1.016 | BD107: 0 | BE107: 0 | BF107: 0 | BG107: 0
K108: 0.60833 | L108: -3258 | T108: 0.60833 | U108: -986 | AC108: 0.60833 | AD108: -2354 | AL108: 0.60833 | AM108: -2593 | AX108: 17.346 | AY108: 5857 | AZ108: 25.609 | BA108: 0 | BB108: 0.378 | BC108: 1.021 | BD108: 0 | BE108: 0 | BF108: 0 | BG108: 0
K109: 0.61667 | L109: -3317 | T109: 0.61667 | U109: -938 | AC109: 0.61667 | AD109: -2387 | AL109: 0.61667 | AM109: -2538 | AX109: 18.539 | AY109: 474 | AZ109: 316.167 | BA109: 0 | BB109: 0.525 | BC109: 1.069 | BD109: 0 | BE109: 0 | BF109: 0 | BG109: 0
K110: 0.625 | L110: -3291 | T110: 0.625 | U110: -938 | AC110: 0.625 | AD110: -2423 | AL110: 0.625 | AM110: -2575 | AX110: 18.774 | AY110: 23314 | AZ110: 6.434 | BA110: 0 | BB110: 0.114 | BC110: 1.013 | BD110: 0 | BE110: 0 | BF110: 0 | BG110: 0
K111: 0.63333 | L111: -3413 | T111: 0.63333 | U111: -913 | AC111: 0.63333 | AD111: -2488 | AL111: 0.63333 | AM111: -2699 | AX111: 19.253 | AY111: 11696 | AZ111: 12.825 | BA111: 0 | BB111: 0.756 | BC111: 1.026 | BD111: 0 | BE111: 0 | BF111: 0 | BG111: 0
K112: 0.64167 | L112: -3570 | T112: 0.64167 | U112: -852 | AC112: 0.64167 | AD112: -2626 | AL112: 0.64167 | AM112: -2763 | AX112: 19.682 | AY112: 13811 | AZ112: 10.861 | BA112: 0 | BB112: 0.591 | BC112: 1.022 | BD112: 0 | BE112: 0 | BF112: 0 | BG112: 0
K113: 0.65 | L113: -3665 | T113: 0.65 | U113: -900 | AC113: 0.65 | AD113: -2718 | AL113: 0.65 | AM113: -2858 | AX113: 20.111 | AY113: 19346 | AZ113: 7.753 | BA113: 0 | BB113: 0.654 | BC113: 1.022 | BD113: 0 | BE113: 0 | BF113: 0 | BG113: 0
K114: 0.65833 | L114: -3714 | T114: 0.65833 | U114: -1007 | AC114: 0.65833 | AD114: -2692 | AL114: 0.65833 | AM114: -3005 | AX114: 20.973 | AY114: 19674 | AZ114: 7.624 | BA114: 0 | BB114: 1.398 | BC114: 1.043 | BD114: 0 | BE114: 0 | BF114: 0 | BG114: 0
K115: 0.66667 | L115: -3691 | T115: 0.66667 | U115: -1010 | AC115: 0.66667 | AD115: -2622 | AL115: 0.66667 | AM115: -3020 | AX115: 21.793 | AY115: 30494 | AZ115: 4.919 | BA115: 0 | BB115: 1.427 | BC115: 1.039 | BD115: 0 | BE115: 0 | BF115: 0 | BG115: 0
K116: 0.675 | L116: -3738 | T116: 0.675 | U116: -957 | AC116: 0.675 | AD116: -2580 | AL116: 0.675 | AM116: -2971 | AX116: 23.077 | AY116: 48508 | AZ116: 3.092 | BA116: 0 | BB116: 2.676 | BC116: 1.059 | BD116: 0 | BE116: 0 | BF116: 0 | BG116: 0
K117: 0.68333 | L117: -3856 | T117: 0.68333 | U117: -952 | AC117: 0.68333 | AD117: -2605 | AL117: 0.68333 | AM117: -2961 | AX117: 23.494 | AY117: 22347 | AZ117: 6.712 | BA117: 0 | BB117: 0.764 | BC117: 1.018 | BD117: 0 | BE117: 0 | BF117: 0 | BG117: 0
K118: 0.69167 | L118: -3867 | T118: 0.69167 | U118: -918 | AC118: 0.69167 | AD118: -2526 | AL118: 0.69167 | AM118: -3006 | AX118: 24.228 | AY118: 42895 | AZ118: 3.497 | BA118: 0 | BB118: 1.284 | BC118: 1.031 | BD118: 0 | BE118: 0 | BF118: 0 | BG118: 0
K119: 0.7 | L119: -3741 | T119: 0.7 | U119: -869 | AC119: 0.7 | AD119: -2562 | AL119: 0.7 | AM119: -3002 | AX119: 24.687 | AY119: 67899 | AZ119: 2.209 | BA119: 0 | BB119: 1.041 | BC119: 1.019 | BD119: 0 | BE119: 0 | BF119: 0 | BG119: 0
K120: 0.70833 | L120: -3735 | T120: 0.70833 | U120: -851 | AC120: 0.70833 | AD120: -2767 | AL120: 0.70833 | AM120: -2886 | AX120: 24.95 | AY120: 29796 | AZ120: 5.034 | BA120: 0 | BB120: 0.529 | BC120: 1.011 | BD120: 0 | BE120: 0 | BF120: 0 | BG120: 0
K121: 0.71667 | L121: -3871 | T121: 0.71667 | U121: -841 | AC121: 0.71667 | AD121: -3015 | AL121: 0.71667 | AM121: -2788 | AX121: 25.324 | AY121: 33958 | AZ121: 4.417 | BA121: 0 | BB121: 0.637 | BC121: 1.015 | BD121: 0 | BE121: 0 | BF121: 0 | BG121: 0
K122: 0.725 | L122: -4059 | T122: 0.725 | U122: -908 | AC122: 0.725 | AD122: -3179 | AL122: 0.725 | AM122: -2827 | AX122: 26.636 | AY122: 2836 | AZ122: 52.894 | BA122: 0 | BB122: 0.991 | BC122: 1.052 | BD122: 0 | BE122: 0 | BF122: 0 | BG122: 0
K123: 0.73333 | L123: -4228 | T123: 0.73333 | U123: -1095 | AC123: 0.73333 | AD123: -3197 | AL123: 0.73333 | AM123: -2881 | AX123: 27.685 | AY123: 1759 | AZ123: 85.258 | BA123: 0 | BB123: 0.436 | BC123: 1.039 | BD123: 0 | BE123: 0 | BF123: 0 | BG123: 0
K124: 0.74167 | L124: -4348 | T124: 0.74167 | U124: -1176 | AC124: 0.74167 | AD124: -3165 | AL124: 0.74167 | AM124: -2890 | AX124: 32.424 | AY124: 66 | AZ124: 2269.259 | BA124: 0 | BB124: 0.494 | BC124: 1.171 | BD124: 0 | BE124: 0 | BF124: 0 | BG124: 0
K125: 0.75 | L125: -4334 | T125: 0.75 | U125: -1094 | AC125: 0.75 | AD125: -3077 | AL125: 0.75 | AM125: -2933 | AX125: 33.063 | AY125: 28 | AZ125: 5427.154 | BA125: 0 | BB125: 0.03 | BC125: 1.02 | BD125: 0 | BE125: 0 | BF125: 0 | BG125: 0
K126: 0.75833 | L126: -4296 | T126: 0.75833 | U126: -1069 | AC126: 0.75833 | AD126: -2972 | AL126: 0.75833 | AM126: -2958 | AX126: 33.495 | AY126: 58 | AZ126: 2586.636 | BA126: 0 | BB126: 0.02 | BC126: 1.013 | BD126: 0 | BE126: 0 | BF126: 0 | BG126: 0
K127: 0.76667 | L127: -4280 | T127: 0.76667 | U127: -1120 | AC127: 0.76667 | AD127: -2883 | AL127: 0.76667 | AM127: -2962 | AX127: 33.849 | AY127: 12 | AZ127: 12810.461 | BA127: 0 | BB127: 0.012 | BC127: 1.011 | BD127: 0 | BE127: 0 | BF127: 0 | BG127: 0
K128: 0.775 | L128: -4231 | T128: 0.775 | U128: -1136 | AC128: 0.775 | AD128: -2812 | AL128: 0.775 | AM128: -2905 | AX128: 36.565 | AY128: 113 | AZ128: 1323.402 | BA128: 0 | BB128: 0.099 | BC128: 1.08 | BD128: 0 | BE128: 0 | BF128: 0 | BG128: 0
K129: 0.78333 | L129: -4217 | T129: 0.78333 | U129: -1241 | AC129: 0.78333 | AD129: -2825 | AL129: 0.78333 | AM129: -2779 | AX129: 39.864 | AY129: 67 | AZ129: 2236.75 | BA129: 0 | BB129: 0.194 | BC129: 1.09 | BD129: 0 | BE129: 0 | BF129: 0 | BG129: 0
K130: 0.79167 | L130: -4319 | T130: 0.79167 | U130: -1265 | AC130: 0.79167 | AD130: -2919 | AL130: 0.79167 | AM130: -2684 | AX130: 40.834 | AY130: 1945 | AZ130: 77.12 | BA130: 0 | BB130: 0.082 | BC130: 1.024 | BD130: 0 | BE130: 0 | BF130: 0 | BG130: 0
K131: 0.8 | L131: -4424 | T131: 0.8 | U131: -1225 | AC131: 0.8 | AD131: -2883 | AL131: 0.8 | AM131: -2776 | AX131: 41.667 | AY131: 23 | AZ131: 6512 | BA131: 0 | BB131: 0.042 | BC131: 1.02 | BD131: 0 | BE131: 0 | BF131: 0 | BG131: 0
K132: 0.80833 | L132: -4515 | T132: 0.80833 | U132: -1218 | AC132: 0.80833 | AD132: -2843 | AL132: 0.80833 | AM132: -2911 | AX132: 41.993 | AY132: 1758 | AZ132: 85.335 | BA132: 0 | BB132: 0.016 | BC132: 1.008 | BD132: 0 | BE132: 0 | BF132: 0 | BG132: 0
K133: 0.81667 | L133: -4582 | T133: 0.81667 | U133: -1235 | AC133: 0.81667 | AD133: -2938 | AL133: 0.81667 | AM133: -3033 | AX133: 42.431 | AY133: 1343 | AZ133: 111.649 | BA133: 0 | BB133: 0.099 | BC133: 1.01 | BD133: 0 | BE133: 0 | BF133: 0 | BG133: 0
K134: 0.825 | L134: -4637 | T134: 0.825 | U134: -1356 | AC134: 0.825 | AD134: -3098 | AL134: 0.825 | AM134: -3213 | AX134: 43.044 | AY134: 5176 | AZ134: 28.982 | BA134: 0 | BB134: 0.17 | BC134: 1.014 | BD134: 0 | BE134: 0 | BF134: 0 | BG134: 0
K135: 0.83333 | L135: -4747 | T135: 0.83333 | U135: -1449 | AC135: 0.83333 | AD135: -3188 | AL135: 0.83333 | AM135: -3341 | AX135: 43.793 | AY135: 3880 | AZ135: 38.663 | BA135: 0 | BB135: 0.281 | BC135: 1.017 | BD135: 0 | BE135: 0 | BF135: 0 | BG135: 0
K136: 0.84167 | L136: -4870 | T136: 0.84167 | U136: -1509 | AC136: 0.84167 | AD136: -3242 | AL136: 0.84167 | AM136: -3435 | AX136: 44.09 | AY136: 2849 | AZ136: 52.649 | BA136: 0 | BB136: 0.095 | BC136: 1.007 | BD136: 0 | BE136: 0 | BF136: 0 | BG136: 0
K137: 0.85 | L137: -4998 | T137: 0.85 | U137: -1523 | AC137: 0.85 | AD137: -3354 | AL137: 0.85 | AM137: -3520 | AX137: 45.098 | AY137: 8132 | AZ137: 18.445 | BA137: 0 | BB137: 0.372 | BC137: 1.023 | BD137: 0 | BE137: 0 | BF137: 0 | BG137: 0
K138: 0.85833 | L138: -5067 | T138: 0.85833 | U138: -1600 | AC138: 0.85833 | AD138: -3422 | AL138: 0.85833 | AM138: -3515 | AX138: 45.527 | AY138: 2472 | AZ138: 60.69 | BA138: 0 | BB138: 0.148 | BC138: 1.01 | BD138: 0 | BE138: 0 | BF138: 0 | BG138: 0
K139: 0.86667 | L139: -4931 | T139: 0.86667 | U139: -1607 | AC139: 0.86667 | AD139: -3417 | AL139: 0.86667 | AM139: -3462 | AX139: 46.146 | AY139: 28 | AZ139: 5348.564 | BA139: 0 | BB139: 0.031 | BC139: 1.014 | BD139: 0 | BE139: 0 | BF139: 0 | BG139: 0
K140: 0.875 | L140: -4799 | T140: 0.875 | U140: -1514 | AC140: 0.875 | AD140: -3454 | AL140: 0.875 | AM140: -3437 | AX140: 46.526 | AY140: 4480 | AZ140: 33.481 | BA140: 0 | BB140: 0.02 | BC140: 1.008 | BD140: 0 | BE140: 0 | BF140: 0 | BG140: 0
K141: 0.88333 | L141: -4722 | T141: 0.88333 | U141: -1371 | AC141: 0.88333 | AD141: -3449 | AL141: 0.88333 | AM141: -3405 | AX141: 47.244 | AY141: 16298 | AZ141: 9.204 | BA141: 0 | BB141: 0.33 | BC141: 1.015 | BD141: 0 | BE141: 0 | BF141: 0 | BG141: 0
K142: 0.89167 | L142: -4685 | T142: 0.89167 | U142: -1277 | AC142: 0.89167 | AD142: -3404 | AL142: 0.89167 | AM142: -3290 | AX142: 47.707 | AY142: 8222 | AZ142: 18.244 | BA142: 0 | BB142: 0.253 | BC142: 1.01 | BD142: 0 | BE142: 0 | BF142: 0 | BG142: 0
K143: 0.9 | L143: -4639 | T143: 0.9 | U143: -1187 | AC143: 0.9 | AD143: -3427 | AL143: 0.9 | AM143: -3226 | AX143: 48.2 | AY143: 2531 | AZ143: 59.267 | BA143: 0 | BB143: 0.163 | BC143: 1.01 | BD143: 0 | BE143: 0 | BF143: 0 | BG143: 0
K144: 0.90833 | L144: -4647 | T144: 0.90833 | U144: -1146 | AC144: 0.90833 | AD144: -3442 | AL144: 0.90833 | AM144: -3219 | AX144: 48.788 | AY144: 5011 | AZ144: 29.934 | BA144: 0 | BB144: 0.175 | BC144: 1.012 | BD144: 0 | BE144: 0 | BF144: 0 | BG144: 0
K145: 0.91667 | L145: -4749 | T145: 0.91667 | U145: -1221 | AC145: 0.91667 | AD145: -3473 | AL145: 0.91667 | AM145: -3211 | AX145: 49.137 | AY145: 33507 | AZ145: 4.477 | BA145: 0 | BB145: 0.179 | BC145: 1.007 | BD145: 0 | BE145: 0 | BF145: 0 | BG145: 0
K146: 0.925 | L146: -4848 | T146: 0.925 | U146: -1220 | AC146: 0.925 | AD146: -3496 | AL146: 0.925 | AM146: -3312 | AX146: 49.494 | AY146: 8916 | AZ146: 16.824 | BA146: 0 | BB146: 0.22 | BC146: 1.007 | BD146: 0 | BE146: 0 | BF146: 0 | BG146: 0
K147: 0.93333 | L147: -4945 | T147: 0.93333 | U147: -1086 | AC147: 0.93333 | AD147: -3414 | AL147: 0.93333 | AM147: -3424 | AX147: 50.162 | AY147: 2972 | AZ147: 50.473 | BA147: 0 | BB147: 0.227 | BC147: 1.014 | BD147: 0 | BE147: 0 | BF147: 0 | BG147: 0
K148: 0.94167 | L148: -5026 | T148: 0.94167 | U148: -1078 | AC148: 0.94167 | AD148: -3299 | AL148: 0.94167 | AM148: -3462 | AX148: 50.691 | AY148: 20119 | AZ148: 7.456 | BA148: 0 | BB148: 0.203 | BC148: 1.011 | BD148: 0 | BE148: 0 | BF148: 0 | BG148: 0
K149: 0.95 | L149: -5093 | T149: 0.95 | U149: -1212 | AC149: 0.95 | AD149: -3182 | AL149: 0.95 | AM149: -3548 | AX149: 51.348 | AY149: 23527 | AZ149: 6.376 | BA149: 0 | BB149: 0.465 | BC149: 1.013 | BD149: 0 | BE149: 0 | BF149: 0 | BG149: 0
K150: 0.95833 | L150: -5129 | T150: 0.95833 | U150: -1261 | AC150: 0.95833 | AD150: -3281 | AL150: 0.95833 | AM150: -3652 | AX150: 52.039 | AY150: 31501 | AZ150: 4.762 | BA150: 0 | BB150: 0.54 | BC150: 1.013 | BD150: 0 | BE150: 0 | BF150: 0 | BG150: 0
K151: 0.96667 | L151: -5153 | T151: 0.96667 | U151: -1211 | AC151: 0.96667 | AD151: -3512 | AL151: 0.96667 | AM151: -3753 | AX151: 53.178 | AY151: 144469 | AZ151: 1.038 | BA151: 0 | BB151: 1.289 | BC151: 1.022 | BD151: 0 | BE151: 0 | BF151: 0 | BG151: 0
K152: 0.975 | L152: -5217 | T152: 0.975 | U152: -1099 | AC152: 0.975 | AD152: -3706 | AL152: 0.975 | AM152: -3785 | AX152: 53.524 | AY152: 37574 | AZ152: 3.992 | BA152: 0 | BB152: 0.408 | BC152: 1.007 | BD152: 0 | BE152: 0 | BF152: 0 | BG152: 0
K153: 0.98333 | L153: -5239 | T153: 0.98333 | U153: -1049 | AC153: 0.98333 | AD153: -3859 | AL153: 0.98333 | AM153: -3760 | AX153: 53.935 | AY153: 285858 | AZ153: 0.525 | BA153: 0 | BB153: 0.536 | BC153: 1.008 | BD153: 0 | BE153: 0 | BF153: 0 | BG153: 0
K154: 0.99167 | L154: -5251 | T154: 0.99167 | U154: -1005 | AC154: 0.99167 | AD154: -3882 | AL154: 0.99167 | AM154: -3699 | AX154: 54.215 | AY154: 403715 | AZ154: 0.372 | BA154: 3.246 | BB154: 0.737 | BC154: 1.005 | BD154: 0 | BE154: 0 | BF154: 0 | BG154: 0
K155: 1 | L155: -5345 | T155: 1 | U155: -956 | AC155: 1 | AD155: -3772 | AL155: 1 | AM155: -3573 | AX155: 55.459 | AY155: 237102 | AZ155: 0.633 | BA155: 0.862 | BB155: 3.068 | BC155: 1.023 | BD155: 0 | BE155: 0 | BF155: 0 | BG155: 0
K156: 1.00833 | L156: -5435 | T156: 1.00833 | U156: -942 | AC156: 1.00833 | AD156: -3673 | AL156: 1.00833 | AM156: -3485 | AX156: 55.911 | AY156: 92230 | AZ156: 1.626 | BA156: 1.013 | BB156: 0.745 | BC156: 1.008 | BD156: 0 | BE156: 0 | BF156: 0 | BG156: 0
K157: 1.01667 | L157: -5525 | T157: 1.01667 | U157: -999 | AC157: 1.01667 | AD157: -3580 | AL157: 1.01667 | AM157: -3441 | AX157: 57.041 | AY157: 103600 | AZ157: 1.448 | BA157: 0 | BB157: 1.537 | BC157: 1.02 | BD157: 0 | BE157: 0 | BF157: 0 | BG157: 0
K158: 1.025 | L158: -5668 | T158: 1.025 | U158: -1148 | AC158: 1.025 | AD158: -3494 | AL158: 1.025 | AM158: -3611 | AX158: 57.484 | AY158: 145665 | AZ158: 1.03 | BA158: 0 | BB158: 0.664 | BC158: 1.008 | BD158: 0 | BE158: 0 | BF158: 0 | BG158: 0
K159: 1.03333 | L159: -5809 | T159: 1.03333 | U159: -1298 | AC159: 1.03333 | AD159: -3538 | AL159: 1.03333 | AM159: -3860 | AX159: 58.084 | AY159: 140262 | AZ159: 1.069 | BA159: 1.797 | BB159: 0.965 | BC159: 1.01 | BD159: 0 | BE159: 0 | BF159: 0 | BG159: 0
K160: 1.04167 | L160: -5938 | T160: 1.04167 | U160: -1407 | AC160: 1.04167 | AD160: -3615 | AL160: 1.04167 | AM160: -4194 | AX160: 59.475 | AY160: 188967 | AZ160: 0.794 | BA160: 0 | BB160: 2.342 | BC160: 1.024 | BD160: 0 | BE160: 0 | BF160: 0 | BG160: 0
K161: 1.05 | L161: -6025 | T161: 1.05 | U161: -1605 | AC161: 1.05 | AD161: -3666 | AL161: 1.05 | AM161: -4515 | AX161: 59.817 | AY161: 162882 | AZ161: 0.921 | BA161: 3.719 | BB161: 0.59 | BC161: 1.006 | BD161: 0 | BE161: 0 | BF161: 0 | BG161: 0
K162: 1.05833 | L162: -6034 | T162: 1.05833 | U162: -1818 | AC162: 1.05833 | AD162: -3769 | AL162: 1.05833 | AM162: -4679 | AX162: 60.839 | AY162: 109770 | AZ162: 1.366 | BA162: 0 | BB162: 1.514 | BC162: 1.017 | BD162: 0 | BE162: 0 | BF162: 0 | BG162: 0
K163: 1.06667 | L163: -6089 | T163: 1.06667 | U163: -1899 | AC163: 1.06667 | AD163: -3982 | AL163: 1.06667 | AM163: -4721 | AX163: 61.508 | AY163: 67958 | AZ163: 2.207 | BA163: 0 | BB163: 0.785 | BC163: 1.011 | BD163: 0 | BE163: 0 | BF163: 0 | BG163: 0
K164: 1.075 | L164: -6083 | T164: 1.075 | U164: -1905 | AC164: 1.075 | AD164: -4190 | AL164: 1.075 | AM164: -4692 | AX164: 62.264 | AY164: 129777 | AZ164: 1.156 | BA164: 0 | BB164: 0.91 | BC164: 1.012 | BD164: 0 | BE164: 0 | BF164: 0 | BG164: 0
K165: 1.08333 | L165: -5995 | T165: 1.08333 | U165: -1837 | AC165: 1.08333 | AD165: -4206 | AL165: 1.08333 | AM165: -4612 | AX165: 63.068 | AY165: 211197 | AZ165: 0.71 | BA165: 0 | BB165: 1.276 | BC165: 1.013 | BD165: 0 | BE165: 0 | BF165: 0 | BG165: 0
K166: 1.09167 | L166: -5873 | T166: 1.09167 | U166: -1735 | AC166: 1.09167 | AD166: -4076 | AL166: 1.09167 | AM166: -4458 | AX166: 63.576 | AY166: 112749 | AZ166: 1.33 | BA166: 0 | BB166: 0.767 | BC166: 1.008 | BD166: 0 | BE166: 0 | BF166: 0 | BG166: 0
K167: 1.1 | L167: -5842 | T167: 1.1 | U167: -1566 | AC167: 1.1 | AD167: -3959 | AL167: 1.1 | AM167: -4287 | AX167: 64.156 | AY167: 933917 | AZ167: 0.161 | BA167: 0 | BB167: 1.115 | BC167: 1.009 | BD167: 0 | BE167: 0 | BF167: 0 | BG167: 0
K168: 1.10833 | L168: -5975 | T168: 1.10833 | U168: -1475 | AC168: 1.10833 | AD168: -3937 | AL168: 1.10833 | AM168: -4302 | AX168: 65.141 | AY168: 328692 | AZ168: 0.456 | BA168: 0 | BB168: 2.695 | BC168: 1.015 | BD168: 0 | BE168: 0 | BF168: 0 | BG168: 0
K169: 1.11667 | L169: -6105 | T169: 1.11667 | U169: -1419 | AC169: 1.11667 | AD169: -4110 | AL169: 1.11667 | AM169: -4470 | AX169: 65.545 | AY169: 342053 | AZ169: 0.439 | BA169: 1.564 | BB169: 0.881 | BC169: 1.006 | BD169: 0 | BE169: 0 | BF169: 0 | BG169: 0
K170: 1.125 | L170: -6134 | T170: 1.125 | U170: -1426 | AC170: 1.125 | AD170: -4282 | AL170: 1.125 | AM170: -4742 | AX170: 66.404 | AY170: 33383 | AZ170: 4.493 | BA170: 0 | BB170: 0.89 | BC170: 1.013 | BD170: 0 | BE170: 0 | BF170: 0 | BG170: 0
K171: 1.13333 | L171: -6213 | T171: 1.13333 | U171: -1560 | AC171: 1.13333 | AD171: -4364 | AL171: 1.13333 | AM171: -4960 | AX171: 66.815 | AY171: 144183 | AZ171: 1.04 | BA171: 0 | BB171: 0.376 | BC171: 1.006 | BD171: 0 | BE171: 0 | BF171: 0 | BG171: 0
K172: 1.14167 | L172: -6279 | T172: 1.14167 | U172: -1701 | AC172: 1.14167 | AD172: -4324 | AL172: 1.14167 | AM172: -4961 | AX172: 67.569 | AY172: 339027 | AZ172: 0.442 | BA172: 0 | BB172: 1.272 | BC172: 1.011 | BD172: 0 | BE172: 0 | BF172: 0 | BG172: 0
K173: 1.15 | L173: -6310 | T173: 1.15 | U173: -1731 | AC173: 1.15 | AD173: -4314 | AL173: 1.15 | AM173: -4817 | AX173: 68.253 | AY173: 34288 | AZ173: 4.375 | BA173: 0 | BB173: 0.696 | BC173: 1.01 | BD173: 0 | BE173: 0 | BF173: 0 | BG173: 0
K174: 1.15833 | L174: -6377 | T174: 1.15833 | U174: -1732 | AC174: 1.15833 | AD174: -4408 | AL174: 1.15833 | AM174: -4669 | AX174: 69.486 | AY174: 50834 | AZ174: 2.951 | BA174: 0 | BB174: 0.897 | BC174: 1.018 | BD174: 0 | BE174: 0 | BF174: 0 | BG174: 0
K175: 1.16667 | L175: -6457 | T175: 1.16667 | U175: -1729 | AC175: 1.16667 | AD175: -4548 | AL175: 1.16667 | AM175: -4585 | AX175: 70.138 | AY175: 209993 | AZ175: 0.714 | BA175: 0 | BB175: 0.697 | BC175: 1.009 | BD175: 0 | BE175: 0 | BF175: 0 | BG175: 0
K176: 1.175 | L176: -6610 | T176: 1.175 | U176: -1729 | AC176: 1.175 | AD176: -4695 | AL176: 1.175 | AM176: -4479 | AX176: 70.688 | AY176: 82199 | AZ176: 1.825 | BA176: 0 | BB176: 0.679 | BC176: 1.008 | BD176: 0 | BE176: 0 | BF176: 0 | BG176: 0
K177: 1.18333 | L177: -6766 | T177: 1.18333 | U177: -1728 | AC177: 1.18333 | AD177: -4734 | AL177: 1.18333 | AM177: -4440 | AX177: 71.215 | AY177: 56116 | AZ177: 2.673 | BA177: 0 | BB177: 0.475 | BC177: 1.007 | BD177: 0 | BE177: 0 | BF177: 0 | BG177: 0
K178: 1.19167 | L178: -6883 | T178: 1.19167 | U178: -1684 | AC178: 1.19167 | AD178: -4648 | AL178: 1.19167 | AM178: -4501 | AX178: 71.677 | AY178: 118472 | AZ178: 1.266 | BA178: 0 | BB178: 0.448 | BC178: 1.006 | BD178: 0 | BE178: 0 | BF178: 0 | BG178: 0
K179: 1.2 | L179: -6941 | T179: 1.2 | U179: -1666 | AC179: 1.2 | AD179: -4512 | AL179: 1.2 | AM179: -4583 | AX179: 72.145 | AY179: 55801 | AZ179: 2.688 | BA179: 0 | BB179: 0.449 | BC179: 1.007 | BD179: 0 | BE179: 0 | BF179: 0 | BG179: 0
K180: 1.20833 | L180: -6927 | T180: 1.20833 | U180: -1681 | AC180: 1.20833 | AD180: -4383 | AL180: 1.20833 | AM180: -4596 | AX180: 72.919 | AY180: 86327 | AZ180: 1.738 | BA180: 0 | BB180: 0.69 | BC180: 1.011 | BD180: 0 | BE180: 0 | BF180: 0 | BG180: 0
K181: 1.21667 | L181: -6965 | T181: 1.21667 | U181: -1632 | AC181: 1.21667 | AD181: -4290 | AL181: 1.21667 | AM181: -4524 | AX181: 73.208 | AY181: 34688 | AZ181: 4.324 | BA181: 0 | BB181: 0.222 | BC181: 1.004 | BD181: 0 | BE181: 0 | BF181: 0 | BG181: 0
K182: 1.225 | L182: -6995 | T182: 1.225 | U182: -1593 | AC182: 1.225 | AD182: -4249 | AL182: 1.225 | AM182: -4596 | AX182: 73.937 | AY182: 11795 | AZ182: 12.717 | BA182: 0 | BB182: 0.335 | BC182: 1.01 | BD182: 0 | BE182: 0 | BF182: 0 | BG182: 0
K183: 1.23333 | L183: -7020 | T183: 1.23333 | U183: -1596 | AC183: 1.23333 | AD183: -4223 | AL183: 1.23333 | AM183: -4739 | AX183: 74.253 | AY183: 3114 | AZ183: 48.174 | BA183: 0 | BB183: 0.077 | BC183: 1.004 | BD183: 0 | BE183: 0 | BF183: 0 | BG183: 0
K184: 1.24167 | L184: -7015 | T184: 1.24167 | U184: -1588 | AC184: 1.24167 | AD184: -4170 | AL184: 1.24167 | AM184: -4798 | AX184: 74.708 | AY184: 22162 | AZ184: 6.768 | BA184: 0 | BB184: 0.123 | BC184: 1.006 | BD184: 0 | BE184: 0 | BF184: 0 | BG184: 0
K185: 1.25 | L185: -7056 | T185: 1.25 | U185: -1588 | AC185: 1.25 | AD185: -4155 | AL185: 1.25 | AM185: -4803 | AX185: 75.041 | AY185: 41095 | AZ185: 3.65 | BA185: 0 | BB185: 0.188 | BC185: 1.004 | BD185: 0 | BE185: 0 | BF185: 0 | BG185: 0
K186: 1.25833 | L186: -7100 | T186: 1.25833 | U186: -1595 | AC186: 1.25833 | AD186: -4190 | AL186: 1.25833 | AM186: -4848 | AX186: 75.695 | AY186: 37514 | AZ186: 3.999 | BA186: 0 | BB186: 0.424 | BC186: 1.009 | BD186: 0 | BE186: 0 | BF186: 0 | BG186: 0
K187: 1.26667 | L187: -7072 | T187: 1.26667 | U187: -1549 | AC187: 1.26667 | AD187: -4274 | AL187: 1.26667 | AM187: -4804 | AX187: 76.113 | AY187: 8002 | AZ187: 18.746 | BA187: 0 | BB187: 0.166 | BC187: 1.006 | BD187: 0 | BE187: 0 | BF187: 0 | BG187: 0
K188: 1.275 | L188: -7063 | T188: 1.275 | U188: -1571 | AC188: 1.275 | AD188: -4387 | AL188: 1.275 | AM188: -4612 | AX188: 76.504 | AY188: 49283 | AZ188: 3.044 | BA188: 0 | BB188: 0.161 | BC188: 1.005 | BD188: 0 | BE188: 0 | BF188: 0 | BG188: 0
K189: 1.28333 | L189: -7065 | T189: 1.28333 | U189: -1672 | AC189: 1.28333 | AD189: -4485 | AL189: 1.28333 | AM189: -4585 | AX189: 76.764 | AY189: 14846 | AZ189: 10.104 | BA189: 0 | BB189: 0.132 | BC189: 1.003 | BD189: 0 | BE189: 0 | BF189: 0 | BG189: 0
K190: 1.29167 | L190: -7069 | T190: 1.29167 | U190: -1643 | AC190: 1.29167 | AD190: -4606 | AL190: 1.29167 | AM190: -4735 | AX190: 77.612 | AY190: 65920 | AZ190: 2.275 | BA190: 0 | BB190: 0.449 | BC190: 1.011 | BD190: 0 | BE190: 0 | BF190: 0 | BG190: 0
K191: 1.3 | L191: -7030 | T191: 1.3 | U191: -1543 | AC191: 1.3 | AD191: -4743 | AL191: 1.3 | AM191: -4815 | AX191: 78.033 | AY191: 93109 | AZ191: 1.611 | BA191: 0 | BB191: 0.373 | BC191: 1.005 | BD191: 0 | BE191: 0 | BF191: 0 | BG191: 0
K192: 1.30833 | L192: -7002 | T192: 1.30833 | U192: -1472 | AC192: 1.30833 | AD192: -4837 | AL192: 1.30833 | AM192: -4879 | AX192: 78.981 | AY192: 217854 | AZ192: 0.689 | BA192: 0 | BB192: 1.102 | BC192: 1.012 | BD192: 0 | BE192: 0 | BF192: 0 | BG192: 0
